Workbook

Sheet Terv-segédlet
A1: 2015 | B1: ="A Vadosfai Evangélikus Egyházközség "&A1&". évi költségvetése" -> A Vadosfai Evangélikus Egyházközség 2015. évi költségvetése | L1: =L3+L29 -> -1008686
A2: =DATEVALUE(A1&".12.31") -> 42369 | E2: Vadosfa | F2: Gyóró | G2: Kisfalud | H2: Magyarkeresztúr | I2: Mihályi | J2: Potyond | K2: Zsebeháza
A3: Bevételek | E3: =KvZsz!W3 -> -40796 | F3: =KvZsz!X3 -> 171240 | G3: =KvZsz!Y3 -> 74810 | H3: =KvZsz!Z3 -> -1099570 | I3: =KvZsz!AA3 -> -161370 | J3: =KvZsz!AB3 -> 33500 | K3: =KvZsz!AC3 -> 13500 | L3: =SUM(L4:L28) -> 13206500
B5: k004 | C5: ingatlan bérbeadás Ft/év | F5: =F6*12 -> 180000 | H5: =H6*12 -> 180000 | I5: =I6*12 -> 480000 | L5: =SUM(E5:K5) -> 840000
C6: lakbér Ft/hó | F6: 15000 | H6: 15000 | I6: 40000
B7: k004 | C7: földbérlet | E7: 33000 | H7: 10000 | I7: 6000 | L7: =SUM(E7:K7) -> 49000
C8: bevétel pályázatból
B9: k020 | C9: EMMI pályázat | H9: 5000000 | L9: 5000000
C10: egyházi beruházási támogatás
B11: k029 | C11: ehm.-i építési támogatás | H11: 1200000 | L11: 1200000
B12: k029 | C12: GAS póttámogatás | K12: 130000 | L12: 130000
B13: k041 | C13: Önkormányzati támogatás | I13: 100000 | L13: 100000
B14: k048 | C14: egyházfenntartás | E14: 265000 | F14: 190000 | G14: 814000 | H14: 546000 | I14: 1400000 | J14: 220000 | K14: 360000 | L14: 3795000
B15: k049 | C15: adomány | E15: 100000 | F15: 10000 | G15: 30000 | H15: 30000 | I15: 50000 | J15: 10000 | K15: 5000 | L15: 235000
B16: k050 | C16: perselypénz | E16: 250000 | F16: 20000 | G16: 160000 | H16: 100000 | I16: 350000 | J16: 50000 | K16: 45000 | L16: 975000
B17: k051 | C17: céladomány | H17: 500000 | L17: 500000
B18: k053 | C18: továbbítandó (offertórium, GAS, szuppl.) | E18: =SUM(E20:E22) -> 80000 | F18: =SUM(F20:F22) -> 5000 | G18: 60000 | H18: =SUM(H20:H22) -> 60000 | I18: 120000 | J18: 5000 | K18: 8000 | L18: 338000
C19: köt. off. alkalom | E19: 4 | F19: 2 | G19: 4 | H19: 4 | I19: 8 | J19: 2 | K19: 3
C20: köt. off. - Ft | E20: 20000 | F20: 5000 | G20: 60000 | H20: 60000 | I20: 120000 | J20: 5000 | K20: 8000
C21: szupplikáció - Ft | E21: 40000 | F21: 0 | G21: 0 | H21: 0 | I21: 0 | J21: 0 | K21: 0
C22: GAS - Ft | E22: 20000
B23: k056 | C23: Kamatok | E23: =ROUND(E24*E25,0) -> 15000 | F23: =ROUND(F24*F25,0) -> 2500 | G23: 2500 | H23: 10000 | I23: 10000 | J23: 1500 | K23: 3000 | L23: 44500
C24: betét - Ft | E24: 3000000 | F24: 500000 | G24: 500000 | H24: 2000000 | I24: 2000000 | J24: 300000 | K24: 600000
C25: kamat % | E25: 0.005 | F25: 0.005 | G25: 0.005 | H25: 0.005 | I25: 0.005 | J25: 0.005 | K25: 0.005
A29: Kiadások | L29: =-SUM(L30:L94) -> -14215186
C31: Gáz
B32: k076 | C32: Lakás | E32: 70000 | L32: 70000
B33: k078 | C33: Templom | I33: 115000 | J33: 25000 | K33: 25000 | L33: 165000
C34: Villany
B35: k080 | C35: Lakás | E35: 22000 | L35: 22000
B36: k082 | C36: Templom | E36: 14000 | F36: 4000 | G36: 75000 | H36: 15000 | I36: 15000 | J36: 2000 | K36: 2000 | L36: 127000
C37: Víz
B38: k084 | C38: Lakás | E38: 17000 | L38: 17000
B39: k086 | C39: Templom | G39: 1000 | H39: 20000 | I39: 2000 | L39: 23000
B40: k089 | C40: Irodaszer | E40: 20000 | L40: 20000
C41: Karbantartás - anyag
B42: k091 | C42: Lakás | E42: 50000 | L42: 50000
B43: k097 | C43: Benzin | E43: =ROUND(F44*G44*H44,0) -> 336000 | L43: 336000
F44: 400 | G44: 12000 | H44: 0.07
C45: Szakkönyv
B46: k099 | L46: 0
B47: k099 | E47: 5000 | L47: 5000
B48: k100 | C48: Tisztítószerek | E48: 5000 | L48: 5000
C49: Karbantartás
B50: k111 | C50: lakás | E50: 20000 | L50: 20000
B51: k113 | C51: templom, gyül. épület | L51: 0
B52: k113 | C52: káplánszoba belső felújítás | E52: 1000000 | L52: 1000000
B53: k113 | C53: templomfelújítás | H53: 8300000 | L53: 8300000
B54: k113 | C54: esőcsatorna készítés | K54: 130000 | L54: 130000
B55: k113 | C55: térburkolat készítése | I55: 450000 | L55: 450000
B56: k113 | C56: külső világítás | I56: 120000 | L56: 120000
B57: k113 | C57: mobil harangozás | I57: 45000 | L57: 45000
B58: k114 | C58: gk. | E58: 150000 | L58: 150000
B59: k120 | C59: Postaköltség | E59: 10000 | L59: 10000
C60: Szaklapok
B61: k121 | C61: Lelkipásztor előfizetés | E61: 10800 | L61: 10800
B62: k121 | C62: Ev.Élet 10 pld. Előfizetés | E62: =14300*10 -> 143000 | L62: 143000
B63: k126 | C63: Bankköltség | E63: 50000 | F63: 1000 | G63: 1000 | H63: 1000 | I63: 10000 | J63: 1000 | K63: 1000 | L63: 65000
C64: Biztosítás
B65: k128 | C65: épület | E65: 109240 | F65: 21260 | G65: 15690 | H65: 18570 | I65: 26370 | L65: 191130
B66: k128 | C66: épület (Potyondtól és Zsebeházától átvállalva) | E66: =J67+K67 -> 12180 | L66: 12180
J67: 6100 | K67: 6080
B68: k129 | C68: gk. GFB | E68: 27000 | L68: 27000
B69: k129 | C69: gk. CASCO | E69: 40000 | L69: 40000
C70: Lelkészi illetmény Ft/hó bttó (4% emelés) | E70: =ROUND(126176*1.04,0) -> 131223
C71: Ft/hó nettó | E71: =ROUND(E70*0.85,0) -> 111540
B72: k138 | C72: Ft/év bttó | E72: =E70*12 -> 1574676 | L72: =SUM(E72:K72) -> 1574676
C73: Nemlelkészi illetmény (Ft)
C74: kántorizálások száma | E74: 38 | F74: 15 | G74: 25 | H74: 25 | I74: 49 | J74: 15 | K74: 15
C75: Ft/alkalom | E75: 1000
B76: k142 | C76: Ft összesen | E76: =E74*E75 -> 38000 | F76: =F74*E75 -> 15000 | G76: =G74*E75 -> 25000 | H76: =H74*E75 -> 25000 | I76: =I74*E75 -> 49000 | L76: =SUM(E76:K76) -> 152000
B77: k142 | C77: Potyondtól és Zsebeházától átvállalva | E77: =SUM(J78:K78) -> 30000 | L77: 30000
J78: =J74*E75 -> 15000 | K78: =K74*E75 -> 15000
C79: takarítások száma | E79: 18 | I79: 12
C80: Ft/alkalom | E80: 4000
C81: Ft/hó | I81: 5000
B82: k142 | C82: Ft összesen | E82: =E79*E80 -> 72000 | I82: =I81*I79 -> 60000 | L82: 132000
B83: k142 | C83: téves elszámolás miatti korrekció (jkv. szerint) | K83: 11500 | L83: 11500
B84: k151 | C84: Vendéglátás
B85: k151 | C85: teológuspassió - ebédeltetés | E85: 40000 | L85: 40000
B86: k164 | C86: ZP Szolidaritási Alap | E86: =ROUND(209000*110%,0) -> 229900 | L86: 229900
B87: k175 | C87: Egyházmegyei járulék | E87: 126000 | L87: 126000
B88: k177 | C88: Táborfenntartás | E88: 12000 | L88: 12000
B89: k188 | C89: Továbbítandók | E89: =E18 -> 80000 | F89: =F18 -> 5000 | G89: 60000 | H89: 60000 | I89: 120000 | J89: 5000 | K89: 8000 | L89: 338000
C90: Beszerzés 100eFt alatti
B91: k207 | C91: szobalétra | I91: 15000 | L91: 15000
B92: k215 | I92: x15000
A94: Pénzmozgást nem jelentő tételek
B95: k066 | E95: =12*525 -> 6300
B96: k067 | C96: ZP Szolidaritási Alap támogatás | E96: =12*525 -> 6300
B97: k197 | E97: =E95 -> 6300
B98: k198 | C98: ZP Szolidaritási Alap támogatás | E98: =E96 -> 6300
A100: Átfutó tételek
B101: p004 | C101: Lelkészi nyugdíjjárulék | E101: =ROUND(E72*15%,0) -> 236201
B102: p007 | C102: Leányegyháztól anyaegyháznak | E102: =SUM(F105:K105) -> 3530000
B103: p007 | C103: Másik egyházközségi résztől | H103: 250000
B104: p016 | C104: Lelkészi nyugdíjjárulék | E104: =ROUND(E72*15%,0) -> 236201
B105: p019 | C105: Anyaegyháznak leányegyháztól | F105: =F14 -> 190000 | G105: 814000 | H105: 546000 | I105: 1400000 | J105: 220000 | K105: 360000
B106: p019 | C106: Másik egyházközségi résznek | I106: 250000
B107: p025 | C107: Beruházás (=k215) | I107: x15000
A109: Értékcsökkenés
B110: k204 | C110: 100eFt alatti tárgyak értékcsökkenése | L110: =SUM(E110:K110) -> 0
B111: k206 | C111: Ingatlanok értékcsökkenése | L111: 0
A113: Pénzeszköz
B114: p029
B115: p030
B116: p033
B119: =SUM(B120:B124) -> 4340200 | C119: Magyarkeresztúr - templomfelújítás
B120: 1200000 | C120: Egyházmegyei ép. segély
B121: 250000 | C121: Mihályiból
C122: Pályázatból
B123: =3340200-B120-B121 -> 1890200 | C123: Gyűjtés
B124: 1000000 | C124: Saját erő
B126: Új költségek
C127: telefon
C128: internet

Sheet KvZsz
E1: A tétel megnevezése | U1: Előző évi tény | V1: Ez évi terv | W1: V | X1: Gy | Y1: K | Z1: Mk | AA1: M | AB1: P | AC1: Zs | AD1: Ez évi tény | AE1: V | AF1: Gy | AG1: K | AH1: Mk | AI1: M | AJ1: P | AK1: Zs | AM1: =(TODAY()-DATEVALUE('Terv-segédlet'!A1&".01.01"))/IF(MOD('Terv-segédlet'!A1,4)=0,366,365) -> 1.112328767
V2: gyül.összes | W2: e z é v i t e r v | AD2: gyül.összes | AE2: e z é v i t é n y
A3: =CONCATENATE("k00",C3) -> k001 | C3: 1 | E3: I. Pénzügyileg rendezett bevételek (2+14+54+58) | U3: =SUM(U6:U72)-SUM(U76:U247)+SUM(U252:U260)-SUM(U264:U273) -> 3107068 | V3: =SUM(W3:AC3) -> -1008686 | W3: =SUM(W6:W72)-SUM(W76:W247)+SUM(W252:W260)-SUM(W264:W273) -> -40796 | X3: =SUM(X6:X72)-SUM(X76:X247)+SUM(X252:X260)-SUM(X264:X273) -> 171240 | Y3: =SUM(Y6:Y72)-SUM(Y76:Y247)+SUM(Y252:Y260)-SUM(Y264:Y273) -> 74810 | Z3: -1099570 | AA3: -161370 | AB3: 33500 | AC3: 13500 | AD3: =SUM(AE3:AK3) -> 2267178 | AE3: =SUM(AE6:AE72)-SUM(AE76:AE247)+SUM(AE252:AE260)-SUM(AE264:AE273) -> 517253 | AF3: =SUM(AF6:AF72)-SUM(AF76:AF247)+SUM(AF252:AF260)-SUM(AF264:AF273) -> 119290 | AG3: -100356 | AH3: =SUM(AH6:AH72)-SUM(AH76:AH247)+SUM(AH252:AH260)-SUM(AH264:AH273) -> 1052347 | AI3: 523423 | AJ3: 9613 | AK3: 145608 | AL3: bevétel
A4: =CONCATENATE("k00",C4) -> k002 | C4: 2 | E4: 1. Értékesítés nettó árbevétele (3+10+11+13) | V4: bevétel | W4: =SUM(W6:W72)+SUM(W252:W260) -> 4521801 | X4: =SUM(X6:X72)+SUM(X252:X260) -> 407500 | Y4: 1066500 | Z4: 7886000 | AA4: 2516000 | AB4: 286500 | AC4: 551000 | AD4: bevétel | AE4: =SUM(AE6:AE72)+AE255 -> 3925168 | AF4: =SUM(AF6:AF72)+AF255 -> 380086 | AG4: 841702 | AH4: 4552312 | AI4: 2529254 | AJ4: 281518 | AK4: 627068 | AL4: bevétel | AN4: 91..94
A5: k003 | C5: 3 | E5: i) Alaptevékenység általános jellegű árbevétele (4..9) | V5: kiadás | W5: =-SUM(W76:W247)-SUM(W264:W273) -> -4562597 | X5: =-SUM(X76:X247)-SUM(X264:X273) -> -236260 | Y5: -991690 | Z5: -8985570 | AA5: -2677370 | AB5: -253000 | AC5: -537500 | AD5: kiadás | AE5: =-SUM(AE78:AE247)-AE267 -> -3407915 | AF5: =-SUM(AF78:AF247)-AF267 -> -260796 | AG5: -942058 | AH5: -3499965 | AI5: -2005831 | AJ5: -271905 | AK5: -481460 | AL5: bevétel
A6: k004 | B6: * | C6: 4 | E6: Ingatlan bérbeadás árbevétele | U6: =SUMIF(kvátf.!E:E,KvZsz!A6,kvátf.!D:D) -> 816620 | V6: =SUM(W6:AC6) -> 889000 | W6: =SUMIF('Terv-segédlet'!$B:$B,KvZsz!$A6,'Terv-segédlet'!E:E) -> 33000 | X6: =SUMIF('Terv-segédlet'!$B:$B,KvZsz!$A6,'Terv-segédlet'!F:F) -> 180000 | Y6: =SUMIF('Terv-segédlet'!$B:$B,KvZsz!$A6,'Terv-segédlet'!G:G) -> 0 | Z6: =SUMIF('Terv-segédlet'!$B:$B,KvZsz!$A6,'Terv-segédlet'!H:H) -> 190000 | AA6: =SUMIF('Terv-segédlet'!$B:$B,KvZsz!$A6,'Terv-segédlet'!I:I) -> 486000 | AB6: =SUMIF('Terv-segédlet'!$B:$B,KvZsz!$A6,'Terv-segédlet'!J:J) -> 0 | AC6: =SUMIF('Terv-segédlet'!$B:$B,KvZsz!$A6,'Terv-segédlet'!K:K) -> 0 | AD6: =SUM(AE6:AK6) -> 852990 | AE6: =SUMIF(V!$A:$A,$A6,V!$K:$K)+SUMIF(bank!$A:$A,AE$1&$A6,bank!$M:$M) -> 36990 | AF6: =SUMIF(Gy!$A:$A,$A6,Gy!$K:$K)+SUMIF(bank!$A:$A,AF$1&$A6,bank!$M:$M) -> 180000 | AG6: =SUMIF(K!$A:$A,$A6,K!$K:$K)+SUMIF(bank!$A:$A,AG$1&$A6,bank!$M:$M) -> 0 | AH6: =SUMIF(Mk!$A:$A,$A6,Mk!$K:$K)+SUMIF(bank!$A:$A,AH$1&$A6,bank!$M:$M) -> 150000 | AI6: =SUMIF(M!$A:$A,$A6,M!$K:$K)+SUMIF(bank!$A:$A,AI$1&$A6,bank!$M:$M) -> 486000 | AJ6: =SUMIF(P!$A:$A,$A6,P!$K:$K)+SUMIF(bank!$A:$A,AJ$1&$A6,bank!$M:$M) -> 0 | AK6: =SUMIF(Zs!$A:$A,$A6,Zs!$K:$K)+SUMIF(bank!$A:$A,AK$1&$A6,bank!$M:$M) -> 0 | AL6: bevétel | AM6: =IF(AND(OR(V6<>0,AD6<>0),V6<>0),ABS(AD6/V6),"") -> 0.9594938133 | AN6: részleges ingatlan bérbeadás (lakás, egyéb ingatlan, földterület, stb.) (nem vállalkozási tevékenység)
A7: k005 | B7: * | C7: 5 | E7: Egyéb bérleti díjak árbevétele | F7: Egyéb bérleti díjak árbevétele | G7: Egyéb bérleti díjak árbevétele | H7: Egyéb bérleti díjak árbevétele | I7: Egyéb bérleti díjak árbevétele | J7: Egyéb bérleti díjak árbevétele | K7: Egyéb bérleti díjak árbevétele | L7: Egyéb bérleti díjak árbevétele | M7: Egyéb bérleti díjak árbevétele | N7: Egyéb bérleti díjak árbevétele | O7: Egyéb bérleti díjak árbevétele | P7: Egyéb bérleti díjak árbevétele | Q7: Egyéb bérleti díjak árbevétele | R7: Egyéb bérleti díjak árbevétele | S7: Egyéb bérleti díjak árbevétele | T7: Egyéb bérleti díjak árbevétele | U7: =SUMIF(kvátf.!E:E,KvZsz!A7,kvátf.!D:D) -> 49291 | V7: =SUM(W7:AC7) -> 0 | W7: =SUMIF('Terv-segédlet'!$B:$B,KvZsz!$A7,'Terv-segédlet'!E:E) -> 0 | X7: =SUMIF('Terv-segédlet'!$B:$B,KvZsz!$A7,'Terv-segédlet'!F:F) -> 0 | Y7: =SUMIF('Terv-segédlet'!$B:$B,KvZsz!$A7,'Terv-segédlet'!G:G) -> 0 | Z7: =SUMIF('Terv-segédlet'!$B:$B,KvZsz!$A7,'Terv-segédlet'!H:H) -> 0 | AA7: =SUMIF('Terv-segédlet'!$B:$B,KvZsz!$A7,'Terv-segédlet'!I:I) -> 0 | AB7: =SUMIF('Terv-segédlet'!$B:$B,KvZsz!$A7,'Terv-segédlet'!J:J) -> 0 | AC7: =SUMIF('Terv-segédlet'!$B:$B,KvZsz!$A7,'Terv-segédlet'!K:K) -> 0 | AD7: =SUM(AE7:AK7) -> 0 | AE7: =SUMIF(V!$A:$A,$A7,V!$K:$K)+SUMIF(bank!$A:$A,AE$1&$A7,bank!$M:$M) -> 0 | AF7: =SUMIF(Gy!$A:$A,$A7,Gy!$K:$K)+SUMIF(bank!$A:$A,AF$1&$A7,bank!$M:$M) -> 0 | AG7: =SUMIF(K!$A:$A,$A7,K!$K:$K)+SUMIF(bank!$A:$A,AG$1&$A7,bank!$M:$M) -> 0 | AH7: =SUMIF(Mk!$A:$A,$A7,Mk!$K:$K)+SUMIF(bank!$A:$A,AH$1&$A7,bank!$M:$M) -> 0 | AI7: =SUMIF(M!$A:$A,$A7,M!$K:$K)+SUMIF(bank!$A:$A,AI$1&$A7,bank!$M:$M) -> 0 | AJ7: =SUMIF(P!$A:$A,$A7,P!$K:$K)+SUMIF(bank!$A:$A,AJ$1&$A7,bank!$M:$M) -> 0 | AK7: =SUMIF(Zs!$A:$A,$A7,Zs!$K:$K)+SUMIF(bank!$A:$A,AK$1&$A7,bank!$M:$M) -> 0 | AL7: bevétel | AM7: =IF(AND(OR(V7<>0,AD7<>0),V7<>0),ABS(AD7/V7),"") ->  | AN7: pl: eszköz bérbeadás
A8: k006 | B8: * | C8: 6 | E8: Temető árbevétele | F8: Temető árbevétele | G8: Temető árbevétele | H8: Temető árbevétele | I8: Temető árbevétele | J8: Temető árbevétele | K8: Temető árbevétele | L8: Temető árbevétele | M8: Temető árbevétele | N8: Temető árbevétele | O8: Temető árbevétele | P8: Temető árbevétele | Q8: Temető árbevétele | R8: Temető árbevétele | S8: Temető árbevétele | T8: Temető árbevétele | U8: =SUMIF(kvátf.!E:E,KvZsz!A8,kvátf.!D:D) -> 0 | V8: 0 | W8: =SUMIF('Terv-segédlet'!$B:$B,KvZsz!$A8,'Terv-segédlet'!E:E) -> 0 | X8: =SUMIF('Terv-segédlet'!$B:$B,KvZsz!$A8,'Terv-segédlet'!F:F) -> 0 | Y8: =SUMIF('Terv-segédlet'!$B:$B,KvZsz!$A8,'Terv-segédlet'!G:G) -> 0 | Z8: =SUMIF('Terv-segédlet'!$B:$B,KvZsz!$A8,'Terv-segédlet'!H:H) -> 0 | AA8: =SUMIF('Terv-segédlet'!$B:$B,KvZsz!$A8,'Terv-segédlet'!I:I) -> 0 | AB8: =SUMIF('Terv-segédlet'!$B:$B,KvZsz!$A8,'Terv-segédlet'!J:J) -> 0 | AC8: =SUMIF('Terv-segédlet'!$B:$B,KvZsz!$A8,'Terv-segédlet'!K:K) -> 0 | AD8: =SUM(AE8:AK8) -> 0 | AE8: =SUMIF(V!$A:$A,$A8,V!$K:$K)+SUMIF(bank!$A:$A,AE$1&$A8,bank!$M:$M) -> 0 | AF8: =SUMIF(Gy!$A:$A,$A8,Gy!$K:$K)+SUMIF(bank!$A:$A,AF$1&$A8,bank!$M:$M) -> 0 | AG8: =SUMIF(K!$A:$A,$A8,K!$K:$K)+SUMIF(bank!$A:$A,AG$1&$A8,bank!$M:$M) -> 0 | AH8: =SUMIF(Mk!$A:$A,$A8,Mk!$K:$K)+SUMIF(bank!$A:$A,AH$1&$A8,bank!$M:$M) -> 0 | AI8: =SUMIF(M!$A:$A,$A8,M!$K:$K)+SUMIF(bank!$A:$A,AI$1&$A8,bank!$M:$M) -> 0 | AJ8: =SUMIF(P!$A:$A,$A8,P!$K:$K)+SUMIF(bank!$A:$A,AJ$1&$A8,bank!$M:$M) -> 0 | AK8: =SUMIF(Zs!$A:$A,$A8,Zs!$K:$K)+SUMIF(bank!$A:$A,AK$1&$A8,bank!$M:$M) -> 0 | AL8: bevétel | AN8: sírhely, urnahely megváltás, temetési szolgáltatás
A9: k007 | B9: * | C9: 7 | E9: Iratterjesztés árbevétele | F9: Iratterjesztés árbevétele | G9: Iratterjesztés árbevétele | H9: Iratterjesztés árbevétele | I9: Iratterjesztés árbevétele | J9: Iratterjesztés árbevétele | K9: Iratterjesztés árbevétele | L9: Iratterjesztés árbevétele | M9: Iratterjesztés árbevétele | N9: Iratterjesztés árbevétele | O9: Iratterjesztés árbevétele | P9: Iratterjesztés árbevétele | Q9: Iratterjesztés árbevétele | R9: Iratterjesztés árbevétele | S9: Iratterjesztés árbevétele | T9: Iratterjesztés árbevétele | U9: =SUMIF(kvátf.!E:E,KvZsz!A9,kvátf.!D:D) -> 0 | V9: 0 | W9: =SUMIF('Terv-segédlet'!$B:$B,KvZsz!$A9,'Terv-segédlet'!E:E) -> 0 | X9: =SUMIF('Terv-segédlet'!$B:$B,KvZsz!$A9,'Terv-segédlet'!F:F) -> 0 | Y9: =SUMIF('Terv-segédlet'!$B:$B,KvZsz!$A9,'Terv-segédlet'!G:G) -> 0 | Z9: =SUMIF('Terv-segédlet'!$B:$B,KvZsz!$A9,'Terv-segédlet'!H:H) -> 0 | AA9: =SUMIF('Terv-segédlet'!$B:$B,KvZsz!$A9,'Terv-segédlet'!I:I) -> 0 | AB9: =SUMIF('Terv-segédlet'!$B:$B,KvZsz!$A9,'Terv-segédlet'!J:J) -> 0 | AC9: =SUMIF('Terv-segédlet'!$B:$B,KvZsz!$A9,'Terv-segédlet'!K:K) -> 0 | AD9: 65430 | AE9: =SUMIF(V!$A:$A,$A9,V!$K:$K)+SUMIF(bank!$A:$A,AE$1&$A9,bank!$M:$M) -> 65430 | AF9: =SUMIF(Gy!$A:$A,$A9,Gy!$K:$K)+SUMIF(bank!$A:$A,AF$1&$A9,bank!$M:$M) -> 0 | AG9: =SUMIF(K!$A:$A,$A9,K!$K:$K)+SUMIF(bank!$A:$A,AG$1&$A9,bank!$M:$M) -> 0 | AH9: =SUMIF(Mk!$A:$A,$A9,Mk!$K:$K)+SUMIF(bank!$A:$A,AH$1&$A9,bank!$M:$M) -> 0 | AI9: =SUMIF(M!$A:$A,$A9,M!$K:$K)+SUMIF(bank!$A:$A,AI$1&$A9,bank!$M:$M) -> 0 | AJ9: =SUMIF(P!$A:$A,$A9,P!$K:$K)+SUMIF(bank!$A:$A,AJ$1&$A9,bank!$M:$M) -> 0 | AK9: =SUMIF(Zs!$A:$A,$A9,Zs!$K:$K)+SUMIF(bank!$A:$A,AK$1&$A9,bank!$M:$M) -> 0 | AL9: bevétel | AN9: Vásárolt könyvek, folyóiratok, stb. értékesítésének bevétele
A10: k008 | B10: * | C10: 8 | E10: Harangozás árbevétele | F10: Harangozás árbevétele | G10: Harangozás árbevétele | H10: Harangozás árbevétele | I10: Harangozás árbevétele | J10: Harangozás árbevétele | K10: Harangozás árbevétele | L10: Harangozás árbevétele | M10: Harangozás árbevétele | N10: Harangozás árbevétele | O10: Harangozás árbevétele | P10: Harangozás árbevétele | Q10: Harangozás árbevétele | R10: Harangozás árbevétele | S10: Harangozás árbevétele | T10: Harangozás árbevétele | U10: =SUMIF(kvátf.!E:E,KvZsz!A10,kvátf.!D:D) -> 0 | V10: 0 | W10: =SUMIF('Terv-segédlet'!$B:$B,KvZsz!$A10,'Terv-segédlet'!E:E) -> 0 | X10: =SUMIF('Terv-segédlet'!$B:$B,KvZsz!$A10,'Terv-segédlet'!F:F) -> 0 | Y10: =SUMIF('Terv-segédlet'!$B:$B,KvZsz!$A10,'Terv-segédlet'!G:G) -> 0 | Z10: =SUMIF('Terv-segédlet'!$B:$B,KvZsz!$A10,'Terv-segédlet'!H:H) -> 0 | AA10: =SUMIF('Terv-segédlet'!$B:$B,KvZsz!$A10,'Terv-segédlet'!I:I) -> 0 | AB10: =SUMIF('Terv-segédlet'!$B:$B,KvZsz!$A10,'Terv-segédlet'!J:J) -> 0 | AC10: =SUMIF('Terv-segédlet'!$B:$B,KvZsz!$A10,'Terv-segédlet'!K:K) -> 0 | AD10: 0 | AE10: =SUMIF(V!$A:$A,$A10,V!$K:$K)+SUMIF(bank!$A:$A,AE$1&$A10,bank!$M:$M) -> 0 | AF10: =SUMIF(Gy!$A:$A,$A10,Gy!$K:$K)+SUMIF(bank!$A:$A,AF$1&$A10,bank!$M:$M) -> 0 | AG10: =SUMIF(K!$A:$A,$A10,K!$K:$K)+SUMIF(bank!$A:$A,AG$1&$A10,bank!$M:$M) -> 0 | AH10: =SUMIF(Mk!$A:$A,$A10,Mk!$K:$K)+SUMIF(bank!$A:$A,AH$1&$A10,bank!$M:$M) -> 0 | AI10: =SUMIF(M!$A:$A,$A10,M!$K:$K)+SUMIF(bank!$A:$A,AI$1&$A10,bank!$M:$M) -> 0 | AJ10: =SUMIF(P!$A:$A,$A10,P!$K:$K)+SUMIF(bank!$A:$A,AJ$1&$A10,bank!$M:$M) -> 0 | AK10: =SUMIF(Zs!$A:$A,$A10,Zs!$K:$K)+SUMIF(bank!$A:$A,AK$1&$A10,bank!$M:$M) -> 0 | AL10: bevétel | AN10: harangozás díjszabás alapján kivetett, számlázott vagy nyugta alapján átvett bevétele
A11: k009 | B11: * | C11: 9 | E11: Alaptevékenység egyéb általános árbevétele | F11: Alaptevékenység egyéb általános árbevétele | G11: Alaptevékenység egyéb általános árbevétele | H11: Alaptevékenység egyéb általános árbevétele | I11: Alaptevékenység egyéb általános árbevétele | J11: Alaptevékenység egyéb általános árbevétele | K11: Alaptevékenység egyéb általános árbevétele | L11: Alaptevékenység egyéb általános árbevétele | M11: Alaptevékenység egyéb általános árbevétele | N11: Alaptevékenység egyéb általános árbevétele | O11: Alaptevékenység egyéb általános árbevétele | P11: Alaptevékenység egyéb általános árbevétele | Q11: Alaptevékenység egyéb általános árbevétele | R11: Alaptevékenység egyéb általános árbevétele | S11: Alaptevékenység egyéb általános árbevétele | T11: Alaptevékenység egyéb általános árbevétele | U11: =SUMIF(kvátf.!E:E,KvZsz!A11,kvátf.!D:D) -> 0 | V11: 0 | W11: =SUMIF('Terv-segédlet'!$B:$B,KvZsz!$A11,'Terv-segédlet'!E:E) -> 0 | X11: =SUMIF('Terv-segédlet'!$B:$B,KvZsz!$A11,'Terv-segédlet'!F:F) -> 0 | Y11: =SUMIF('Terv-segédlet'!$B:$B,KvZsz!$A11,'Terv-segédlet'!G:G) -> 0 | Z11: =SUMIF('Terv-segédlet'!$B:$B,KvZsz!$A11,'Terv-segédlet'!H:H) -> 0 | AA11: =SUMIF('Terv-segédlet'!$B:$B,KvZsz!$A11,'Terv-segédlet'!I:I) -> 0 | AB11: =SUMIF('Terv-segédlet'!$B:$B,KvZsz!$A11,'Terv-segédlet'!J:J) -> 0 | AC11: =SUMIF('Terv-segédlet'!$B:$B,KvZsz!$A11,'Terv-segédlet'!K:K) -> 0 | AD11: 0 | AE11: =SUMIF(V!$A:$A,$A11,V!$K:$K)+SUMIF(bank!$A:$A,AE$1&$A11,bank!$M:$M) -> 0 | AF11: =SUMIF(Gy!$A:$A,$A11,Gy!$K:$K)+SUMIF(bank!$A:$A,AF$1&$A11,bank!$M:$M) -> 0 | AG11: =SUMIF(K!$A:$A,$A11,K!$K:$K)+SUMIF(bank!$A:$A,AG$1&$A11,bank!$M:$M) -> 0 | AH11: =SUMIF(Mk!$A:$A,$A11,Mk!$K:$K)+SUMIF(bank!$A:$A,AH$1&$A11,bank!$M:$M) -> 0 | AI11: =SUMIF(M!$A:$A,$A11,M!$K:$K)+SUMIF(bank!$A:$A,AI$1&$A11,bank!$M:$M) -> 0 | AJ11: =SUMIF(P!$A:$A,$A11,P!$K:$K)+SUMIF(bank!$A:$A,AJ$1&$A11,bank!$M:$M) -> 0 | AK11: =SUMIF(Zs!$A:$A,$A11,Zs!$K:$K)+SUMIF(bank!$A:$A,AK$1&$A11,bank!$M:$M) -> 0 | AL11: bevétel | AN11: tábor részvételi díj bevétele, szervezett konferencia részvételi díj, étkeztetés bevélele, saját könyvek, kiadványok bevétele, stb
A12: =CONCATENATE("k0",C12) -> k010 | B12: * | C12: 10 | E12: ii) Vállalkozási tevékenység árbevétele | F12: ii) Vállalkozási tevékenység árbevélete | G12: ii) Vállalkozási tevékenység árbevélete | H12: ii) Vállalkozási tevékenység árbevélete | I12: ii) Vállalkozási tevékenység árbevélete | J12: ii) Vállalkozási tevékenység árbevélete | K12: ii) Vállalkozási tevékenység árbevélete | L12: ii) Vállalkozási tevékenység árbevélete | M12: ii) Vállalkozási tevékenység árbevélete | N12: ii) Vállalkozási tevékenység árbevélete | O12: ii) Vállalkozási tevékenység árbevélete | P12: ii) Vállalkozási tevékenység árbevélete | Q12: ii) Vállalkozási tevékenység árbevélete | R12: ii) Vállalkozási tevékenység árbevélete | S12: ii) Vállalkozási tevékenység árbevélete | T12: ii) Vállalkozási tevékenység árbevélete | U12: =SUMIF(kvátf.!E:E,KvZsz!A12,kvátf.!D:D) -> 0 | V12: 0 | W12: =SUMIF('Terv-segédlet'!$B:$B,KvZsz!$A12,'Terv-segédlet'!E:E) -> 0 | X12: =SUMIF('Terv-segédlet'!$B:$B,KvZsz!$A12,'Terv-segédlet'!F:F) -> 0 | Y12: =SUMIF('Terv-segédlet'!$B:$B,KvZsz!$A12,'Terv-segédlet'!G:G) -> 0 | Z12: =SUMIF('Terv-segédlet'!$B:$B,KvZsz!$A12,'Terv-segédlet'!H:H) -> 0 | AA12: =SUMIF('Terv-segédlet'!$B:$B,KvZsz!$A12,'Terv-segédlet'!I:I) -> 0 | AB12: =SUMIF('Terv-segédlet'!$B:$B,KvZsz!$A12,'Terv-segédlet'!J:J) -> 0 | AC12: =SUMIF('Terv-segédlet'!$B:$B,KvZsz!$A12,'Terv-segédlet'!K:K) -> 0 | AD12: 0 | AE12: =SUMIF(V!$A:$A,$A12,V!$K:$K)+SUMIF(bank!$A:$A,AE$1&$A12,bank!$M:$M) -> 0 | AF12: =SUMIF(Gy!$A:$A,$A12,Gy!$K:$K)+SUMIF(bank!$A:$A,AF$1&$A12,bank!$M:$M) -> 0 | AG12: =SUMIF(K!$A:$A,$A12,K!$K:$K)+SUMIF(bank!$A:$A,AG$1&$A12,bank!$M:$M) -> 0 | AH12: =SUMIF(Mk!$A:$A,$A12,Mk!$K:$K)+SUMIF(bank!$A:$A,AH$1&$A12,bank!$M:$M) -> 0 | AI12: =SUMIF(M!$A:$A,$A12,M!$K:$K)+SUMIF(bank!$A:$A,AI$1&$A12,bank!$M:$M) -> 0 | AJ12: =SUMIF(P!$A:$A,$A12,P!$K:$K)+SUMIF(bank!$A:$A,AJ$1&$A12,bank!$M:$M) -> 0 | AK12: =SUMIF(Zs!$A:$A,$A12,Zs!$K:$K)+SUMIF(bank!$A:$A,AK$1&$A12,bank!$M:$M) -> 0 | AL12: bevétel | AN12: teljes ingatlan bérbeadás, kereskedelmi tevékenység, szálláshely szolgáltatás, stb.
A13: =CONCATENATE("k0",C13) -> k011 | B13: * | C13: 11 | E13: iii) Közvetített szolgáltatások árbevétele (pl. visszatérítések) | F13: iii) Közvetített szolgáltatások árbevétele | G13: iii) Közvetített szolgáltatások árbevétele | H13: iii) Közvetített szolgáltatások árbevétele | I13: iii) Közvetített szolgáltatások árbevétele | J13: iii) Közvetített szolgáltatások árbevétele | K13: iii) Közvetített szolgáltatások árbevétele | L13: iii) Közvetített szolgáltatások árbevétele | M13: iii) Közvetített szolgáltatások árbevétele | N13: iii) Közvetített szolgáltatások árbevétele | O13: iii) Közvetített szolgáltatások árbevétele | P13: iii) Közvetített szolgáltatások árbevétele | Q13: iii) Közvetített szolgáltatások árbevétele | R13: iii) Közvetített szolgáltatások árbevétele | S13: iii) Közvetített szolgáltatások árbevétele | T13: iii) Közvetített szolgáltatások árbevétele | U13: 33604 | V13: 0 | W13: =SUMIF('Terv-segédlet'!$B:$B,KvZsz!$A13,'Terv-segédlet'!E:E) -> 0 | X13: =SUMIF('Terv-segédlet'!$B:$B,KvZsz!$A13,'Terv-segédlet'!F:F) -> 0 | Y13: =SUMIF('Terv-segédlet'!$B:$B,KvZsz!$A13,'Terv-segédlet'!G:G) -> 0 | Z13: =SUMIF('Terv-segédlet'!$B:$B,KvZsz!$A13,'Terv-segédlet'!H:H) -> 0 | AA13: =SUMIF('Terv-segédlet'!$B:$B,KvZsz!$A13,'Terv-segédlet'!I:I) -> 0 | AB13: =SUMIF('Terv-segédlet'!$B:$B,KvZsz!$A13,'Terv-segédlet'!J:J) -> 0 | AC13: =SUMIF('Terv-segédlet'!$B:$B,KvZsz!$A13,'Terv-segédlet'!K:K) -> 0 | AD13: 0 | AE13: =SUMIF(V!$A:$A,$A13,V!$K:$K)+SUMIF(bank!$A:$A,AE$1&$A13,bank!$M:$M) -> 0 | AF13: =SUMIF(Gy!$A:$A,$A13,Gy!$K:$K)+SUMIF(bank!$A:$A,AF$1&$A13,bank!$M:$M) -> 0 | AG13: =SUMIF(K!$A:$A,$A13,K!$K:$K)+SUMIF(bank!$A:$A,AG$1&$A13,bank!$M:$M) -> 0 | AH13: =SUMIF(Mk!$A:$A,$A13,Mk!$K:$K)+SUMIF(bank!$A:$A,AH$1&$A13,bank!$M:$M) -> 0 | AI13: =SUMIF(M!$A:$A,$A13,M!$K:$K)+SUMIF(bank!$A:$A,AI$1&$A13,bank!$M:$M) -> 0 | AJ13: =SUMIF(P!$A:$A,$A13,P!$K:$K)+SUMIF(bank!$A:$A,AJ$1&$A13,bank!$M:$M) -> 0 | AK13: =SUMIF(Zs!$A:$A,$A13,Zs!$K:$K)+SUMIF(bank!$A:$A,AK$1&$A13,bank!$M:$M) -> 0 | AL13: bevétel | AN13: rezsi visszatérítés, amennyiben a számla az egyházközség nevére szól, és abból más térítést fizet (számlázandó)
A14: k012 | B14: * | C14: 12 | E14: ebből lelkészlakáshoz kapcsolódó visszatérítés | F14: ebből lelkészlakáshoz kapcsolódó visszatérítés | G14: ebből lelkészlakáshoz kapcsolódó visszatérítés | H14: ebből lelkészlakáshoz kapcsolódó visszatérítés | I14: ebből lelkészlakáshoz kapcsolódó visszatérítés | J14: ebből lelkészlakáshoz kapcsolódó visszatérítés | K14: ebből lelkészlakáshoz kapcsolódó visszatérítés | L14: ebből lelkészlakáshoz kapcsolódó visszatérítés | M14: ebből lelkészlakáshoz kapcsolódó visszatérítés | N14: ebből lelkészlakáshoz kapcsolódó visszatérítés | O14: ebből lelkészlakáshoz kapcsolódó visszatérítés | P14: ebből lelkészlakáshoz kapcsolódó visszatérítés | Q14: ebből lelkészlakáshoz kapcsolódó visszatérítés | R14: ebből lelkészlakáshoz kapcsolódó visszatérítés | S14: ebből lelkészlakáshoz kapcsolódó visszatérítés | T14: ebből lelkészlakáshoz kapcsolódó visszatérítés | U14: =SUMIF(kvátf.!E:E,KvZsz!A14,kvátf.!D:D) -> 33604 | V14: 0 | W14: =SUMIF('Terv-segédlet'!$B:$B,KvZsz!$A14,'Terv-segédlet'!E:E) -> 0 | X14: =SUMIF('Terv-segédlet'!$B:$B,KvZsz!$A14,'Terv-segédlet'!F:F) -> 0 | Y14: =SUMIF('Terv-segédlet'!$B:$B,KvZsz!$A14,'Terv-segédlet'!G:G) -> 0 | Z14: =SUMIF('Terv-segédlet'!$B:$B,KvZsz!$A14,'Terv-segédlet'!H:H) -> 0 | AA14: =SUMIF('Terv-segédlet'!$B:$B,KvZsz!$A14,'Terv-segédlet'!I:I) -> 0 | AB14: =SUMIF('Terv-segédlet'!$B:$B,KvZsz!$A14,'Terv-segédlet'!J:J) -> 0 | AC14: =SUMIF('Terv-segédlet'!$B:$B,KvZsz!$A14,'Terv-segédlet'!K:K) -> 0 | AD14: 0 | AE14: =SUMIF(V!$A:$A,$A14,V!$K:$K)+SUMIF(bank!$A:$A,AE$1&$A14,bank!$M:$M) -> 0 | AF14: =SUMIF(Gy!$A:$A,$A14,Gy!$K:$K)+SUMIF(bank!$A:$A,AF$1&$A14,bank!$M:$M) -> 0 | AG14: =SUMIF(K!$A:$A,$A14,K!$K:$K)+SUMIF(bank!$A:$A,AG$1&$A14,bank!$M:$M) -> 0 | AH14: =SUMIF(Mk!$A:$A,$A14,Mk!$K:$K)+SUMIF(bank!$A:$A,AH$1&$A14,bank!$M:$M) -> 0 | AI14: =SUMIF(M!$A:$A,$A14,M!$K:$K)+SUMIF(bank!$A:$A,AI$1&$A14,bank!$M:$M) -> 0 | AJ14: =SUMIF(P!$A:$A,$A14,P!$K:$K)+SUMIF(bank!$A:$A,AJ$1&$A14,bank!$M:$M) -> 0 | AK14: =SUMIF(Zs!$A:$A,$A14,Zs!$K:$K)+SUMIF(bank!$A:$A,AK$1&$A14,bank!$M:$M) -> 0 | AL14: bevétel | AN14: a lelkészlakásra tekintettel a lelkész által fizetett rezsi visszatérítés, amennyiben a számla az egyházközség nevére szól, és abból más térítést fizet (számlázandó)
A15: k013 | B15: * | C15: 13 | E15: iv) Egyéb tevékenység árbevétele | F15: iv) Egyéb továbbszámlázott tételekből eredő bevételek (visszatérítés) | G15: iv) Egyéb továbbszámlázott tételekből eredő bevételek (visszatérítés) | H15: iv) Egyéb továbbszámlázott tételekből eredő bevételek (visszatérítés) | I15: iv) Egyéb továbbszámlázott tételekből eredő bevételek (visszatérítés) | J15: iv) Egyéb továbbszámlázott tételekből eredő bevételek (visszatérítés) | K15: iv) Egyéb továbbszámlázott tételekből eredő bevételek (visszatérítés) | L15: iv) Egyéb továbbszámlázott tételekből eredő bevételek (visszatérítés) | M15: iv) Egyéb továbbszámlázott tételekből eredő bevételek (visszatérítés) | N15: iv) Egyéb továbbszámlázott tételekből eredő bevételek (visszatérítés) | O15: iv) Egyéb továbbszámlázott tételekből eredő bevételek (visszatérítés) | P15: iv) Egyéb továbbszámlázott tételekből eredő bevételek (visszatérítés) | Q15: iv) Egyéb továbbszámlázott tételekből eredő bevételek (visszatérítés) | R15: iv) Egyéb továbbszámlázott tételekből eredő bevételek (visszatérítés) | S15: iv) Egyéb továbbszámlázott tételekből eredő bevételek (visszatérítés) | T15: iv) Egyéb továbbszámlázott tételekből eredő bevételek (visszatérítés) | U15: =SUMIF(kvátf.!E:E,KvZsz!A15,kvátf.!D:D) -> 0 | V15: 0 | W15: =SUMIF('Terv-segédlet'!$B:$B,KvZsz!$A15,'Terv-segédlet'!E:E) -> 0 | X15: =SUMIF('Terv-segédlet'!$B:$B,KvZsz!$A15,'Terv-segédlet'!F:F) -> 0 | Y15: =SUMIF('Terv-segédlet'!$B:$B,KvZsz!$A15,'Terv-segédlet'!G:G) -> 0 | Z15: =SUMIF('Terv-segédlet'!$B:$B,KvZsz!$A15,'Terv-segédlet'!H:H) -> 0 | AA15: =SUMIF('Terv-segédlet'!$B:$B,KvZsz!$A15,'Terv-segédlet'!I:I) -> 0 | AB15: =SUMIF('Terv-segédlet'!$B:$B,KvZsz!$A15,'Terv-segédlet'!J:J) -> 0 | AC15: =SUMIF('Terv-segédlet'!$B:$B,KvZsz!$A15,'Terv-segédlet'!K:K) -> 0 | AD15: 6967 | AE15: =SUMIF(V!$A:$A,$A15,V!$K:$K)+SUMIF(bank!$A:$A,AE$1&$A15,bank!$M:$M) -> 0 | AF15: =SUMIF(Gy!$A:$A,$A15,Gy!$K:$K)+SUMIF(bank!$A:$A,AF$1&$A15,bank!$M:$M) -> 0 | AG15: =SUMIF(K!$A:$A,$A15,K!$K:$K)+SUMIF(bank!$A:$A,AG$1&$A15,bank!$M:$M) -> 0 | AH15: =SUMIF(Mk!$A:$A,$A15,Mk!$K:$K)+SUMIF(bank!$A:$A,AH$1&$A15,bank!$M:$M) -> 6967 | AI15: =SUMIF(M!$A:$A,$A15,M!$K:$K)+SUMIF(bank!$A:$A,AI$1&$A15,bank!$M:$M) -> 0 | AJ15: =SUMIF(P!$A:$A,$A15,P!$K:$K)+SUMIF(bank!$A:$A,AJ$1&$A15,bank!$M:$M) -> 0 | AK15: =SUMIF(Zs!$A:$A,$A15,Zs!$K:$K)+SUMIF(bank!$A:$A,AK$1&$A15,bank!$M:$M) -> 0 | AL15: bevétel | AN15: egyéb gazdálkodási bevétel
A16: k014 | C16: 14 | E16: 2. Egyéb bevételek (15+18+19+23) | W16: =SUMIF('Terv-segédlet'!$B:$B,KvZsz!$A16,'Terv-segédlet'!E:E) -> 0 | X16: =SUMIF('Terv-segédlet'!$B:$B,KvZsz!$A16,'Terv-segédlet'!F:F) -> 0 | Y16: =SUMIF('Terv-segédlet'!$B:$B,KvZsz!$A16,'Terv-segédlet'!G:G) -> 0 | Z16: =SUMIF('Terv-segédlet'!$B:$B,KvZsz!$A16,'Terv-segédlet'!H:H) -> 0 | AA16: =SUMIF('Terv-segédlet'!$B:$B,KvZsz!$A16,'Terv-segédlet'!I:I) -> 0 | AB16: =SUMIF('Terv-segédlet'!$B:$B,KvZsz!$A16,'Terv-segédlet'!J:J) -> 0 | AC16: =SUMIF('Terv-segédlet'!$B:$B,KvZsz!$A16,'Terv-segédlet'!K:K) -> 0 | AL16: bevétel | AN16: 0.96
A17: k015 | C17: 15 | E17: i) Értékesített immateriális javak, tárgyi eszközök bevétele (16+17) | W17: =SUMIF('Terv-segédlet'!$B:$B,KvZsz!$A17,'Terv-segédlet'!E:E) -> 0 | X17: =SUMIF('Terv-segédlet'!$B:$B,KvZsz!$A17,'Terv-segédlet'!F:F) -> 0 | Y17: =SUMIF('Terv-segédlet'!$B:$B,KvZsz!$A17,'Terv-segédlet'!G:G) -> 0 | Z17: =SUMIF('Terv-segédlet'!$B:$B,KvZsz!$A17,'Terv-segédlet'!H:H) -> 0 | AA17: =SUMIF('Terv-segédlet'!$B:$B,KvZsz!$A17,'Terv-segédlet'!I:I) -> 0 | AB17: =SUMIF('Terv-segédlet'!$B:$B,KvZsz!$A17,'Terv-segédlet'!J:J) -> 0 | AC17: =SUMIF('Terv-segédlet'!$B:$B,KvZsz!$A17,'Terv-segédlet'!K:K) -> 0 | AL17: bevétel
A18: k016 | B18: * | C18: 16 | E18: Ingatlan értékesítés | F18: Pályázati bevételek (nem egyházi) | G18: Pályázati bevételek (nem egyházi) | H18: Pályázati bevételek (nem egyházi) | I18: Pályázati bevételek (nem egyházi) | J18: Pályázati bevételek (nem egyházi) | K18: Pályázati bevételek (nem egyházi) | L18: Pályázati bevételek (nem egyházi) | M18: Pályázati bevételek (nem egyházi) | N18: Pályázati bevételek (nem egyházi) | O18: Pályázati bevételek (nem egyházi) | P18: Pályázati bevételek (nem egyházi) | Q18: Pályázati bevételek (nem egyházi) | R18: Pályázati bevételek (nem egyházi) | S18: Pályázati bevételek (nem egyházi) | T18: Pályázati bevételek (nem egyházi) | U18: =SUMIF(kvátf.!E:E,KvZsz!A18,kvátf.!D:D) -> 0 | V18: =SUM(W18:AC18) -> 0 | W18: =SUMIF('Terv-segédlet'!$B:$B,KvZsz!$A18,'Terv-segédlet'!E:E) -> 0 | X18: =SUMIF('Terv-segédlet'!$B:$B,KvZsz!$A18,'Terv-segédlet'!F:F) -> 0 | Y18: =SUMIF('Terv-segédlet'!$B:$B,KvZsz!$A18,'Terv-segédlet'!G:G) -> 0 | Z18: =SUMIF('Terv-segédlet'!$B:$B,KvZsz!$A18,'Terv-segédlet'!H:H) -> 0 | AA18: =SUMIF('Terv-segédlet'!$B:$B,KvZsz!$A18,'Terv-segédlet'!I:I) -> 0 | AB18: =SUMIF('Terv-segédlet'!$B:$B,KvZsz!$A18,'Terv-segédlet'!J:J) -> 0 | AC18: =SUMIF('Terv-segédlet'!$B:$B,KvZsz!$A18,'Terv-segédlet'!K:K) -> 0 | AD18: =SUM(AE18:AK18) -> 0 | AE18: =SUMIF(V!$A:$A,$A18,V!$K:$K)+SUMIF(bank!$A:$A,AE$1&$A18,bank!$M:$M) -> 0 | AF18: =SUMIF(Gy!$A:$A,$A18,Gy!$K:$K)+SUMIF(bank!$A:$A,AF$1&$A18,bank!$M:$M) -> 0 | AG18: =SUMIF(K!$A:$A,$A18,K!$K:$K)+SUMIF(bank!$A:$A,AG$1&$A18,bank!$M:$M) -> 0 | AH18: =SUMIF(Mk!$A:$A,$A18,Mk!$K:$K)+SUMIF(bank!$A:$A,AH$1&$A18,bank!$M:$M) -> 0 | AI18: =SUMIF(M!$A:$A,$A18,M!$K:$K)+SUMIF(bank!$A:$A,AI$1&$A18,bank!$M:$M) -> 0 | AJ18: =SUMIF(P!$A:$A,$A18,P!$K:$K)+SUMIF(bank!$A:$A,AJ$1&$A18,bank!$M:$M) -> 0 | AK18: =SUMIF(Zs!$A:$A,$A18,Zs!$K:$K)+SUMIF(bank!$A:$A,AK$1&$A18,bank!$M:$M) -> 0 | AL18: bevétel | AN18: értékesített ingatlan árbevétele
A19: k017 | B19: * | C19: 17 | E19: Egyéb értékesítés | F19: Pályázati bevételek (nem egyházi) | G19: Pályázati bevételek (nem egyházi) | H19: Pályázati bevételek (nem egyházi) | I19: Pályázati bevételek (nem egyházi) | J19: Pályázati bevételek (nem egyházi) | K19: Pályázati bevételek (nem egyházi) | L19: Pályázati bevételek (nem egyházi) | M19: Pályázati bevételek (nem egyházi) | N19: Pályázati bevételek (nem egyházi) | O19: Pályázati bevételek (nem egyházi) | P19: Pályázati bevételek (nem egyházi) | Q19: Pályázati bevételek (nem egyházi) | R19: Pályázati bevételek (nem egyházi) | S19: Pályázati bevételek (nem egyházi) | T19: Pályázati bevételek (nem egyházi) | U19: =SUMIF(kvátf.!E:E,KvZsz!A19,kvátf.!D:D) -> 0 | V19: 0 | W19: =SUMIF('Terv-segédlet'!$B:$B,KvZsz!$A19,'Terv-segédlet'!E:E) -> 0 | X19: =SUMIF('Terv-segédlet'!$B:$B,KvZsz!$A19,'Terv-segédlet'!F:F) -> 0 | Y19: =SUMIF('Terv-segédlet'!$B:$B,KvZsz!$A19,'Terv-segédlet'!G:G) -> 0 | Z19: =SUMIF('Terv-segédlet'!$B:$B,KvZsz!$A19,'Terv-segédlet'!H:H) -> 0 | AA19: =SUMIF('Terv-segédlet'!$B:$B,KvZsz!$A19,'Terv-segédlet'!I:I) -> 0 | AB19: =SUMIF('Terv-segédlet'!$B:$B,KvZsz!$A19,'Terv-segédlet'!J:J) -> 0 | AC19: =SUMIF('Terv-segédlet'!$B:$B,KvZsz!$A19,'Terv-segédlet'!K:K) -> 0 | AD19: 0 | AE19: =SUMIF(V!$A:$A,$A19,V!$K:$K)+SUMIF(bank!$A:$A,AE$1&$A19,bank!$M:$M) -> 0 | AF19: =SUMIF(Gy!$A:$A,$A19,Gy!$K:$K)+SUMIF(bank!$A:$A,AF$1&$A19,bank!$M:$M) -> 0 | AG19: =SUMIF(K!$A:$A,$A19,K!$K:$K)+SUMIF(bank!$A:$A,AG$1&$A19,bank!$M:$M) -> 0 | AH19: =SUMIF(Mk!$A:$A,$A19,Mk!$K:$K)+SUMIF(bank!$A:$A,AH$1&$A19,bank!$M:$M) -> 0 | AI19: =SUMIF(M!$A:$A,$A19,M!$K:$K)+SUMIF(bank!$A:$A,AI$1&$A19,bank!$M:$M) -> 0 | AJ19: =SUMIF(P!$A:$A,$A19,P!$K:$K)+SUMIF(bank!$A:$A,AJ$1&$A19,bank!$M:$M) -> 0 | AK19: =SUMIF(Zs!$A:$A,$A19,Zs!$K:$K)+SUMIF(bank!$A:$A,AK$1&$A19,bank!$M:$M) -> 0 | AL19: bevétel | AN19: ingatlanon kívüli leltári eszköz (ingó) értékesítésének bevétele
A20: k018 | B20: * | C20: 18 | E20: ii) Értékesített, átruházott (engedményezett követelések) elismert értéke | F20: ii) Értékesített, átruházott (engedményezett követelések) elismert értéke | G20: ii) Értékesített, átruházott (engedményezett követelések) elismert értéke | H20: ii) Értékesített, átruházott (engedményezett követelések) elismert értéke | I20: ii) Értékesített, átruházott (engedményezett követelések) elismert értéke | J20: ii) Értékesített, átruházott (engedményezett követelések) elismert értéke | K20: ii) Értékesített, átruházott (engedményezett követelések) elismert értéke | L20: ii) Értékesített, átruházott (engedményezett követelések) elismert értéke | M20: ii) Értékesített, átruházott (engedményezett követelések) elismert értéke | N20: ii) Értékesített, átruházott (engedményezett követelések) elismert értéke | O20: ii) Értékesített, átruházott (engedményezett követelések) elismert értéke | P20: ii) Értékesített, átruházott (engedményezett követelések) elismert értéke | Q20: ii) Értékesített, átruházott (engedményezett követelések) elismert értéke | R20: ii) Értékesített, átruházott (engedményezett követelések) elismert értéke | S20: ii) Értékesített, átruházott (engedményezett követelések) elismert értéke | T20: ii) Értékesített, átruházott (engedményezett követelések) elismert értéke | U20: =SUMIF(kvátf.!E:E,KvZsz!A20,kvátf.!D:D) -> 0 | V20: 0 | W20: =SUMIF('Terv-segédlet'!$B:$B,KvZsz!$A20,'Terv-segédlet'!E:E) -> 0 | X20: =SUMIF('Terv-segédlet'!$B:$B,KvZsz!$A20,'Terv-segédlet'!F:F) -> 0 | Y20: =SUMIF('Terv-segédlet'!$B:$B,KvZsz!$A20,'Terv-segédlet'!G:G) -> 0 | Z20: =SUMIF('Terv-segédlet'!$B:$B,KvZsz!$A20,'Terv-segédlet'!H:H) -> 0 | AA20: =SUMIF('Terv-segédlet'!$B:$B,KvZsz!$A20,'Terv-segédlet'!I:I) -> 0 | AB20: =SUMIF('Terv-segédlet'!$B:$B,KvZsz!$A20,'Terv-segédlet'!J:J) -> 0 | AC20: =SUMIF('Terv-segédlet'!$B:$B,KvZsz!$A20,'Terv-segédlet'!K:K) -> 0 | AD20: 0 | AE20: =SUMIF(V!$A:$A,$A20,V!$K:$K)+SUMIF(bank!$A:$A,AE$1&$A20,bank!$M:$M) -> 0 | AF20: =SUMIF(Gy!$A:$A,$A20,Gy!$K:$K)+SUMIF(bank!$A:$A,AF$1&$A20,bank!$M:$M) -> 0 | AG20: =SUMIF(K!$A:$A,$A20,K!$K:$K)+SUMIF(bank!$A:$A,AG$1&$A20,bank!$M:$M) -> 0 | AH20: =SUMIF(Mk!$A:$A,$A20,Mk!$K:$K)+SUMIF(bank!$A:$A,AH$1&$A20,bank!$M:$M) -> 0 | AI20: =SUMIF(M!$A:$A,$A20,M!$K:$K)+SUMIF(bank!$A:$A,AI$1&$A20,bank!$M:$M) -> 0 | AJ20: =SUMIF(P!$A:$A,$A20,P!$K:$K)+SUMIF(bank!$A:$A,AJ$1&$A20,bank!$M:$M) -> 0 | AK20: =SUMIF(Zs!$A:$A,$A20,Zs!$K:$K)+SUMIF(bank!$A:$A,AK$1&$A20,bank!$M:$M) -> 0 | AL20: bevétel | AN20: nem jellemző bevétel
A21: k019 | C21: 19 | E21: iii) Különféle egyéb bevételek (20..22) | F21: v) Különféle egyéb bevételek (20..22) | G21: v) Különféle egyéb bevételek (20..22) | H21: v) Különféle egyéb bevételek (20..22) | I21: v) Különféle egyéb bevételek (20..22) | J21: v) Különféle egyéb bevételek (20..22) | K21: v) Különféle egyéb bevételek (20..22) | L21: v) Különféle egyéb bevételek (20..22) | M21: v) Különféle egyéb bevételek (20..22) | N21: v) Különféle egyéb bevételek (20..22) | O21: v) Különféle egyéb bevételek (20..22) | P21: v) Különféle egyéb bevételek (20..22) | Q21: v) Különféle egyéb bevételek (20..22) | R21: v) Különféle egyéb bevételek (20..22) | S21: v) Különféle egyéb bevételek (20..22) | T21: v) Különféle egyéb bevételek (20..22) | W21: =SUMIF('Terv-segédlet'!$B:$B,KvZsz!$A21,'Terv-segédlet'!E:E) -> 0 | X21: =SUMIF('Terv-segédlet'!$B:$B,KvZsz!$A21,'Terv-segédlet'!F:F) -> 0 | Y21: =SUMIF('Terv-segédlet'!$B:$B,KvZsz!$A21,'Terv-segédlet'!G:G) -> 0 | Z21: =SUMIF('Terv-segédlet'!$B:$B,KvZsz!$A21,'Terv-segédlet'!H:H) -> 0 | AA21: =SUMIF('Terv-segédlet'!$B:$B,KvZsz!$A21,'Terv-segédlet'!I:I) -> 0 | AB21: =SUMIF('Terv-segédlet'!$B:$B,KvZsz!$A21,'Terv-segédlet'!J:J) -> 0 | AC21: =SUMIF('Terv-segédlet'!$B:$B,KvZsz!$A21,'Terv-segédlet'!K:K) -> 0 | AL21: bevétel
A22: k020 | B22: * | C22: 20 | E22: Pályázati bevételek (nem egyházi) | F22: Pályázati bevételek (nem egyházi) | G22: Pályázati bevételek (nem egyházi) | H22: Pályázati bevételek (nem egyházi) | I22: Pályázati bevételek (nem egyházi) | J22: Pályázati bevételek (nem egyházi) | K22: Pályázati bevételek (nem egyházi) | L22: Pályázati bevételek (nem egyházi) | M22: Pályázati bevételek (nem egyházi) | N22: Pályázati bevételek (nem egyházi) | O22: Pályázati bevételek (nem egyházi) | P22: Pályázati bevételek (nem egyházi) | Q22: Pályázati bevételek (nem egyházi) | R22: Pályázati bevételek (nem egyházi) | S22: Pályázati bevételek (nem egyházi) | T22: Pályázati bevételek (nem egyházi) | U22: =SUMIF(kvátf.!E:E,KvZsz!A22,kvátf.!D:D) -> 26999999 | V22: =SUM(W22:AC22) -> 5000000 | W22: =SUMIF('Terv-segédlet'!$B:$B,KvZsz!$A22,'Terv-segédlet'!E:E) -> 0 | X22: =SUMIF('Terv-segédlet'!$B:$B,KvZsz!$A22,'Terv-segédlet'!F:F) -> 0 | Y22: =SUMIF('Terv-segédlet'!$B:$B,KvZsz!$A22,'Terv-segédlet'!G:G) -> 0 | Z22: =SUMIF('Terv-segédlet'!$B:$B,KvZsz!$A22,'Terv-segédlet'!H:H) -> 5000000 | AA22: =SUMIF('Terv-segédlet'!$B:$B,KvZsz!$A22,'Terv-segédlet'!I:I) -> 0 | AB22: =SUMIF('Terv-segédlet'!$B:$B,KvZsz!$A22,'Terv-segédlet'!J:J) -> 0 | AC22: =SUMIF('Terv-segédlet'!$B:$B,KvZsz!$A22,'Terv-segédlet'!K:K) -> 0 | AD22: =SUM(AE22:AK22) -> 0 | AE22: =SUMIF(V!$A:$A,$A22,V!$K:$K)+SUMIF(bank!$A:$A,AE$1&$A22,bank!$M:$M) -> 0 | AF22: =SUMIF(Gy!$A:$A,$A22,Gy!$K:$K)+SUMIF(bank!$A:$A,AF$1&$A22,bank!$M:$M) -> 0 | AG22: =SUMIF(K!$A:$A,$A22,K!$K:$K)+SUMIF(bank!$A:$A,AG$1&$A22,bank!$M:$M) -> 0 | AH22: =SUMIF(Mk!$A:$A,$A22,Mk!$K:$K)+SUMIF(bank!$A:$A,AH$1&$A22,bank!$M:$M) -> 0 | AI22: =SUMIF(M!$A:$A,$A22,M!$K:$K)+SUMIF(bank!$A:$A,AI$1&$A22,bank!$M:$M) -> 0 | AJ22: =SUMIF(P!$A:$A,$A22,P!$K:$K)+SUMIF(bank!$A:$A,AJ$1&$A22,bank!$M:$M) -> 0 | AK22: =SUMIF(Zs!$A:$A,$A22,Zs!$K:$K)+SUMIF(bank!$A:$A,AK$1&$A22,bank!$M:$M) -> 0 | AL22: bevétel | AM22: 0 | AN22: nem egyháztól nyert pályázatok bevétele (pl. uniós)
A23: k021 | B23: * | C23: 21 | E23: Káreseménnyel kapcsolatban kapott bevételek, biztosító által megítélt bevételek | F23: Káreseménnyel kapcsolatban kapott bevételek, biztosító által megítélt bevételek | G23: Káreseménnyel kapcsolatban kapott bevételek, biztosító által megítélt bevételek | H23: Káreseménnyel kapcsolatban kapott bevételek, biztosító által megítélt bevételek | I23: Káreseménnyel kapcsolatban kapott bevételek, biztosító által megítélt bevételek | J23: Káreseménnyel kapcsolatban kapott bevételek, biztosító által megítélt bevételek | K23: Káreseménnyel kapcsolatban kapott bevételek, biztosító által megítélt bevételek | L23: Káreseménnyel kapcsolatban kapott bevételek, biztosító által megítélt bevételek | M23: Káreseménnyel kapcsolatban kapott bevételek, biztosító által megítélt bevételek | N23: Káreseménnyel kapcsolatban kapott bevételek, biztosító által megítélt bevételek | O23: Káreseménnyel kapcsolatban kapott bevételek, biztosító által megítélt bevételek | P23: Káreseménnyel kapcsolatban kapott bevételek, biztosító által megítélt bevételek | Q23: Káreseménnyel kapcsolatban kapott bevételek, biztosító által megítélt bevételek | R23: Káreseménnyel kapcsolatban kapott bevételek, biztosító által megítélt bevételek | S23: Káreseménnyel kapcsolatban kapott bevételek, biztosító által megítélt bevételek | T23: Káreseménnyel kapcsolatban kapott bevételek, biztosító által megítélt bevételek | U23: =SUMIF(kvátf.!E:E,KvZsz!A23,kvátf.!D:D) -> 0 | V23: 0 | W23: =SUMIF('Terv-segédlet'!$B:$B,KvZsz!$A23,'Terv-segédlet'!E:E) -> 0 | X23: =SUMIF('Terv-segédlet'!$B:$B,KvZsz!$A23,'Terv-segédlet'!F:F) -> 0 | Y23: =SUMIF('Terv-segédlet'!$B:$B,KvZsz!$A23,'Terv-segédlet'!G:G) -> 0 | Z23: =SUMIF('Terv-segédlet'!$B:$B,KvZsz!$A23,'Terv-segédlet'!H:H) -> 0 | AA23: =SUMIF('Terv-segédlet'!$B:$B,KvZsz!$A23,'Terv-segédlet'!I:I) -> 0 | AB23: =SUMIF('Terv-segédlet'!$B:$B,KvZsz!$A23,'Terv-segédlet'!J:J) -> 0 | AC23: =SUMIF('Terv-segédlet'!$B:$B,KvZsz!$A23,'Terv-segédlet'!K:K) -> 0 | AD23: 0 | AE23: =SUMIF(V!$A:$A,$A23,V!$K:$K)+SUMIF(bank!$A:$A,AE$1&$A23,bank!$M:$M) -> 0 | AF23: =SUMIF(Gy!$A:$A,$A23,Gy!$K:$K)+SUMIF(bank!$A:$A,AF$1&$A23,bank!$M:$M) -> 0 | AG23: =SUMIF(K!$A:$A,$A23,K!$K:$K)+SUMIF(bank!$A:$A,AG$1&$A23,bank!$M:$M) -> 0 | AH23: =SUMIF(Mk!$A:$A,$A23,Mk!$K:$K)+SUMIF(bank!$A:$A,AH$1&$A23,bank!$M:$M) -> 0 | AI23: =SUMIF(M!$A:$A,$A23,M!$K:$K)+SUMIF(bank!$A:$A,AI$1&$A23,bank!$M:$M) -> 0 | AJ23: =SUMIF(P!$A:$A,$A23,P!$K:$K)+SUMIF(bank!$A:$A,AJ$1&$A23,bank!$M:$M) -> 0 | AK23: =SUMIF(Zs!$A:$A,$A23,Zs!$K:$K)+SUMIF(bank!$A:$A,AK$1&$A23,bank!$M:$M) -> 0 | AL23: bevétel | AN23: káreseményhez kapcsolódó kártérítés, biztosító visszatérítése
A24: k022 | B24: * | C24: 22 | E24: Különféle egyéb bevételek | F24: Különféle egyéb bevételek | G24: Különféle egyéb bevételek | H24: Különféle egyéb bevételek | I24: Különféle egyéb bevételek | J24: Különféle egyéb bevételek | K24: Különféle egyéb bevételek | L24: Különféle egyéb bevételek | M24: Különféle egyéb bevételek | N24: Különféle egyéb bevételek | O24: Különféle egyéb bevételek | P24: Különféle egyéb bevételek | Q24: Különféle egyéb bevételek | R24: Különféle egyéb bevételek | S24: Különféle egyéb bevételek | T24: Különféle egyéb bevételek | U24: =SUMIF(kvátf.!E:E,KvZsz!A24,kvátf.!D:D) -> 1 | V24: 0 | W24: =SUMIF('Terv-segédlet'!$B:$B,KvZsz!$A24,'Terv-segédlet'!E:E) -> 0 | X24: =SUMIF('Terv-segédlet'!$B:$B,KvZsz!$A24,'Terv-segédlet'!F:F) -> 0 | Y24: =SUMIF('Terv-segédlet'!$B:$B,KvZsz!$A24,'Terv-segédlet'!G:G) -> 0 | Z24: =SUMIF('Terv-segédlet'!$B:$B,KvZsz!$A24,'Terv-segédlet'!H:H) -> 0 | AA24: =SUMIF('Terv-segédlet'!$B:$B,KvZsz!$A24,'Terv-segédlet'!I:I) -> 0 | AB24: =SUMIF('Terv-segédlet'!$B:$B,KvZsz!$A24,'Terv-segédlet'!J:J) -> 0 | AC24: =SUMIF('Terv-segédlet'!$B:$B,KvZsz!$A24,'Terv-segédlet'!K:K) -> 0 | AD24: 1 | AE24: =SUMIF(V!$A:$A,$A24,V!$K:$K)+SUMIF(bank!$A:$A,AE$1&$A24,bank!$M:$M) -> 0 | AF24: =SUMIF(Gy!$A:$A,$A24,Gy!$K:$K)+SUMIF(bank!$A:$A,AF$1&$A24,bank!$M:$M) -> 0 | AG24: =SUMIF(K!$A:$A,$A24,K!$K:$K)+SUMIF(bank!$A:$A,AG$1&$A24,bank!$M:$M) -> 1 | AH24: =SUMIF(Mk!$A:$A,$A24,Mk!$K:$K)+SUMIF(bank!$A:$A,AH$1&$A24,bank!$M:$M) -> -2 | AI24: =SUMIF(M!$A:$A,$A24,M!$K:$K)+SUMIF(bank!$A:$A,AI$1&$A24,bank!$M:$M) -> 2 | AJ24: =SUMIF(P!$A:$A,$A24,P!$K:$K)+SUMIF(bank!$A:$A,AJ$1&$A24,bank!$M:$M) -> 0 | AK24: =SUMIF(Zs!$A:$A,$A24,Zs!$K:$K)+SUMIF(bank!$A:$A,AK$1&$A24,bank!$M:$M) -> 0 | AL24: bevétel | AN24: kerekítések, előzőekben fel nem sorolt és támogatásként nem szereplő egyéb bevételek
A25: k023 | C25: 23 | E25: iv) Támogatások (24+35+41..42) | F25: vi) Támogatások (a+b+c+d) | G25: vi) Támogatások (a+b+c+d) | H25: vi) Támogatások (a+b+c+d) | I25: vi) Támogatások (a+b+c+d) | J25: vi) Támogatások (a+b+c+d) | K25: vi) Támogatások (a+b+c+d) | L25: vi) Támogatások (a+b+c+d) | M25: vi) Támogatások (a+b+c+d) | N25: vi) Támogatások (a+b+c+d) | O25: vi) Támogatások (a+b+c+d) | P25: vi) Támogatások (a+b+c+d) | Q25: vi) Támogatások (a+b+c+d) | R25: vi) Támogatások (a+b+c+d) | S25: vi) Támogatások (a+b+c+d) | T25: vi) Támogatások (a+b+c+d) | W25: =SUMIF('Terv-segédlet'!$B:$B,KvZsz!$A25,'Terv-segédlet'!E:E) -> 0 | X25: =SUMIF('Terv-segédlet'!$B:$B,KvZsz!$A25,'Terv-segédlet'!F:F) -> 0 | Y25: =SUMIF('Terv-segédlet'!$B:$B,KvZsz!$A25,'Terv-segédlet'!G:G) -> 0 | Z25: =SUMIF('Terv-segédlet'!$B:$B,KvZsz!$A25,'Terv-segédlet'!H:H) -> 0 | AA25: =SUMIF('Terv-segédlet'!$B:$B,KvZsz!$A25,'Terv-segédlet'!I:I) -> 0 | AB25: =SUMIF('Terv-segédlet'!$B:$B,KvZsz!$A25,'Terv-segédlet'!J:J) -> 0 | AC25: =SUMIF('Terv-segédlet'!$B:$B,KvZsz!$A25,'Terv-segédlet'!K:K) -> 0 | AL25: bevétel
A26: k024 | C26: 24 | E26: a ) Egyházi támogatás (25+34) | F26: a ) Egyházi támogatás (aa+ab) | G26: a ) Egyházi támogatás (aa+ab) | H26: a ) Egyházi támogatás (aa+ab) | I26: a ) Egyházi támogatás (aa+ab) | J26: a ) Egyházi támogatás (aa+ab) | K26: a ) Egyházi támogatás (aa+ab) | L26: a ) Egyházi támogatás (aa+ab) | M26: a ) Egyházi támogatás (aa+ab) | N26: a ) Egyházi támogatás (aa+ab) | O26: a ) Egyházi támogatás (aa+ab) | P26: a ) Egyházi támogatás (aa+ab) | Q26: a ) Egyházi támogatás (aa+ab) | R26: a ) Egyházi támogatás (aa+ab) | S26: a ) Egyházi támogatás (aa+ab) | T26: a ) Egyházi támogatás (aa+ab) | W26: =SUMIF('Terv-segédlet'!$B:$B,KvZsz!$A26,'Terv-segédlet'!E:E) -> 0 | X26: =SUMIF('Terv-segédlet'!$B:$B,KvZsz!$A26,'Terv-segédlet'!F:F) -> 0 | Y26: =SUMIF('Terv-segédlet'!$B:$B,KvZsz!$A26,'Terv-segédlet'!G:G) -> 0 | Z26: =SUMIF('Terv-segédlet'!$B:$B,KvZsz!$A26,'Terv-segédlet'!H:H) -> 0 | AA26: =SUMIF('Terv-segédlet'!$B:$B,KvZsz!$A26,'Terv-segédlet'!I:I) -> 0 | AB26: =SUMIF('Terv-segédlet'!$B:$B,KvZsz!$A26,'Terv-segédlet'!J:J) -> 0 | AC26: =SUMIF('Terv-segédlet'!$B:$B,KvZsz!$A26,'Terv-segédlet'!K:K) -> 0 | AL26: bevétel
A27: k025 | C27: 25 | E27: aa) Belföldi belső egyházi (26..33) | F27: aa) Belföldi belső egyházi (26..33) | G27: aa) Belföldi belső egyházi (26..33) | H27: aa) Belföldi belső egyházi (26..33) | I27: aa) Belföldi belső egyházi (26..33) | J27: aa) Belföldi belső egyházi (26..33) | K27: aa) Belföldi belső egyházi (26..33) | L27: aa) Belföldi belső egyházi (26..33) | M27: aa) Belföldi belső egyházi (26..33) | N27: aa) Belföldi belső egyházi (26..33) | O27: aa) Belföldi belső egyházi (26..33) | P27: aa) Belföldi belső egyházi (26..33) | Q27: aa) Belföldi belső egyházi (26..33) | R27: aa) Belföldi belső egyházi (26..33) | S27: aa) Belföldi belső egyházi (26..33) | T27: aa) Belföldi belső egyházi (26..33) | W27: =SUMIF('Terv-segédlet'!$B:$B,KvZsz!$A27,'Terv-segédlet'!E:E) -> 0 | X27: =SUMIF('Terv-segédlet'!$B:$B,KvZsz!$A27,'Terv-segédlet'!F:F) -> 0 | Y27: =SUMIF('Terv-segédlet'!$B:$B,KvZsz!$A27,'Terv-segédlet'!G:G) -> 0 | Z27: =SUMIF('Terv-segédlet'!$B:$B,KvZsz!$A27,'Terv-segédlet'!H:H) -> 0 | AA27: =SUMIF('Terv-segédlet'!$B:$B,KvZsz!$A27,'Terv-segédlet'!I:I) -> 0 | AB27: =SUMIF('Terv-segédlet'!$B:$B,KvZsz!$A27,'Terv-segédlet'!J:J) -> 0 | AC27: =SUMIF('Terv-segédlet'!$B:$B,KvZsz!$A27,'Terv-segédlet'!K:K) -> 0 | AL27: bevétel
A28: k026 | B28: * | C28: 26 | E28: -Működési támogatás | F28: -Működési támogatás | G28: -Működési támogatás | H28: -Működési támogatás | I28: -Működési támogatás | J28: -Működési támogatás | K28: -Működési támogatás | L28: -Működési támogatás | M28: -Működési támogatás | N28: -Működési támogatás | O28: -Működési támogatás | P28: -Működési támogatás | Q28: -Működési támogatás | R28: -Működési támogatás | S28: -Működési támogatás | T28: -Működési támogatás | U28: =SUMIF(kvátf.!E:E,KvZsz!A28,kvátf.!D:D) -> 0 | V28: =SUM(W28:AC28) -> 0 | W28: =SUMIF('Terv-segédlet'!$B:$B,KvZsz!$A28,'Terv-segédlet'!E:E) -> 0 | X28: =SUMIF('Terv-segédlet'!$B:$B,KvZsz!$A28,'Terv-segédlet'!F:F) -> 0 | Y28: =SUMIF('Terv-segédlet'!$B:$B,KvZsz!$A28,'Terv-segédlet'!G:G) -> 0 | Z28: =SUMIF('Terv-segédlet'!$B:$B,KvZsz!$A28,'Terv-segédlet'!H:H) -> 0 | AA28: =SUMIF('Terv-segédlet'!$B:$B,KvZsz!$A28,'Terv-segédlet'!I:I) -> 0 | AB28: =SUMIF('Terv-segédlet'!$B:$B,KvZsz!$A28,'Terv-segédlet'!J:J) -> 0 | AC28: =SUMIF('Terv-segédlet'!$B:$B,KvZsz!$A28,'Terv-segédlet'!K:K) -> 0 | AD28: =SUM(AE28:AK28) -> 0 | AE28: =SUMIF(V!$A:$A,$A28,V!$K:$K)+SUMIF(bank!$A:$A,AE$1&$A28,bank!$M:$M) -> 0 | AF28: =SUMIF(Gy!$A:$A,$A28,Gy!$K:$K)+SUMIF(bank!$A:$A,AF$1&$A28,bank!$M:$M) -> 0 | AG28: =SUMIF(K!$A:$A,$A28,K!$K:$K)+SUMIF(bank!$A:$A,AG$1&$A28,bank!$M:$M) -> 0 | AH28: =SUMIF(Mk!$A:$A,$A28,Mk!$K:$K)+SUMIF(bank!$A:$A,AH$1&$A28,bank!$M:$M) -> 0 | AI28: =SUMIF(M!$A:$A,$A28,M!$K:$K)+SUMIF(bank!$A:$A,AI$1&$A28,bank!$M:$M) -> 0 | AJ28: =SUMIF(P!$A:$A,$A28,P!$K:$K)+SUMIF(bank!$A:$A,AJ$1&$A28,bank!$M:$M) -> 0 | AK28: =SUMIF(Zs!$A:$A,$A28,Zs!$K:$K)+SUMIF(bank!$A:$A,AK$1&$A28,bank!$M:$M) -> 0 | AL28: bevétel | AN28: MEE-től működés céljára kapott támogatás
A29: k027 | B29: * | C29: 27 | E29: -Gusztáv Adolf segély | F29: -Gusztáv Adolf segély | G29: -Gusztáv Adolf segély | H29: -Gusztáv Adolf segély | I29: -Gusztáv Adolf segély | J29: -Gusztáv Adolf segély | K29: -Gusztáv Adolf segély | L29: -Gusztáv Adolf segély | M29: -Gusztáv Adolf segély | N29: -Gusztáv Adolf segély | O29: -Gusztáv Adolf segély | P29: -Gusztáv Adolf segély | Q29: -Gusztáv Adolf segély | R29: -Gusztáv Adolf segély | S29: -Gusztáv Adolf segély | T29: -Gusztáv Adolf segély | U29: =SUMIF(kvátf.!E:E,KvZsz!A29,kvátf.!D:D) -> 0 | V29: =SUM(W29:AC29) -> 0 | W29: =SUMIF('Terv-segédlet'!$B:$B,KvZsz!$A29,'Terv-segédlet'!E:E) -> 0 | X29: =SUMIF('Terv-segédlet'!$B:$B,KvZsz!$A29,'Terv-segédlet'!F:F) -> 0 | Y29: =SUMIF('Terv-segédlet'!$B:$B,KvZsz!$A29,'Terv-segédlet'!G:G) -> 0 | Z29: =SUMIF('Terv-segédlet'!$B:$B,KvZsz!$A29,'Terv-segédlet'!H:H) -> 0 | AA29: =SUMIF('Terv-segédlet'!$B:$B,KvZsz!$A29,'Terv-segédlet'!I:I) -> 0 | AB29: =SUMIF('Terv-segédlet'!$B:$B,KvZsz!$A29,'Terv-segédlet'!J:J) -> 0 | AC29: =SUMIF('Terv-segédlet'!$B:$B,KvZsz!$A29,'Terv-segédlet'!K:K) -> 0 | AD29: =SUM(AE29:AK29) -> 130000 | AE29: =SUMIF(V!$A:$A,$A29,V!$K:$K)+SUMIF(bank!$A:$A,AE$1&$A29,bank!$M:$M) -> 0 | AF29: =SUMIF(Gy!$A:$A,$A29,Gy!$K:$K)+SUMIF(bank!$A:$A,AF$1&$A29,bank!$M:$M) -> 0 | AG29: =SUMIF(K!$A:$A,$A29,K!$K:$K)+SUMIF(bank!$A:$A,AG$1&$A29,bank!$M:$M) -> 0 | AH29: =SUMIF(Mk!$A:$A,$A29,Mk!$K:$K)+SUMIF(bank!$A:$A,AH$1&$A29,bank!$M:$M) -> 0 | AI29: =SUMIF(M!$A:$A,$A29,M!$K:$K)+SUMIF(bank!$A:$A,AI$1&$A29,bank!$M:$M) -> 0 | AJ29: =SUMIF(P!$A:$A,$A29,P!$K:$K)+SUMIF(bank!$A:$A,AJ$1&$A29,bank!$M:$M) -> 0 | AK29: =SUMIF(Zs!$A:$A,$A29,Zs!$K:$K)+SUMIF(bank!$A:$A,AK$1&$A29,bank!$M:$M) -> 130000 | AL29: bevétel | AN29: GAS támogatás - gyülekezeti felhasználásra kapott
A30: k028 | B30: * | C30: 28 | E30: -Más egyházi jogi személytől | F30: -Más egyházi jogi személytől | G30: -Más egyházi jogi személytől | H30: -Más egyházi jogi személytől | I30: -Más egyházi jogi személytől | J30: -Más egyházi jogi személytől | K30: -Más egyházi jogi személytől | L30: -Más egyházi jogi személytől | M30: -Más egyházi jogi személytől | N30: -Más egyházi jogi személytől | O30: -Más egyházi jogi személytől | P30: -Más egyházi jogi személytől | Q30: -Más egyházi jogi személytől | R30: -Más egyházi jogi személytől | S30: -Más egyházi jogi személytől | T30: -Más egyházi jogi személytől | U30: =SUMIF(kvátf.!E:E,KvZsz!A30,kvátf.!D:D) -> 0 | V30: 0 | W30: =SUMIF('Terv-segédlet'!$B:$B,KvZsz!$A30,'Terv-segédlet'!E:E) -> 0 | X30: =SUMIF('Terv-segédlet'!$B:$B,KvZsz!$A30,'Terv-segédlet'!F:F) -> 0 | Y30: =SUMIF('Terv-segédlet'!$B:$B,KvZsz!$A30,'Terv-segédlet'!G:G) -> 0 | Z30: =SUMIF('Terv-segédlet'!$B:$B,KvZsz!$A30,'Terv-segédlet'!H:H) -> 0 | AA30: =SUMIF('Terv-segédlet'!$B:$B,KvZsz!$A30,'Terv-segédlet'!I:I) -> 0 | AB30: =SUMIF('Terv-segédlet'!$B:$B,KvZsz!$A30,'Terv-segédlet'!J:J) -> 0 | AC30: =SUMIF('Terv-segédlet'!$B:$B,KvZsz!$A30,'Terv-segédlet'!K:K) -> 0 | AD30: 10000 | AE30: =SUMIF(V!$A:$A,$A30,V!$K:$K)+SUMIF(bank!$A:$A,AE$1&$A30,bank!$M:$M) -> 10000 | AF30: =SUMIF(Gy!$A:$A,$A30,Gy!$K:$K)+SUMIF(bank!$A:$A,AF$1&$A30,bank!$M:$M) -> 0 | AG30: =SUMIF(K!$A:$A,$A30,K!$K:$K)+SUMIF(bank!$A:$A,AG$1&$A30,bank!$M:$M) -> 0 | AH30: =SUMIF(Mk!$A:$A,$A30,Mk!$K:$K)+SUMIF(bank!$A:$A,AH$1&$A30,bank!$M:$M) -> 0 | AI30: =SUMIF(M!$A:$A,$A30,M!$K:$K)+SUMIF(bank!$A:$A,AI$1&$A30,bank!$M:$M) -> 0 | AJ30: =SUMIF(P!$A:$A,$A30,P!$K:$K)+SUMIF(bank!$A:$A,AJ$1&$A30,bank!$M:$M) -> 0 | AK30: =SUMIF(Zs!$A:$A,$A30,Zs!$K:$K)+SUMIF(bank!$A:$A,AK$1&$A30,bank!$M:$M) -> 0 | AL30: bevétel | AN30: más egyházközségtől, egyházmegyétől, egyházi intézménytől kapott támogatás (más adószám!)
A31: k029 | B31: * | C31: 29 | E31: -Beruházási támogatás | U31: =SUMIF(kvátf.!E:E,KvZsz!A31,kvátf.!D:D) -> 0 | V31: 1330000 | W31: =SUMIF('Terv-segédlet'!$B:$B,KvZsz!$A31,'Terv-segédlet'!E:E) -> 0 | X31: =SUMIF('Terv-segédlet'!$B:$B,KvZsz!$A31,'Terv-segédlet'!F:F) -> 0 | Y31: =SUMIF('Terv-segédlet'!$B:$B,KvZsz!$A31,'Terv-segédlet'!G:G) -> 0 | Z31: =SUMIF('Terv-segédlet'!$B:$B,KvZsz!$A31,'Terv-segédlet'!H:H) -> 1200000 | AA31: =SUMIF('Terv-segédlet'!$B:$B,KvZsz!$A31,'Terv-segédlet'!I:I) -> 0 | AB31: =SUMIF('Terv-segédlet'!$B:$B,KvZsz!$A31,'Terv-segédlet'!J:J) -> 0 | AC31: =SUMIF('Terv-segédlet'!$B:$B,KvZsz!$A31,'Terv-segédlet'!K:K) -> 130000 | AD31: 1200000 | AE31: =SUMIF(V!$A:$A,$A31,V!$K:$K)+SUMIF(bank!$A:$A,AE$1&$A31,bank!$M:$M) -> 0 | AF31: =SUMIF(Gy!$A:$A,$A31,Gy!$K:$K)+SUMIF(bank!$A:$A,AF$1&$A31,bank!$M:$M) -> 0 | AG31: =SUMIF(K!$A:$A,$A31,K!$K:$K)+SUMIF(bank!$A:$A,AG$1&$A31,bank!$M:$M) -> 0 | AH31: =SUMIF(Mk!$A:$A,$A31,Mk!$K:$K)+SUMIF(bank!$A:$A,AH$1&$A31,bank!$M:$M) -> 1200000 | AI31: =SUMIF(M!$A:$A,$A31,M!$K:$K)+SUMIF(bank!$A:$A,AI$1&$A31,bank!$M:$M) -> 0 | AJ31: =SUMIF(P!$A:$A,$A31,P!$K:$K)+SUMIF(bank!$A:$A,AJ$1&$A31,bank!$M:$M) -> 0 | AK31: =SUMIF(Zs!$A:$A,$A31,Zs!$K:$K)+SUMIF(bank!$A:$A,AK$1&$A31,bank!$M:$M) -> 0 | AL31: bevétel | AM31: 0.9022556391 | AN31: MEE-től beruházás céljára kapott támogatás (országos, kerületi, megyei keret terhére)
A32: k030 | B32: * | C32: 30 | E32: -Egyházi pályázati támogatás | F32: -Egyházi pályázati támogatás | G32: -Egyházi pályázati támogatás | H32: -Egyházi pályázati támogatás | I32: -Egyházi pályázati támogatás | J32: -Egyházi pályázati támogatás | K32: -Egyházi pályázati támogatás | L32: -Egyházi pályázati támogatás | M32: -Egyházi pályázati támogatás | N32: -Egyházi pályázati támogatás | O32: -Egyházi pályázati támogatás | P32: -Egyházi pályázati támogatás | Q32: -Egyházi pályázati támogatás | R32: -Egyházi pályázati támogatás | S32: -Egyházi pályázati támogatás | T32: -Egyházi pályázati támogatás | U32: =SUMIF(kvátf.!E:E,KvZsz!A32,kvátf.!D:D) -> 2020000 | V32: 0 | W32: =SUMIF('Terv-segédlet'!$B:$B,KvZsz!$A32,'Terv-segédlet'!E:E) -> 0 | X32: =SUMIF('Terv-segédlet'!$B:$B,KvZsz!$A32,'Terv-segédlet'!F:F) -> 0 | Y32: =SUMIF('Terv-segédlet'!$B:$B,KvZsz!$A32,'Terv-segédlet'!G:G) -> 0 | Z32: =SUMIF('Terv-segédlet'!$B:$B,KvZsz!$A32,'Terv-segédlet'!H:H) -> 0 | AA32: =SUMIF('Terv-segédlet'!$B:$B,KvZsz!$A32,'Terv-segédlet'!I:I) -> 0 | AB32: =SUMIF('Terv-segédlet'!$B:$B,KvZsz!$A32,'Terv-segédlet'!J:J) -> 0 | AC32: =SUMIF('Terv-segédlet'!$B:$B,KvZsz!$A32,'Terv-segédlet'!K:K) -> 0 | AD32: 0 | AE32: =SUMIF(V!$A:$A,$A32,V!$K:$K)+SUMIF(bank!$A:$A,AE$1&$A32,bank!$M:$M) -> 0 | AF32: =SUMIF(Gy!$A:$A,$A32,Gy!$K:$K)+SUMIF(bank!$A:$A,AF$1&$A32,bank!$M:$M) -> 0 | AG32: =SUMIF(K!$A:$A,$A32,K!$K:$K)+SUMIF(bank!$A:$A,AG$1&$A32,bank!$M:$M) -> 0 | AH32: =SUMIF(Mk!$A:$A,$A32,Mk!$K:$K)+SUMIF(bank!$A:$A,AH$1&$A32,bank!$M:$M) -> 0 | AI32: =SUMIF(M!$A:$A,$A32,M!$K:$K)+SUMIF(bank!$A:$A,AI$1&$A32,bank!$M:$M) -> 0 | AJ32: =SUMIF(P!$A:$A,$A32,P!$K:$K)+SUMIF(bank!$A:$A,AJ$1&$A32,bank!$M:$M) -> 0 | AK32: =SUMIF(Zs!$A:$A,$A32,Zs!$K:$K)+SUMIF(bank!$A:$A,AK$1&$A32,bank!$M:$M) -> 0 | AL32: bevétel | AN32: ifjúsági, zenei, missziós, stb. egyházi pályázaton nyert támogatás
A33: k031 | B33: * | C33: 31 | E33: -Pályázati előkészítési és önrész támogatás | F33: -Pályázati előkészítési és önrész támogatás | G33: -Pályázati előkészítési és önrész támogatás | H33: -Pályázati előkészítési és önrész támogatás | I33: -Pályázati előkészítési és önrész támogatás | J33: -Pályázati előkészítési és önrész támogatás | K33: -Pályázati előkészítési és önrész támogatás | L33: -Pályázati előkészítési és önrész támogatás | M33: -Pályázati előkészítési és önrész támogatás | N33: -Pályázati előkészítési és önrész támogatás | O33: -Pályázati előkészítési és önrész támogatás | P33: -Pályázati előkészítési és önrész támogatás | Q33: -Pályázati előkészítési és önrész támogatás | R33: -Pályázati előkészítési és önrész támogatás | S33: -Pályázati előkészítési és önrész támogatás | T33: -Pályázati előkészítési és önrész támogatás | U33: =SUMIF(kvátf.!E:E,KvZsz!A33,kvátf.!D:D) -> 0 | V33: 0 | W33: =SUMIF('Terv-segédlet'!$B:$B,KvZsz!$A33,'Terv-segédlet'!E:E) -> 0 | X33: =SUMIF('Terv-segédlet'!$B:$B,KvZsz!$A33,'Terv-segédlet'!F:F) -> 0 | Y33: =SUMIF('Terv-segédlet'!$B:$B,KvZsz!$A33,'Terv-segédlet'!G:G) -> 0 | Z33: =SUMIF('Terv-segédlet'!$B:$B,KvZsz!$A33,'Terv-segédlet'!H:H) -> 0 | AA33: =SUMIF('Terv-segédlet'!$B:$B,KvZsz!$A33,'Terv-segédlet'!I:I) -> 0 | AB33: =SUMIF('Terv-segédlet'!$B:$B,KvZsz!$A33,'Terv-segédlet'!J:J) -> 0 | AC33: =SUMIF('Terv-segédlet'!$B:$B,KvZsz!$A33,'Terv-segédlet'!K:K) -> 0 | AD33: 0 | AE33: =SUMIF(V!$A:$A,$A33,V!$K:$K)+SUMIF(bank!$A:$A,AE$1&$A33,bank!$M:$M) -> 0 | AF33: =SUMIF(Gy!$A:$A,$A33,Gy!$K:$K)+SUMIF(bank!$A:$A,AF$1&$A33,bank!$M:$M) -> 0 | AG33: =SUMIF(K!$A:$A,$A33,K!$K:$K)+SUMIF(bank!$A:$A,AG$1&$A33,bank!$M:$M) -> 0 | AH33: =SUMIF(Mk!$A:$A,$A33,Mk!$K:$K)+SUMIF(bank!$A:$A,AH$1&$A33,bank!$M:$M) -> 0 | AI33: =SUMIF(M!$A:$A,$A33,M!$K:$K)+SUMIF(bank!$A:$A,AI$1&$A33,bank!$M:$M) -> 0 | AJ33: =SUMIF(P!$A:$A,$A33,P!$K:$K)+SUMIF(bank!$A:$A,AJ$1&$A33,bank!$M:$M) -> 0 | AK33: =SUMIF(Zs!$A:$A,$A33,Zs!$K:$K)+SUMIF(bank!$A:$A,AK$1&$A33,bank!$M:$M) -> 0 | AL33: bevétel | AN33: MEE által folyósított pályázati előkészítési- és önrésztámogatás
A34: k032 | B34: * | C34: =+C33+1 -> 32 | E34: -Utiköltség támogatás | F34: -Pályázati előkészítési és önrész támogatás | G34: -Pályázati előkészítési és önrész támogatás | H34: -Pályázati előkészítési és önrész támogatás | I34: -Pályázati előkészítési és önrész támogatás | J34: -Pályázati előkészítési és önrész támogatás | K34: -Pályázati előkészítési és önrész támogatás | L34: -Pályázati előkészítési és önrész támogatás | M34: -Pályázati előkészítési és önrész támogatás | N34: -Pályázati előkészítési és önrész támogatás | O34: -Pályázati előkészítési és önrész támogatás | P34: -Pályázati előkészítési és önrész támogatás | Q34: -Pályázati előkészítési és önrész támogatás | R34: -Pályázati előkészítési és önrész támogatás | S34: -Pályázati előkészítési és önrész támogatás | T34: -Pályázati előkészítési és önrész támogatás | U34: =SUMIF(kvátf.!E:E,KvZsz!A34,kvátf.!D:D) -> 0 | V34: 0 | W34: =SUMIF('Terv-segédlet'!$B:$B,KvZsz!$A34,'Terv-segédlet'!E:E) -> 0 | X34: =SUMIF('Terv-segédlet'!$B:$B,KvZsz!$A34,'Terv-segédlet'!F:F) -> 0 | Y34: =SUMIF('Terv-segédlet'!$B:$B,KvZsz!$A34,'Terv-segédlet'!G:G) -> 0 | Z34: =SUMIF('Terv-segédlet'!$B:$B,KvZsz!$A34,'Terv-segédlet'!H:H) -> 0 | AA34: =SUMIF('Terv-segédlet'!$B:$B,KvZsz!$A34,'Terv-segédlet'!I:I) -> 0 | AB34: =SUMIF('Terv-segédlet'!$B:$B,KvZsz!$A34,'Terv-segédlet'!J:J) -> 0 | AC34: =SUMIF('Terv-segédlet'!$B:$B,KvZsz!$A34,'Terv-segédlet'!K:K) -> 0 | AD34: 0 | AE34: =SUMIF(V!$A:$A,$A34,V!$K:$K)+SUMIF(bank!$A:$A,AE$1&$A34,bank!$M:$M) -> 0 | AF34: =SUMIF(Gy!$A:$A,$A34,Gy!$K:$K)+SUMIF(bank!$A:$A,AF$1&$A34,bank!$M:$M) -> 0 | AG34: =SUMIF(K!$A:$A,$A34,K!$K:$K)+SUMIF(bank!$A:$A,AG$1&$A34,bank!$M:$M) -> 0 | AH34: =SUMIF(Mk!$A:$A,$A34,Mk!$K:$K)+SUMIF(bank!$A:$A,AH$1&$A34,bank!$M:$M) -> 0 | AI34: =SUMIF(M!$A:$A,$A34,M!$K:$K)+SUMIF(bank!$A:$A,AI$1&$A34,bank!$M:$M) -> 0 | AJ34: =SUMIF(P!$A:$A,$A34,P!$K:$K)+SUMIF(bank!$A:$A,AJ$1&$A34,bank!$M:$M) -> 0 | AK34: =SUMIF(Zs!$A:$A,$A34,Zs!$K:$K)+SUMIF(bank!$A:$A,AK$1&$A34,bank!$M:$M) -> 0 | AL34: bevétel | AN34: belső egyházi forrásból fizetett utiköltség (pl. tisztségviselők utiköltségtérítése)
A35: k033 | B35: * | C35: =+C34+1 -> 33 | E35: -Belső egyházi forrásból kapott egyéb juttatás | F35: -Belső egyházi forrásból kapott egyéb juttatás | G35: -Belső egyházi forrásból kapott egyéb juttatás | H35: -Belső egyházi forrásból kapott egyéb juttatás | I35: -Belső egyházi forrásból kapott egyéb juttatás | J35: -Belső egyházi forrásból kapott egyéb juttatás | K35: -Belső egyházi forrásból kapott egyéb juttatás | L35: -Belső egyházi forrásból kapott egyéb juttatás | M35: -Belső egyházi forrásból kapott egyéb juttatás | N35: -Belső egyházi forrásból kapott egyéb juttatás | O35: -Belső egyházi forrásból kapott egyéb juttatás | P35: -Belső egyházi forrásból kapott egyéb juttatás | Q35: -Belső egyházi forrásból kapott egyéb juttatás | R35: -Belső egyházi forrásból kapott egyéb juttatás | S35: -Belső egyházi forrásból kapott egyéb juttatás | T35: -Belső egyházi forrásból kapott egyéb juttatás | U35: =SUMIF(kvátf.!E:E,KvZsz!A35,kvátf.!D:D) -> 0 | V35: 0 | W35: =SUMIF('Terv-segédlet'!$B:$B,KvZsz!$A35,'Terv-segédlet'!E:E) -> 0 | X35: =SUMIF('Terv-segédlet'!$B:$B,KvZsz!$A35,'Terv-segédlet'!F:F) -> 0 | Y35: =SUMIF('Terv-segédlet'!$B:$B,KvZsz!$A35,'Terv-segédlet'!G:G) -> 0 | Z35: =SUMIF('Terv-segédlet'!$B:$B,KvZsz!$A35,'Terv-segédlet'!H:H) -> 0 | AA35: =SUMIF('Terv-segédlet'!$B:$B,KvZsz!$A35,'Terv-segédlet'!I:I) -> 0 | AB35: =SUMIF('Terv-segédlet'!$B:$B,KvZsz!$A35,'Terv-segédlet'!J:J) -> 0 | AC35: =SUMIF('Terv-segédlet'!$B:$B,KvZsz!$A35,'Terv-segédlet'!K:K) -> 0 | AD35: 0 | AE35: =SUMIF(V!$A:$A,$A35,V!$K:$K)+SUMIF(bank!$A:$A,AE$1&$A35,bank!$M:$M) -> 0 | AF35: =SUMIF(Gy!$A:$A,$A35,Gy!$K:$K)+SUMIF(bank!$A:$A,AF$1&$A35,bank!$M:$M) -> 0 | AG35: =SUMIF(K!$A:$A,$A35,K!$K:$K)+SUMIF(bank!$A:$A,AG$1&$A35,bank!$M:$M) -> 0 | AH35: =SUMIF(Mk!$A:$A,$A35,Mk!$K:$K)+SUMIF(bank!$A:$A,AH$1&$A35,bank!$M:$M) -> 0 | AI35: =SUMIF(M!$A:$A,$A35,M!$K:$K)+SUMIF(bank!$A:$A,AI$1&$A35,bank!$M:$M) -> 0 | AJ35: =SUMIF(P!$A:$A,$A35,P!$K:$K)+SUMIF(bank!$A:$A,AJ$1&$A35,bank!$M:$M) -> 0 | AK35: =SUMIF(Zs!$A:$A,$A35,Zs!$K:$K)+SUMIF(bank!$A:$A,AK$1&$A35,bank!$M:$M) -> 0 | AL35: bevétel | AN35: MEE által folyósított egyéb támogatások (pl. rendezvényszervezésre - kerületi nap; belső kártalanítás)
A36: k034 | B36: * | C36: 34 | E36: ab) Külföldi egyházi | F36: ab) Külföldi egyházi | G36: ab) Külföldi egyházi | H36: ab) Külföldi egyházi | I36: ab) Külföldi egyházi | J36: ab) Külföldi egyházi | K36: ab) Külföldi egyházi | L36: ab) Külföldi egyházi | M36: ab) Külföldi egyházi | N36: ab) Külföldi egyházi | O36: ab) Külföldi egyházi | P36: ab) Külföldi egyházi | Q36: ab) Külföldi egyházi | R36: ab) Külföldi egyházi | S36: ab) Külföldi egyházi | T36: ab) Külföldi egyházi | U36: =SUMIF(kvátf.!E:E,KvZsz!A36,kvátf.!D:D) -> 0 | V36: 0 | W36: =SUMIF('Terv-segédlet'!$B:$B,KvZsz!$A36,'Terv-segédlet'!E:E) -> 0 | X36: =SUMIF('Terv-segédlet'!$B:$B,KvZsz!$A36,'Terv-segédlet'!F:F) -> 0 | Y36: =SUMIF('Terv-segédlet'!$B:$B,KvZsz!$A36,'Terv-segédlet'!G:G) -> 0 | Z36: =SUMIF('Terv-segédlet'!$B:$B,KvZsz!$A36,'Terv-segédlet'!H:H) -> 0 | AA36: =SUMIF('Terv-segédlet'!$B:$B,KvZsz!$A36,'Terv-segédlet'!I:I) -> 0 | AB36: =SUMIF('Terv-segédlet'!$B:$B,KvZsz!$A36,'Terv-segédlet'!J:J) -> 0 | AC36: =SUMIF('Terv-segédlet'!$B:$B,KvZsz!$A36,'Terv-segédlet'!K:K) -> 0 | AD36: 0 | AE36: =SUMIF(V!$A:$A,$A36,V!$K:$K)+SUMIF(bank!$A:$A,AE$1&$A36,bank!$M:$M) -> 0 | AF36: =SUMIF(Gy!$A:$A,$A36,Gy!$K:$K)+SUMIF(bank!$A:$A,AF$1&$A36,bank!$M:$M) -> 0 | AG36: =SUMIF(K!$A:$A,$A36,K!$K:$K)+SUMIF(bank!$A:$A,AG$1&$A36,bank!$M:$M) -> 0 | AH36: =SUMIF(Mk!$A:$A,$A36,Mk!$K:$K)+SUMIF(bank!$A:$A,AH$1&$A36,bank!$M:$M) -> 0 | AI36: =SUMIF(M!$A:$A,$A36,M!$K:$K)+SUMIF(bank!$A:$A,AI$1&$A36,bank!$M:$M) -> 0 | AJ36: =SUMIF(P!$A:$A,$A36,P!$K:$K)+SUMIF(bank!$A:$A,AJ$1&$A36,bank!$M:$M) -> 0 | AK36: =SUMIF(Zs!$A:$A,$A36,Zs!$K:$K)+SUMIF(bank!$A:$A,AK$1&$A36,bank!$M:$M) -> 0 | AL36: bevétel | AN36: Bajor segély, GAW segély, LVSZ segély, Testvérgyülekezetektől kapott támogatások
A37: k035 | C37: 35 | E37: b) Központi költségvetés (36..40) | F37: b) Központi költségvetés (36..40) | G37: b) Központi költségvetés (36..40) | H37: b) Központi költségvetés (36..40) | I37: b) Központi költségvetés (36..40) | J37: b) Központi költségvetés (36..40) | K37: b) Központi költségvetés (36..40) | L37: b) Központi költségvetés (36..40) | M37: b) Központi költségvetés (36..40) | N37: b) Központi költségvetés (36..40) | O37: b) Központi költségvetés (36..40) | P37: b) Központi költségvetés (36..40) | Q37: b) Központi költségvetés (36..40) | R37: b) Központi költségvetés (36..40) | S37: b) Központi költségvetés (36..40) | T37: b) Központi költségvetés (36..40) | W37: =SUMIF('Terv-segédlet'!$B:$B,KvZsz!$A37,'Terv-segédlet'!E:E) -> 0 | X37: =SUMIF('Terv-segédlet'!$B:$B,KvZsz!$A37,'Terv-segédlet'!F:F) -> 0 | Y37: =SUMIF('Terv-segédlet'!$B:$B,KvZsz!$A37,'Terv-segédlet'!G:G) -> 0 | Z37: =SUMIF('Terv-segédlet'!$B:$B,KvZsz!$A37,'Terv-segédlet'!H:H) -> 0 | AA37: =SUMIF('Terv-segédlet'!$B:$B,KvZsz!$A37,'Terv-segédlet'!I:I) -> 0 | AB37: =SUMIF('Terv-segédlet'!$B:$B,KvZsz!$A37,'Terv-segédlet'!J:J) -> 0 | AC37: =SUMIF('Terv-segédlet'!$B:$B,KvZsz!$A37,'Terv-segédlet'!K:K) -> 0 | AL37: bevétel
A38: k036 | B38: * | C38: 36 | E38: -Köznevelési támogatás | F38: -Köznevelési normatív támogatás | G38: -Köznevelési normatív támogatás | H38: -Köznevelési normatív támogatás | I38: -Köznevelési normatív támogatás | J38: -Köznevelési normatív támogatás | K38: -Köznevelési normatív támogatás | L38: -Köznevelési normatív támogatás | M38: -Köznevelési normatív támogatás | N38: -Köznevelési normatív támogatás | O38: -Köznevelési normatív támogatás | P38: -Köznevelési normatív támogatás | Q38: -Köznevelési normatív támogatás | R38: -Köznevelési normatív támogatás | S38: -Köznevelési normatív támogatás | T38: -Köznevelési normatív támogatás | U38: =SUMIF(kvátf.!E:E,KvZsz!A38,kvátf.!D:D) -> 0 | V38: =SUM(W38:AC38) -> 0 | W38: =SUMIF('Terv-segédlet'!$B:$B,KvZsz!$A38,'Terv-segédlet'!E:E) -> 0 | X38: =SUMIF('Terv-segédlet'!$B:$B,KvZsz!$A38,'Terv-segédlet'!F:F) -> 0 | Y38: =SUMIF('Terv-segédlet'!$B:$B,KvZsz!$A38,'Terv-segédlet'!G:G) -> 0 | Z38: =SUMIF('Terv-segédlet'!$B:$B,KvZsz!$A38,'Terv-segédlet'!H:H) -> 0 | AA38: =SUMIF('Terv-segédlet'!$B:$B,KvZsz!$A38,'Terv-segédlet'!I:I) -> 0 | AB38: =SUMIF('Terv-segédlet'!$B:$B,KvZsz!$A38,'Terv-segédlet'!J:J) -> 0 | AC38: =SUMIF('Terv-segédlet'!$B:$B,KvZsz!$A38,'Terv-segédlet'!K:K) -> 0 | AD38: =SUM(AE38:AK38) -> 0 | AE38: =SUMIF(V!$A:$A,$A38,V!$K:$K)+SUMIF(bank!$A:$A,AE$1&$A38,bank!$M:$M) -> 0 | AF38: =SUMIF(Gy!$A:$A,$A38,Gy!$K:$K)+SUMIF(bank!$A:$A,AF$1&$A38,bank!$M:$M) -> 0 | AG38: =SUMIF(K!$A:$A,$A38,K!$K:$K)+SUMIF(bank!$A:$A,AG$1&$A38,bank!$M:$M) -> 0 | AH38: =SUMIF(Mk!$A:$A,$A38,Mk!$K:$K)+SUMIF(bank!$A:$A,AH$1&$A38,bank!$M:$M) -> 0 | AI38: =SUMIF(M!$A:$A,$A38,M!$K:$K)+SUMIF(bank!$A:$A,AI$1&$A38,bank!$M:$M) -> 0 | AJ38: =SUMIF(P!$A:$A,$A38,P!$K:$K)+SUMIF(bank!$A:$A,AJ$1&$A38,bank!$M:$M) -> 0 | AK38: =SUMIF(Zs!$A:$A,$A38,Zs!$K:$K)+SUMIF(bank!$A:$A,AK$1&$A38,bank!$M:$M) -> 0 | AL38: bevétel | AN38: köznevelési intézmény állami támogatása
A39: k037 | B39: * | C39: 37 | E39: -Szociális támogatás | F39: -Szociális normatív támogatás | G39: -Szociális normatív támogatás | H39: -Szociális normatív támogatás | I39: -Szociális normatív támogatás | J39: -Szociális normatív támogatás | K39: -Szociális normatív támogatás | L39: -Szociális normatív támogatás | M39: -Szociális normatív támogatás | N39: -Szociális normatív támogatás | O39: -Szociális normatív támogatás | P39: -Szociális normatív támogatás | Q39: -Szociális normatív támogatás | R39: -Szociális normatív támogatás | S39: -Szociális normatív támogatás | T39: -Szociális normatív támogatás | U39: =SUMIF(kvátf.!E:E,KvZsz!A39,kvátf.!D:D) -> 0 | V39: 0 | W39: =SUMIF('Terv-segédlet'!$B:$B,KvZsz!$A39,'Terv-segédlet'!E:E) -> 0 | X39: =SUMIF('Terv-segédlet'!$B:$B,KvZsz!$A39,'Terv-segédlet'!F:F) -> 0 | Y39: =SUMIF('Terv-segédlet'!$B:$B,KvZsz!$A39,'Terv-segédlet'!G:G) -> 0 | Z39: =SUMIF('Terv-segédlet'!$B:$B,KvZsz!$A39,'Terv-segédlet'!H:H) -> 0 | AA39: =SUMIF('Terv-segédlet'!$B:$B,KvZsz!$A39,'Terv-segédlet'!I:I) -> 0 | AB39: =SUMIF('Terv-segédlet'!$B:$B,KvZsz!$A39,'Terv-segédlet'!J:J) -> 0 | AC39: =SUMIF('Terv-segédlet'!$B:$B,KvZsz!$A39,'Terv-segédlet'!K:K) -> 0 | AD39: 0 | AE39: =SUMIF(V!$A:$A,$A39,V!$K:$K)+SUMIF(bank!$A:$A,AE$1&$A39,bank!$M:$M) -> 0 | AF39: =SUMIF(Gy!$A:$A,$A39,Gy!$K:$K)+SUMIF(bank!$A:$A,AF$1&$A39,bank!$M:$M) -> 0 | AG39: =SUMIF(K!$A:$A,$A39,K!$K:$K)+SUMIF(bank!$A:$A,AG$1&$A39,bank!$M:$M) -> 0 | AH39: =SUMIF(Mk!$A:$A,$A39,Mk!$K:$K)+SUMIF(bank!$A:$A,AH$1&$A39,bank!$M:$M) -> 0 | AI39: =SUMIF(M!$A:$A,$A39,M!$K:$K)+SUMIF(bank!$A:$A,AI$1&$A39,bank!$M:$M) -> 0 | AJ39: =SUMIF(P!$A:$A,$A39,P!$K:$K)+SUMIF(bank!$A:$A,AJ$1&$A39,bank!$M:$M) -> 0 | AK39: =SUMIF(Zs!$A:$A,$A39,Zs!$K:$K)+SUMIF(bank!$A:$A,AK$1&$A39,bank!$M:$M) -> 0 | AL39: bevétel | AN39: szociális intézmény állami támogatása
A40: k038 | B40: * | C40: 38 | E40: -Hitoktatási, munkaügyi költségvetési támogatás | F40: -Hitoktatási, munkaügyi költségvetési támogatás | G40: -Hitoktatási, munkaügyi költségvetési támogatás | H40: -Hitoktatási, munkaügyi költségvetési támogatás | I40: -Hitoktatási, munkaügyi költségvetési támogatás | J40: -Hitoktatási, munkaügyi költségvetési támogatás | K40: -Hitoktatási, munkaügyi költségvetési támogatás | L40: -Hitoktatási, munkaügyi költségvetési támogatás | M40: -Hitoktatási, munkaügyi költségvetési támogatás | N40: -Hitoktatási, munkaügyi költségvetési támogatás | O40: -Hitoktatási, munkaügyi költségvetési támogatás | P40: -Hitoktatási, munkaügyi költségvetési támogatás | Q40: -Hitoktatási, munkaügyi költségvetési támogatás | R40: -Hitoktatási, munkaügyi költségvetési támogatás | S40: -Hitoktatási, munkaügyi költségvetési támogatás | T40: -Hitoktatási, munkaügyi költségvetési támogatás | U40: =SUMIF(kvátf.!E:E,KvZsz!A40,kvátf.!D:D) -> 0 | V40: 0 | W40: =SUMIF('Terv-segédlet'!$B:$B,KvZsz!$A40,'Terv-segédlet'!E:E) -> 0 | X40: =SUMIF('Terv-segédlet'!$B:$B,KvZsz!$A40,'Terv-segédlet'!F:F) -> 0 | Y40: =SUMIF('Terv-segédlet'!$B:$B,KvZsz!$A40,'Terv-segédlet'!G:G) -> 0 | Z40: =SUMIF('Terv-segédlet'!$B:$B,KvZsz!$A40,'Terv-segédlet'!H:H) -> 0 | AA40: =SUMIF('Terv-segédlet'!$B:$B,KvZsz!$A40,'Terv-segédlet'!I:I) -> 0 | AB40: =SUMIF('Terv-segédlet'!$B:$B,KvZsz!$A40,'Terv-segédlet'!J:J) -> 0 | AC40: =SUMIF('Terv-segédlet'!$B:$B,KvZsz!$A40,'Terv-segédlet'!K:K) -> 0 | AD40: 0 | AE40: =SUMIF(V!$A:$A,$A40,V!$K:$K)+SUMIF(bank!$A:$A,AE$1&$A40,bank!$M:$M) -> 0 | AF40: =SUMIF(Gy!$A:$A,$A40,Gy!$K:$K)+SUMIF(bank!$A:$A,AF$1&$A40,bank!$M:$M) -> 0 | AG40: =SUMIF(K!$A:$A,$A40,K!$K:$K)+SUMIF(bank!$A:$A,AG$1&$A40,bank!$M:$M) -> 0 | AH40: =SUMIF(Mk!$A:$A,$A40,Mk!$K:$K)+SUMIF(bank!$A:$A,AH$1&$A40,bank!$M:$M) -> 0 | AI40: =SUMIF(M!$A:$A,$A40,M!$K:$K)+SUMIF(bank!$A:$A,AI$1&$A40,bank!$M:$M) -> 0 | AJ40: =SUMIF(P!$A:$A,$A40,P!$K:$K)+SUMIF(bank!$A:$A,AJ$1&$A40,bank!$M:$M) -> 0 | AK40: =SUMIF(Zs!$A:$A,$A40,Zs!$K:$K)+SUMIF(bank!$A:$A,AK$1&$A40,bank!$M:$M) -> 0 | AL40: bevétel | AN40: MEE-n keresztül hitoktatási támogatás, továbbá munkaügyi (pl. közfoglalkoztatásra kapott) támogatás
A41: k039 | B41: * | C41: 39 | E41: -Járadék támogatás | F41: -Járadék támogatás | G41: -Járadék támogatás | H41: -Járadék támogatás | I41: -Járadék támogatás | J41: -Járadék támogatás | K41: -Járadék támogatás | L41: -Járadék támogatás | M41: -Járadék támogatás | N41: -Járadék támogatás | O41: -Járadék támogatás | P41: -Járadék támogatás | Q41: -Járadék támogatás | R41: -Járadék támogatás | S41: -Járadék támogatás | T41: -Járadék támogatás | U41: =SUMIF(kvátf.!E:E,KvZsz!A41,kvátf.!D:D) -> 0 | V41: 0 | W41: =SUMIF('Terv-segédlet'!$B:$B,KvZsz!$A41,'Terv-segédlet'!E:E) -> 0 | X41: =SUMIF('Terv-segédlet'!$B:$B,KvZsz!$A41,'Terv-segédlet'!F:F) -> 0 | Y41: =SUMIF('Terv-segédlet'!$B:$B,KvZsz!$A41,'Terv-segédlet'!G:G) -> 0 | Z41: =SUMIF('Terv-segédlet'!$B:$B,KvZsz!$A41,'Terv-segédlet'!H:H) -> 0 | AA41: =SUMIF('Terv-segédlet'!$B:$B,KvZsz!$A41,'Terv-segédlet'!I:I) -> 0 | AB41: =SUMIF('Terv-segédlet'!$B:$B,KvZsz!$A41,'Terv-segédlet'!J:J) -> 0 | AC41: =SUMIF('Terv-segédlet'!$B:$B,KvZsz!$A41,'Terv-segédlet'!K:K) -> 0 | AD41: 0 | AE41: =SUMIF(V!$A:$A,$A41,V!$K:$K)+SUMIF(bank!$A:$A,AE$1&$A41,bank!$M:$M) -> 0 | AF41: =SUMIF(Gy!$A:$A,$A41,Gy!$K:$K)+SUMIF(bank!$A:$A,AF$1&$A41,bank!$M:$M) -> 0 | AG41: =SUMIF(K!$A:$A,$A41,K!$K:$K)+SUMIF(bank!$A:$A,AG$1&$A41,bank!$M:$M) -> 0 | AH41: =SUMIF(Mk!$A:$A,$A41,Mk!$K:$K)+SUMIF(bank!$A:$A,AH$1&$A41,bank!$M:$M) -> 0 | AI41: =SUMIF(M!$A:$A,$A41,M!$K:$K)+SUMIF(bank!$A:$A,AI$1&$A41,bank!$M:$M) -> 0 | AJ41: =SUMIF(P!$A:$A,$A41,P!$K:$K)+SUMIF(bank!$A:$A,AJ$1&$A41,bank!$M:$M) -> 0 | AK41: =SUMIF(Zs!$A:$A,$A41,Zs!$K:$K)+SUMIF(bank!$A:$A,AK$1&$A41,bank!$M:$M) -> 0 | AL41: bevétel | AN41: járadék, gyűjteményi támogatás
A42: k040 | B42: * | C42: 40 | E42: -Egyéb központi költségvetési támogatás | F42: -Egyéb központi költségvetési támogatás | G42: -Egyéb központi költségvetési támogatás | H42: -Egyéb központi költségvetési támogatás | I42: -Egyéb központi költségvetési támogatás | J42: -Egyéb központi költségvetési támogatás | K42: -Egyéb központi költségvetési támogatás | L42: -Egyéb központi költségvetési támogatás | M42: -Egyéb központi költségvetési támogatás | N42: -Egyéb központi költségvetési támogatás | O42: -Egyéb központi költségvetési támogatás | P42: -Egyéb központi költségvetési támogatás | Q42: -Egyéb központi költségvetési támogatás | R42: -Egyéb központi költségvetési támogatás | S42: -Egyéb központi költségvetési támogatás | T42: -Egyéb központi költségvetési támogatás | U42: =SUMIF(kvátf.!E:E,KvZsz!A42,kvátf.!D:D) -> 0 | V42: 0 | W42: =SUMIF('Terv-segédlet'!$B:$B,KvZsz!$A42,'Terv-segédlet'!E:E) -> 0 | X42: =SUMIF('Terv-segédlet'!$B:$B,KvZsz!$A42,'Terv-segédlet'!F:F) -> 0 | Y42: =SUMIF('Terv-segédlet'!$B:$B,KvZsz!$A42,'Terv-segédlet'!G:G) -> 0 | Z42: =SUMIF('Terv-segédlet'!$B:$B,KvZsz!$A42,'Terv-segédlet'!H:H) -> 0 | AA42: =SUMIF('Terv-segédlet'!$B:$B,KvZsz!$A42,'Terv-segédlet'!I:I) -> 0 | AB42: =SUMIF('Terv-segédlet'!$B:$B,KvZsz!$A42,'Terv-segédlet'!J:J) -> 0 | AC42: =SUMIF('Terv-segédlet'!$B:$B,KvZsz!$A42,'Terv-segédlet'!K:K) -> 0 | AD42: 0 | AE42: =SUMIF(V!$A:$A,$A42,V!$K:$K)+SUMIF(bank!$A:$A,AE$1&$A42,bank!$M:$M) -> 0 | AF42: =SUMIF(Gy!$A:$A,$A42,Gy!$K:$K)+SUMIF(bank!$A:$A,AF$1&$A42,bank!$M:$M) -> 0 | AG42: =SUMIF(K!$A:$A,$A42,K!$K:$K)+SUMIF(bank!$A:$A,AG$1&$A42,bank!$M:$M) -> 0 | AH42: =SUMIF(Mk!$A:$A,$A42,Mk!$K:$K)+SUMIF(bank!$A:$A,AH$1&$A42,bank!$M:$M) -> 0 | AI42: =SUMIF(M!$A:$A,$A42,M!$K:$K)+SUMIF(bank!$A:$A,AI$1&$A42,bank!$M:$M) -> 0 | AJ42: =SUMIF(P!$A:$A,$A42,P!$K:$K)+SUMIF(bank!$A:$A,AJ$1&$A42,bank!$M:$M) -> 0 | AK42: =SUMIF(Zs!$A:$A,$A42,Zs!$K:$K)+SUMIF(bank!$A:$A,AK$1&$A42,bank!$M:$M) -> 0 | AL42: bevétel | AN42: bérkompenzáció, költségvetési beruházási támogatás, ágazati pótlék, stb.
A43: k041 | B43: * | C43: 41 | E43: c) Helyi, megyei önkormányzati támogatás | F43: c) Helyi, megyei önkormányzati támogatás | G43: c) Helyi, megyei önkormányzati támogatás | H43: c) Helyi, megyei önkormányzati támogatás | I43: c) Helyi, megyei önkormányzati támogatás | J43: c) Helyi, megyei önkormányzati támogatás | K43: c) Helyi, megyei önkormányzati támogatás | L43: c) Helyi, megyei önkormányzati támogatás | M43: c) Helyi, megyei önkormányzati támogatás | N43: c) Helyi, megyei önkormányzati támogatás | O43: c) Helyi, megyei önkormányzati támogatás | P43: c) Helyi, megyei önkormányzati támogatás | Q43: c) Helyi, megyei önkormányzati támogatás | R43: c) Helyi, megyei önkormányzati támogatás | S43: c) Helyi, megyei önkormányzati támogatás | T43: c) Helyi, megyei önkormányzati támogatás | U43: =SUMIF(kvátf.!E:E,KvZsz!A43,kvátf.!D:D) -> 100000 | V43: 100000 | W43: =SUMIF('Terv-segédlet'!$B:$B,KvZsz!$A43,'Terv-segédlet'!E:E) -> 0 | X43: =SUMIF('Terv-segédlet'!$B:$B,KvZsz!$A43,'Terv-segédlet'!F:F) -> 0 | Y43: =SUMIF('Terv-segédlet'!$B:$B,KvZsz!$A43,'Terv-segédlet'!G:G) -> 0 | Z43: =SUMIF('Terv-segédlet'!$B:$B,KvZsz!$A43,'Terv-segédlet'!H:H) -> 0 | AA43: =SUMIF('Terv-segédlet'!$B:$B,KvZsz!$A43,'Terv-segédlet'!I:I) -> 100000 | AB43: =SUMIF('Terv-segédlet'!$B:$B,KvZsz!$A43,'Terv-segédlet'!J:J) -> 0 | AC43: =SUMIF('Terv-segédlet'!$B:$B,KvZsz!$A43,'Terv-segédlet'!K:K) -> 0 | AD43: 200000 | AE43: =SUMIF(V!$A:$A,$A43,V!$K:$K)+SUMIF(bank!$A:$A,AE$1&$A43,bank!$M:$M) -> 0 | AF43: =SUMIF(Gy!$A:$A,$A43,Gy!$K:$K)+SUMIF(bank!$A:$A,AF$1&$A43,bank!$M:$M) -> 0 | AG43: =SUMIF(K!$A:$A,$A43,K!$K:$K)+SUMIF(bank!$A:$A,AG$1&$A43,bank!$M:$M) -> 0 | AH43: =SUMIF(Mk!$A:$A,$A43,Mk!$K:$K)+SUMIF(bank!$A:$A,AH$1&$A43,bank!$M:$M) -> 100000 | AI43: =SUMIF(M!$A:$A,$A43,M!$K:$K)+SUMIF(bank!$A:$A,AI$1&$A43,bank!$M:$M) -> 100000 | AJ43: =SUMIF(P!$A:$A,$A43,P!$K:$K)+SUMIF(bank!$A:$A,AJ$1&$A43,bank!$M:$M) -> 0 | AK43: =SUMIF(Zs!$A:$A,$A43,Zs!$K:$K)+SUMIF(bank!$A:$A,AK$1&$A43,bank!$M:$M) -> 0 | AL43: bevétel | AM43: 2 | AN43: helyi, megyei, kisebbségi önkormányzatoktól kapott támogatás
A44: k042 | C44: 42 | E44: d) Egyéb támogatások (43+47+53) | F44: d) Egyéb támogatások (da+db+dc) | G44: d) Egyéb támogatások (da+db+dc) | H44: d) Egyéb támogatások (da+db+dc) | I44: d) Egyéb támogatások (da+db+dc) | J44: d) Egyéb támogatások (da+db+dc) | K44: d) Egyéb támogatások (da+db+dc) | L44: d) Egyéb támogatások (da+db+dc) | M44: d) Egyéb támogatások (da+db+dc) | N44: d) Egyéb támogatások (da+db+dc) | O44: d) Egyéb támogatások (da+db+dc) | P44: d) Egyéb támogatások (da+db+dc) | Q44: d) Egyéb támogatások (da+db+dc) | R44: d) Egyéb támogatások (da+db+dc) | S44: d) Egyéb támogatások (da+db+dc) | T44: d) Egyéb támogatások (da+db+dc) | W44: =SUMIF('Terv-segédlet'!$B:$B,KvZsz!$A44,'Terv-segédlet'!E:E) -> 0 | X44: =SUMIF('Terv-segédlet'!$B:$B,KvZsz!$A44,'Terv-segédlet'!F:F) -> 0 | Y44: =SUMIF('Terv-segédlet'!$B:$B,KvZsz!$A44,'Terv-segédlet'!G:G) -> 0 | Z44: =SUMIF('Terv-segédlet'!$B:$B,KvZsz!$A44,'Terv-segédlet'!H:H) -> 0 | AA44: =SUMIF('Terv-segédlet'!$B:$B,KvZsz!$A44,'Terv-segédlet'!I:I) -> 0 | AB44: =SUMIF('Terv-segédlet'!$B:$B,KvZsz!$A44,'Terv-segédlet'!J:J) -> 0 | AC44: =SUMIF('Terv-segédlet'!$B:$B,KvZsz!$A44,'Terv-segédlet'!K:K) -> 0 | AL44: bevétel
A45: k043 | C45: 43 | E45: da) Gazdálkodó szervektől (44..46) | F45: da) Gazdálkodó szervektől (44..46) | G45: da) Gazdálkodó szervektől (44..46) | H45: da) Gazdálkodó szervektől (44..46) | I45: da) Gazdálkodó szervektől (44..46) | J45: da) Gazdálkodó szervektől (44..46) | K45: da) Gazdálkodó szervektől (44..46) | L45: da) Gazdálkodó szervektől (44..46) | M45: da) Gazdálkodó szervektől (44..46) | N45: da) Gazdálkodó szervektől (44..46) | O45: da) Gazdálkodó szervektől (44..46) | P45: da) Gazdálkodó szervektől (44..46) | Q45: da) Gazdálkodó szervektől (44..46) | R45: da) Gazdálkodó szervektől (44..46) | S45: da) Gazdálkodó szervektől (44..46) | T45: da) Gazdálkodó szervektől (44..46) | W45: =SUMIF('Terv-segédlet'!$B:$B,KvZsz!$A45,'Terv-segédlet'!E:E) -> 0 | X45: =SUMIF('Terv-segédlet'!$B:$B,KvZsz!$A45,'Terv-segédlet'!F:F) -> 0 | Y45: =SUMIF('Terv-segédlet'!$B:$B,KvZsz!$A45,'Terv-segédlet'!G:G) -> 0 | Z45: =SUMIF('Terv-segédlet'!$B:$B,KvZsz!$A45,'Terv-segédlet'!H:H) -> 0 | AA45: =SUMIF('Terv-segédlet'!$B:$B,KvZsz!$A45,'Terv-segédlet'!I:I) -> 0 | AB45: =SUMIF('Terv-segédlet'!$B:$B,KvZsz!$A45,'Terv-segédlet'!J:J) -> 0 | AC45: =SUMIF('Terv-segédlet'!$B:$B,KvZsz!$A45,'Terv-segédlet'!K:K) -> 0 | AL45: bevétel
A46: k044 | B46: * | C46: 44 | E46: -Vállalkozástól | F46: -Vállalkozástól | G46: -Vállalkozástól | H46: -Vállalkozástól | I46: -Vállalkozástól | J46: -Vállalkozástól | K46: -Vállalkozástól | L46: -Vállalkozástól | M46: -Vállalkozástól | N46: -Vállalkozástól | O46: -Vállalkozástól | P46: -Vállalkozástól | Q46: -Vállalkozástól | R46: -Vállalkozástól | S46: -Vállalkozástól | T46: -Vállalkozástól | U46: =SUMIF(kvátf.!E:E,KvZsz!A46,kvátf.!D:D) -> 0 | V46: =SUM(W46:AC46) -> 0 | W46: =SUMIF('Terv-segédlet'!$B:$B,KvZsz!$A46,'Terv-segédlet'!E:E) -> 0 | X46: =SUMIF('Terv-segédlet'!$B:$B,KvZsz!$A46,'Terv-segédlet'!F:F) -> 0 | Y46: =SUMIF('Terv-segédlet'!$B:$B,KvZsz!$A46,'Terv-segédlet'!G:G) -> 0 | Z46: =SUMIF('Terv-segédlet'!$B:$B,KvZsz!$A46,'Terv-segédlet'!H:H) -> 0 | AA46: =SUMIF('Terv-segédlet'!$B:$B,KvZsz!$A46,'Terv-segédlet'!I:I) -> 0 | AB46: =SUMIF('Terv-segédlet'!$B:$B,KvZsz!$A46,'Terv-segédlet'!J:J) -> 0 | AC46: =SUMIF('Terv-segédlet'!$B:$B,KvZsz!$A46,'Terv-segédlet'!K:K) -> 0 | AD46: =SUM(AE46:AK46) -> 0 | AE46: =SUMIF(V!$A:$A,$A46,V!$K:$K)+SUMIF(bank!$A:$A,AE$1&$A46,bank!$M:$M) -> 0 | AF46: =SUMIF(Gy!$A:$A,$A46,Gy!$K:$K)+SUMIF(bank!$A:$A,AF$1&$A46,bank!$M:$M) -> 0 | AG46: =SUMIF(K!$A:$A,$A46,K!$K:$K)+SUMIF(bank!$A:$A,AG$1&$A46,bank!$M:$M) -> 0 | AH46: =SUMIF(Mk!$A:$A,$A46,Mk!$K:$K)+SUMIF(bank!$A:$A,AH$1&$A46,bank!$M:$M) -> 0 | AI46: =SUMIF(M!$A:$A,$A46,M!$K:$K)+SUMIF(bank!$A:$A,AI$1&$A46,bank!$M:$M) -> 0 | AJ46: =SUMIF(P!$A:$A,$A46,P!$K:$K)+SUMIF(bank!$A:$A,AJ$1&$A46,bank!$M:$M) -> 0 | AK46: =SUMIF(Zs!$A:$A,$A46,Zs!$K:$K)+SUMIF(bank!$A:$A,AK$1&$A46,bank!$M:$M) -> 0 | AL46: bevétel | AN46: bankoktól, gazdasági társaságoktól kapott támogatás
A47: k045 | B47: * | C47: 45 | E47: -Saját alapítványtól | F47: -Saját alapítványtól | G47: -Saját alapítványtól | H47: -Saját alapítványtól | I47: -Saját alapítványtól | J47: -Saját alapítványtól | K47: -Saját alapítványtól | L47: -Saját alapítványtól | M47: -Saját alapítványtól | N47: -Saját alapítványtól | O47: -Saját alapítványtól | P47: -Saját alapítványtól | Q47: -Saját alapítványtól | R47: -Saját alapítványtól | S47: -Saját alapítványtól | T47: -Saját alapítványtól | U47: =SUMIF(kvátf.!E:E,KvZsz!A47,kvátf.!D:D) -> 0 | V47: 0 | W47: =SUMIF('Terv-segédlet'!$B:$B,KvZsz!$A47,'Terv-segédlet'!E:E) -> 0 | X47: =SUMIF('Terv-segédlet'!$B:$B,KvZsz!$A47,'Terv-segédlet'!F:F) -> 0 | Y47: =SUMIF('Terv-segédlet'!$B:$B,KvZsz!$A47,'Terv-segédlet'!G:G) -> 0 | Z47: =SUMIF('Terv-segédlet'!$B:$B,KvZsz!$A47,'Terv-segédlet'!H:H) -> 0 | AA47: =SUMIF('Terv-segédlet'!$B:$B,KvZsz!$A47,'Terv-segédlet'!I:I) -> 0 | AB47: =SUMIF('Terv-segédlet'!$B:$B,KvZsz!$A47,'Terv-segédlet'!J:J) -> 0 | AC47: =SUMIF('Terv-segédlet'!$B:$B,KvZsz!$A47,'Terv-segédlet'!K:K) -> 0 | AD47: 0 | AE47: =SUMIF(V!$A:$A,$A47,V!$K:$K)+SUMIF(bank!$A:$A,AE$1&$A47,bank!$M:$M) -> 0 | AF47: =SUMIF(Gy!$A:$A,$A47,Gy!$K:$K)+SUMIF(bank!$A:$A,AF$1&$A47,bank!$M:$M) -> 0 | AG47: =SUMIF(K!$A:$A,$A47,K!$K:$K)+SUMIF(bank!$A:$A,AG$1&$A47,bank!$M:$M) -> 0 | AH47: =SUMIF(Mk!$A:$A,$A47,Mk!$K:$K)+SUMIF(bank!$A:$A,AH$1&$A47,bank!$M:$M) -> 0 | AI47: =SUMIF(M!$A:$A,$A47,M!$K:$K)+SUMIF(bank!$A:$A,AI$1&$A47,bank!$M:$M) -> 0 | AJ47: =SUMIF(P!$A:$A,$A47,P!$K:$K)+SUMIF(bank!$A:$A,AJ$1&$A47,bank!$M:$M) -> 0 | AK47: =SUMIF(Zs!$A:$A,$A47,Zs!$K:$K)+SUMIF(bank!$A:$A,AK$1&$A47,bank!$M:$M) -> 0 | AL47: bevétel | AN47: saját alapítványtól pénzben kapott támogatás
A48: k046 | B48: * | C48: 46 | E48: -Egyéb | U48: =SUMIF(kvátf.!E:E,KvZsz!A48,kvátf.!D:D) -> 0 | V48: 0 | W48: =SUMIF('Terv-segédlet'!$B:$B,KvZsz!$A48,'Terv-segédlet'!E:E) -> 0 | X48: =SUMIF('Terv-segédlet'!$B:$B,KvZsz!$A48,'Terv-segédlet'!F:F) -> 0 | Y48: =SUMIF('Terv-segédlet'!$B:$B,KvZsz!$A48,'Terv-segédlet'!G:G) -> 0 | Z48: =SUMIF('Terv-segédlet'!$B:$B,KvZsz!$A48,'Terv-segédlet'!H:H) -> 0 | AA48: =SUMIF('Terv-segédlet'!$B:$B,KvZsz!$A48,'Terv-segédlet'!I:I) -> 0 | AB48: =SUMIF('Terv-segédlet'!$B:$B,KvZsz!$A48,'Terv-segédlet'!J:J) -> 0 | AC48: =SUMIF('Terv-segédlet'!$B:$B,KvZsz!$A48,'Terv-segédlet'!K:K) -> 0 | AD48: 0 | AE48: =SUMIF(V!$A:$A,$A48,V!$K:$K)+SUMIF(bank!$A:$A,AE$1&$A48,bank!$M:$M) -> 0 | AF48: =SUMIF(Gy!$A:$A,$A48,Gy!$K:$K)+SUMIF(bank!$A:$A,AF$1&$A48,bank!$M:$M) -> 0 | AG48: =SUMIF(K!$A:$A,$A48,K!$K:$K)+SUMIF(bank!$A:$A,AG$1&$A48,bank!$M:$M) -> 0 | AH48: =SUMIF(Mk!$A:$A,$A48,Mk!$K:$K)+SUMIF(bank!$A:$A,AH$1&$A48,bank!$M:$M) -> 0 | AI48: =SUMIF(M!$A:$A,$A48,M!$K:$K)+SUMIF(bank!$A:$A,AI$1&$A48,bank!$M:$M) -> 0 | AJ48: =SUMIF(P!$A:$A,$A48,P!$K:$K)+SUMIF(bank!$A:$A,AJ$1&$A48,bank!$M:$M) -> 0 | AK48: =SUMIF(Zs!$A:$A,$A48,Zs!$K:$K)+SUMIF(bank!$A:$A,AK$1&$A48,bank!$M:$M) -> 0 | AL48: bevétel | AN48: egyesületektől, nem saját alapítványoktól, társadalmi szervezetektől kapott támogatás
A49: k047 | C49: 47 | E49: db) Gyülekezeti tagoktól, magánszemélyektől (48..52) | W49: =SUMIF('Terv-segédlet'!$B:$B,KvZsz!$A49,'Terv-segédlet'!E:E) -> 0 | X49: =SUMIF('Terv-segédlet'!$B:$B,KvZsz!$A49,'Terv-segédlet'!F:F) -> 0 | Y49: =SUMIF('Terv-segédlet'!$B:$B,KvZsz!$A49,'Terv-segédlet'!G:G) -> 0 | Z49: =SUMIF('Terv-segédlet'!$B:$B,KvZsz!$A49,'Terv-segédlet'!H:H) -> 0 | AA49: =SUMIF('Terv-segédlet'!$B:$B,KvZsz!$A49,'Terv-segédlet'!I:I) -> 0 | AB49: =SUMIF('Terv-segédlet'!$B:$B,KvZsz!$A49,'Terv-segédlet'!J:J) -> 0 | AC49: =SUMIF('Terv-segédlet'!$B:$B,KvZsz!$A49,'Terv-segédlet'!K:K) -> 0 | AL49: bevétel
A50: k048 | B50: * | C50: 48 | E50: -Egyházfenntartói járulék | U50: =SUMIF(kvátf.!E:E,KvZsz!A50,kvátf.!D:D) -> 3785000 | V50: =SUM(W50:AC50) -> 3795000 | W50: =SUMIF('Terv-segédlet'!$B:$B,KvZsz!$A50,'Terv-segédlet'!E:E) -> 265000 | X50: =SUMIF('Terv-segédlet'!$B:$B,KvZsz!$A50,'Terv-segédlet'!F:F) -> 190000 | Y50: =SUMIF('Terv-segédlet'!$B:$B,KvZsz!$A50,'Terv-segédlet'!G:G) -> 814000 | Z50: =SUMIF('Terv-segédlet'!$B:$B,KvZsz!$A50,'Terv-segédlet'!H:H) -> 546000 | AA50: =SUMIF('Terv-segédlet'!$B:$B,KvZsz!$A50,'Terv-segédlet'!I:I) -> 1400000 | AB50: =SUMIF('Terv-segédlet'!$B:$B,KvZsz!$A50,'Terv-segédlet'!J:J) -> 220000 | AC50: =SUMIF('Terv-segédlet'!$B:$B,KvZsz!$A50,'Terv-segédlet'!K:K) -> 360000 | AD50: =SUM(AE50:AK50) -> 3573000 | AE50: =SUMIF(V!$A:$A,$A50,V!$K:$K)+SUMIF(bank!$A:$A,AE$1&$A50,bank!$M:$M) -> 297000 | AF50: =SUMIF(Gy!$A:$A,$A50,Gy!$K:$K)+SUMIF(bank!$A:$A,AF$1&$A50,bank!$M:$M) -> 168000 | AG50: =SUMIF(K!$A:$A,$A50,K!$K:$K)+SUMIF(bank!$A:$A,AG$1&$A50,bank!$M:$M) -> 670000 | AH50: =SUMIF(Mk!$A:$A,$A50,Mk!$K:$K)+SUMIF(bank!$A:$A,AH$1&$A50,bank!$M:$M) -> 469000 | AI50: =SUMIF(M!$A:$A,$A50,M!$K:$K)+SUMIF(bank!$A:$A,AI$1&$A50,bank!$M:$M) -> 1313000 | AJ50: =SUMIF(P!$A:$A,$A50,P!$K:$K)+SUMIF(bank!$A:$A,AJ$1&$A50,bank!$M:$M) -> 220000 | AK50: =SUMIF(Zs!$A:$A,$A50,Zs!$K:$K)+SUMIF(bank!$A:$A,AK$1&$A50,bank!$M:$M) -> 436000 | AL50: bevétel | AM50: 0.9415019763 | AN50: magánszemélyek által ezen a címen teljesítet befizetés
A51: k049 | B51: * | C51: 49 | E51: -Adomány | F51: -Adomány | G51: -Adomány | H51: -Adomány | I51: -Adomány | J51: -Adomány | K51: -Adomány | L51: -Adomány | M51: -Adomány | N51: -Adomány | O51: -Adomány | P51: -Adomány | Q51: -Adomány | R51: -Adomány | S51: -Adomány | T51: -Adomány | U51: =SUMIF(kvátf.!E:E,KvZsz!A51,kvátf.!D:D) -> 306630 | V51: 235000 | W51: =SUMIF('Terv-segédlet'!$B:$B,KvZsz!$A51,'Terv-segédlet'!E:E) -> 100000 | X51: =SUMIF('Terv-segédlet'!$B:$B,KvZsz!$A51,'Terv-segédlet'!F:F) -> 10000 | Y51: =SUMIF('Terv-segédlet'!$B:$B,KvZsz!$A51,'Terv-segédlet'!G:G) -> 30000 | Z51: =SUMIF('Terv-segédlet'!$B:$B,KvZsz!$A51,'Terv-segédlet'!H:H) -> 30000 | AA51: =SUMIF('Terv-segédlet'!$B:$B,KvZsz!$A51,'Terv-segédlet'!I:I) -> 50000 | AB51: =SUMIF('Terv-segédlet'!$B:$B,KvZsz!$A51,'Terv-segédlet'!J:J) -> 10000 | AC51: =SUMIF('Terv-segédlet'!$B:$B,KvZsz!$A51,'Terv-segédlet'!K:K) -> 5000 | AD51: 114455 | AE51: =SUMIF(V!$A:$A,$A51,V!$K:$K)+SUMIF(bank!$A:$A,AE$1&$A51,bank!$M:$M) -> 23455 | AF51: =SUMIF(Gy!$A:$A,$A51,Gy!$K:$K)+SUMIF(bank!$A:$A,AF$1&$A51,bank!$M:$M) -> 0 | AG51: =SUMIF(K!$A:$A,$A51,K!$K:$K)+SUMIF(bank!$A:$A,AG$1&$A51,bank!$M:$M) -> 14000 | AH51: =SUMIF(Mk!$A:$A,$A51,Mk!$K:$K)+SUMIF(bank!$A:$A,AH$1&$A51,bank!$M:$M) -> 30000 | AI51: =SUMIF(M!$A:$A,$A51,M!$K:$K)+SUMIF(bank!$A:$A,AI$1&$A51,bank!$M:$M) -> 47000 | AJ51: =SUMIF(P!$A:$A,$A51,P!$K:$K)+SUMIF(bank!$A:$A,AJ$1&$A51,bank!$M:$M) -> 0 | AK51: =SUMIF(Zs!$A:$A,$A51,Zs!$K:$K)+SUMIF(bank!$A:$A,AK$1&$A51,bank!$M:$M) -> 0 | AL51: bevétel | AM51: 0.4870425532 | AN51: magánszemélyektől általános felhasználásra kapott adomány
A52: k050 | B52: * | C52: 50 | E52: -Perselypénz | F52: -Perselypénz | G52: -Perselypénz | H52: -Perselypénz | I52: -Perselypénz | J52: -Perselypénz | K52: -Perselypénz | L52: -Perselypénz | M52: -Perselypénz | N52: -Perselypénz | O52: -Perselypénz | P52: -Perselypénz | Q52: -Perselypénz | R52: -Perselypénz | S52: -Perselypénz | T52: -Perselypénz | U52: =SUMIF(kvátf.!E:E,KvZsz!A52,kvátf.!D:D) -> 1044255 | V52: 975000 | W52: =SUMIF('Terv-segédlet'!$B:$B,KvZsz!$A52,'Terv-segédlet'!E:E) -> 250000 | X52: =SUMIF('Terv-segédlet'!$B:$B,KvZsz!$A52,'Terv-segédlet'!F:F) -> 20000 | Y52: =SUMIF('Terv-segédlet'!$B:$B,KvZsz!$A52,'Terv-segédlet'!G:G) -> 160000 | Z52: =SUMIF('Terv-segédlet'!$B:$B,KvZsz!$A52,'Terv-segédlet'!H:H) -> 100000 | AA52: =SUMIF('Terv-segédlet'!$B:$B,KvZsz!$A52,'Terv-segédlet'!I:I) -> 350000 | AB52: =SUMIF('Terv-segédlet'!$B:$B,KvZsz!$A52,'Terv-segédlet'!J:J) -> 50000 | AC52: =SUMIF('Terv-segédlet'!$B:$B,KvZsz!$A52,'Terv-segédlet'!K:K) -> 45000 | AD52: 1226390 | AE52: =SUMIF(V!$A:$A,$A52,V!$K:$K)+SUMIF(bank!$A:$A,AE$1&$A52,bank!$M:$M) -> 153770 | AF52: =SUMIF(Gy!$A:$A,$A52,Gy!$K:$K)+SUMIF(bank!$A:$A,AF$1&$A52,bank!$M:$M) -> 27470 | AG52: =SUMIF(K!$A:$A,$A52,K!$K:$K)+SUMIF(bank!$A:$A,AG$1&$A52,bank!$M:$M) -> 122100 | AH52: =SUMIF(Mk!$A:$A,$A52,Mk!$K:$K)+SUMIF(bank!$A:$A,AH$1&$A52,bank!$M:$M) -> 362000 | AI52: =SUMIF(M!$A:$A,$A52,M!$K:$K)+SUMIF(bank!$A:$A,AI$1&$A52,bank!$M:$M) -> 454560 | AJ52: =SUMIF(P!$A:$A,$A52,P!$K:$K)+SUMIF(bank!$A:$A,AJ$1&$A52,bank!$M:$M) -> 53490 | AK52: =SUMIF(Zs!$A:$A,$A52,Zs!$K:$K)+SUMIF(bank!$A:$A,AK$1&$A52,bank!$M:$M) -> 53000 | AL52: bevétel | AM52: 1.257835897 | AN52: egyházközségi rendezvényeken szervezett persely bevétele
A53: k051 | B53: * | C53: 51 | E53: -Céladomány | F53: -Céladomány | G53: -Céladomány | H53: -Céladomány | I53: -Céladomány | J53: -Céladomány | K53: -Céladomány | L53: -Céladomány | M53: -Céladomány | N53: -Céladomány | O53: -Céladomány | P53: -Céladomány | Q53: -Céladomány | R53: -Céladomány | S53: -Céladomány | T53: -Céladomány | U53: =SUMIF(kvátf.!E:E,KvZsz!A53,kvátf.!D:D) -> 1110000 | V53: 500000 | W53: =SUMIF('Terv-segédlet'!$B:$B,KvZsz!$A53,'Terv-segédlet'!E:E) -> 0 | X53: =SUMIF('Terv-segédlet'!$B:$B,KvZsz!$A53,'Terv-segédlet'!F:F) -> 0 | Y53: =SUMIF('Terv-segédlet'!$B:$B,KvZsz!$A53,'Terv-segédlet'!G:G) -> 0 | Z53: =SUMIF('Terv-segédlet'!$B:$B,KvZsz!$A53,'Terv-segédlet'!H:H) -> 500000 | AA53: =SUMIF('Terv-segédlet'!$B:$B,KvZsz!$A53,'Terv-segédlet'!I:I) -> 0 | AB53: =SUMIF('Terv-segédlet'!$B:$B,KvZsz!$A53,'Terv-segédlet'!J:J) -> 0 | AC53: =SUMIF('Terv-segédlet'!$B:$B,KvZsz!$A53,'Terv-segédlet'!K:K) -> 0 | AD53: 1787030 | AE53: =SUMIF(V!$A:$A,$A53,V!$K:$K)+SUMIF(bank!$A:$A,AE$1&$A53,bank!$M:$M) -> 0 | AF53: =SUMIF(Gy!$A:$A,$A53,Gy!$K:$K)+SUMIF(bank!$A:$A,AF$1&$A53,bank!$M:$M) -> 0 | AG53: =SUMIF(K!$A:$A,$A53,K!$K:$K)+SUMIF(bank!$A:$A,AG$1&$A53,bank!$M:$M) -> 0 | AH53: =SUMIF(Mk!$A:$A,$A53,Mk!$K:$K)+SUMIF(bank!$A:$A,AH$1&$A53,bank!$M:$M) -> 1787030 | AI53: =SUMIF(M!$A:$A,$A53,M!$K:$K)+SUMIF(bank!$A:$A,AI$1&$A53,bank!$M:$M) -> 0 | AJ53: =SUMIF(P!$A:$A,$A53,P!$K:$K)+SUMIF(bank!$A:$A,AJ$1&$A53,bank!$M:$M) -> 0 | AK53: =SUMIF(Zs!$A:$A,$A53,Zs!$K:$K)+SUMIF(bank!$A:$A,AK$1&$A53,bank!$M:$M) -> 0 | AL53: bevétel | AM53: 3.57406 | AN53: magánszemélyek által ezen a címen, konkrét felhasználási cél megjelölésével teljesített befizetés
A54: k052 | B54: * | C54: 52 | E54: -Egyéb adomány | F54: -Egyéb adomány | G54: -Egyéb adomány | H54: -Egyéb adomány | I54: -Egyéb adomány | J54: -Egyéb adomány | K54: -Egyéb adomány | L54: -Egyéb adomány | M54: -Egyéb adomány | N54: -Egyéb adomány | O54: -Egyéb adomány | P54: -Egyéb adomány | Q54: -Egyéb adomány | R54: -Egyéb adomány | S54: -Egyéb adomány | T54: -Egyéb adomány | U54: =SUMIF(kvátf.!E:E,KvZsz!A54,kvátf.!D:D) -> 0 | V54: 0 | W54: =SUMIF('Terv-segédlet'!$B:$B,KvZsz!$A54,'Terv-segédlet'!E:E) -> 0 | X54: =SUMIF('Terv-segédlet'!$B:$B,KvZsz!$A54,'Terv-segédlet'!F:F) -> 0 | Y54: =SUMIF('Terv-segédlet'!$B:$B,KvZsz!$A54,'Terv-segédlet'!G:G) -> 0 | Z54: =SUMIF('Terv-segédlet'!$B:$B,KvZsz!$A54,'Terv-segédlet'!H:H) -> 0 | AA54: =SUMIF('Terv-segédlet'!$B:$B,KvZsz!$A54,'Terv-segédlet'!I:I) -> 0 | AB54: =SUMIF('Terv-segédlet'!$B:$B,KvZsz!$A54,'Terv-segédlet'!J:J) -> 0 | AC54: =SUMIF('Terv-segédlet'!$B:$B,KvZsz!$A54,'Terv-segédlet'!K:K) -> 0 | AD54: 0 | AE54: =SUMIF(V!$A:$A,$A54,V!$K:$K)+SUMIF(bank!$A:$A,AE$1&$A54,bank!$M:$M) -> 0 | AF54: =SUMIF(Gy!$A:$A,$A54,Gy!$K:$K)+SUMIF(bank!$A:$A,AF$1&$A54,bank!$M:$M) -> 0 | AG54: =SUMIF(K!$A:$A,$A54,K!$K:$K)+SUMIF(bank!$A:$A,AG$1&$A54,bank!$M:$M) -> 0 | AH54: =SUMIF(Mk!$A:$A,$A54,Mk!$K:$K)+SUMIF(bank!$A:$A,AH$1&$A54,bank!$M:$M) -> 0 | AI54: =SUMIF(M!$A:$A,$A54,M!$K:$K)+SUMIF(bank!$A:$A,AI$1&$A54,bank!$M:$M) -> 0 | AJ54: =SUMIF(P!$A:$A,$A54,P!$K:$K)+SUMIF(bank!$A:$A,AJ$1&$A54,bank!$M:$M) -> 0 | AK54: =SUMIF(Zs!$A:$A,$A54,Zs!$K:$K)+SUMIF(bank!$A:$A,AK$1&$A54,bank!$M:$M) -> 0 | AL54: bevétel | AN54: magánszemélyek által teljesítet egyéb adomány befizetés (pl. harangozás, ha nem díjszabás alapján történik)
A55: k053 | B55: * | C55: 53 | E55: dc) Továbbítandó egyéb támogatások | F55: dc) Továbbítandó egyéb támogatások, bevételek | G55: dc) Továbbítandó egyéb támogatások, bevételek | H55: dc) Továbbítandó egyéb támogatások, bevételek | I55: dc) Továbbítandó egyéb támogatások, bevételek | J55: dc) Továbbítandó egyéb támogatások, bevételek | K55: dc) Továbbítandó egyéb támogatások, bevételek | L55: dc) Továbbítandó egyéb támogatások, bevételek | M55: dc) Továbbítandó egyéb támogatások, bevételek | N55: dc) Továbbítandó egyéb támogatások, bevételek | O55: dc) Továbbítandó egyéb támogatások, bevételek | P55: dc) Továbbítandó egyéb támogatások, bevételek | Q55: dc) Továbbítandó egyéb támogatások, bevételek | R55: dc) Továbbítandó egyéb támogatások, bevételek | S55: dc) Továbbítandó egyéb támogatások, bevételek | T55: dc) Továbbítandó egyéb támogatások, bevételek | U55: =SUMIF(kvátf.!E:E,KvZsz!A55,kvátf.!D:D) -> 257210 | V55: 338000 | W55: =SUMIF('Terv-segédlet'!$B:$B,KvZsz!$A55,'Terv-segédlet'!E:E) -> 80000 | X55: =SUMIF('Terv-segédlet'!$B:$B,KvZsz!$A55,'Terv-segédlet'!F:F) -> 5000 | Y55: =SUMIF('Terv-segédlet'!$B:$B,KvZsz!$A55,'Terv-segédlet'!G:G) -> 60000 | Z55: =SUMIF('Terv-segédlet'!$B:$B,KvZsz!$A55,'Terv-segédlet'!H:H) -> 60000 | AA55: =SUMIF('Terv-segédlet'!$B:$B,KvZsz!$A55,'Terv-segédlet'!I:I) -> 120000 | AB55: =SUMIF('Terv-segédlet'!$B:$B,KvZsz!$A55,'Terv-segédlet'!J:J) -> 5000 | AC55: =SUMIF('Terv-segédlet'!$B:$B,KvZsz!$A55,'Terv-segédlet'!K:K) -> 8000 | AD55: 268490 | AE55: =SUMIF(V!$A:$A,$A55,V!$K:$K)+SUMIF(bank!$A:$A,AE$1&$A55,bank!$M:$M) -> 82760 | AF55: =SUMIF(Gy!$A:$A,$A55,Gy!$K:$K)+SUMIF(bank!$A:$A,AF$1&$A55,bank!$M:$M) -> 3550 | AG55: =SUMIF(K!$A:$A,$A55,K!$K:$K)+SUMIF(bank!$A:$A,AG$1&$A55,bank!$M:$M) -> 32900 | AH55: =SUMIF(Mk!$A:$A,$A55,Mk!$K:$K)+SUMIF(bank!$A:$A,AH$1&$A55,bank!$M:$M) -> 21770 | AI55: =SUMIF(M!$A:$A,$A55,M!$K:$K)+SUMIF(bank!$A:$A,AI$1&$A55,bank!$M:$M) -> 116390 | AJ55: =SUMIF(P!$A:$A,$A55,P!$K:$K)+SUMIF(bank!$A:$A,AJ$1&$A55,bank!$M:$M) -> 7720 | AK55: =SUMIF(Zs!$A:$A,$A55,Zs!$K:$K)+SUMIF(bank!$A:$A,AK$1&$A55,bank!$M:$M) -> 3400 | AL55: bevétel | AM55: 0.7943491124 | AN55: kötelező offertórium, Gusztáv Adolf segély, szupplikáció, továbbítandó egyéb adományok
A56: k054 | C56: 54 | E56: 3. Pénzügyi műveletek bevételei (55..57) | W56: =SUMIF('Terv-segédlet'!$B:$B,KvZsz!$A56,'Terv-segédlet'!E:E) -> 0 | X56: =SUMIF('Terv-segédlet'!$B:$B,KvZsz!$A56,'Terv-segédlet'!F:F) -> 0 | Y56: =SUMIF('Terv-segédlet'!$B:$B,KvZsz!$A56,'Terv-segédlet'!G:G) -> 0 | Z56: =SUMIF('Terv-segédlet'!$B:$B,KvZsz!$A56,'Terv-segédlet'!H:H) -> 0 | AA56: =SUMIF('Terv-segédlet'!$B:$B,KvZsz!$A56,'Terv-segédlet'!I:I) -> 0 | AB56: =SUMIF('Terv-segédlet'!$B:$B,KvZsz!$A56,'Terv-segédlet'!J:J) -> 0 | AC56: =SUMIF('Terv-segédlet'!$B:$B,KvZsz!$A56,'Terv-segédlet'!K:K) -> 0 | AL56: bevétel | AN56: 0.97
A57: k055 | B57: * | C57: 55 | F57: Befektetett pénzügyi eszközök kamatai, árfolyamnyeresége | U57: =SUMIF(kvátf.!E:E,KvZsz!A57,kvátf.!D:D) -> 0 | V57: =SUM(W57:AC57) -> 0 | W57: =SUMIF('Terv-segédlet'!$B:$B,KvZsz!$A57,'Terv-segédlet'!E:E) -> 0 | X57: =SUMIF('Terv-segédlet'!$B:$B,KvZsz!$A57,'Terv-segédlet'!F:F) -> 0 | Y57: =SUMIF('Terv-segédlet'!$B:$B,KvZsz!$A57,'Terv-segédlet'!G:G) -> 0 | Z57: =SUMIF('Terv-segédlet'!$B:$B,KvZsz!$A57,'Terv-segédlet'!H:H) -> 0 | AA57: =SUMIF('Terv-segédlet'!$B:$B,KvZsz!$A57,'Terv-segédlet'!I:I) -> 0 | AB57: =SUMIF('Terv-segédlet'!$B:$B,KvZsz!$A57,'Terv-segédlet'!J:J) -> 0 | AC57: =SUMIF('Terv-segédlet'!$B:$B,KvZsz!$A57,'Terv-segédlet'!K:K) -> 0 | AD57: =SUM(AE57:AK57) -> 0 | AE57: =SUMIF(V!$A:$A,$A57,V!$K:$K)+SUMIF(bank!$A:$A,AE$1&$A57,bank!$M:$M) -> 0 | AF57: =SUMIF(Gy!$A:$A,$A57,Gy!$K:$K)+SUMIF(bank!$A:$A,AF$1&$A57,bank!$M:$M) -> 0 | AG57: =SUMIF(K!$A:$A,$A57,K!$K:$K)+SUMIF(bank!$A:$A,AG$1&$A57,bank!$M:$M) -> 0 | AH57: =SUMIF(Mk!$A:$A,$A57,Mk!$K:$K)+SUMIF(bank!$A:$A,AH$1&$A57,bank!$M:$M) -> 0 | AI57: =SUMIF(M!$A:$A,$A57,M!$K:$K)+SUMIF(bank!$A:$A,AI$1&$A57,bank!$M:$M) -> 0 | AJ57: =SUMIF(P!$A:$A,$A57,P!$K:$K)+SUMIF(bank!$A:$A,AJ$1&$A57,bank!$M:$M) -> 0 | AK57: =SUMIF(Zs!$A:$A,$A57,Zs!$K:$K)+SUMIF(bank!$A:$A,AK$1&$A57,bank!$M:$M) -> 0 | AL57: bevétel | AN57: hosszú távú (éven túli) befektetések kamata
A58: k056 | B58: * | C58: 56 | F58: Egyéb kapott (járó) kamatok és kamatjellegű bevételek | U58: =SUMIF(kvátf.!E:E,KvZsz!A58,kvátf.!D:D) -> 97943 | V58: 44500 | W58: =SUMIF('Terv-segédlet'!$B:$B,KvZsz!$A58,'Terv-segédlet'!E:E) -> 15000 | X58: =SUMIF('Terv-segédlet'!$B:$B,KvZsz!$A58,'Terv-segédlet'!F:F) -> 2500 | Y58: =SUMIF('Terv-segédlet'!$B:$B,KvZsz!$A58,'Terv-segédlet'!G:G) -> 2500 | Z58: =SUMIF('Terv-segédlet'!$B:$B,KvZsz!$A58,'Terv-segédlet'!H:H) -> 10000 | AA58: =SUMIF('Terv-segédlet'!$B:$B,KvZsz!$A58,'Terv-segédlet'!I:I) -> 10000 | AB58: =SUMIF('Terv-segédlet'!$B:$B,KvZsz!$A58,'Terv-segédlet'!J:J) -> 1500 | AC58: =SUMIF('Terv-segédlet'!$B:$B,KvZsz!$A58,'Terv-segédlet'!K:K) -> 3000 | AD58: 52355 | AE58: =SUMIF(V!$A:$A,$A58,V!$K:$K)+SUMIF(bank!$A:$A,AE$1&$A58,bank!$M:$M) -> 15763 | AF58: =SUMIF(Gy!$A:$A,$A58,Gy!$K:$K)+SUMIF(bank!$A:$A,AF$1&$A58,bank!$M:$M) -> 1066 | AG58: =SUMIF(K!$A:$A,$A58,K!$K:$K)+SUMIF(bank!$A:$A,AG$1&$A58,bank!$M:$M) -> 2701 | AH58: =SUMIF(Mk!$A:$A,$A58,Mk!$K:$K)+SUMIF(bank!$A:$A,AH$1&$A58,bank!$M:$M) -> 15547 | AI58: =SUMIF(M!$A:$A,$A58,M!$K:$K)+SUMIF(bank!$A:$A,AI$1&$A58,bank!$M:$M) -> 12302 | AJ58: =SUMIF(P!$A:$A,$A58,P!$K:$K)+SUMIF(bank!$A:$A,AJ$1&$A58,bank!$M:$M) -> 308 | AK58: =SUMIF(Zs!$A:$A,$A58,Zs!$K:$K)+SUMIF(bank!$A:$A,AK$1&$A58,bank!$M:$M) -> 4668 | AL58: bevétel | AM58: 1.176516854 | AN58: bankszámla, egyéb éven belüli lekötések kamata
A59: k057 | B59: * | C59: 57 | F59: Pénzügyi műveletek egyéb bevételei | U59: =SUMIF(kvátf.!E:E,KvZsz!A59,kvátf.!D:D) -> 0 | V59: 0 | W59: =SUMIF('Terv-segédlet'!$B:$B,KvZsz!$A59,'Terv-segédlet'!E:E) -> 0 | X59: =SUMIF('Terv-segédlet'!$B:$B,KvZsz!$A59,'Terv-segédlet'!F:F) -> 0 | Y59: =SUMIF('Terv-segédlet'!$B:$B,KvZsz!$A59,'Terv-segédlet'!G:G) -> 0 | Z59: =SUMIF('Terv-segédlet'!$B:$B,KvZsz!$A59,'Terv-segédlet'!H:H) -> 0 | AA59: =SUMIF('Terv-segédlet'!$B:$B,KvZsz!$A59,'Terv-segédlet'!I:I) -> 0 | AB59: =SUMIF('Terv-segédlet'!$B:$B,KvZsz!$A59,'Terv-segédlet'!J:J) -> 0 | AC59: =SUMIF('Terv-segédlet'!$B:$B,KvZsz!$A59,'Terv-segédlet'!K:K) -> 0 | AD59: 0 | AE59: =SUMIF(V!$A:$A,$A59,V!$K:$K)+SUMIF(bank!$A:$A,AE$1&$A59,bank!$M:$M) -> 0 | AF59: =SUMIF(Gy!$A:$A,$A59,Gy!$K:$K)+SUMIF(bank!$A:$A,AF$1&$A59,bank!$M:$M) -> 0 | AG59: =SUMIF(K!$A:$A,$A59,K!$K:$K)+SUMIF(bank!$A:$A,AG$1&$A59,bank!$M:$M) -> 0 | AH59: =SUMIF(Mk!$A:$A,$A59,Mk!$K:$K)+SUMIF(bank!$A:$A,AH$1&$A59,bank!$M:$M) -> 0 | AI59: =SUMIF(M!$A:$A,$A59,M!$K:$K)+SUMIF(bank!$A:$A,AI$1&$A59,bank!$M:$M) -> 0 | AJ59: =SUMIF(P!$A:$A,$A59,P!$K:$K)+SUMIF(bank!$A:$A,AJ$1&$A59,bank!$M:$M) -> 0 | AK59: =SUMIF(Zs!$A:$A,$A59,Zs!$K:$K)+SUMIF(bank!$A:$A,AK$1&$A59,bank!$M:$M) -> 0 | AL59: bevétel | AN59: árfolyamkülönbözet
A60: k058 | C60: 58 | E60: 4. Rendkívüli bevételek | U60: =SUMIF(kvátf.!E:E,KvZsz!A60,kvátf.!D:D) -> 0 | V60: 0 | W60: =SUMIF('Terv-segédlet'!$B:$B,KvZsz!$A60,'Terv-segédlet'!E:E) -> 0 | X60: =SUMIF('Terv-segédlet'!$B:$B,KvZsz!$A60,'Terv-segédlet'!F:F) -> 0 | Y60: =SUMIF('Terv-segédlet'!$B:$B,KvZsz!$A60,'Terv-segédlet'!G:G) -> 0 | Z60: =SUMIF('Terv-segédlet'!$B:$B,KvZsz!$A60,'Terv-segédlet'!H:H) -> 0 | AA60: =SUMIF('Terv-segédlet'!$B:$B,KvZsz!$A60,'Terv-segédlet'!I:I) -> 0 | AB60: =SUMIF('Terv-segédlet'!$B:$B,KvZsz!$A60,'Terv-segédlet'!J:J) -> 0 | AC60: =SUMIF('Terv-segédlet'!$B:$B,KvZsz!$A60,'Terv-segédlet'!K:K) -> 0 | AD60: 0 | AE60: =SUMIF(V!$A:$A,$A60,V!$K:$K)+SUMIF(bank!$A:$A,AE$1&$A60,bank!$M:$M) -> 0 | AF60: =SUMIF(Gy!$A:$A,$A60,Gy!$K:$K)+SUMIF(bank!$A:$A,AF$1&$A60,bank!$M:$M) -> 0 | AG60: =SUMIF(K!$A:$A,$A60,K!$K:$K)+SUMIF(bank!$A:$A,AG$1&$A60,bank!$M:$M) -> 0 | AH60: =SUMIF(Mk!$A:$A,$A60,Mk!$K:$K)+SUMIF(bank!$A:$A,AH$1&$A60,bank!$M:$M) -> 0 | AI60: =SUMIF(M!$A:$A,$A60,M!$K:$K)+SUMIF(bank!$A:$A,AI$1&$A60,bank!$M:$M) -> 0 | AJ60: =SUMIF(P!$A:$A,$A60,P!$K:$K)+SUMIF(bank!$A:$A,AJ$1&$A60,bank!$M:$M) -> 0 | AK60: =SUMIF(Zs!$A:$A,$A60,Zs!$K:$K)+SUMIF(bank!$A:$A,AK$1&$A60,bank!$M:$M) -> 0 | AL60: bevétel | AN60: 98%-9891%
A61: k059 | C61: 59 | F61: ebből támogatások (60..63) | W61: =SUMIF('Terv-segédlet'!$B:$B,KvZsz!$A61,'Terv-segédlet'!E:E) -> 0 | X61: =SUMIF('Terv-segédlet'!$B:$B,KvZsz!$A61,'Terv-segédlet'!F:F) -> 0 | Y61: =SUMIF('Terv-segédlet'!$B:$B,KvZsz!$A61,'Terv-segédlet'!G:G) -> 0 | Z61: =SUMIF('Terv-segédlet'!$B:$B,KvZsz!$A61,'Terv-segédlet'!H:H) -> 0 | AA61: =SUMIF('Terv-segédlet'!$B:$B,KvZsz!$A61,'Terv-segédlet'!I:I) -> 0 | AB61: =SUMIF('Terv-segédlet'!$B:$B,KvZsz!$A61,'Terv-segédlet'!J:J) -> 0 | AC61: =SUMIF('Terv-segédlet'!$B:$B,KvZsz!$A61,'Terv-segédlet'!K:K) -> 0 | AL61: bevétel
A62: k060 | B62: * | C62: 60 | E62: a ) egyházi támogatások | U62: =SUMIF(kvátf.!E:E,KvZsz!A62,kvátf.!D:D) -> 0 | V62: =SUM(W62:AC62) -> 0 | W62: =SUMIF('Terv-segédlet'!$B:$B,KvZsz!$A62,'Terv-segédlet'!E:E) -> 0 | X62: =SUMIF('Terv-segédlet'!$B:$B,KvZsz!$A62,'Terv-segédlet'!F:F) -> 0 | Y62: =SUMIF('Terv-segédlet'!$B:$B,KvZsz!$A62,'Terv-segédlet'!G:G) -> 0 | Z62: =SUMIF('Terv-segédlet'!$B:$B,KvZsz!$A62,'Terv-segédlet'!H:H) -> 0 | AA62: =SUMIF('Terv-segédlet'!$B:$B,KvZsz!$A62,'Terv-segédlet'!I:I) -> 0 | AB62: =SUMIF('Terv-segédlet'!$B:$B,KvZsz!$A62,'Terv-segédlet'!J:J) -> 0 | AC62: =SUMIF('Terv-segédlet'!$B:$B,KvZsz!$A62,'Terv-segédlet'!K:K) -> 0 | AD62: =SUM(AE62:AK62) -> 0 | AE62: =SUMIF(V!$A:$A,$A62,V!$K:$K)+SUMIF(bank!$A:$A,AE$1&$A62,bank!$M:$M) -> 0 | AF62: =SUMIF(Gy!$A:$A,$A62,Gy!$K:$K)+SUMIF(bank!$A:$A,AF$1&$A62,bank!$M:$M) -> 0 | AG62: =SUMIF(K!$A:$A,$A62,K!$K:$K)+SUMIF(bank!$A:$A,AG$1&$A62,bank!$M:$M) -> 0 | AH62: =SUMIF(Mk!$A:$A,$A62,Mk!$K:$K)+SUMIF(bank!$A:$A,AH$1&$A62,bank!$M:$M) -> 0 | AI62: =SUMIF(M!$A:$A,$A62,M!$K:$K)+SUMIF(bank!$A:$A,AI$1&$A62,bank!$M:$M) -> 0 | AJ62: =SUMIF(P!$A:$A,$A62,P!$K:$K)+SUMIF(bank!$A:$A,AJ$1&$A62,bank!$M:$M) -> 0 | AK62: =SUMIF(Zs!$A:$A,$A62,Zs!$K:$K)+SUMIF(bank!$A:$A,AK$1&$A62,bank!$M:$M) -> 0 | AL62: bevétel | AN62: nem jellemző bevétel
A63: k061 | B63: * | C63: 61 | E63: b) Központi költségvetés | G63: - központi költségvetési | U63: =SUMIF(kvátf.!E:E,KvZsz!A63,kvátf.!D:D) -> 0 | V63: 0 | W63: =SUMIF('Terv-segédlet'!$B:$B,KvZsz!$A63,'Terv-segédlet'!E:E) -> 0 | X63: =SUMIF('Terv-segédlet'!$B:$B,KvZsz!$A63,'Terv-segédlet'!F:F) -> 0 | Y63: =SUMIF('Terv-segédlet'!$B:$B,KvZsz!$A63,'Terv-segédlet'!G:G) -> 0 | Z63: =SUMIF('Terv-segédlet'!$B:$B,KvZsz!$A63,'Terv-segédlet'!H:H) -> 0 | AA63: =SUMIF('Terv-segédlet'!$B:$B,KvZsz!$A63,'Terv-segédlet'!I:I) -> 0 | AB63: =SUMIF('Terv-segédlet'!$B:$B,KvZsz!$A63,'Terv-segédlet'!J:J) -> 0 | AC63: =SUMIF('Terv-segédlet'!$B:$B,KvZsz!$A63,'Terv-segédlet'!K:K) -> 0 | AD63: 0 | AE63: =SUMIF(V!$A:$A,$A63,V!$K:$K)+SUMIF(bank!$A:$A,AE$1&$A63,bank!$M:$M) -> 0 | AF63: =SUMIF(Gy!$A:$A,$A63,Gy!$K:$K)+SUMIF(bank!$A:$A,AF$1&$A63,bank!$M:$M) -> 0 | AG63: =SUMIF(K!$A:$A,$A63,K!$K:$K)+SUMIF(bank!$A:$A,AG$1&$A63,bank!$M:$M) -> 0 | AH63: =SUMIF(Mk!$A:$A,$A63,Mk!$K:$K)+SUMIF(bank!$A:$A,AH$1&$A63,bank!$M:$M) -> 0 | AI63: =SUMIF(M!$A:$A,$A63,M!$K:$K)+SUMIF(bank!$A:$A,AI$1&$A63,bank!$M:$M) -> 0 | AJ63: =SUMIF(P!$A:$A,$A63,P!$K:$K)+SUMIF(bank!$A:$A,AJ$1&$A63,bank!$M:$M) -> 0 | AK63: =SUMIF(Zs!$A:$A,$A63,Zs!$K:$K)+SUMIF(bank!$A:$A,AK$1&$A63,bank!$M:$M) -> 0 | AL63: bevétel | AN63: nem jellemző bevétel
A64: k062 | B64: * | C64: 62 | E64: c) Helyi, megyei önkormányzati támogatás | G64: - helyi önkormányzati | U64: =SUMIF(kvátf.!E:E,KvZsz!A64,kvátf.!D:D) -> 0 | V64: 0 | W64: =SUMIF('Terv-segédlet'!$B:$B,KvZsz!$A64,'Terv-segédlet'!E:E) -> 0 | X64: =SUMIF('Terv-segédlet'!$B:$B,KvZsz!$A64,'Terv-segédlet'!F:F) -> 0 | Y64: =SUMIF('Terv-segédlet'!$B:$B,KvZsz!$A64,'Terv-segédlet'!G:G) -> 0 | Z64: =SUMIF('Terv-segédlet'!$B:$B,KvZsz!$A64,'Terv-segédlet'!H:H) -> 0 | AA64: =SUMIF('Terv-segédlet'!$B:$B,KvZsz!$A64,'Terv-segédlet'!I:I) -> 0 | AB64: =SUMIF('Terv-segédlet'!$B:$B,KvZsz!$A64,'Terv-segédlet'!J:J) -> 0 | AC64: =SUMIF('Terv-segédlet'!$B:$B,KvZsz!$A64,'Terv-segédlet'!K:K) -> 0 | AD64: 0 | AE64: =SUMIF(V!$A:$A,$A64,V!$K:$K)+SUMIF(bank!$A:$A,AE$1&$A64,bank!$M:$M) -> 0 | AF64: =SUMIF(Gy!$A:$A,$A64,Gy!$K:$K)+SUMIF(bank!$A:$A,AF$1&$A64,bank!$M:$M) -> 0 | AG64: =SUMIF(K!$A:$A,$A64,K!$K:$K)+SUMIF(bank!$A:$A,AG$1&$A64,bank!$M:$M) -> 0 | AH64: =SUMIF(Mk!$A:$A,$A64,Mk!$K:$K)+SUMIF(bank!$A:$A,AH$1&$A64,bank!$M:$M) -> 0 | AI64: =SUMIF(M!$A:$A,$A64,M!$K:$K)+SUMIF(bank!$A:$A,AI$1&$A64,bank!$M:$M) -> 0 | AJ64: =SUMIF(P!$A:$A,$A64,P!$K:$K)+SUMIF(bank!$A:$A,AJ$1&$A64,bank!$M:$M) -> 0 | AK64: =SUMIF(Zs!$A:$A,$A64,Zs!$K:$K)+SUMIF(bank!$A:$A,AK$1&$A64,bank!$M:$M) -> 0 | AL64: bevétel | AN64: nem jellemző bevétel
A65: k063 | B65: * | C65: 63 | E65: d) Gyülekezeti tagoktól, magánszemélyektől, gazdálkodó szervektől | U65: =SUMIF(kvátf.!E:E,KvZsz!A65,kvátf.!D:D) -> 0 | V65: 0 | W65: =SUMIF('Terv-segédlet'!$B:$B,KvZsz!$A65,'Terv-segédlet'!E:E) -> 0 | X65: =SUMIF('Terv-segédlet'!$B:$B,KvZsz!$A65,'Terv-segédlet'!F:F) -> 0 | Y65: =SUMIF('Terv-segédlet'!$B:$B,KvZsz!$A65,'Terv-segédlet'!G:G) -> 0 | Z65: =SUMIF('Terv-segédlet'!$B:$B,KvZsz!$A65,'Terv-segédlet'!H:H) -> 0 | AA65: =SUMIF('Terv-segédlet'!$B:$B,KvZsz!$A65,'Terv-segédlet'!I:I) -> 0 | AB65: =SUMIF('Terv-segédlet'!$B:$B,KvZsz!$A65,'Terv-segédlet'!J:J) -> 0 | AC65: =SUMIF('Terv-segédlet'!$B:$B,KvZsz!$A65,'Terv-segédlet'!K:K) -> 0 | AD65: 0 | AE65: =SUMIF(V!$A:$A,$A65,V!$K:$K)+SUMIF(bank!$A:$A,AE$1&$A65,bank!$M:$M) -> 0 | AF65: =SUMIF(Gy!$A:$A,$A65,Gy!$K:$K)+SUMIF(bank!$A:$A,AF$1&$A65,bank!$M:$M) -> 0 | AG65: =SUMIF(K!$A:$A,$A65,K!$K:$K)+SUMIF(bank!$A:$A,AG$1&$A65,bank!$M:$M) -> 0 | AH65: =SUMIF(Mk!$A:$A,$A65,Mk!$K:$K)+SUMIF(bank!$A:$A,AH$1&$A65,bank!$M:$M) -> 0 | AI65: =SUMIF(M!$A:$A,$A65,M!$K:$K)+SUMIF(bank!$A:$A,AI$1&$A65,bank!$M:$M) -> 0 | AJ65: =SUMIF(P!$A:$A,$A65,P!$K:$K)+SUMIF(bank!$A:$A,AJ$1&$A65,bank!$M:$M) -> 0 | AK65: =SUMIF(Zs!$A:$A,$A65,Zs!$K:$K)+SUMIF(bank!$A:$A,AK$1&$A65,bank!$M:$M) -> 0 | AL65: bevétel | AN65: nem jellemző bevétel
A66: k064 | C66: 64 | E66: II. Pénzbevételt nem jelentő bevételek (4+5+6) | W66: =SUMIF('Terv-segédlet'!$B:$B,KvZsz!$A66,'Terv-segédlet'!E:E) -> 0 | X66: =SUMIF('Terv-segédlet'!$B:$B,KvZsz!$A66,'Terv-segédlet'!F:F) -> 0 | Y66: =SUMIF('Terv-segédlet'!$B:$B,KvZsz!$A66,'Terv-segédlet'!G:G) -> 0 | Z66: =SUMIF('Terv-segédlet'!$B:$B,KvZsz!$A66,'Terv-segédlet'!H:H) -> 0 | AA66: =SUMIF('Terv-segédlet'!$B:$B,KvZsz!$A66,'Terv-segédlet'!I:I) -> 0 | AB66: =SUMIF('Terv-segédlet'!$B:$B,KvZsz!$A66,'Terv-segédlet'!J:J) -> 0 | AC66: =SUMIF('Terv-segédlet'!$B:$B,KvZsz!$A66,'Terv-segédlet'!K:K) -> 0 | AL66: bevétel
A67: k065 | B67: * | C67: 65 | E67: 4. Nem pénzben kiegyenlített értékesítés nettó árbevétele | U67: =SUMIF(kvátf.!E:E,KvZsz!A67,kvátf.!D:D) -> 0 | V67: =SUM(W67:AC67) -> 0 | W67: =SUMIF('Terv-segédlet'!$B:$B,KvZsz!$A67,'Terv-segédlet'!E:E) -> 0 | X67: =SUMIF('Terv-segédlet'!$B:$B,KvZsz!$A67,'Terv-segédlet'!F:F) -> 0 | Y67: =SUMIF('Terv-segédlet'!$B:$B,KvZsz!$A67,'Terv-segédlet'!G:G) -> 0 | Z67: =SUMIF('Terv-segédlet'!$B:$B,KvZsz!$A67,'Terv-segédlet'!H:H) -> 0 | AA67: =SUMIF('Terv-segédlet'!$B:$B,KvZsz!$A67,'Terv-segédlet'!I:I) -> 0 | AB67: =SUMIF('Terv-segédlet'!$B:$B,KvZsz!$A67,'Terv-segédlet'!J:J) -> 0 | AC67: =SUMIF('Terv-segédlet'!$B:$B,KvZsz!$A67,'Terv-segédlet'!K:K) -> 0 | AD67: =SUM(AE67:AK67) -> 0 | AE67: =SUMIF(V!$A:$A,$A67,V!$K:$K)+SUMIF(bank!$A:$A,AE$1&$A67,bank!$M:$M) -> 0 | AF67: =SUMIF(Gy!$A:$A,$A67,Gy!$K:$K)+SUMIF(bank!$A:$A,AF$1&$A67,bank!$M:$M) -> 0 | AG67: =SUMIF(K!$A:$A,$A67,K!$K:$K)+SUMIF(bank!$A:$A,AG$1&$A67,bank!$M:$M) -> 0 | AH67: =SUMIF(Mk!$A:$A,$A67,Mk!$K:$K)+SUMIF(bank!$A:$A,AH$1&$A67,bank!$M:$M) -> 0 | AI67: =SUMIF(M!$A:$A,$A67,M!$K:$K)+SUMIF(bank!$A:$A,AI$1&$A67,bank!$M:$M) -> 0 | AJ67: =SUMIF(P!$A:$A,$A67,P!$K:$K)+SUMIF(bank!$A:$A,AJ$1&$A67,bank!$M:$M) -> 0 | AK67: =SUMIF(Zs!$A:$A,$A67,Zs!$K:$K)+SUMIF(bank!$A:$A,AK$1&$A67,bank!$M:$M) -> 0 | AL67: bevétel | AN67: csereügyletek bevétele (pl. ingatlancsere)
A68: k066 | B68: * | C68: 66 | E68: 6. Nem pénzben kiegyenlített egyéb bevételek | F68: 5. Nem pénzben kiegyenlített egyéb bevételek | G68: 5. Nem pénzben kiegyenlített egyéb bevételek | H68: 5. Nem pénzben kiegyenlített egyéb bevételek | I68: 5. Nem pénzben kiegyenlített egyéb bevételek | J68: 5. Nem pénzben kiegyenlített egyéb bevételek | K68: 5. Nem pénzben kiegyenlített egyéb bevételek | L68: 5. Nem pénzben kiegyenlített egyéb bevételek | M68: 5. Nem pénzben kiegyenlített egyéb bevételek | N68: 5. Nem pénzben kiegyenlített egyéb bevételek | O68: 5. Nem pénzben kiegyenlített egyéb bevételek | P68: 5. Nem pénzben kiegyenlített egyéb bevételek | Q68: 5. Nem pénzben kiegyenlített egyéb bevételek | R68: 5. Nem pénzben kiegyenlített egyéb bevételek | S68: 5. Nem pénzben kiegyenlített egyéb bevételek | T68: 5. Nem pénzben kiegyenlített egyéb bevételek | U68: =SUMIF(kvátf.!E:E,KvZsz!A68,kvátf.!D:D) -> 0 | V68: 6300 | W68: =SUMIF('Terv-segédlet'!$B:$B,KvZsz!$A68,'Terv-segédlet'!E:E) -> 6300 | X68: =SUMIF('Terv-segédlet'!$B:$B,KvZsz!$A68,'Terv-segédlet'!F:F) -> 0 | Y68: =SUMIF('Terv-segédlet'!$B:$B,KvZsz!$A68,'Terv-segédlet'!G:G) -> 0 | Z68: =SUMIF('Terv-segédlet'!$B:$B,KvZsz!$A68,'Terv-segédlet'!H:H) -> 0 | AA68: =SUMIF('Terv-segédlet'!$B:$B,KvZsz!$A68,'Terv-segédlet'!I:I) -> 0 | AB68: =SUMIF('Terv-segédlet'!$B:$B,KvZsz!$A68,'Terv-segédlet'!J:J) -> 0 | AC68: =SUMIF('Terv-segédlet'!$B:$B,KvZsz!$A68,'Terv-segédlet'!K:K) -> 0 | AD68: 0 | AE68: =SUMIF(V!$A:$A,$A68,V!$K:$K)+SUMIF(bank!$A:$A,AE$1&$A68,bank!$M:$M) -> 0 | AF68: =SUMIF(Gy!$A:$A,$A68,Gy!$K:$K)+SUMIF(bank!$A:$A,AF$1&$A68,bank!$M:$M) -> 0 | AG68: =SUMIF(K!$A:$A,$A68,K!$K:$K)+SUMIF(bank!$A:$A,AG$1&$A68,bank!$M:$M) -> 0 | AH68: =SUMIF(Mk!$A:$A,$A68,Mk!$K:$K)+SUMIF(bank!$A:$A,AH$1&$A68,bank!$M:$M) -> 0 | AI68: =SUMIF(M!$A:$A,$A68,M!$K:$K)+SUMIF(bank!$A:$A,AI$1&$A68,bank!$M:$M) -> 0 | AJ68: =SUMIF(P!$A:$A,$A68,P!$K:$K)+SUMIF(bank!$A:$A,AJ$1&$A68,bank!$M:$M) -> 0 | AK68: =SUMIF(Zs!$A:$A,$A68,Zs!$K:$K)+SUMIF(bank!$A:$A,AK$1&$A68,bank!$M:$M) -> 0 | AL68: bevétel | AM68: 0 | AN68: NEM összesített adat, be kell írni!!! olyan bevétel, amelyet az egyházközség pénzben nem kapott meg, hanem más kötelezettségbe kerül beszámításra
A69: k067 | B69: * | C69: 67 | E69: ebből fenntartói nyugdíjjárulékra kapott támogatás | U69: =SUMIF(kvátf.!E:E,KvZsz!A69,kvátf.!D:D) -> 0 | V69: 6300 | W69: =SUMIF('Terv-segédlet'!$B:$B,KvZsz!$A69,'Terv-segédlet'!E:E) -> 6300 | X69: =SUMIF('Terv-segédlet'!$B:$B,KvZsz!$A69,'Terv-segédlet'!F:F) -> 0 | Y69: =SUMIF('Terv-segédlet'!$B:$B,KvZsz!$A69,'Terv-segédlet'!G:G) -> 0 | Z69: =SUMIF('Terv-segédlet'!$B:$B,KvZsz!$A69,'Terv-segédlet'!H:H) -> 0 | AA69: =SUMIF('Terv-segédlet'!$B:$B,KvZsz!$A69,'Terv-segédlet'!I:I) -> 0 | AB69: =SUMIF('Terv-segédlet'!$B:$B,KvZsz!$A69,'Terv-segédlet'!J:J) -> 0 | AC69: =SUMIF('Terv-segédlet'!$B:$B,KvZsz!$A69,'Terv-segédlet'!K:K) -> 0 | AD69: 0 | AE69: =SUMIF(V!$A:$A,$A69,V!$K:$K)+SUMIF(bank!$A:$A,AE$1&$A69,bank!$M:$M) -> 0 | AF69: =SUMIF(Gy!$A:$A,$A69,Gy!$K:$K)+SUMIF(bank!$A:$A,AF$1&$A69,bank!$M:$M) -> 0 | AG69: =SUMIF(K!$A:$A,$A69,K!$K:$K)+SUMIF(bank!$A:$A,AG$1&$A69,bank!$M:$M) -> 0 | AH69: =SUMIF(Mk!$A:$A,$A69,Mk!$K:$K)+SUMIF(bank!$A:$A,AH$1&$A69,bank!$M:$M) -> 0 | AI69: =SUMIF(M!$A:$A,$A69,M!$K:$K)+SUMIF(bank!$A:$A,AI$1&$A69,bank!$M:$M) -> 0 | AJ69: =SUMIF(P!$A:$A,$A69,P!$K:$K)+SUMIF(bank!$A:$A,AJ$1&$A69,bank!$M:$M) -> 0 | AK69: =SUMIF(Zs!$A:$A,$A69,Zs!$K:$K)+SUMIF(bank!$A:$A,AK$1&$A69,bank!$M:$M) -> 0 | AL69: bevétel | AM69: 0 | AN69: bevallás alapján megítélt, pénzben meg nem kapott támogatás (szolidaritási bevallás 6. pont szerinti összeg)
A70: k068 | B70: * | C70: 68 | E70: ebből GAW támogatás előfinanszírozása | U70: =SUMIF(kvátf.!E:E,KvZsz!A70,kvátf.!D:D) -> 0 | V70: 0 | W70: =SUMIF('Terv-segédlet'!$B:$B,KvZsz!$A70,'Terv-segédlet'!E:E) -> 0 | X70: =SUMIF('Terv-segédlet'!$B:$B,KvZsz!$A70,'Terv-segédlet'!F:F) -> 0 | Y70: =SUMIF('Terv-segédlet'!$B:$B,KvZsz!$A70,'Terv-segédlet'!G:G) -> 0 | Z70: =SUMIF('Terv-segédlet'!$B:$B,KvZsz!$A70,'Terv-segédlet'!H:H) -> 0 | AA70: =SUMIF('Terv-segédlet'!$B:$B,KvZsz!$A70,'Terv-segédlet'!I:I) -> 0 | AB70: =SUMIF('Terv-segédlet'!$B:$B,KvZsz!$A70,'Terv-segédlet'!J:J) -> 0 | AC70: =SUMIF('Terv-segédlet'!$B:$B,KvZsz!$A70,'Terv-segédlet'!K:K) -> 0 | AD70: 0 | AE70: =SUMIF(V!$A:$A,$A70,V!$K:$K)+SUMIF(bank!$A:$A,AE$1&$A70,bank!$M:$M) -> 0 | AF70: =SUMIF(Gy!$A:$A,$A70,Gy!$K:$K)+SUMIF(bank!$A:$A,AF$1&$A70,bank!$M:$M) -> 0 | AG70: =SUMIF(K!$A:$A,$A70,K!$K:$K)+SUMIF(bank!$A:$A,AG$1&$A70,bank!$M:$M) -> 0 | AH70: =SUMIF(Mk!$A:$A,$A70,Mk!$K:$K)+SUMIF(bank!$A:$A,AH$1&$A70,bank!$M:$M) -> 0 | AI70: =SUMIF(M!$A:$A,$A70,M!$K:$K)+SUMIF(bank!$A:$A,AI$1&$A70,bank!$M:$M) -> 0 | AJ70: =SUMIF(P!$A:$A,$A70,P!$K:$K)+SUMIF(bank!$A:$A,AJ$1&$A70,bank!$M:$M) -> 0 | AK70: =SUMIF(Zs!$A:$A,$A70,Zs!$K:$K)+SUMIF(bank!$A:$A,AK$1&$A70,bank!$M:$M) -> 0 | AL70: bevétel | AN70: GAW támogatás előfinanszírozása esetén a támogatás beérkezésekor pénzben meg nem kapott, előleg törlesztésre felhasznált bevételrész
A71: k069 | B71: * | C71: =+C70+1 -> 69 | E71: ebből ajándékba kapott eszközök | U71: =SUMIF(kvátf.!E:E,KvZsz!A71,kvátf.!D:D) -> 0 | V71: 0 | W71: =SUMIF('Terv-segédlet'!$B:$B,KvZsz!$A71,'Terv-segédlet'!E:E) -> 0 | X71: =SUMIF('Terv-segédlet'!$B:$B,KvZsz!$A71,'Terv-segédlet'!F:F) -> 0 | Y71: =SUMIF('Terv-segédlet'!$B:$B,KvZsz!$A71,'Terv-segédlet'!G:G) -> 0 | Z71: =SUMIF('Terv-segédlet'!$B:$B,KvZsz!$A71,'Terv-segédlet'!H:H) -> 0 | AA71: =SUMIF('Terv-segédlet'!$B:$B,KvZsz!$A71,'Terv-segédlet'!I:I) -> 0 | AB71: =SUMIF('Terv-segédlet'!$B:$B,KvZsz!$A71,'Terv-segédlet'!J:J) -> 0 | AC71: =SUMIF('Terv-segédlet'!$B:$B,KvZsz!$A71,'Terv-segédlet'!K:K) -> 0 | AD71: 0 | AE71: =SUMIF(V!$A:$A,$A71,V!$K:$K)+SUMIF(bank!$A:$A,AE$1&$A71,bank!$M:$M) -> 0 | AF71: =SUMIF(Gy!$A:$A,$A71,Gy!$K:$K)+SUMIF(bank!$A:$A,AF$1&$A71,bank!$M:$M) -> 0 | AG71: =SUMIF(K!$A:$A,$A71,K!$K:$K)+SUMIF(bank!$A:$A,AG$1&$A71,bank!$M:$M) -> 0 | AH71: =SUMIF(Mk!$A:$A,$A71,Mk!$K:$K)+SUMIF(bank!$A:$A,AH$1&$A71,bank!$M:$M) -> 0 | AI71: =SUMIF(M!$A:$A,$A71,M!$K:$K)+SUMIF(bank!$A:$A,AI$1&$A71,bank!$M:$M) -> 0 | AJ71: =SUMIF(P!$A:$A,$A71,P!$K:$K)+SUMIF(bank!$A:$A,AJ$1&$A71,bank!$M:$M) -> 0 | AK71: =SUMIF(Zs!$A:$A,$A71,Zs!$K:$K)+SUMIF(bank!$A:$A,AK$1&$A71,bank!$M:$M) -> 0 | AL71: bevétel | AM71: =IF(AND(OR(V71<>0,AD71<>0),V71<>0),ABS(AD71/V71),"") ->  | AN71: ajándékba kapott eszköz értéke
A72: k070 | B72: * | C72: =+C71+1 -> 70 | E72: 7. Nem pénzben kiegyenlített rendkívüli bevételek | F72: 5. Nem pénzben kiegyenlített egyéb bevételek | G72: 5. Nem pénzben kiegyenlített egyéb bevételek | H72: 5. Nem pénzben kiegyenlített egyéb bevételek | I72: 5. Nem pénzben kiegyenlített egyéb bevételek | J72: 5. Nem pénzben kiegyenlített egyéb bevételek | K72: 5. Nem pénzben kiegyenlített egyéb bevételek | L72: 5. Nem pénzben kiegyenlített egyéb bevételek | M72: 5. Nem pénzben kiegyenlített egyéb bevételek | N72: 5. Nem pénzben kiegyenlített egyéb bevételek | O72: 5. Nem pénzben kiegyenlített egyéb bevételek | P72: 5. Nem pénzben kiegyenlített egyéb bevételek | Q72: 5. Nem pénzben kiegyenlített egyéb bevételek | R72: 5. Nem pénzben kiegyenlített egyéb bevételek | S72: 5. Nem pénzben kiegyenlített egyéb bevételek | T72: 5. Nem pénzben kiegyenlített egyéb bevételek | U72: =SUMIF(kvátf.!E:E,KvZsz!A72,kvátf.!D:D) -> 0 | V72: 0 | W72: =SUMIF('Terv-segédlet'!$B:$B,KvZsz!$A72,'Terv-segédlet'!E:E) -> 0 | X72: =SUMIF('Terv-segédlet'!$B:$B,KvZsz!$A72,'Terv-segédlet'!F:F) -> 0 | Y72: =SUMIF('Terv-segédlet'!$B:$B,KvZsz!$A72,'Terv-segédlet'!G:G) -> 0 | Z72: =SUMIF('Terv-segédlet'!$B:$B,KvZsz!$A72,'Terv-segédlet'!H:H) -> 0 | AA72: =SUMIF('Terv-segédlet'!$B:$B,KvZsz!$A72,'Terv-segédlet'!I:I) -> 0 | AB72: =SUMIF('Terv-segédlet'!$B:$B,KvZsz!$A72,'Terv-segédlet'!J:J) -> 0 | AC72: =SUMIF('Terv-segédlet'!$B:$B,KvZsz!$A72,'Terv-segédlet'!K:K) -> 0 | AD72: 0 | AE72: =SUMIF(V!$A:$A,$A72,V!$K:$K)+SUMIF(bank!$A:$A,AE$1&$A72,bank!$M:$M) -> 0 | AF72: =SUMIF(Gy!$A:$A,$A72,Gy!$K:$K)+SUMIF(bank!$A:$A,AF$1&$A72,bank!$M:$M) -> 0 | AG72: =SUMIF(K!$A:$A,$A72,K!$K:$K)+SUMIF(bank!$A:$A,AG$1&$A72,bank!$M:$M) -> 0 | AH72: =SUMIF(Mk!$A:$A,$A72,Mk!$K:$K)+SUMIF(bank!$A:$A,AH$1&$A72,bank!$M:$M) -> 0 | AI72: =SUMIF(M!$A:$A,$A72,M!$K:$K)+SUMIF(bank!$A:$A,AI$1&$A72,bank!$M:$M) -> 0 | AJ72: =SUMIF(P!$A:$A,$A72,P!$K:$K)+SUMIF(bank!$A:$A,AJ$1&$A72,bank!$M:$M) -> 0 | AK72: =SUMIF(Zs!$A:$A,$A72,Zs!$K:$K)+SUMIF(bank!$A:$A,AK$1&$A72,bank!$M:$M) -> 0 | AL72: bevétel | AN72: nem jellemző
A73: k071 | C73: 71 | E73: A. VÉGLEGES PÉNZBEVÉTELEK, ELSZÁMOLT BEVÉTELEK (I.+II.) | W73: =SUMIF('Terv-segédlet'!$B:$B,KvZsz!$A73,'Terv-segédlet'!E:E) -> 0 | X73: =SUMIF('Terv-segédlet'!$B:$B,KvZsz!$A73,'Terv-segédlet'!F:F) -> 0 | Y73: =SUMIF('Terv-segédlet'!$B:$B,KvZsz!$A73,'Terv-segédlet'!G:G) -> 0 | Z73: =SUMIF('Terv-segédlet'!$B:$B,KvZsz!$A73,'Terv-segédlet'!H:H) -> 0 | AA73: =SUMIF('Terv-segédlet'!$B:$B,KvZsz!$A73,'Terv-segédlet'!I:I) -> 0 | AB73: =SUMIF('Terv-segédlet'!$B:$B,KvZsz!$A73,'Terv-segédlet'!J:J) -> 0 | AC73: =SUMIF('Terv-segédlet'!$B:$B,KvZsz!$A73,'Terv-segédlet'!K:K) -> 0 | AL73: bevétel
A74: k072 | C74: 72 | E74: III. Ráfordításként érvényesíthető kiadások (7+8+9+10+11) | F74: III. Ráfordításként érvényesíthető kiadások (7+8+9+10) | G74: III. Ráfordításként érvényesíthető kiadások (7+8+9+10) | H74: III. Ráfordításként érvényesíthető kiadások (7+8+9+10) | I74: III. Ráfordításként érvényesíthető kiadások (7+8+9+10) | J74: III. Ráfordításként érvényesíthető kiadások (7+8+9+10) | K74: III. Ráfordításként érvényesíthető kiadások (7+8+9+10) | L74: III. Ráfordításként érvényesíthető kiadások (7+8+9+10) | M74: III. Ráfordításként érvényesíthető kiadások (7+8+9+10) | N74: III. Ráfordításként érvényesíthető kiadások (7+8+9+10) | O74: III. Ráfordításként érvényesíthető kiadások (7+8+9+10) | P74: III. Ráfordításként érvényesíthető kiadások (7+8+9+10) | Q74: III. Ráfordításként érvényesíthető kiadások (7+8+9+10) | R74: III. Ráfordításként érvényesíthető kiadások (7+8+9+10) | S74: III. Ráfordításként érvényesíthető kiadások (7+8+9+10) | T74: III. Ráfordításként érvényesíthető kiadások (7+8+9+10) | W74: =SUMIF('Terv-segédlet'!$B:$B,KvZsz!$A74,'Terv-segédlet'!E:E) -> 0 | X74: =SUMIF('Terv-segédlet'!$B:$B,KvZsz!$A74,'Terv-segédlet'!F:F) -> 0 | Y74: =SUMIF('Terv-segédlet'!$B:$B,KvZsz!$A74,'Terv-segédlet'!G:G) -> 0 | Z74: =SUMIF('Terv-segédlet'!$B:$B,KvZsz!$A74,'Terv-segédlet'!H:H) -> 0 | AA74: =SUMIF('Terv-segédlet'!$B:$B,KvZsz!$A74,'Terv-segédlet'!I:I) -> 0 | AB74: =SUMIF('Terv-segédlet'!$B:$B,KvZsz!$A74,'Terv-segédlet'!J:J) -> 0 | AC74: =SUMIF('Terv-segédlet'!$B:$B,KvZsz!$A74,'Terv-segédlet'!K:K) -> 0 | AL74: kiadás
A75: k073 | C75: 73 | E75: 8. Anyagjellegű ráfordítások (74+102+124+133+135) | W75: =SUMIF('Terv-segédlet'!$B:$B,KvZsz!$A75,'Terv-segédlet'!E:E) -> 0 | X75: =SUMIF('Terv-segédlet'!$B:$B,KvZsz!$A75,'Terv-segédlet'!F:F) -> 0 | Y75: =SUMIF('Terv-segédlet'!$B:$B,KvZsz!$A75,'Terv-segédlet'!G:G) -> 0 | Z75: =SUMIF('Terv-segédlet'!$B:$B,KvZsz!$A75,'Terv-segédlet'!H:H) -> 0 | AA75: =SUMIF('Terv-segédlet'!$B:$B,KvZsz!$A75,'Terv-segédlet'!I:I) -> 0 | AB75: =SUMIF('Terv-segédlet'!$B:$B,KvZsz!$A75,'Terv-segédlet'!J:J) -> 0 | AC75: =SUMIF('Terv-segédlet'!$B:$B,KvZsz!$A75,'Terv-segédlet'!K:K) -> 0 | AL75: kiadás | AN75: 51..53+81%
A76: k074 | C76: 74 | E76: a) Anyagköltség (75+79+83+87..90+96+99..101) | W76: =SUMIF('Terv-segédlet'!$B:$B,KvZsz!$A76,'Terv-segédlet'!E:E) -> 0 | X76: =SUMIF('Terv-segédlet'!$B:$B,KvZsz!$A76,'Terv-segédlet'!F:F) -> 0 | Y76: =SUMIF('Terv-segédlet'!$B:$B,KvZsz!$A76,'Terv-segédlet'!G:G) -> 0 | Z76: =SUMIF('Terv-segédlet'!$B:$B,KvZsz!$A76,'Terv-segédlet'!H:H) -> 0 | AA76: =SUMIF('Terv-segédlet'!$B:$B,KvZsz!$A76,'Terv-segédlet'!I:I) -> 0 | AB76: =SUMIF('Terv-segédlet'!$B:$B,KvZsz!$A76,'Terv-segédlet'!J:J) -> 0 | AC76: =SUMIF('Terv-segédlet'!$B:$B,KvZsz!$A76,'Terv-segédlet'!K:K) -> 0 | AL76: kiadás
A77: =CONCATENATE("k0",C77) -> k075 | C77: 75 | E77: -Gázszolgáltatás díja és egyéb fűtőanyag költsége (76..78) | G77: Alapanyagok, segédanyagok költsége | W77: =SUMIF('Terv-segédlet'!$B:$B,KvZsz!$A77,'Terv-segédlet'!E:E) -> 0 | X77: =SUMIF('Terv-segédlet'!$B:$B,KvZsz!$A77,'Terv-segédlet'!F:F) -> 0 | Y77: =SUMIF('Terv-segédlet'!$B:$B,KvZsz!$A77,'Terv-segédlet'!G:G) -> 0 | Z77: =SUMIF('Terv-segédlet'!$B:$B,KvZsz!$A77,'Terv-segédlet'!H:H) -> 0 | AA77: =SUMIF('Terv-segédlet'!$B:$B,KvZsz!$A77,'Terv-segédlet'!I:I) -> 0 | AB77: =SUMIF('Terv-segédlet'!$B:$B,KvZsz!$A77,'Terv-segédlet'!J:J) -> 0 | AC77: =SUMIF('Terv-segédlet'!$B:$B,KvZsz!$A77,'Terv-segédlet'!K:K) -> 0 | AL77: kiadás
A78: k076 | B78: * | C78: 76 | E78: Lelkészlakás | G78: Élelmiszerek költsége | U78: =SUMIF(kvátf.!E:E,KvZsz!A78,kvátf.!D:D) -> 42193 | V78: =SUM(W78:AC78) -> 70000 | W78: =SUMIF('Terv-segédlet'!$B:$B,KvZsz!$A78,'Terv-segédlet'!E:E) -> 70000 | X78: =SUMIF('Terv-segédlet'!$B:$B,KvZsz!$A78,'Terv-segédlet'!F:F) -> 0 | Y78: =SUMIF('Terv-segédlet'!$B:$B,KvZsz!$A78,'Terv-segédlet'!G:G) -> 0 | Z78: =SUMIF('Terv-segédlet'!$B:$B,KvZsz!$A78,'Terv-segédlet'!H:H) -> 0 | AA78: =SUMIF('Terv-segédlet'!$B:$B,KvZsz!$A78,'Terv-segédlet'!I:I) -> 0 | AB78: =SUMIF('Terv-segédlet'!$B:$B,KvZsz!$A78,'Terv-segédlet'!J:J) -> 0 | AC78: =SUMIF('Terv-segédlet'!$B:$B,KvZsz!$A78,'Terv-segédlet'!K:K) -> 0 | AD78: =SUM(AE78:AK78) -> 181844 | AE78: =SUMIF(V!$A:$A,$A78,V!$L:$L)+SUMIF(bank!$A:$A,AE$1&$A78,bank!$N:$N) -> 181844 | AF78: =SUMIF(Gy!$A:$A,$A78,Gy!$L:$L)+SUMIF(bank!$A:$A,AF$1&$A78,bank!$N:$N) -> 0 | AG78: =SUMIF(K!$A:$A,$A78,K!$L:$L)+SUMIF(bank!$A:$A,AG$1&$A78,bank!$N:$N) -> 0 | AH78: =SUMIF(Mk!$A:$A,$A78,Mk!$L:$L)+SUMIF(bank!$A:$A,AH$1&$A78,bank!$N:$N) -> 0 | AI78: =SUMIF(M!$A:$A,$A78,M!$L:$L)+SUMIF(bank!$A:$A,AI$1&$A78,bank!$N:$N) -> 0 | AJ78: =SUMIF(P!$A:$A,$A78,P!$L:$L)+SUMIF(bank!$A:$A,AJ$1&$A78,bank!$N:$N) -> 0 | AK78: =SUMIF(Zs!$A:$A,$A78,Zs!$L:$L)+SUMIF(bank!$A:$A,AK$1&$A78,bank!$N:$N) -> 0 | AL78: kiadás | AM78: 2.597771429 | AN78: lelkészlakás gáz és egyéb fűtőanyag költsége
A79: k077 | B79: * | C79: 77 | E79: Egyéb lakás | U79: =SUMIF(kvátf.!E:E,KvZsz!A79,kvátf.!D:D) -> 0 | V79: 0 | W79: =SUMIF('Terv-segédlet'!$B:$B,KvZsz!$A79,'Terv-segédlet'!E:E) -> 0 | X79: =SUMIF('Terv-segédlet'!$B:$B,KvZsz!$A79,'Terv-segédlet'!F:F) -> 0 | Y79: =SUMIF('Terv-segédlet'!$B:$B,KvZsz!$A79,'Terv-segédlet'!G:G) -> 0 | Z79: =SUMIF('Terv-segédlet'!$B:$B,KvZsz!$A79,'Terv-segédlet'!H:H) -> 0 | AA79: =SUMIF('Terv-segédlet'!$B:$B,KvZsz!$A79,'Terv-segédlet'!I:I) -> 0 | AB79: =SUMIF('Terv-segédlet'!$B:$B,KvZsz!$A79,'Terv-segédlet'!J:J) -> 0 | AC79: =SUMIF('Terv-segédlet'!$B:$B,KvZsz!$A79,'Terv-segédlet'!K:K) -> 0 | AD79: 0 | AE79: =SUMIF(V!$A:$A,$A79,V!$L:$L)+SUMIF(bank!$A:$A,AE$1&$A79,bank!$N:$N) -> 0 | AF79: =SUMIF(Gy!$A:$A,$A79,Gy!$L:$L)+SUMIF(bank!$A:$A,AF$1&$A79,bank!$N:$N) -> 0 | AG79: =SUMIF(K!$A:$A,$A79,K!$L:$L)+SUMIF(bank!$A:$A,AG$1&$A79,bank!$N:$N) -> 0 | AH79: =SUMIF(Mk!$A:$A,$A79,Mk!$L:$L)+SUMIF(bank!$A:$A,AH$1&$A79,bank!$N:$N) -> 0 | AI79: =SUMIF(M!$A:$A,$A79,M!$L:$L)+SUMIF(bank!$A:$A,AI$1&$A79,bank!$N:$N) -> 0 | AJ79: =SUMIF(P!$A:$A,$A79,P!$L:$L)+SUMIF(bank!$A:$A,AJ$1&$A79,bank!$N:$N) -> 0 | AK79: =SUMIF(Zs!$A:$A,$A79,Zs!$L:$L)+SUMIF(bank!$A:$A,AK$1&$A79,bank!$N:$N) -> 0 | AL79: kiadás | AN79: egyéb lakóingatlan gáz és egyéb fűtőanyag költsége
A80: k078 | B80: * | C80: 78 | E80: Más gyülekezeti helyiség | G80: Gyógyszerek költsége | U80: =SUMIF(kvátf.!E:E,KvZsz!A80,kvátf.!D:D) -> 135466 | V80: 165000 | W80: =SUMIF('Terv-segédlet'!$B:$B,KvZsz!$A80,'Terv-segédlet'!E:E) -> 0 | X80: =SUMIF('Terv-segédlet'!$B:$B,KvZsz!$A80,'Terv-segédlet'!F:F) -> 0 | Y80: =SUMIF('Terv-segédlet'!$B:$B,KvZsz!$A80,'Terv-segédlet'!G:G) -> 0 | Z80: =SUMIF('Terv-segédlet'!$B:$B,KvZsz!$A80,'Terv-segédlet'!H:H) -> 0 | AA80: =SUMIF('Terv-segédlet'!$B:$B,KvZsz!$A80,'Terv-segédlet'!I:I) -> 115000 | AB80: =SUMIF('Terv-segédlet'!$B:$B,KvZsz!$A80,'Terv-segédlet'!J:J) -> 25000 | AC80: =SUMIF('Terv-segédlet'!$B:$B,KvZsz!$A80,'Terv-segédlet'!K:K) -> 25000 | AD80: 161465 | AE80: =SUMIF(V!$A:$A,$A80,V!$L:$L)+SUMIF(bank!$A:$A,AE$1&$A80,bank!$N:$N) -> 0 | AF80: =SUMIF(Gy!$A:$A,$A80,Gy!$L:$L)+SUMIF(bank!$A:$A,AF$1&$A80,bank!$N:$N) -> 0 | AG80: =SUMIF(K!$A:$A,$A80,K!$L:$L)+SUMIF(bank!$A:$A,AG$1&$A80,bank!$N:$N) -> 0 | AH80: =SUMIF(Mk!$A:$A,$A80,Mk!$L:$L)+SUMIF(bank!$A:$A,AH$1&$A80,bank!$N:$N) -> 0 | AI80: =SUMIF(M!$A:$A,$A80,M!$L:$L)+SUMIF(bank!$A:$A,AI$1&$A80,bank!$N:$N) -> 138791 | AJ80: =SUMIF(P!$A:$A,$A80,P!$L:$L)+SUMIF(bank!$A:$A,AJ$1&$A80,bank!$N:$N) -> 16750 | AK80: =SUMIF(Zs!$A:$A,$A80,Zs!$L:$L)+SUMIF(bank!$A:$A,AK$1&$A80,bank!$N:$N) -> 5924 | AL80: kiadás | AM80: 0.9785757576 | AN80: egyéb gyülekezeti ingatlan gáz és egyéb fűtőanyag költsége (templom, gyülkezeti terem, üzlethelység, stb.)
A81: k079 | C81: 79 | E81: -Villamosenergia szolgáltatás díja (80..82) | G81: Vegyszerek költsége | W81: =SUMIF('Terv-segédlet'!$B:$B,KvZsz!$A81,'Terv-segédlet'!E:E) -> 0 | X81: =SUMIF('Terv-segédlet'!$B:$B,KvZsz!$A81,'Terv-segédlet'!F:F) -> 0 | Y81: =SUMIF('Terv-segédlet'!$B:$B,KvZsz!$A81,'Terv-segédlet'!G:G) -> 0 | Z81: =SUMIF('Terv-segédlet'!$B:$B,KvZsz!$A81,'Terv-segédlet'!H:H) -> 0 | AA81: =SUMIF('Terv-segédlet'!$B:$B,KvZsz!$A81,'Terv-segédlet'!I:I) -> 0 | AB81: =SUMIF('Terv-segédlet'!$B:$B,KvZsz!$A81,'Terv-segédlet'!J:J) -> 0 | AC81: =SUMIF('Terv-segédlet'!$B:$B,KvZsz!$A81,'Terv-segédlet'!K:K) -> 0 | AL81: kiadás
A82: =CONCATENATE("k0",C82) -> k080 | B82: * | C82: 80 | E82: Lelkészlakás | G82: Gázenergia szolgáltatás díja | U82: =SUMIF(kvátf.!E:E,KvZsz!A82,kvátf.!D:D) -> 20885 | V82: =SUM(W82:AC82) -> 22000 | W82: =SUMIF('Terv-segédlet'!$B:$B,KvZsz!$A82,'Terv-segédlet'!E:E) -> 22000 | X82: =SUMIF('Terv-segédlet'!$B:$B,KvZsz!$A82,'Terv-segédlet'!F:F) -> 0 | Y82: =SUMIF('Terv-segédlet'!$B:$B,KvZsz!$A82,'Terv-segédlet'!G:G) -> 0 | Z82: =SUMIF('Terv-segédlet'!$B:$B,KvZsz!$A82,'Terv-segédlet'!H:H) -> 0 | AA82: =SUMIF('Terv-segédlet'!$B:$B,KvZsz!$A82,'Terv-segédlet'!I:I) -> 0 | AB82: =SUMIF('Terv-segédlet'!$B:$B,KvZsz!$A82,'Terv-segédlet'!J:J) -> 0 | AC82: =SUMIF('Terv-segédlet'!$B:$B,KvZsz!$A82,'Terv-segédlet'!K:K) -> 0 | AD82: =SUM(AE82:AK82) -> 22093 | AE82: =SUMIF(V!$A:$A,$A82,V!$L:$L)+SUMIF(bank!$A:$A,AE$1&$A82,bank!$N:$N) -> 22093 | AF82: =SUMIF(Gy!$A:$A,$A82,Gy!$L:$L)+SUMIF(bank!$A:$A,AF$1&$A82,bank!$N:$N) -> 0 | AG82: =SUMIF(K!$A:$A,$A82,K!$L:$L)+SUMIF(bank!$A:$A,AG$1&$A82,bank!$N:$N) -> 0 | AH82: =SUMIF(Mk!$A:$A,$A82,Mk!$L:$L)+SUMIF(bank!$A:$A,AH$1&$A82,bank!$N:$N) -> 0 | AI82: =SUMIF(M!$A:$A,$A82,M!$L:$L)+SUMIF(bank!$A:$A,AI$1&$A82,bank!$N:$N) -> 0 | AJ82: =SUMIF(P!$A:$A,$A82,P!$L:$L)+SUMIF(bank!$A:$A,AJ$1&$A82,bank!$N:$N) -> 0 | AK82: =SUMIF(Zs!$A:$A,$A82,Zs!$L:$L)+SUMIF(bank!$A:$A,AK$1&$A82,bank!$N:$N) -> 0 | AL82: kiadás | AM82: 1.004227273 | AN82: lelkészlakás áramdíja
A83: k081 | B83: * | C83: 81 | E83: Egyéb lakás | U83: =SUMIF(kvátf.!E:E,KvZsz!A83,kvátf.!D:D) -> 0 | V83: 0 | W83: =SUMIF('Terv-segédlet'!$B:$B,KvZsz!$A83,'Terv-segédlet'!E:E) -> 0 | X83: =SUMIF('Terv-segédlet'!$B:$B,KvZsz!$A83,'Terv-segédlet'!F:F) -> 0 | Y83: =SUMIF('Terv-segédlet'!$B:$B,KvZsz!$A83,'Terv-segédlet'!G:G) -> 0 | Z83: =SUMIF('Terv-segédlet'!$B:$B,KvZsz!$A83,'Terv-segédlet'!H:H) -> 0 | AA83: =SUMIF('Terv-segédlet'!$B:$B,KvZsz!$A83,'Terv-segédlet'!I:I) -> 0 | AB83: =SUMIF('Terv-segédlet'!$B:$B,KvZsz!$A83,'Terv-segédlet'!J:J) -> 0 | AC83: =SUMIF('Terv-segédlet'!$B:$B,KvZsz!$A83,'Terv-segédlet'!K:K) -> 0 | AD83: 0 | AE83: =SUMIF(V!$A:$A,$A83,V!$L:$L)+SUMIF(bank!$A:$A,AE$1&$A83,bank!$N:$N) -> 0 | AF83: =SUMIF(Gy!$A:$A,$A83,Gy!$L:$L)+SUMIF(bank!$A:$A,AF$1&$A83,bank!$N:$N) -> 0 | AG83: =SUMIF(K!$A:$A,$A83,K!$L:$L)+SUMIF(bank!$A:$A,AG$1&$A83,bank!$N:$N) -> 0 | AH83: =SUMIF(Mk!$A:$A,$A83,Mk!$L:$L)+SUMIF(bank!$A:$A,AH$1&$A83,bank!$N:$N) -> 0 | AI83: =SUMIF(M!$A:$A,$A83,M!$L:$L)+SUMIF(bank!$A:$A,AI$1&$A83,bank!$N:$N) -> 0 | AJ83: =SUMIF(P!$A:$A,$A83,P!$L:$L)+SUMIF(bank!$A:$A,AJ$1&$A83,bank!$N:$N) -> 0 | AK83: =SUMIF(Zs!$A:$A,$A83,Zs!$L:$L)+SUMIF(bank!$A:$A,AK$1&$A83,bank!$N:$N) -> 0 | AL83: kiadás | AN83: egyéb lakóingatlan áramdíja
A84: k082 | B84: * | C84: 82 | E84: Más gyülekezeti helyiség | U84: =SUMIF(kvátf.!E:E,KvZsz!A84,kvátf.!D:D) -> 114982 | V84: 127000 | W84: =SUMIF('Terv-segédlet'!$B:$B,KvZsz!$A84,'Terv-segédlet'!E:E) -> 14000 | X84: =SUMIF('Terv-segédlet'!$B:$B,KvZsz!$A84,'Terv-segédlet'!F:F) -> 4000 | Y84: =SUMIF('Terv-segédlet'!$B:$B,KvZsz!$A84,'Terv-segédlet'!G:G) -> 75000 | Z84: =SUMIF('Terv-segédlet'!$B:$B,KvZsz!$A84,'Terv-segédlet'!H:H) -> 15000 | AA84: =SUMIF('Terv-segédlet'!$B:$B,KvZsz!$A84,'Terv-segédlet'!I:I) -> 15000 | AB84: =SUMIF('Terv-segédlet'!$B:$B,KvZsz!$A84,'Terv-segédlet'!J:J) -> 2000 | AC84: =SUMIF('Terv-segédlet'!$B:$B,KvZsz!$A84,'Terv-segédlet'!K:K) -> 2000 | AD84: 71883 | AE84: =SUMIF(V!$A:$A,$A84,V!$L:$L)+SUMIF(bank!$A:$A,AE$1&$A84,bank!$N:$N) -> 10363 | AF84: =SUMIF(Gy!$A:$A,$A84,Gy!$L:$L)+SUMIF(bank!$A:$A,AF$1&$A84,bank!$N:$N) -> 0 | AG84: =SUMIF(K!$A:$A,$A84,K!$L:$L)+SUMIF(bank!$A:$A,AG$1&$A84,bank!$N:$N) -> 27109 | AH84: =SUMIF(Mk!$A:$A,$A84,Mk!$L:$L)+SUMIF(bank!$A:$A,AH$1&$A84,bank!$N:$N) -> 17853 | AI84: =SUMIF(M!$A:$A,$A84,M!$L:$L)+SUMIF(bank!$A:$A,AI$1&$A84,bank!$N:$N) -> 11243 | AJ84: =SUMIF(P!$A:$A,$A84,P!$L:$L)+SUMIF(bank!$A:$A,AJ$1&$A84,bank!$N:$N) -> 3338 | AK84: =SUMIF(Zs!$A:$A,$A84,Zs!$L:$L)+SUMIF(bank!$A:$A,AK$1&$A84,bank!$N:$N) -> 1977 | AL84: kiadás | AM84: 0.566007874 | AN84: egyéb gyülekezeti ingatlan áramdíja (templom, gyülkezeti terem, üzlethelység, stb.)
A85: k083 | C85: 83 | E85: -Víz és csatorna szolgáltatás és egyéb közüzemi díja (84..86) | W85: =SUMIF('Terv-segédlet'!$B:$B,KvZsz!$A85,'Terv-segédlet'!E:E) -> 0 | X85: =SUMIF('Terv-segédlet'!$B:$B,KvZsz!$A85,'Terv-segédlet'!F:F) -> 0 | Y85: =SUMIF('Terv-segédlet'!$B:$B,KvZsz!$A85,'Terv-segédlet'!G:G) -> 0 | Z85: =SUMIF('Terv-segédlet'!$B:$B,KvZsz!$A85,'Terv-segédlet'!H:H) -> 0 | AA85: =SUMIF('Terv-segédlet'!$B:$B,KvZsz!$A85,'Terv-segédlet'!I:I) -> 0 | AB85: =SUMIF('Terv-segédlet'!$B:$B,KvZsz!$A85,'Terv-segédlet'!J:J) -> 0 | AC85: =SUMIF('Terv-segédlet'!$B:$B,KvZsz!$A85,'Terv-segédlet'!K:K) -> 0 | AL85: kiadás
A86: k084 | B86: * | C86: 84 | E86: Lelkészlakás | U86: =SUMIF(kvátf.!E:E,KvZsz!A86,kvátf.!D:D) -> 15639 | V86: =SUM(W86:AC86) -> 17000 | W86: =SUMIF('Terv-segédlet'!$B:$B,KvZsz!$A86,'Terv-segédlet'!E:E) -> 17000 | X86: =SUMIF('Terv-segédlet'!$B:$B,KvZsz!$A86,'Terv-segédlet'!F:F) -> 0 | Y86: =SUMIF('Terv-segédlet'!$B:$B,KvZsz!$A86,'Terv-segédlet'!G:G) -> 0 | Z86: =SUMIF('Terv-segédlet'!$B:$B,KvZsz!$A86,'Terv-segédlet'!H:H) -> 0 | AA86: =SUMIF('Terv-segédlet'!$B:$B,KvZsz!$A86,'Terv-segédlet'!I:I) -> 0 | AB86: =SUMIF('Terv-segédlet'!$B:$B,KvZsz!$A86,'Terv-segédlet'!J:J) -> 0 | AC86: =SUMIF('Terv-segédlet'!$B:$B,KvZsz!$A86,'Terv-segédlet'!K:K) -> 0 | AD86: =SUM(AE86:AK86) -> 9293 | AE86: =SUMIF(V!$A:$A,$A86,V!$L:$L)+SUMIF(bank!$A:$A,AE$1&$A86,bank!$N:$N) -> 9293 | AF86: =SUMIF(Gy!$A:$A,$A86,Gy!$L:$L)+SUMIF(bank!$A:$A,AF$1&$A86,bank!$N:$N) -> 0 | AG86: =SUMIF(K!$A:$A,$A86,K!$L:$L)+SUMIF(bank!$A:$A,AG$1&$A86,bank!$N:$N) -> 0 | AH86: =SUMIF(Mk!$A:$A,$A86,Mk!$L:$L)+SUMIF(bank!$A:$A,AH$1&$A86,bank!$N:$N) -> 0 | AI86: =SUMIF(M!$A:$A,$A86,M!$L:$L)+SUMIF(bank!$A:$A,AI$1&$A86,bank!$N:$N) -> 0 | AJ86: =SUMIF(P!$A:$A,$A86,P!$L:$L)+SUMIF(bank!$A:$A,AJ$1&$A86,bank!$N:$N) -> 0 | AK86: =SUMIF(Zs!$A:$A,$A86,Zs!$L:$L)+SUMIF(bank!$A:$A,AK$1&$A86,bank!$N:$N) -> 0 | AL86: kiadás | AM86: 0.5466470588 | AN86: lelkészlakás víz- és csatornadíja
A87: k085 | B87: * | C87: 85 | E87: Egyéb lakás | U87: =SUMIF(kvátf.!E:E,KvZsz!A87,kvátf.!D:D) -> 0 | V87: 0 | W87: =SUMIF('Terv-segédlet'!$B:$B,KvZsz!$A87,'Terv-segédlet'!E:E) -> 0 | X87: =SUMIF('Terv-segédlet'!$B:$B,KvZsz!$A87,'Terv-segédlet'!F:F) -> 0 | Y87: =SUMIF('Terv-segédlet'!$B:$B,KvZsz!$A87,'Terv-segédlet'!G:G) -> 0 | Z87: =SUMIF('Terv-segédlet'!$B:$B,KvZsz!$A87,'Terv-segédlet'!H:H) -> 0 | AA87: =SUMIF('Terv-segédlet'!$B:$B,KvZsz!$A87,'Terv-segédlet'!I:I) -> 0 | AB87: =SUMIF('Terv-segédlet'!$B:$B,KvZsz!$A87,'Terv-segédlet'!J:J) -> 0 | AC87: =SUMIF('Terv-segédlet'!$B:$B,KvZsz!$A87,'Terv-segédlet'!K:K) -> 0 | AD87: 20295 | AE87: =SUMIF(V!$A:$A,$A87,V!$L:$L)+SUMIF(bank!$A:$A,AE$1&$A87,bank!$N:$N) -> 0 | AF87: =SUMIF(Gy!$A:$A,$A87,Gy!$L:$L)+SUMIF(bank!$A:$A,AF$1&$A87,bank!$N:$N) -> 0 | AG87: =SUMIF(K!$A:$A,$A87,K!$L:$L)+SUMIF(bank!$A:$A,AG$1&$A87,bank!$N:$N) -> 0 | AH87: =SUMIF(Mk!$A:$A,$A87,Mk!$L:$L)+SUMIF(bank!$A:$A,AH$1&$A87,bank!$N:$N) -> 20295 | AI87: =SUMIF(M!$A:$A,$A87,M!$L:$L)+SUMIF(bank!$A:$A,AI$1&$A87,bank!$N:$N) -> 0 | AJ87: =SUMIF(P!$A:$A,$A87,P!$L:$L)+SUMIF(bank!$A:$A,AJ$1&$A87,bank!$N:$N) -> 0 | AK87: =SUMIF(Zs!$A:$A,$A87,Zs!$L:$L)+SUMIF(bank!$A:$A,AK$1&$A87,bank!$N:$N) -> 0 | AL87: kiadás | AN87: egyéb lakóingatlan víz- és csatornadíja
A88: k086 | B88: * | C88: 86 | E88: Más gyülekezeti helyiség | U88: =SUMIF(kvátf.!E:E,KvZsz!A88,kvátf.!D:D) -> 19653 | V88: 23000 | W88: =SUMIF('Terv-segédlet'!$B:$B,KvZsz!$A88,'Terv-segédlet'!E:E) -> 0 | X88: =SUMIF('Terv-segédlet'!$B:$B,KvZsz!$A88,'Terv-segédlet'!F:F) -> 0 | Y88: =SUMIF('Terv-segédlet'!$B:$B,KvZsz!$A88,'Terv-segédlet'!G:G) -> 1000 | Z88: =SUMIF('Terv-segédlet'!$B:$B,KvZsz!$A88,'Terv-segédlet'!H:H) -> 20000 | AA88: =SUMIF('Terv-segédlet'!$B:$B,KvZsz!$A88,'Terv-segédlet'!I:I) -> 2000 | AB88: =SUMIF('Terv-segédlet'!$B:$B,KvZsz!$A88,'Terv-segédlet'!J:J) -> 0 | AC88: =SUMIF('Terv-segédlet'!$B:$B,KvZsz!$A88,'Terv-segédlet'!K:K) -> 0 | AD88: 0 | AE88: =SUMIF(V!$A:$A,$A88,V!$L:$L)+SUMIF(bank!$A:$A,AE$1&$A88,bank!$N:$N) -> 0 | AF88: =SUMIF(Gy!$A:$A,$A88,Gy!$L:$L)+SUMIF(bank!$A:$A,AF$1&$A88,bank!$N:$N) -> 0 | AG88: =SUMIF(K!$A:$A,$A88,K!$L:$L)+SUMIF(bank!$A:$A,AG$1&$A88,bank!$N:$N) -> 0 | AH88: =SUMIF(Mk!$A:$A,$A88,Mk!$L:$L)+SUMIF(bank!$A:$A,AH$1&$A88,bank!$N:$N) -> 0 | AI88: =SUMIF(M!$A:$A,$A88,M!$L:$L)+SUMIF(bank!$A:$A,AI$1&$A88,bank!$N:$N) -> 0 | AJ88: =SUMIF(P!$A:$A,$A88,P!$L:$L)+SUMIF(bank!$A:$A,AJ$1&$A88,bank!$N:$N) -> 0 | AK88: =SUMIF(Zs!$A:$A,$A88,Zs!$L:$L)+SUMIF(bank!$A:$A,AK$1&$A88,bank!$N:$N) -> 0 | AL88: kiadás | AM88: 0 | AN88: egyéb gyülekezeti ingatlan víz- és csatornadíja (templom, gyülkezeti terem, üzlethelység, stb.)
A89: k087 | B89: * | C89: 87 | E89: -Munkaruha költsége | U89: =SUMIF(kvátf.!E:E,KvZsz!A89,kvátf.!D:D) -> 0 | V89: 0 | W89: =SUMIF('Terv-segédlet'!$B:$B,KvZsz!$A89,'Terv-segédlet'!E:E) -> 0 | X89: =SUMIF('Terv-segédlet'!$B:$B,KvZsz!$A89,'Terv-segédlet'!F:F) -> 0 | Y89: =SUMIF('Terv-segédlet'!$B:$B,KvZsz!$A89,'Terv-segédlet'!G:G) -> 0 | Z89: =SUMIF('Terv-segédlet'!$B:$B,KvZsz!$A89,'Terv-segédlet'!H:H) -> 0 | AA89: =SUMIF('Terv-segédlet'!$B:$B,KvZsz!$A89,'Terv-segédlet'!I:I) -> 0 | AB89: =SUMIF('Terv-segédlet'!$B:$B,KvZsz!$A89,'Terv-segédlet'!J:J) -> 0 | AC89: =SUMIF('Terv-segédlet'!$B:$B,KvZsz!$A89,'Terv-segédlet'!K:K) -> 0 | AD89: 0 | AE89: =SUMIF(V!$A:$A,$A89,V!$L:$L)+SUMIF(bank!$A:$A,AE$1&$A89,bank!$N:$N) -> 0 | AF89: =SUMIF(Gy!$A:$A,$A89,Gy!$L:$L)+SUMIF(bank!$A:$A,AF$1&$A89,bank!$N:$N) -> 0 | AG89: =SUMIF(K!$A:$A,$A89,K!$L:$L)+SUMIF(bank!$A:$A,AG$1&$A89,bank!$N:$N) -> 0 | AH89: =SUMIF(Mk!$A:$A,$A89,Mk!$L:$L)+SUMIF(bank!$A:$A,AH$1&$A89,bank!$N:$N) -> 0 | AI89: =SUMIF(M!$A:$A,$A89,M!$L:$L)+SUMIF(bank!$A:$A,AI$1&$A89,bank!$N:$N) -> 0 | AJ89: =SUMIF(P!$A:$A,$A89,P!$L:$L)+SUMIF(bank!$A:$A,AJ$1&$A89,bank!$N:$N) -> 0 | AK89: =SUMIF(Zs!$A:$A,$A89,Zs!$L:$L)+SUMIF(bank!$A:$A,AK$1&$A89,bank!$N:$N) -> 0 | AL89: kiadás | AN89: pl. Lutherkabát, baret, egyéb alkalmazottnak biztosított munkaruha
A90: k088 | B90: * | C90: 88 | E90: -Egy éven belül elhasználódó eszközök, szerszámok költsége | U90: =SUMIF(kvátf.!E:E,KvZsz!A90,kvátf.!D:D) -> 0 | V90: 0 | W90: =SUMIF('Terv-segédlet'!$B:$B,KvZsz!$A90,'Terv-segédlet'!E:E) -> 0 | X90: =SUMIF('Terv-segédlet'!$B:$B,KvZsz!$A90,'Terv-segédlet'!F:F) -> 0 | Y90: =SUMIF('Terv-segédlet'!$B:$B,KvZsz!$A90,'Terv-segédlet'!G:G) -> 0 | Z90: =SUMIF('Terv-segédlet'!$B:$B,KvZsz!$A90,'Terv-segédlet'!H:H) -> 0 | AA90: =SUMIF('Terv-segédlet'!$B:$B,KvZsz!$A90,'Terv-segédlet'!I:I) -> 0 | AB90: =SUMIF('Terv-segédlet'!$B:$B,KvZsz!$A90,'Terv-segédlet'!J:J) -> 0 | AC90: =SUMIF('Terv-segédlet'!$B:$B,KvZsz!$A90,'Terv-segédlet'!K:K) -> 0 | AD90: 13200 | AE90: =SUMIF(V!$A:$A,$A90,V!$L:$L)+SUMIF(bank!$A:$A,AE$1&$A90,bank!$N:$N) -> 0 | AF90: =SUMIF(Gy!$A:$A,$A90,Gy!$L:$L)+SUMIF(bank!$A:$A,AF$1&$A90,bank!$N:$N) -> 0 | AG90: =SUMIF(K!$A:$A,$A90,K!$L:$L)+SUMIF(bank!$A:$A,AG$1&$A90,bank!$N:$N) -> 0 | AH90: =SUMIF(Mk!$A:$A,$A90,Mk!$L:$L)+SUMIF(bank!$A:$A,AH$1&$A90,bank!$N:$N) -> 0 | AI90: =SUMIF(M!$A:$A,$A90,M!$L:$L)+SUMIF(bank!$A:$A,AI$1&$A90,bank!$N:$N) -> 13200 | AJ90: =SUMIF(P!$A:$A,$A90,P!$L:$L)+SUMIF(bank!$A:$A,AJ$1&$A90,bank!$N:$N) -> 0 | AK90: =SUMIF(Zs!$A:$A,$A90,Zs!$L:$L)+SUMIF(bank!$A:$A,AK$1&$A90,bank!$N:$N) -> 0 | AL90: kiadás | AN90: kéziszerszámok (kalapács, csavarhúzó), konyhai eszközök (tányér, pohár, evőeszköz), stb.
A91: k089 | B91: * | C91: 89 | E91: - Irodaszerek, nyomtatványok költsége | U91: =SUMIF(kvátf.!E:E,KvZsz!A91,kvátf.!D:D) -> 0 | V91: 20000 | W91: =SUMIF('Terv-segédlet'!$B:$B,KvZsz!$A91,'Terv-segédlet'!E:E) -> 20000 | X91: =SUMIF('Terv-segédlet'!$B:$B,KvZsz!$A91,'Terv-segédlet'!F:F) -> 0 | Y91: =SUMIF('Terv-segédlet'!$B:$B,KvZsz!$A91,'Terv-segédlet'!G:G) -> 0 | Z91: =SUMIF('Terv-segédlet'!$B:$B,KvZsz!$A91,'Terv-segédlet'!H:H) -> 0 | AA91: =SUMIF('Terv-segédlet'!$B:$B,KvZsz!$A91,'Terv-segédlet'!I:I) -> 0 | AB91: =SUMIF('Terv-segédlet'!$B:$B,KvZsz!$A91,'Terv-segédlet'!J:J) -> 0 | AC91: =SUMIF('Terv-segédlet'!$B:$B,KvZsz!$A91,'Terv-segédlet'!K:K) -> 0 | AD91: 1100 | AE91: =SUMIF(V!$A:$A,$A91,V!$L:$L)+SUMIF(bank!$A:$A,AE$1&$A91,bank!$N:$N) -> 1100 | AF91: =SUMIF(Gy!$A:$A,$A91,Gy!$L:$L)+SUMIF(bank!$A:$A,AF$1&$A91,bank!$N:$N) -> 0 | AG91: =SUMIF(K!$A:$A,$A91,K!$L:$L)+SUMIF(bank!$A:$A,AG$1&$A91,bank!$N:$N) -> 0 | AH91: =SUMIF(Mk!$A:$A,$A91,Mk!$L:$L)+SUMIF(bank!$A:$A,AH$1&$A91,bank!$N:$N) -> 0 | AI91: =SUMIF(M!$A:$A,$A91,M!$L:$L)+SUMIF(bank!$A:$A,AI$1&$A91,bank!$N:$N) -> 0 | AJ91: =SUMIF(P!$A:$A,$A91,P!$L:$L)+SUMIF(bank!$A:$A,AJ$1&$A91,bank!$N:$N) -> 0 | AK91: =SUMIF(Zs!$A:$A,$A91,Zs!$L:$L)+SUMIF(bank!$A:$A,AK$1&$A91,bank!$N:$N) -> 0 | AL91: kiadás | AM91: 0.055 | AN91: fénymásoló papír, toll, pénztárkönyv, számlatömb, kiküldetési rendelvény, stb.
A92: k090 | C92: 90 | E92: -Fenntartási, karbantartási anyagok költsége (91..95) | W92: =SUMIF('Terv-segédlet'!$B:$B,KvZsz!$A92,'Terv-segédlet'!E:E) -> 0 | X92: =SUMIF('Terv-segédlet'!$B:$B,KvZsz!$A92,'Terv-segédlet'!F:F) -> 0 | Y92: =SUMIF('Terv-segédlet'!$B:$B,KvZsz!$A92,'Terv-segédlet'!G:G) -> 0 | Z92: =SUMIF('Terv-segédlet'!$B:$B,KvZsz!$A92,'Terv-segédlet'!H:H) -> 0 | AA92: =SUMIF('Terv-segédlet'!$B:$B,KvZsz!$A92,'Terv-segédlet'!I:I) -> 0 | AB92: =SUMIF('Terv-segédlet'!$B:$B,KvZsz!$A92,'Terv-segédlet'!J:J) -> 0 | AC92: =SUMIF('Terv-segédlet'!$B:$B,KvZsz!$A92,'Terv-segédlet'!K:K) -> 0 | AL92: kiadás
A93: k091 | B93: * | C93: 91 | E93: Lelkészlakás | U93: =SUMIF(kvátf.!E:E,KvZsz!A93,kvátf.!D:D) -> 0 | V93: =SUM(W93:AC93) -> 50000 | W93: =SUMIF('Terv-segédlet'!$B:$B,KvZsz!$A93,'Terv-segédlet'!E:E) -> 50000 | X93: =SUMIF('Terv-segédlet'!$B:$B,KvZsz!$A93,'Terv-segédlet'!F:F) -> 0 | Y93: =SUMIF('Terv-segédlet'!$B:$B,KvZsz!$A93,'Terv-segédlet'!G:G) -> 0 | Z93: =SUMIF('Terv-segédlet'!$B:$B,KvZsz!$A93,'Terv-segédlet'!H:H) -> 0 | AA93: =SUMIF('Terv-segédlet'!$B:$B,KvZsz!$A93,'Terv-segédlet'!I:I) -> 0 | AB93: =SUMIF('Terv-segédlet'!$B:$B,KvZsz!$A93,'Terv-segédlet'!J:J) -> 0 | AC93: =SUMIF('Terv-segédlet'!$B:$B,KvZsz!$A93,'Terv-segédlet'!K:K) -> 0 | AD93: =SUM(AE93:AK93) -> 12900 | AE93: =SUMIF(V!$A:$A,$A93,V!$L:$L)+SUMIF(bank!$A:$A,AE$1&$A93,bank!$N:$N) -> 12900 | AF93: =SUMIF(Gy!$A:$A,$A93,Gy!$L:$L)+SUMIF(bank!$A:$A,AF$1&$A93,bank!$N:$N) -> 0 | AG93: =SUMIF(K!$A:$A,$A93,K!$L:$L)+SUMIF(bank!$A:$A,AG$1&$A93,bank!$N:$N) -> 0 | AH93: =SUMIF(Mk!$A:$A,$A93,Mk!$L:$L)+SUMIF(bank!$A:$A,AH$1&$A93,bank!$N:$N) -> 0 | AI93: =SUMIF(M!$A:$A,$A93,M!$L:$L)+SUMIF(bank!$A:$A,AI$1&$A93,bank!$N:$N) -> 0 | AJ93: =SUMIF(P!$A:$A,$A93,P!$L:$L)+SUMIF(bank!$A:$A,AJ$1&$A93,bank!$N:$N) -> 0 | AK93: =SUMIF(Zs!$A:$A,$A93,Zs!$L:$L)+SUMIF(bank!$A:$A,AK$1&$A93,bank!$N:$N) -> 0 | AL93: kiadás | AM93: 0.258 | AN93: lelkészlakás - karbantartási munkához vásárolt anyag (szolgáltatás nélkül) (festék, csaptelep, stb.)
A94: k092 | B94: * | C94: 92 | E94: Egyéb lakás | U94: =SUMIF(kvátf.!E:E,KvZsz!A94,kvátf.!D:D) -> 0 | V94: 0 | W94: =SUMIF('Terv-segédlet'!$B:$B,KvZsz!$A94,'Terv-segédlet'!E:E) -> 0 | X94: =SUMIF('Terv-segédlet'!$B:$B,KvZsz!$A94,'Terv-segédlet'!F:F) -> 0 | Y94: =SUMIF('Terv-segédlet'!$B:$B,KvZsz!$A94,'Terv-segédlet'!G:G) -> 0 | Z94: =SUMIF('Terv-segédlet'!$B:$B,KvZsz!$A94,'Terv-segédlet'!H:H) -> 0 | AA94: =SUMIF('Terv-segédlet'!$B:$B,KvZsz!$A94,'Terv-segédlet'!I:I) -> 0 | AB94: =SUMIF('Terv-segédlet'!$B:$B,KvZsz!$A94,'Terv-segédlet'!J:J) -> 0 | AC94: =SUMIF('Terv-segédlet'!$B:$B,KvZsz!$A94,'Terv-segédlet'!K:K) -> 0 | AD94: 2900 | AE94: =SUMIF(V!$A:$A,$A94,V!$L:$L)+SUMIF(bank!$A:$A,AE$1&$A94,bank!$N:$N) -> 0 | AF94: =SUMIF(Gy!$A:$A,$A94,Gy!$L:$L)+SUMIF(bank!$A:$A,AF$1&$A94,bank!$N:$N) -> 0 | AG94: =SUMIF(K!$A:$A,$A94,K!$L:$L)+SUMIF(bank!$A:$A,AG$1&$A94,bank!$N:$N) -> 0 | AH94: =SUMIF(Mk!$A:$A,$A94,Mk!$L:$L)+SUMIF(bank!$A:$A,AH$1&$A94,bank!$N:$N) -> 0 | AI94: =SUMIF(M!$A:$A,$A94,M!$L:$L)+SUMIF(bank!$A:$A,AI$1&$A94,bank!$N:$N) -> 2900 | AJ94: =SUMIF(P!$A:$A,$A94,P!$L:$L)+SUMIF(bank!$A:$A,AJ$1&$A94,bank!$N:$N) -> 0 | AK94: =SUMIF(Zs!$A:$A,$A94,Zs!$L:$L)+SUMIF(bank!$A:$A,AK$1&$A94,bank!$N:$N) -> 0 | AL94: kiadás | AN94: egyéb lakóingatlan - karbantartási munkához vásárolt anyag (szolgáltatás nélkül)
A95: k093 | B95: * | C95: 93 | E95: Más gyülekezeti helyiség | U95: =SUMIF(kvátf.!E:E,KvZsz!A95,kvátf.!D:D) -> 0 | V95: 0 | W95: =SUMIF('Terv-segédlet'!$B:$B,KvZsz!$A95,'Terv-segédlet'!E:E) -> 0 | X95: =SUMIF('Terv-segédlet'!$B:$B,KvZsz!$A95,'Terv-segédlet'!F:F) -> 0 | Y95: =SUMIF('Terv-segédlet'!$B:$B,KvZsz!$A95,'Terv-segédlet'!G:G) -> 0 | Z95: =SUMIF('Terv-segédlet'!$B:$B,KvZsz!$A95,'Terv-segédlet'!H:H) -> 0 | AA95: =SUMIF('Terv-segédlet'!$B:$B,KvZsz!$A95,'Terv-segédlet'!I:I) -> 0 | AB95: =SUMIF('Terv-segédlet'!$B:$B,KvZsz!$A95,'Terv-segédlet'!J:J) -> 0 | AC95: =SUMIF('Terv-segédlet'!$B:$B,KvZsz!$A95,'Terv-segédlet'!K:K) -> 0 | AD95: 208320 | AE95: =SUMIF(V!$A:$A,$A95,V!$L:$L)+SUMIF(bank!$A:$A,AE$1&$A95,bank!$N:$N) -> 0 | AF95: =SUMIF(Gy!$A:$A,$A95,Gy!$L:$L)+SUMIF(bank!$A:$A,AF$1&$A95,bank!$N:$N) -> 0 | AG95: =SUMIF(K!$A:$A,$A95,K!$L:$L)+SUMIF(bank!$A:$A,AG$1&$A95,bank!$N:$N) -> 28450 | AH95: =SUMIF(Mk!$A:$A,$A95,Mk!$L:$L)+SUMIF(bank!$A:$A,AH$1&$A95,bank!$N:$N) -> 100680 | AI95: =SUMIF(M!$A:$A,$A95,M!$L:$L)+SUMIF(bank!$A:$A,AI$1&$A95,bank!$N:$N) -> 79190 | AJ95: =SUMIF(P!$A:$A,$A95,P!$L:$L)+SUMIF(bank!$A:$A,AJ$1&$A95,bank!$N:$N) -> 0 | AK95: =SUMIF(Zs!$A:$A,$A95,Zs!$L:$L)+SUMIF(bank!$A:$A,AK$1&$A95,bank!$N:$N) -> 0 | AL95: kiadás | AN95: egyéb gyülekezeti ingatlan (templom, gyülekezeti terem, üzlethelység, stb.) - karbantartási munkához vásárolt anyag (szolgáltatás nélkül)
A96: k094 | B96: * | C96: 94 | E96: Gépjárművek | U96: =SUMIF(kvátf.!E:E,KvZsz!A96,kvátf.!D:D) -> 140690 | V96: 0 | W96: =SUMIF('Terv-segédlet'!$B:$B,KvZsz!$A96,'Terv-segédlet'!E:E) -> 0 | X96: =SUMIF('Terv-segédlet'!$B:$B,KvZsz!$A96,'Terv-segédlet'!F:F) -> 0 | Y96: =SUMIF('Terv-segédlet'!$B:$B,KvZsz!$A96,'Terv-segédlet'!G:G) -> 0 | Z96: =SUMIF('Terv-segédlet'!$B:$B,KvZsz!$A96,'Terv-segédlet'!H:H) -> 0 | AA96: =SUMIF('Terv-segédlet'!$B:$B,KvZsz!$A96,'Terv-segédlet'!I:I) -> 0 | AB96: =SUMIF('Terv-segédlet'!$B:$B,KvZsz!$A96,'Terv-segédlet'!J:J) -> 0 | AC96: =SUMIF('Terv-segédlet'!$B:$B,KvZsz!$A96,'Terv-segédlet'!K:K) -> 0 | AD96: 8835 | AE96: =SUMIF(V!$A:$A,$A96,V!$L:$L)+SUMIF(bank!$A:$A,AE$1&$A96,bank!$N:$N) -> 8835 | AF96: =SUMIF(Gy!$A:$A,$A96,Gy!$L:$L)+SUMIF(bank!$A:$A,AF$1&$A96,bank!$N:$N) -> 0 | AG96: =SUMIF(K!$A:$A,$A96,K!$L:$L)+SUMIF(bank!$A:$A,AG$1&$A96,bank!$N:$N) -> 0 | AH96: =SUMIF(Mk!$A:$A,$A96,Mk!$L:$L)+SUMIF(bank!$A:$A,AH$1&$A96,bank!$N:$N) -> 0 | AI96: =SUMIF(M!$A:$A,$A96,M!$L:$L)+SUMIF(bank!$A:$A,AI$1&$A96,bank!$N:$N) -> 0 | AJ96: =SUMIF(P!$A:$A,$A96,P!$L:$L)+SUMIF(bank!$A:$A,AJ$1&$A96,bank!$N:$N) -> 0 | AK96: =SUMIF(Zs!$A:$A,$A96,Zs!$L:$L)+SUMIF(bank!$A:$A,AK$1&$A96,bank!$N:$N) -> 0 | AL96: kiadás | AN96: gépjármű - karbantartási munkához vásárolt anyag (szolgáltatás nélkül) (olaj, izzó, stb.)
A97: k095 | B97: * | C97: 95 | E97: Egyéb | U97: =SUMIF(kvátf.!E:E,KvZsz!A97,kvátf.!D:D) -> 346406 | V97: 0 | W97: =SUMIF('Terv-segédlet'!$B:$B,KvZsz!$A97,'Terv-segédlet'!E:E) -> 0 | X97: =SUMIF('Terv-segédlet'!$B:$B,KvZsz!$A97,'Terv-segédlet'!F:F) -> 0 | Y97: =SUMIF('Terv-segédlet'!$B:$B,KvZsz!$A97,'Terv-segédlet'!G:G) -> 0 | Z97: =SUMIF('Terv-segédlet'!$B:$B,KvZsz!$A97,'Terv-segédlet'!H:H) -> 0 | AA97: =SUMIF('Terv-segédlet'!$B:$B,KvZsz!$A97,'Terv-segédlet'!I:I) -> 0 | AB97: =SUMIF('Terv-segédlet'!$B:$B,KvZsz!$A97,'Terv-segédlet'!J:J) -> 0 | AC97: =SUMIF('Terv-segédlet'!$B:$B,KvZsz!$A97,'Terv-segédlet'!K:K) -> 0 | AD97: 0 | AE97: =SUMIF(V!$A:$A,$A97,V!$L:$L)+SUMIF(bank!$A:$A,AE$1&$A97,bank!$N:$N) -> 0 | AF97: =SUMIF(Gy!$A:$A,$A97,Gy!$L:$L)+SUMIF(bank!$A:$A,AF$1&$A97,bank!$N:$N) -> 0 | AG97: =SUMIF(K!$A:$A,$A97,K!$L:$L)+SUMIF(bank!$A:$A,AG$1&$A97,bank!$N:$N) -> 0 | AH97: =SUMIF(Mk!$A:$A,$A97,Mk!$L:$L)+SUMIF(bank!$A:$A,AH$1&$A97,bank!$N:$N) -> 0 | AI97: =SUMIF(M!$A:$A,$A97,M!$L:$L)+SUMIF(bank!$A:$A,AI$1&$A97,bank!$N:$N) -> 0 | AJ97: =SUMIF(P!$A:$A,$A97,P!$L:$L)+SUMIF(bank!$A:$A,AJ$1&$A97,bank!$N:$N) -> 0 | AK97: =SUMIF(Zs!$A:$A,$A97,Zs!$L:$L)+SUMIF(bank!$A:$A,AK$1&$A97,bank!$N:$N) -> 0 | AL97: kiadás | AN97: egyéb eszközök, berendezések, felszerelések - karbantartási munkához vásárolt anyag (szolgáltatás nélkül)
A98: k096 | C98: 96 | E98: -Üzemanyag költség (97..98) | W98: =SUMIF('Terv-segédlet'!$B:$B,KvZsz!$A98,'Terv-segédlet'!E:E) -> 0 | X98: =SUMIF('Terv-segédlet'!$B:$B,KvZsz!$A98,'Terv-segédlet'!F:F) -> 0 | Y98: =SUMIF('Terv-segédlet'!$B:$B,KvZsz!$A98,'Terv-segédlet'!G:G) -> 0 | Z98: =SUMIF('Terv-segédlet'!$B:$B,KvZsz!$A98,'Terv-segédlet'!H:H) -> 0 | AA98: =SUMIF('Terv-segédlet'!$B:$B,KvZsz!$A98,'Terv-segédlet'!I:I) -> 0 | AB98: =SUMIF('Terv-segédlet'!$B:$B,KvZsz!$A98,'Terv-segédlet'!J:J) -> 0 | AC98: =SUMIF('Terv-segédlet'!$B:$B,KvZsz!$A98,'Terv-segédlet'!K:K) -> 0 | AL98: kiadás
A99: k097 | B99: * | C99: 97 | E99: Lelkészi szolgálati gépjármű | G99: Villamos energia szolgáltatás díja | U99: =SUMIF(kvátf.!E:E,KvZsz!A99,kvátf.!D:D) -> 279745 | V99: =SUM(W99:AC99) -> 336000 | W99: =SUMIF('Terv-segédlet'!$B:$B,KvZsz!$A99,'Terv-segédlet'!E:E) -> 336000 | X99: =SUMIF('Terv-segédlet'!$B:$B,KvZsz!$A99,'Terv-segédlet'!F:F) -> 0 | Y99: =SUMIF('Terv-segédlet'!$B:$B,KvZsz!$A99,'Terv-segédlet'!G:G) -> 0 | Z99: =SUMIF('Terv-segédlet'!$B:$B,KvZsz!$A99,'Terv-segédlet'!H:H) -> 0 | AA99: =SUMIF('Terv-segédlet'!$B:$B,KvZsz!$A99,'Terv-segédlet'!I:I) -> 0 | AB99: =SUMIF('Terv-segédlet'!$B:$B,KvZsz!$A99,'Terv-segédlet'!J:J) -> 0 | AC99: =SUMIF('Terv-segédlet'!$B:$B,KvZsz!$A99,'Terv-segédlet'!K:K) -> 0 | AD99: =SUM(AE99:AK99) -> 282035 | AE99: =SUMIF(V!$A:$A,$A99,V!$L:$L)+SUMIF(bank!$A:$A,AE$1&$A99,bank!$N:$N) -> 282035 | AF99: =SUMIF(Gy!$A:$A,$A99,Gy!$L:$L)+SUMIF(bank!$A:$A,AF$1&$A99,bank!$N:$N) -> 0 | AG99: =SUMIF(K!$A:$A,$A99,K!$L:$L)+SUMIF(bank!$A:$A,AG$1&$A99,bank!$N:$N) -> 0 | AH99: =SUMIF(Mk!$A:$A,$A99,Mk!$L:$L)+SUMIF(bank!$A:$A,AH$1&$A99,bank!$N:$N) -> 0 | AI99: =SUMIF(M!$A:$A,$A99,M!$L:$L)+SUMIF(bank!$A:$A,AI$1&$A99,bank!$N:$N) -> 0 | AJ99: =SUMIF(P!$A:$A,$A99,P!$L:$L)+SUMIF(bank!$A:$A,AJ$1&$A99,bank!$N:$N) -> 0 | AK99: =SUMIF(Zs!$A:$A,$A99,Zs!$L:$L)+SUMIF(bank!$A:$A,AK$1&$A99,bank!$N:$N) -> 0 | AL99: kiadás | AM99: 0.839389881 | AN99: lelkész által használt egyházközségi tulajdonú, vagy egyházközség által üzembentartott gépkocsi üzemanyagköltsége, a gyülekezet nevére szóló számla alapján
A100: k098 | B100: * | C100: 98 | E100: Nem lelkészi gépjármű | G100: Vízdíj | U100: =SUMIF(kvátf.!E:E,KvZsz!A100,kvátf.!D:D) -> 0 | V100: 0 | W100: =SUMIF('Terv-segédlet'!$B:$B,KvZsz!$A100,'Terv-segédlet'!E:E) -> 0 | X100: =SUMIF('Terv-segédlet'!$B:$B,KvZsz!$A100,'Terv-segédlet'!F:F) -> 0 | Y100: =SUMIF('Terv-segédlet'!$B:$B,KvZsz!$A100,'Terv-segédlet'!G:G) -> 0 | Z100: =SUMIF('Terv-segédlet'!$B:$B,KvZsz!$A100,'Terv-segédlet'!H:H) -> 0 | AA100: =SUMIF('Terv-segédlet'!$B:$B,KvZsz!$A100,'Terv-segédlet'!I:I) -> 0 | AB100: =SUMIF('Terv-segédlet'!$B:$B,KvZsz!$A100,'Terv-segédlet'!J:J) -> 0 | AC100: =SUMIF('Terv-segédlet'!$B:$B,KvZsz!$A100,'Terv-segédlet'!K:K) -> 0 | AD100: 0 | AE100: =SUMIF(V!$A:$A,$A100,V!$L:$L)+SUMIF(bank!$A:$A,AE$1&$A100,bank!$N:$N) -> 0 | AF100: =SUMIF(Gy!$A:$A,$A100,Gy!$L:$L)+SUMIF(bank!$A:$A,AF$1&$A100,bank!$N:$N) -> 0 | AG100: =SUMIF(K!$A:$A,$A100,K!$L:$L)+SUMIF(bank!$A:$A,AG$1&$A100,bank!$N:$N) -> 0 | AH100: =SUMIF(Mk!$A:$A,$A100,Mk!$L:$L)+SUMIF(bank!$A:$A,AH$1&$A100,bank!$N:$N) -> 0 | AI100: =SUMIF(M!$A:$A,$A100,M!$L:$L)+SUMIF(bank!$A:$A,AI$1&$A100,bank!$N:$N) -> 0 | AJ100: =SUMIF(P!$A:$A,$A100,P!$L:$L)+SUMIF(bank!$A:$A,AJ$1&$A100,bank!$N:$N) -> 0 | AK100: =SUMIF(Zs!$A:$A,$A100,Zs!$L:$L)+SUMIF(bank!$A:$A,AK$1&$A100,bank!$N:$N) -> 0 | AL100: kiadás | AN100: nem lelkész által használt egyházközségi tulajdonú, vagy egyházközség által üzembentartott gépkocsi üzemanyagköltsége, a gyülekezet nevére szóló számla alapján
A101: k099 | B101: * | C101: 99 | E101: -Könyvtári könyvek, szakkönyvek | G101: Rezsianyag költség | U101: =SUMIF(kvátf.!E:E,KvZsz!A101,kvátf.!D:D) -> 0 | V101: 5000 | W101: =SUMIF('Terv-segédlet'!$B:$B,KvZsz!$A101,'Terv-segédlet'!E:E) -> 5000 | X101: =SUMIF('Terv-segédlet'!$B:$B,KvZsz!$A101,'Terv-segédlet'!F:F) -> 0 | Y101: =SUMIF('Terv-segédlet'!$B:$B,KvZsz!$A101,'Terv-segédlet'!G:G) -> 0 | Z101: =SUMIF('Terv-segédlet'!$B:$B,KvZsz!$A101,'Terv-segédlet'!H:H) -> 0 | AA101: =SUMIF('Terv-segédlet'!$B:$B,KvZsz!$A101,'Terv-segédlet'!I:I) -> 0 | AB101: =SUMIF('Terv-segédlet'!$B:$B,KvZsz!$A101,'Terv-segédlet'!J:J) -> 0 | AC101: =SUMIF('Terv-segédlet'!$B:$B,KvZsz!$A101,'Terv-segédlet'!K:K) -> 0 | AD101: 0 | AE101: =SUMIF(V!$A:$A,$A101,V!$L:$L)+SUMIF(bank!$A:$A,AE$1&$A101,bank!$N:$N) -> 0 | AF101: =SUMIF(Gy!$A:$A,$A101,Gy!$L:$L)+SUMIF(bank!$A:$A,AF$1&$A101,bank!$N:$N) -> 0 | AG101: =SUMIF(K!$A:$A,$A101,K!$L:$L)+SUMIF(bank!$A:$A,AG$1&$A101,bank!$N:$N) -> 0 | AH101: =SUMIF(Mk!$A:$A,$A101,Mk!$L:$L)+SUMIF(bank!$A:$A,AH$1&$A101,bank!$N:$N) -> 0 | AI101: =SUMIF(M!$A:$A,$A101,M!$L:$L)+SUMIF(bank!$A:$A,AI$1&$A101,bank!$N:$N) -> 0 | AJ101: =SUMIF(P!$A:$A,$A101,P!$L:$L)+SUMIF(bank!$A:$A,AJ$1&$A101,bank!$N:$N) -> 0 | AK101: =SUMIF(Zs!$A:$A,$A101,Zs!$L:$L)+SUMIF(bank!$A:$A,AK$1&$A101,bank!$N:$N) -> 0 | AL101: kiadás | AM101: 0 | AN101: egyházközségi könyvtár számára vásárolt kiadványok
A102: =CONCATENATE("k",C102) -> k100 | B102: * | C102: 100 | E102: -Takarító- és tisztítószerek költsége | G102: Munkaruha, védőruha költség | U102: =SUMIF(kvátf.!E:E,KvZsz!A102,kvátf.!D:D) -> 5335 | V102: 5000 | W102: =SUMIF('Terv-segédlet'!$B:$B,KvZsz!$A102,'Terv-segédlet'!E:E) -> 5000 | X102: =SUMIF('Terv-segédlet'!$B:$B,KvZsz!$A102,'Terv-segédlet'!F:F) -> 0 | Y102: =SUMIF('Terv-segédlet'!$B:$B,KvZsz!$A102,'Terv-segédlet'!G:G) -> 0 | Z102: =SUMIF('Terv-segédlet'!$B:$B,KvZsz!$A102,'Terv-segédlet'!H:H) -> 0 | AA102: =SUMIF('Terv-segédlet'!$B:$B,KvZsz!$A102,'Terv-segédlet'!I:I) -> 0 | AB102: =SUMIF('Terv-segédlet'!$B:$B,KvZsz!$A102,'Terv-segédlet'!J:J) -> 0 | AC102: =SUMIF('Terv-segédlet'!$B:$B,KvZsz!$A102,'Terv-segédlet'!K:K) -> 0 | AD102: 1215 | AE102: =SUMIF(V!$A:$A,$A102,V!$L:$L)+SUMIF(bank!$A:$A,AE$1&$A102,bank!$N:$N) -> 0 | AF102: =SUMIF(Gy!$A:$A,$A102,Gy!$L:$L)+SUMIF(bank!$A:$A,AF$1&$A102,bank!$N:$N) -> 0 | AG102: =SUMIF(K!$A:$A,$A102,K!$L:$L)+SUMIF(bank!$A:$A,AG$1&$A102,bank!$N:$N) -> 1215 | AH102: =SUMIF(Mk!$A:$A,$A102,Mk!$L:$L)+SUMIF(bank!$A:$A,AH$1&$A102,bank!$N:$N) -> 0 | AI102: =SUMIF(M!$A:$A,$A102,M!$L:$L)+SUMIF(bank!$A:$A,AI$1&$A102,bank!$N:$N) -> 0 | AJ102: =SUMIF(P!$A:$A,$A102,P!$L:$L)+SUMIF(bank!$A:$A,AJ$1&$A102,bank!$N:$N) -> 0 | AK102: =SUMIF(Zs!$A:$A,$A102,Zs!$L:$L)+SUMIF(bank!$A:$A,AK$1&$A102,bank!$N:$N) -> 0 | AL102: kiadás | AM102: 0.243 | AN102: tisztítószerek, fertőtlenítő anyatok, takarító szerszámok
A103: =CONCATENATE("k",C103) -> k101 | B103: * | C103: 101 | E103: -Egyéb anyagok költsége | G103: Egy éven belül elhasználódó eszközök, szerszámok, műszerek költsége | U103: =SUMIF(kvátf.!E:E,KvZsz!A103,kvátf.!D:D) -> 96911 | V103: 0 | W103: =SUMIF('Terv-segédlet'!$B:$B,KvZsz!$A103,'Terv-segédlet'!E:E) -> 0 | X103: =SUMIF('Terv-segédlet'!$B:$B,KvZsz!$A103,'Terv-segédlet'!F:F) -> 0 | Y103: =SUMIF('Terv-segédlet'!$B:$B,KvZsz!$A103,'Terv-segédlet'!G:G) -> 0 | Z103: =SUMIF('Terv-segédlet'!$B:$B,KvZsz!$A103,'Terv-segédlet'!H:H) -> 0 | AA103: =SUMIF('Terv-segédlet'!$B:$B,KvZsz!$A103,'Terv-segédlet'!I:I) -> 0 | AB103: =SUMIF('Terv-segédlet'!$B:$B,KvZsz!$A103,'Terv-segédlet'!J:J) -> 0 | AC103: =SUMIF('Terv-segédlet'!$B:$B,KvZsz!$A103,'Terv-segédlet'!K:K) -> 0 | AD103: 60490 | AE103: =SUMIF(V!$A:$A,$A103,V!$L:$L)+SUMIF(bank!$A:$A,AE$1&$A103,bank!$N:$N) -> 48430 | AF103: =SUMIF(Gy!$A:$A,$A103,Gy!$L:$L)+SUMIF(bank!$A:$A,AF$1&$A103,bank!$N:$N) -> 5400 | AG103: =SUMIF(K!$A:$A,$A103,K!$L:$L)+SUMIF(bank!$A:$A,AG$1&$A103,bank!$N:$N) -> 4200 | AH103: =SUMIF(Mk!$A:$A,$A103,Mk!$L:$L)+SUMIF(bank!$A:$A,AH$1&$A103,bank!$N:$N) -> 0 | AI103: =SUMIF(M!$A:$A,$A103,M!$L:$L)+SUMIF(bank!$A:$A,AI$1&$A103,bank!$N:$N) -> 1900 | AJ103: =SUMIF(P!$A:$A,$A103,P!$L:$L)+SUMIF(bank!$A:$A,AJ$1&$A103,bank!$N:$N) -> 0 | AK103: =SUMIF(Zs!$A:$A,$A103,Zs!$L:$L)+SUMIF(bank!$A:$A,AK$1&$A103,bank!$N:$N) -> 560 | AL103: kiadás | AN103: 78-99 sorokban fel nem sorolt, vásárolt anyagok (pl. oltárdíszítéshez virág, gyertya, festékkazetta nyomtatóba, stb.)
A104: k102 | C104: 102 | E104: b) Igénybe vett szolgáltatások költsége (103..104+110+116..123) | G104: Nyomtatványok, irodaszerek költsége | W104: =SUMIF('Terv-segédlet'!$B:$B,KvZsz!$A104,'Terv-segédlet'!E:E) -> 0 | X104: =SUMIF('Terv-segédlet'!$B:$B,KvZsz!$A104,'Terv-segédlet'!F:F) -> 0 | Y104: =SUMIF('Terv-segédlet'!$B:$B,KvZsz!$A104,'Terv-segédlet'!G:G) -> 0 | Z104: =SUMIF('Terv-segédlet'!$B:$B,KvZsz!$A104,'Terv-segédlet'!H:H) -> 0 | AA104: =SUMIF('Terv-segédlet'!$B:$B,KvZsz!$A104,'Terv-segédlet'!I:I) -> 0 | AB104: =SUMIF('Terv-segédlet'!$B:$B,KvZsz!$A104,'Terv-segédlet'!J:J) -> 0 | AC104: =SUMIF('Terv-segédlet'!$B:$B,KvZsz!$A104,'Terv-segédlet'!K:K) -> 0 | AL104: kiadás
A105: k103 | B105: * | C105: 103 | E105: -Szállítási, raktározási költség | G105: Szakmai anyagok költsége | U105: =SUMIF(kvátf.!E:E,KvZsz!A105,kvátf.!D:D) -> 0 | V105: =SUM(W105:AC105) -> 0 | W105: =SUMIF('Terv-segédlet'!$B:$B,KvZsz!$A105,'Terv-segédlet'!E:E) -> 0 | X105: =SUMIF('Terv-segédlet'!$B:$B,KvZsz!$A105,'Terv-segédlet'!F:F) -> 0 | Y105: =SUMIF('Terv-segédlet'!$B:$B,KvZsz!$A105,'Terv-segédlet'!G:G) -> 0 | Z105: =SUMIF('Terv-segédlet'!$B:$B,KvZsz!$A105,'Terv-segédlet'!H:H) -> 0 | AA105: =SUMIF('Terv-segédlet'!$B:$B,KvZsz!$A105,'Terv-segédlet'!I:I) -> 0 | AB105: =SUMIF('Terv-segédlet'!$B:$B,KvZsz!$A105,'Terv-segédlet'!J:J) -> 0 | AC105: =SUMIF('Terv-segédlet'!$B:$B,KvZsz!$A105,'Terv-segédlet'!K:K) -> 0 | AD105: =SUM(AE105:AK105) -> 0 | AE105: =SUMIF(V!$A:$A,$A105,V!$L:$L)+SUMIF(bank!$A:$A,AE$1&$A105,bank!$N:$N) -> 0 | AF105: =SUMIF(Gy!$A:$A,$A105,Gy!$L:$L)+SUMIF(bank!$A:$A,AF$1&$A105,bank!$N:$N) -> 0 | AG105: =SUMIF(K!$A:$A,$A105,K!$L:$L)+SUMIF(bank!$A:$A,AG$1&$A105,bank!$N:$N) -> 0 | AH105: =SUMIF(Mk!$A:$A,$A105,Mk!$L:$L)+SUMIF(bank!$A:$A,AH$1&$A105,bank!$N:$N) -> 0 | AI105: =SUMIF(M!$A:$A,$A105,M!$L:$L)+SUMIF(bank!$A:$A,AI$1&$A105,bank!$N:$N) -> 0 | AJ105: =SUMIF(P!$A:$A,$A105,P!$L:$L)+SUMIF(bank!$A:$A,AJ$1&$A105,bank!$N:$N) -> 0 | AK105: =SUMIF(Zs!$A:$A,$A105,Zs!$L:$L)+SUMIF(bank!$A:$A,AK$1&$A105,bank!$N:$N) -> 0 | AL105: kiadás | AN105: költöztetés, ajándékba kapott / adott eszközök szállítása, stb.
A106: k104 | C106: 104 | E106: -Bérleti díjak, lízingdíjak (105..109) | G106: Fenntartási, karbantartási anyagok költsége | W106: =SUMIF('Terv-segédlet'!$B:$B,KvZsz!$A106,'Terv-segédlet'!E:E) -> 0 | X106: =SUMIF('Terv-segédlet'!$B:$B,KvZsz!$A106,'Terv-segédlet'!F:F) -> 0 | Y106: =SUMIF('Terv-segédlet'!$B:$B,KvZsz!$A106,'Terv-segédlet'!G:G) -> 0 | Z106: =SUMIF('Terv-segédlet'!$B:$B,KvZsz!$A106,'Terv-segédlet'!H:H) -> 0 | AA106: =SUMIF('Terv-segédlet'!$B:$B,KvZsz!$A106,'Terv-segédlet'!I:I) -> 0 | AB106: =SUMIF('Terv-segédlet'!$B:$B,KvZsz!$A106,'Terv-segédlet'!J:J) -> 0 | AC106: =SUMIF('Terv-segédlet'!$B:$B,KvZsz!$A106,'Terv-segédlet'!K:K) -> 0 | AL106: kiadás
A107: k105 | B107: * | C107: 105 | E107: Lelkészlakás | G107: Üzemanyagok költsége | U107: =SUMIF(kvátf.!E:E,KvZsz!A107,kvátf.!D:D) -> 0 | V107: =SUM(W107:AC107) -> 0 | W107: =SUMIF('Terv-segédlet'!$B:$B,KvZsz!$A107,'Terv-segédlet'!E:E) -> 0 | X107: =SUMIF('Terv-segédlet'!$B:$B,KvZsz!$A107,'Terv-segédlet'!F:F) -> 0 | Y107: =SUMIF('Terv-segédlet'!$B:$B,KvZsz!$A107,'Terv-segédlet'!G:G) -> 0 | Z107: =SUMIF('Terv-segédlet'!$B:$B,KvZsz!$A107,'Terv-segédlet'!H:H) -> 0 | AA107: =SUMIF('Terv-segédlet'!$B:$B,KvZsz!$A107,'Terv-segédlet'!I:I) -> 0 | AB107: =SUMIF('Terv-segédlet'!$B:$B,KvZsz!$A107,'Terv-segédlet'!J:J) -> 0 | AC107: =SUMIF('Terv-segédlet'!$B:$B,KvZsz!$A107,'Terv-segédlet'!K:K) -> 0 | AD107: =SUM(AE107:AK107) -> 0 | AE107: =SUMIF(V!$A:$A,$A107,V!$L:$L)+SUMIF(bank!$A:$A,AE$1&$A107,bank!$N:$N) -> 0 | AF107: =SUMIF(Gy!$A:$A,$A107,Gy!$L:$L)+SUMIF(bank!$A:$A,AF$1&$A107,bank!$N:$N) -> 0 | AG107: =SUMIF(K!$A:$A,$A107,K!$L:$L)+SUMIF(bank!$A:$A,AG$1&$A107,bank!$N:$N) -> 0 | AH107: =SUMIF(Mk!$A:$A,$A107,Mk!$L:$L)+SUMIF(bank!$A:$A,AH$1&$A107,bank!$N:$N) -> 0 | AI107: =SUMIF(M!$A:$A,$A107,M!$L:$L)+SUMIF(bank!$A:$A,AI$1&$A107,bank!$N:$N) -> 0 | AJ107: =SUMIF(P!$A:$A,$A107,P!$L:$L)+SUMIF(bank!$A:$A,AJ$1&$A107,bank!$N:$N) -> 0 | AK107: =SUMIF(Zs!$A:$A,$A107,Zs!$L:$L)+SUMIF(bank!$A:$A,AK$1&$A107,bank!$N:$N) -> 0 | AL107: kiadás | AN107: lelkészlakás céljára bérelt ingatlan bérleti díja
A108: k106 | B108: * | C108: 106 | E108: Egyéb lakás | U108: =SUMIF(kvátf.!E:E,KvZsz!A108,kvátf.!D:D) -> 0 | V108: 0 | W108: =SUMIF('Terv-segédlet'!$B:$B,KvZsz!$A108,'Terv-segédlet'!E:E) -> 0 | X108: =SUMIF('Terv-segédlet'!$B:$B,KvZsz!$A108,'Terv-segédlet'!F:F) -> 0 | Y108: =SUMIF('Terv-segédlet'!$B:$B,KvZsz!$A108,'Terv-segédlet'!G:G) -> 0 | Z108: =SUMIF('Terv-segédlet'!$B:$B,KvZsz!$A108,'Terv-segédlet'!H:H) -> 0 | AA108: =SUMIF('Terv-segédlet'!$B:$B,KvZsz!$A108,'Terv-segédlet'!I:I) -> 0 | AB108: =SUMIF('Terv-segédlet'!$B:$B,KvZsz!$A108,'Terv-segédlet'!J:J) -> 0 | AC108: =SUMIF('Terv-segédlet'!$B:$B,KvZsz!$A108,'Terv-segédlet'!K:K) -> 0 | AD108: 0 | AE108: =SUMIF(V!$A:$A,$A108,V!$L:$L)+SUMIF(bank!$A:$A,AE$1&$A108,bank!$N:$N) -> 0 | AF108: =SUMIF(Gy!$A:$A,$A108,Gy!$L:$L)+SUMIF(bank!$A:$A,AF$1&$A108,bank!$N:$N) -> 0 | AG108: =SUMIF(K!$A:$A,$A108,K!$L:$L)+SUMIF(bank!$A:$A,AG$1&$A108,bank!$N:$N) -> 0 | AH108: =SUMIF(Mk!$A:$A,$A108,Mk!$L:$L)+SUMIF(bank!$A:$A,AH$1&$A108,bank!$N:$N) -> 0 | AI108: =SUMIF(M!$A:$A,$A108,M!$L:$L)+SUMIF(bank!$A:$A,AI$1&$A108,bank!$N:$N) -> 0 | AJ108: =SUMIF(P!$A:$A,$A108,P!$L:$L)+SUMIF(bank!$A:$A,AJ$1&$A108,bank!$N:$N) -> 0 | AK108: =SUMIF(Zs!$A:$A,$A108,Zs!$L:$L)+SUMIF(bank!$A:$A,AK$1&$A108,bank!$N:$N) -> 0 | AL108: kiadás | AN108: egyéb, lakás céljára bérelt ingatlan bérleti díja
A109: k107 | B109: * | C109: 107 | E109: Más gyülekezeti helyiség | G109: Kenő-, hajtó- és tüzelőanyagok költsége | U109: =SUMIF(kvátf.!E:E,KvZsz!A109,kvátf.!D:D) -> 0 | V109: 0 | W109: =SUMIF('Terv-segédlet'!$B:$B,KvZsz!$A109,'Terv-segédlet'!E:E) -> 0 | X109: =SUMIF('Terv-segédlet'!$B:$B,KvZsz!$A109,'Terv-segédlet'!F:F) -> 0 | Y109: =SUMIF('Terv-segédlet'!$B:$B,KvZsz!$A109,'Terv-segédlet'!G:G) -> 0 | Z109: =SUMIF('Terv-segédlet'!$B:$B,KvZsz!$A109,'Terv-segédlet'!H:H) -> 0 | AA109: =SUMIF('Terv-segédlet'!$B:$B,KvZsz!$A109,'Terv-segédlet'!I:I) -> 0 | AB109: =SUMIF('Terv-segédlet'!$B:$B,KvZsz!$A109,'Terv-segédlet'!J:J) -> 0 | AC109: =SUMIF('Terv-segédlet'!$B:$B,KvZsz!$A109,'Terv-segédlet'!K:K) -> 0 | AD109: 0 | AE109: =SUMIF(V!$A:$A,$A109,V!$L:$L)+SUMIF(bank!$A:$A,AE$1&$A109,bank!$N:$N) -> 0 | AF109: =SUMIF(Gy!$A:$A,$A109,Gy!$L:$L)+SUMIF(bank!$A:$A,AF$1&$A109,bank!$N:$N) -> 0 | AG109: =SUMIF(K!$A:$A,$A109,K!$L:$L)+SUMIF(bank!$A:$A,AG$1&$A109,bank!$N:$N) -> 0 | AH109: =SUMIF(Mk!$A:$A,$A109,Mk!$L:$L)+SUMIF(bank!$A:$A,AH$1&$A109,bank!$N:$N) -> 0 | AI109: =SUMIF(M!$A:$A,$A109,M!$L:$L)+SUMIF(bank!$A:$A,AI$1&$A109,bank!$N:$N) -> 0 | AJ109: =SUMIF(P!$A:$A,$A109,P!$L:$L)+SUMIF(bank!$A:$A,AJ$1&$A109,bank!$N:$N) -> 0 | AK109: =SUMIF(Zs!$A:$A,$A109,Zs!$L:$L)+SUMIF(bank!$A:$A,AK$1&$A109,bank!$N:$N) -> 0 | AL109: kiadás | AN109: egyéb ingatlan bérleti díj
A110: k108 | B110: * | C110: 108 | E110: Gépjárművek | G110: Könyvtári, tanulói könyvek | U110: =SUMIF(kvátf.!E:E,KvZsz!A110,kvátf.!D:D) -> 0 | V110: 0 | W110: =SUMIF('Terv-segédlet'!$B:$B,KvZsz!$A110,'Terv-segédlet'!E:E) -> 0 | X110: =SUMIF('Terv-segédlet'!$B:$B,KvZsz!$A110,'Terv-segédlet'!F:F) -> 0 | Y110: =SUMIF('Terv-segédlet'!$B:$B,KvZsz!$A110,'Terv-segédlet'!G:G) -> 0 | Z110: =SUMIF('Terv-segédlet'!$B:$B,KvZsz!$A110,'Terv-segédlet'!H:H) -> 0 | AA110: =SUMIF('Terv-segédlet'!$B:$B,KvZsz!$A110,'Terv-segédlet'!I:I) -> 0 | AB110: =SUMIF('Terv-segédlet'!$B:$B,KvZsz!$A110,'Terv-segédlet'!J:J) -> 0 | AC110: =SUMIF('Terv-segédlet'!$B:$B,KvZsz!$A110,'Terv-segédlet'!K:K) -> 0 | AD110: 0 | AE110: =SUMIF(V!$A:$A,$A110,V!$L:$L)+SUMIF(bank!$A:$A,AE$1&$A110,bank!$N:$N) -> 0 | AF110: =SUMIF(Gy!$A:$A,$A110,Gy!$L:$L)+SUMIF(bank!$A:$A,AF$1&$A110,bank!$N:$N) -> 0 | AG110: =SUMIF(K!$A:$A,$A110,K!$L:$L)+SUMIF(bank!$A:$A,AG$1&$A110,bank!$N:$N) -> 0 | AH110: =SUMIF(Mk!$A:$A,$A110,Mk!$L:$L)+SUMIF(bank!$A:$A,AH$1&$A110,bank!$N:$N) -> 0 | AI110: =SUMIF(M!$A:$A,$A110,M!$L:$L)+SUMIF(bank!$A:$A,AI$1&$A110,bank!$N:$N) -> 0 | AJ110: =SUMIF(P!$A:$A,$A110,P!$L:$L)+SUMIF(bank!$A:$A,AJ$1&$A110,bank!$N:$N) -> 0 | AK110: =SUMIF(Zs!$A:$A,$A110,Zs!$L:$L)+SUMIF(bank!$A:$A,AK$1&$A110,bank!$N:$N) -> 0 | AL110: kiadás | AN110: járművek bérleti díja
A111: k109 | B111: * | C111: 109 | E111: Egyéb | G111: Takarító- és tisztítószerek költsége | U111: =SUMIF(kvátf.!E:E,KvZsz!A111,kvátf.!D:D) -> 0 | V111: 0 | W111: =SUMIF('Terv-segédlet'!$B:$B,KvZsz!$A111,'Terv-segédlet'!E:E) -> 0 | X111: =SUMIF('Terv-segédlet'!$B:$B,KvZsz!$A111,'Terv-segédlet'!F:F) -> 0 | Y111: =SUMIF('Terv-segédlet'!$B:$B,KvZsz!$A111,'Terv-segédlet'!G:G) -> 0 | Z111: =SUMIF('Terv-segédlet'!$B:$B,KvZsz!$A111,'Terv-segédlet'!H:H) -> 0 | AA111: =SUMIF('Terv-segédlet'!$B:$B,KvZsz!$A111,'Terv-segédlet'!I:I) -> 0 | AB111: =SUMIF('Terv-segédlet'!$B:$B,KvZsz!$A111,'Terv-segédlet'!J:J) -> 0 | AC111: =SUMIF('Terv-segédlet'!$B:$B,KvZsz!$A111,'Terv-segédlet'!K:K) -> 0 | AD111: 0 | AE111: =SUMIF(V!$A:$A,$A111,V!$L:$L)+SUMIF(bank!$A:$A,AE$1&$A111,bank!$N:$N) -> 0 | AF111: =SUMIF(Gy!$A:$A,$A111,Gy!$L:$L)+SUMIF(bank!$A:$A,AF$1&$A111,bank!$N:$N) -> 0 | AG111: =SUMIF(K!$A:$A,$A111,K!$L:$L)+SUMIF(bank!$A:$A,AG$1&$A111,bank!$N:$N) -> 0 | AH111: =SUMIF(Mk!$A:$A,$A111,Mk!$L:$L)+SUMIF(bank!$A:$A,AH$1&$A111,bank!$N:$N) -> 0 | AI111: =SUMIF(M!$A:$A,$A111,M!$L:$L)+SUMIF(bank!$A:$A,AI$1&$A111,bank!$N:$N) -> 0 | AJ111: =SUMIF(P!$A:$A,$A111,P!$L:$L)+SUMIF(bank!$A:$A,AJ$1&$A111,bank!$N:$N) -> 0 | AK111: =SUMIF(Zs!$A:$A,$A111,Zs!$L:$L)+SUMIF(bank!$A:$A,AK$1&$A111,bank!$N:$N) -> 0 | AL111: kiadás | AN111: egyéb eszközök, berendezések, felszerelések bérleti díja
A112: k110 | C112: 110 | E112: -Karbantartási költségek (111..115) | G112: Mosószerek költsége | W112: =SUMIF('Terv-segédlet'!$B:$B,KvZsz!$A112,'Terv-segédlet'!E:E) -> 0 | X112: =SUMIF('Terv-segédlet'!$B:$B,KvZsz!$A112,'Terv-segédlet'!F:F) -> 0 | Y112: =SUMIF('Terv-segédlet'!$B:$B,KvZsz!$A112,'Terv-segédlet'!G:G) -> 0 | Z112: =SUMIF('Terv-segédlet'!$B:$B,KvZsz!$A112,'Terv-segédlet'!H:H) -> 0 | AA112: =SUMIF('Terv-segédlet'!$B:$B,KvZsz!$A112,'Terv-segédlet'!I:I) -> 0 | AB112: =SUMIF('Terv-segédlet'!$B:$B,KvZsz!$A112,'Terv-segédlet'!J:J) -> 0 | AC112: =SUMIF('Terv-segédlet'!$B:$B,KvZsz!$A112,'Terv-segédlet'!K:K) -> 0 | AL112: kiadás
A113: k111 | B113: * | C113: 111 | E113: Lelkészlakás | G113: Egyéb anyagok költsége | U113: =SUMIF(kvátf.!E:E,KvZsz!A113,kvátf.!D:D) -> 0 | V113: =SUM(W113:AC113) -> 20000 | W113: =SUMIF('Terv-segédlet'!$B:$B,KvZsz!$A113,'Terv-segédlet'!E:E) -> 20000 | X113: =SUMIF('Terv-segédlet'!$B:$B,KvZsz!$A113,'Terv-segédlet'!F:F) -> 0 | Y113: =SUMIF('Terv-segédlet'!$B:$B,KvZsz!$A113,'Terv-segédlet'!G:G) -> 0 | Z113: =SUMIF('Terv-segédlet'!$B:$B,KvZsz!$A113,'Terv-segédlet'!H:H) -> 0 | AA113: =SUMIF('Terv-segédlet'!$B:$B,KvZsz!$A113,'Terv-segédlet'!I:I) -> 0 | AB113: =SUMIF('Terv-segédlet'!$B:$B,KvZsz!$A113,'Terv-segédlet'!J:J) -> 0 | AC113: =SUMIF('Terv-segédlet'!$B:$B,KvZsz!$A113,'Terv-segédlet'!K:K) -> 0 | AD113: =SUM(AE113:AK113) -> 0 | AE113: =SUMIF(V!$A:$A,$A113,V!$L:$L)+SUMIF(bank!$A:$A,AE$1&$A113,bank!$N:$N) -> 0 | AF113: =SUMIF(Gy!$A:$A,$A113,Gy!$L:$L)+SUMIF(bank!$A:$A,AF$1&$A113,bank!$N:$N) -> 0 | AG113: =SUMIF(K!$A:$A,$A113,K!$L:$L)+SUMIF(bank!$A:$A,AG$1&$A113,bank!$N:$N) -> 0 | AH113: =SUMIF(Mk!$A:$A,$A113,Mk!$L:$L)+SUMIF(bank!$A:$A,AH$1&$A113,bank!$N:$N) -> 0 | AI113: =SUMIF(M!$A:$A,$A113,M!$L:$L)+SUMIF(bank!$A:$A,AI$1&$A113,bank!$N:$N) -> 0 | AJ113: =SUMIF(P!$A:$A,$A113,P!$L:$L)+SUMIF(bank!$A:$A,AJ$1&$A113,bank!$N:$N) -> 0 | AK113: =SUMIF(Zs!$A:$A,$A113,Zs!$L:$L)+SUMIF(bank!$A:$A,AK$1&$A113,bank!$N:$N) -> 0 | AL113: kiadás | AM113: 0 | AN113: lelkészlakás - festés, szerelés, stb. karbantartási szolgáltatás (a benne lévő anyagköltséggel együtt)
A114: k112 | B114: * | C114: 112 | E114: Egyéb lakás | U114: =SUMIF(kvátf.!E:E,KvZsz!A114,kvátf.!D:D) -> 0 | V114: 0 | W114: =SUMIF('Terv-segédlet'!$B:$B,KvZsz!$A114,'Terv-segédlet'!E:E) -> 0 | X114: =SUMIF('Terv-segédlet'!$B:$B,KvZsz!$A114,'Terv-segédlet'!F:F) -> 0 | Y114: =SUMIF('Terv-segédlet'!$B:$B,KvZsz!$A114,'Terv-segédlet'!G:G) -> 0 | Z114: =SUMIF('Terv-segédlet'!$B:$B,KvZsz!$A114,'Terv-segédlet'!H:H) -> 0 | AA114: =SUMIF('Terv-segédlet'!$B:$B,KvZsz!$A114,'Terv-segédlet'!I:I) -> 0 | AB114: =SUMIF('Terv-segédlet'!$B:$B,KvZsz!$A114,'Terv-segédlet'!J:J) -> 0 | AC114: =SUMIF('Terv-segédlet'!$B:$B,KvZsz!$A114,'Terv-segédlet'!K:K) -> 0 | AD114: 0 | AE114: =SUMIF(V!$A:$A,$A114,V!$L:$L)+SUMIF(bank!$A:$A,AE$1&$A114,bank!$N:$N) -> 0 | AF114: =SUMIF(Gy!$A:$A,$A114,Gy!$L:$L)+SUMIF(bank!$A:$A,AF$1&$A114,bank!$N:$N) -> 0 | AG114: =SUMIF(K!$A:$A,$A114,K!$L:$L)+SUMIF(bank!$A:$A,AG$1&$A114,bank!$N:$N) -> 0 | AH114: =SUMIF(Mk!$A:$A,$A114,Mk!$L:$L)+SUMIF(bank!$A:$A,AH$1&$A114,bank!$N:$N) -> 0 | AI114: =SUMIF(M!$A:$A,$A114,M!$L:$L)+SUMIF(bank!$A:$A,AI$1&$A114,bank!$N:$N) -> 0 | AJ114: =SUMIF(P!$A:$A,$A114,P!$L:$L)+SUMIF(bank!$A:$A,AJ$1&$A114,bank!$N:$N) -> 0 | AK114: =SUMIF(Zs!$A:$A,$A114,Zs!$L:$L)+SUMIF(bank!$A:$A,AK$1&$A114,bank!$N:$N) -> 0 | AL114: kiadás | AN114: egyéb lakóingatlan - festés, szerelés, stb. karbantartási szolgáltatás (a benne lévő anyagköltséggel együtt)
A115: k113 | B115: * | C115: 113 | E115: Más gyülekezeti helyiség | F115: Igénybe vett szolgáltatások költsége (86..102) | U115: =SUMIF(kvátf.!E:E,KvZsz!A115,kvátf.!D:D) -> 28911804 | V115: 10045000 | W115: =SUMIF('Terv-segédlet'!$B:$B,KvZsz!$A115,'Terv-segédlet'!E:E) -> 1000000 | X115: =SUMIF('Terv-segédlet'!$B:$B,KvZsz!$A115,'Terv-segédlet'!F:F) -> 0 | Y115: =SUMIF('Terv-segédlet'!$B:$B,KvZsz!$A115,'Terv-segédlet'!G:G) -> 0 | Z115: =SUMIF('Terv-segédlet'!$B:$B,KvZsz!$A115,'Terv-segédlet'!H:H) -> 8300000 | AA115: =SUMIF('Terv-segédlet'!$B:$B,KvZsz!$A115,'Terv-segédlet'!I:I) -> 615000 | AB115: =SUMIF('Terv-segédlet'!$B:$B,KvZsz!$A115,'Terv-segédlet'!J:J) -> 0 | AC115: =SUMIF('Terv-segédlet'!$B:$B,KvZsz!$A115,'Terv-segédlet'!K:K) -> 130000 | AD115: 100100 | AE115: =SUMIF(V!$A:$A,$A115,V!$L:$L)+SUMIF(bank!$A:$A,AE$1&$A115,bank!$N:$N) -> 38100 | AF115: =SUMIF(Gy!$A:$A,$A115,Gy!$L:$L)+SUMIF(bank!$A:$A,AF$1&$A115,bank!$N:$N) -> 0 | AG115: =SUMIF(K!$A:$A,$A115,K!$L:$L)+SUMIF(bank!$A:$A,AG$1&$A115,bank!$N:$N) -> 27000 | AH115: =SUMIF(Mk!$A:$A,$A115,Mk!$L:$L)+SUMIF(bank!$A:$A,AH$1&$A115,bank!$N:$N) -> 0 | AI115: =SUMIF(M!$A:$A,$A115,M!$L:$L)+SUMIF(bank!$A:$A,AI$1&$A115,bank!$N:$N) -> 5000 | AJ115: =SUMIF(P!$A:$A,$A115,P!$L:$L)+SUMIF(bank!$A:$A,AJ$1&$A115,bank!$N:$N) -> 30000 | AK115: =SUMIF(Zs!$A:$A,$A115,Zs!$L:$L)+SUMIF(bank!$A:$A,AK$1&$A115,bank!$N:$N) -> 0 | AL115: kiadás | AM115: 0.009965156794 | AN115: egyéb gyülekezeti ingatlan - festés, szerelés, stb. karbantartási szolgáltatás (a benne lévő anyagköltséggel együtt)
A116: k114 | B116: * | C116: 114 | E116: Gépjárművek | G116: Szakmai anyagok költsége | U116: =SUMIF(kvátf.!E:E,KvZsz!A116,kvátf.!D:D) -> 0 | V116: 150000 | W116: =SUMIF('Terv-segédlet'!$B:$B,KvZsz!$A116,'Terv-segédlet'!E:E) -> 150000 | X116: =SUMIF('Terv-segédlet'!$B:$B,KvZsz!$A116,'Terv-segédlet'!F:F) -> 0 | Y116: =SUMIF('Terv-segédlet'!$B:$B,KvZsz!$A116,'Terv-segédlet'!G:G) -> 0 | Z116: =SUMIF('Terv-segédlet'!$B:$B,KvZsz!$A116,'Terv-segédlet'!H:H) -> 0 | AA116: =SUMIF('Terv-segédlet'!$B:$B,KvZsz!$A116,'Terv-segédlet'!I:I) -> 0 | AB116: =SUMIF('Terv-segédlet'!$B:$B,KvZsz!$A116,'Terv-segédlet'!J:J) -> 0 | AC116: =SUMIF('Terv-segédlet'!$B:$B,KvZsz!$A116,'Terv-segédlet'!K:K) -> 0 | AD116: 25500 | AE116: =SUMIF(V!$A:$A,$A116,V!$L:$L)+SUMIF(bank!$A:$A,AE$1&$A116,bank!$N:$N) -> 25500 | AF116: =SUMIF(Gy!$A:$A,$A116,Gy!$L:$L)+SUMIF(bank!$A:$A,AF$1&$A116,bank!$N:$N) -> 0 | AG116: =SUMIF(K!$A:$A,$A116,K!$L:$L)+SUMIF(bank!$A:$A,AG$1&$A116,bank!$N:$N) -> 0 | AH116: =SUMIF(Mk!$A:$A,$A116,Mk!$L:$L)+SUMIF(bank!$A:$A,AH$1&$A116,bank!$N:$N) -> 0 | AI116: =SUMIF(M!$A:$A,$A116,M!$L:$L)+SUMIF(bank!$A:$A,AI$1&$A116,bank!$N:$N) -> 0 | AJ116: =SUMIF(P!$A:$A,$A116,P!$L:$L)+SUMIF(bank!$A:$A,AJ$1&$A116,bank!$N:$N) -> 0 | AK116: =SUMIF(Zs!$A:$A,$A116,Zs!$L:$L)+SUMIF(bank!$A:$A,AK$1&$A116,bank!$N:$N) -> 0 | AL116: kiadás | AM116: 0.17 | AN116: gépjárművek - festés, szerelés, stb. karbantartási szolgáltatás (a benne lévő anyagköltséggel együtt)
A117: k115 | B117: * | C117: 115 | E117: Egyéb | G117: Szállítás, rakodás, raktározás költségei | U117: =SUMIF(kvátf.!E:E,KvZsz!A117,kvátf.!D:D) -> 0 | V117: 0 | W117: =SUMIF('Terv-segédlet'!$B:$B,KvZsz!$A117,'Terv-segédlet'!E:E) -> 0 | X117: =SUMIF('Terv-segédlet'!$B:$B,KvZsz!$A117,'Terv-segédlet'!F:F) -> 0 | Y117: =SUMIF('Terv-segédlet'!$B:$B,KvZsz!$A117,'Terv-segédlet'!G:G) -> 0 | Z117: =SUMIF('Terv-segédlet'!$B:$B,KvZsz!$A117,'Terv-segédlet'!H:H) -> 0 | AA117: =SUMIF('Terv-segédlet'!$B:$B,KvZsz!$A117,'Terv-segédlet'!I:I) -> 0 | AB117: =SUMIF('Terv-segédlet'!$B:$B,KvZsz!$A117,'Terv-segédlet'!J:J) -> 0 | AC117: =SUMIF('Terv-segédlet'!$B:$B,KvZsz!$A117,'Terv-segédlet'!K:K) -> 0 | AD117: 0 | AE117: =SUMIF(V!$A:$A,$A117,V!$L:$L)+SUMIF(bank!$A:$A,AE$1&$A117,bank!$N:$N) -> 0 | AF117: =SUMIF(Gy!$A:$A,$A117,Gy!$L:$L)+SUMIF(bank!$A:$A,AF$1&$A117,bank!$N:$N) -> 0 | AG117: =SUMIF(K!$A:$A,$A117,K!$L:$L)+SUMIF(bank!$A:$A,AG$1&$A117,bank!$N:$N) -> 0 | AH117: =SUMIF(Mk!$A:$A,$A117,Mk!$L:$L)+SUMIF(bank!$A:$A,AH$1&$A117,bank!$N:$N) -> 0 | AI117: =SUMIF(M!$A:$A,$A117,M!$L:$L)+SUMIF(bank!$A:$A,AI$1&$A117,bank!$N:$N) -> 0 | AJ117: =SUMIF(P!$A:$A,$A117,P!$L:$L)+SUMIF(bank!$A:$A,AJ$1&$A117,bank!$N:$N) -> 0 | AK117: =SUMIF(Zs!$A:$A,$A117,Zs!$L:$L)+SUMIF(bank!$A:$A,AK$1&$A117,bank!$N:$N) -> 0 | AL117: kiadás | AN117: egyéb eszközök, berendezések, felszerelések - festés, szerelés, stb. karbantartási szolgáltatás (a benne lévő anyagköltséggel együtt)
A118: k116 | B118: * | C118: 116 | E118: -Hirdetés, reklám költségek | G118: Bérleti díjak, lízingdíjak | U118: =SUMIF(kvátf.!E:E,KvZsz!A118,kvátf.!D:D) -> 0 | V118: 0 | W118: =SUMIF('Terv-segédlet'!$B:$B,KvZsz!$A118,'Terv-segédlet'!E:E) -> 0 | X118: =SUMIF('Terv-segédlet'!$B:$B,KvZsz!$A118,'Terv-segédlet'!F:F) -> 0 | Y118: =SUMIF('Terv-segédlet'!$B:$B,KvZsz!$A118,'Terv-segédlet'!G:G) -> 0 | Z118: =SUMIF('Terv-segédlet'!$B:$B,KvZsz!$A118,'Terv-segédlet'!H:H) -> 0 | AA118: =SUMIF('Terv-segédlet'!$B:$B,KvZsz!$A118,'Terv-segédlet'!I:I) -> 0 | AB118: =SUMIF('Terv-segédlet'!$B:$B,KvZsz!$A118,'Terv-segédlet'!J:J) -> 0 | AC118: =SUMIF('Terv-segédlet'!$B:$B,KvZsz!$A118,'Terv-segédlet'!K:K) -> 0 | AD118: 0 | AE118: =SUMIF(V!$A:$A,$A118,V!$L:$L)+SUMIF(bank!$A:$A,AE$1&$A118,bank!$N:$N) -> 0 | AF118: =SUMIF(Gy!$A:$A,$A118,Gy!$L:$L)+SUMIF(bank!$A:$A,AF$1&$A118,bank!$N:$N) -> 0 | AG118: =SUMIF(K!$A:$A,$A118,K!$L:$L)+SUMIF(bank!$A:$A,AG$1&$A118,bank!$N:$N) -> 0 | AH118: =SUMIF(Mk!$A:$A,$A118,Mk!$L:$L)+SUMIF(bank!$A:$A,AH$1&$A118,bank!$N:$N) -> 0 | AI118: =SUMIF(M!$A:$A,$A118,M!$L:$L)+SUMIF(bank!$A:$A,AI$1&$A118,bank!$N:$N) -> 0 | AJ118: =SUMIF(P!$A:$A,$A118,P!$L:$L)+SUMIF(bank!$A:$A,AJ$1&$A118,bank!$N:$N) -> 0 | AK118: =SUMIF(Zs!$A:$A,$A118,Zs!$L:$L)+SUMIF(bank!$A:$A,AK$1&$A118,bank!$N:$N) -> 0 | AL118: kiadás | AN118: plakát-, szórólap készítés költsége, újsághirdetés, stb.
A119: k117 | B119: * | C119: 117 | E119: -Oktatás és továbbképzés költsége (konferencia részvétel) | G119: Karbantartási költségek | U119: =SUMIF(kvátf.!E:E,KvZsz!A119,kvátf.!D:D) -> 0 | V119: 0 | W119: =SUMIF('Terv-segédlet'!$B:$B,KvZsz!$A119,'Terv-segédlet'!E:E) -> 0 | X119: =SUMIF('Terv-segédlet'!$B:$B,KvZsz!$A119,'Terv-segédlet'!F:F) -> 0 | Y119: =SUMIF('Terv-segédlet'!$B:$B,KvZsz!$A119,'Terv-segédlet'!G:G) -> 0 | Z119: =SUMIF('Terv-segédlet'!$B:$B,KvZsz!$A119,'Terv-segédlet'!H:H) -> 0 | AA119: =SUMIF('Terv-segédlet'!$B:$B,KvZsz!$A119,'Terv-segédlet'!I:I) -> 0 | AB119: =SUMIF('Terv-segédlet'!$B:$B,KvZsz!$A119,'Terv-segédlet'!J:J) -> 0 | AC119: =SUMIF('Terv-segédlet'!$B:$B,KvZsz!$A119,'Terv-segédlet'!K:K) -> 0 | AD119: 0 | AE119: =SUMIF(V!$A:$A,$A119,V!$L:$L)+SUMIF(bank!$A:$A,AE$1&$A119,bank!$N:$N) -> 0 | AF119: =SUMIF(Gy!$A:$A,$A119,Gy!$L:$L)+SUMIF(bank!$A:$A,AF$1&$A119,bank!$N:$N) -> 0 | AG119: =SUMIF(K!$A:$A,$A119,K!$L:$L)+SUMIF(bank!$A:$A,AG$1&$A119,bank!$N:$N) -> 0 | AH119: =SUMIF(Mk!$A:$A,$A119,Mk!$L:$L)+SUMIF(bank!$A:$A,AH$1&$A119,bank!$N:$N) -> 0 | AI119: =SUMIF(M!$A:$A,$A119,M!$L:$L)+SUMIF(bank!$A:$A,AI$1&$A119,bank!$N:$N) -> 0 | AJ119: =SUMIF(P!$A:$A,$A119,P!$L:$L)+SUMIF(bank!$A:$A,AJ$1&$A119,bank!$N:$N) -> 0 | AK119: =SUMIF(Zs!$A:$A,$A119,Zs!$L:$L)+SUMIF(bank!$A:$A,AK$1&$A119,bank!$N:$N) -> 0 | AL119: kiadás | AN119: lelkész vagy nem lelkészi alkalmazott részére térített
A120: k118 | B120: * | C120: 118 | E120: -Utazási és kiküldetési költségek, saját gépkocsi használat | G120: Hirdetés, reklám, propaganda | U120: =SUMIF(kvátf.!E:E,KvZsz!A120,kvátf.!D:D) -> 0 | V120: 0 | W120: =SUMIF('Terv-segédlet'!$B:$B,KvZsz!$A120,'Terv-segédlet'!E:E) -> 0 | X120: =SUMIF('Terv-segédlet'!$B:$B,KvZsz!$A120,'Terv-segédlet'!F:F) -> 0 | Y120: =SUMIF('Terv-segédlet'!$B:$B,KvZsz!$A120,'Terv-segédlet'!G:G) -> 0 | Z120: =SUMIF('Terv-segédlet'!$B:$B,KvZsz!$A120,'Terv-segédlet'!H:H) -> 0 | AA120: =SUMIF('Terv-segédlet'!$B:$B,KvZsz!$A120,'Terv-segédlet'!I:I) -> 0 | AB120: =SUMIF('Terv-segédlet'!$B:$B,KvZsz!$A120,'Terv-segédlet'!J:J) -> 0 | AC120: =SUMIF('Terv-segédlet'!$B:$B,KvZsz!$A120,'Terv-segédlet'!K:K) -> 0 | AD120: 0 | AE120: =SUMIF(V!$A:$A,$A120,V!$L:$L)+SUMIF(bank!$A:$A,AE$1&$A120,bank!$N:$N) -> 0 | AF120: =SUMIF(Gy!$A:$A,$A120,Gy!$L:$L)+SUMIF(bank!$A:$A,AF$1&$A120,bank!$N:$N) -> 0 | AG120: =SUMIF(K!$A:$A,$A120,K!$L:$L)+SUMIF(bank!$A:$A,AG$1&$A120,bank!$N:$N) -> 0 | AH120: =SUMIF(Mk!$A:$A,$A120,Mk!$L:$L)+SUMIF(bank!$A:$A,AH$1&$A120,bank!$N:$N) -> 0 | AI120: =SUMIF(M!$A:$A,$A120,M!$L:$L)+SUMIF(bank!$A:$A,AI$1&$A120,bank!$N:$N) -> 0 | AJ120: =SUMIF(P!$A:$A,$A120,P!$L:$L)+SUMIF(bank!$A:$A,AJ$1&$A120,bank!$N:$N) -> 0 | AK120: =SUMIF(Zs!$A:$A,$A120,Zs!$L:$L)+SUMIF(bank!$A:$A,AK$1&$A120,bank!$N:$N) -> 0 | AL120: kiadás | AN120: kiküldetési rendelvény alapján kifizetett gépkocsi használat (lelkész saját gépkocsival ellátott szolgálati utak térítése is!) (NAV üzemanyagár, állami norma, +9Ft/km)
A121: k119 | B121: * | C121: 119 | E121: -Szakértői díjak | G121: Oktatás és továbbképzés költsége | U121: =SUMIF(kvátf.!E:E,KvZsz!A121,kvátf.!D:D) -> 0 | V121: 0 | W121: =SUMIF('Terv-segédlet'!$B:$B,KvZsz!$A121,'Terv-segédlet'!E:E) -> 0 | X121: =SUMIF('Terv-segédlet'!$B:$B,KvZsz!$A121,'Terv-segédlet'!F:F) -> 0 | Y121: =SUMIF('Terv-segédlet'!$B:$B,KvZsz!$A121,'Terv-segédlet'!G:G) -> 0 | Z121: =SUMIF('Terv-segédlet'!$B:$B,KvZsz!$A121,'Terv-segédlet'!H:H) -> 0 | AA121: =SUMIF('Terv-segédlet'!$B:$B,KvZsz!$A121,'Terv-segédlet'!I:I) -> 0 | AB121: =SUMIF('Terv-segédlet'!$B:$B,KvZsz!$A121,'Terv-segédlet'!J:J) -> 0 | AC121: =SUMIF('Terv-segédlet'!$B:$B,KvZsz!$A121,'Terv-segédlet'!K:K) -> 0 | AD121: 0 | AE121: =SUMIF(V!$A:$A,$A121,V!$L:$L)+SUMIF(bank!$A:$A,AE$1&$A121,bank!$N:$N) -> 0 | AF121: =SUMIF(Gy!$A:$A,$A121,Gy!$L:$L)+SUMIF(bank!$A:$A,AF$1&$A121,bank!$N:$N) -> 0 | AG121: =SUMIF(K!$A:$A,$A121,K!$L:$L)+SUMIF(bank!$A:$A,AG$1&$A121,bank!$N:$N) -> 0 | AH121: =SUMIF(Mk!$A:$A,$A121,Mk!$L:$L)+SUMIF(bank!$A:$A,AH$1&$A121,bank!$N:$N) -> 0 | AI121: =SUMIF(M!$A:$A,$A121,M!$L:$L)+SUMIF(bank!$A:$A,AI$1&$A121,bank!$N:$N) -> 0 | AJ121: =SUMIF(P!$A:$A,$A121,P!$L:$L)+SUMIF(bank!$A:$A,AJ$1&$A121,bank!$N:$N) -> 0 | AK121: =SUMIF(Zs!$A:$A,$A121,Zs!$L:$L)+SUMIF(bank!$A:$A,AK$1&$A121,bank!$N:$N) -> 0 | AL121: kiadás | AN121: jogi, számviteli, tűzvédelmi, egészségügyi, stb. szolgáltatás díja
A122: k120 | B122: * | C122: 120 | E122: -Posta, telefon és egyéb telekommunikációs költségek | G122: Utazási és kiküldetési költségek | U122: =SUMIF(kvátf.!E:E,KvZsz!A122,kvátf.!D:D) -> 6815 | V122: 10000 | W122: =SUMIF('Terv-segédlet'!$B:$B,KvZsz!$A122,'Terv-segédlet'!E:E) -> 10000 | X122: =SUMIF('Terv-segédlet'!$B:$B,KvZsz!$A122,'Terv-segédlet'!F:F) -> 0 | Y122: =SUMIF('Terv-segédlet'!$B:$B,KvZsz!$A122,'Terv-segédlet'!G:G) -> 0 | Z122: =SUMIF('Terv-segédlet'!$B:$B,KvZsz!$A122,'Terv-segédlet'!H:H) -> 0 | AA122: =SUMIF('Terv-segédlet'!$B:$B,KvZsz!$A122,'Terv-segédlet'!I:I) -> 0 | AB122: =SUMIF('Terv-segédlet'!$B:$B,KvZsz!$A122,'Terv-segédlet'!J:J) -> 0 | AC122: =SUMIF('Terv-segédlet'!$B:$B,KvZsz!$A122,'Terv-segédlet'!K:K) -> 0 | AD122: 1420 | AE122: =SUMIF(V!$A:$A,$A122,V!$L:$L)+SUMIF(bank!$A:$A,AE$1&$A122,bank!$N:$N) -> 1420 | AF122: =SUMIF(Gy!$A:$A,$A122,Gy!$L:$L)+SUMIF(bank!$A:$A,AF$1&$A122,bank!$N:$N) -> 0 | AG122: =SUMIF(K!$A:$A,$A122,K!$L:$L)+SUMIF(bank!$A:$A,AG$1&$A122,bank!$N:$N) -> 0 | AH122: =SUMIF(Mk!$A:$A,$A122,Mk!$L:$L)+SUMIF(bank!$A:$A,AH$1&$A122,bank!$N:$N) -> 0 | AI122: =SUMIF(M!$A:$A,$A122,M!$L:$L)+SUMIF(bank!$A:$A,AI$1&$A122,bank!$N:$N) -> 0 | AJ122: =SUMIF(P!$A:$A,$A122,P!$L:$L)+SUMIF(bank!$A:$A,AJ$1&$A122,bank!$N:$N) -> 0 | AK122: =SUMIF(Zs!$A:$A,$A122,Zs!$L:$L)+SUMIF(bank!$A:$A,AK$1&$A122,bank!$N:$N) -> 0 | AL122: kiadás | AM122: 0.142 | AN122: posta, telefon, internet
A123: k121 | B123: * | C123: 121 | E123: -Folyóiratok, szaklapok, közlönyök költsége | U123: =SUMIF(kvátf.!E:E,KvZsz!A123,kvátf.!D:D) -> 292926 | V123: 153800 | W123: =SUMIF('Terv-segédlet'!$B:$B,KvZsz!$A123,'Terv-segédlet'!E:E) -> 153800 | X123: =SUMIF('Terv-segédlet'!$B:$B,KvZsz!$A123,'Terv-segédlet'!F:F) -> 0 | Y123: =SUMIF('Terv-segédlet'!$B:$B,KvZsz!$A123,'Terv-segédlet'!G:G) -> 0 | Z123: =SUMIF('Terv-segédlet'!$B:$B,KvZsz!$A123,'Terv-segédlet'!H:H) -> 0 | AA123: =SUMIF('Terv-segédlet'!$B:$B,KvZsz!$A123,'Terv-segédlet'!I:I) -> 0 | AB123: =SUMIF('Terv-segédlet'!$B:$B,KvZsz!$A123,'Terv-segédlet'!J:J) -> 0 | AC123: =SUMIF('Terv-segédlet'!$B:$B,KvZsz!$A123,'Terv-segédlet'!K:K) -> 0 | AD123: 146497 | AE123: =SUMIF(V!$A:$A,$A123,V!$L:$L)+SUMIF(bank!$A:$A,AE$1&$A123,bank!$N:$N) -> 146497 | AF123: =SUMIF(Gy!$A:$A,$A123,Gy!$L:$L)+SUMIF(bank!$A:$A,AF$1&$A123,bank!$N:$N) -> 0 | AG123: =SUMIF(K!$A:$A,$A123,K!$L:$L)+SUMIF(bank!$A:$A,AG$1&$A123,bank!$N:$N) -> 0 | AH123: =SUMIF(Mk!$A:$A,$A123,Mk!$L:$L)+SUMIF(bank!$A:$A,AH$1&$A123,bank!$N:$N) -> 0 | AI123: =SUMIF(M!$A:$A,$A123,M!$L:$L)+SUMIF(bank!$A:$A,AI$1&$A123,bank!$N:$N) -> 0 | AJ123: =SUMIF(P!$A:$A,$A123,P!$L:$L)+SUMIF(bank!$A:$A,AJ$1&$A123,bank!$N:$N) -> 0 | AK123: =SUMIF(Zs!$A:$A,$A123,Zs!$L:$L)+SUMIF(bank!$A:$A,AK$1&$A123,bank!$N:$N) -> 0 | AL123: kiadás | AM123: 0.9525162549 | AN123: saját célra vásárolt folyóiratok, szaklapok költsége
A124: k122 | B124: * | C124: 122 | E124: -Távfűtés | G124: Vásárolt élelmezés | U124: =SUMIF(kvátf.!E:E,KvZsz!A124,kvátf.!D:D) -> 0 | V124: 0 | W124: =SUMIF('Terv-segédlet'!$B:$B,KvZsz!$A124,'Terv-segédlet'!E:E) -> 0 | X124: =SUMIF('Terv-segédlet'!$B:$B,KvZsz!$A124,'Terv-segédlet'!F:F) -> 0 | Y124: =SUMIF('Terv-segédlet'!$B:$B,KvZsz!$A124,'Terv-segédlet'!G:G) -> 0 | Z124: =SUMIF('Terv-segédlet'!$B:$B,KvZsz!$A124,'Terv-segédlet'!H:H) -> 0 | AA124: =SUMIF('Terv-segédlet'!$B:$B,KvZsz!$A124,'Terv-segédlet'!I:I) -> 0 | AB124: =SUMIF('Terv-segédlet'!$B:$B,KvZsz!$A124,'Terv-segédlet'!J:J) -> 0 | AC124: =SUMIF('Terv-segédlet'!$B:$B,KvZsz!$A124,'Terv-segédlet'!K:K) -> 0 | AD124: 0 | AE124: =SUMIF(V!$A:$A,$A124,V!$L:$L)+SUMIF(bank!$A:$A,AE$1&$A124,bank!$N:$N) -> 0 | AF124: =SUMIF(Gy!$A:$A,$A124,Gy!$L:$L)+SUMIF(bank!$A:$A,AF$1&$A124,bank!$N:$N) -> 0 | AG124: =SUMIF(K!$A:$A,$A124,K!$L:$L)+SUMIF(bank!$A:$A,AG$1&$A124,bank!$N:$N) -> 0 | AH124: =SUMIF(Mk!$A:$A,$A124,Mk!$L:$L)+SUMIF(bank!$A:$A,AH$1&$A124,bank!$N:$N) -> 0 | AI124: =SUMIF(M!$A:$A,$A124,M!$L:$L)+SUMIF(bank!$A:$A,AI$1&$A124,bank!$N:$N) -> 0 | AJ124: =SUMIF(P!$A:$A,$A124,P!$L:$L)+SUMIF(bank!$A:$A,AJ$1&$A124,bank!$N:$N) -> 0 | AK124: =SUMIF(Zs!$A:$A,$A124,Zs!$L:$L)+SUMIF(bank!$A:$A,AK$1&$A124,bank!$N:$N) -> 0 | AL124: kiadás | AN124: távfűtési szolgáltatás díja számla szerint (pl. társasházak közös fűtési rendszeréből a hőszolgáltatás alapján kiszámlázott díj)
A125: k123 | B125: * | C125: 123 | E125: -Egyéb igénybe vett szolgáltatás | G125: Könyv, folyóirat, egyéb információhordozó költsége | U125: =SUMIF(kvátf.!E:E,KvZsz!A125,kvátf.!D:D) -> 0 | V125: 0 | W125: =SUMIF('Terv-segédlet'!$B:$B,KvZsz!$A125,'Terv-segédlet'!E:E) -> 0 | X125: =SUMIF('Terv-segédlet'!$B:$B,KvZsz!$A125,'Terv-segédlet'!F:F) -> 0 | Y125: =SUMIF('Terv-segédlet'!$B:$B,KvZsz!$A125,'Terv-segédlet'!G:G) -> 0 | Z125: =SUMIF('Terv-segédlet'!$B:$B,KvZsz!$A125,'Terv-segédlet'!H:H) -> 0 | AA125: =SUMIF('Terv-segédlet'!$B:$B,KvZsz!$A125,'Terv-segédlet'!I:I) -> 0 | AB125: =SUMIF('Terv-segédlet'!$B:$B,KvZsz!$A125,'Terv-segédlet'!J:J) -> 0 | AC125: =SUMIF('Terv-segédlet'!$B:$B,KvZsz!$A125,'Terv-segédlet'!K:K) -> 0 | AD125: 68930 | AE125: =SUMIF(V!$A:$A,$A125,V!$L:$L)+SUMIF(bank!$A:$A,AE$1&$A125,bank!$N:$N) -> 14346 | AF125: =SUMIF(Gy!$A:$A,$A125,Gy!$L:$L)+SUMIF(bank!$A:$A,AF$1&$A125,bank!$N:$N) -> 0 | AG125: =SUMIF(K!$A:$A,$A125,K!$L:$L)+SUMIF(bank!$A:$A,AG$1&$A125,bank!$N:$N) -> 52450 | AH125: =SUMIF(Mk!$A:$A,$A125,Mk!$L:$L)+SUMIF(bank!$A:$A,AH$1&$A125,bank!$N:$N) -> 0 | AI125: =SUMIF(M!$A:$A,$A125,M!$L:$L)+SUMIF(bank!$A:$A,AI$1&$A125,bank!$N:$N) -> 2134 | AJ125: =SUMIF(P!$A:$A,$A125,P!$L:$L)+SUMIF(bank!$A:$A,AJ$1&$A125,bank!$N:$N) -> 0 | AK125: =SUMIF(Zs!$A:$A,$A125,Zs!$L:$L)+SUMIF(bank!$A:$A,AK$1&$A125,bank!$N:$N) -> 0 | AL125: kiadás | AN125: 102-119 sorokban ki nem emelt szolgáltatások (pl. vásárolt élelmezés - nem reprezentációs célú, tagdíjak, parkolási díj, autópályadíj, fénymásolás, mosatás, gépkocsi mosás, szemétszállítás, stb.)
A126: k124 | C126: 124 | E126: c) Egyéb szolgáltatások költsége (125..127+131..132) | G126: Épületüzemeltetési egyéb szolgáltatások | W126: =SUMIF('Terv-segédlet'!$B:$B,KvZsz!$A126,'Terv-segédlet'!E:E) -> 0 | X126: =SUMIF('Terv-segédlet'!$B:$B,KvZsz!$A126,'Terv-segédlet'!F:F) -> 0 | Y126: =SUMIF('Terv-segédlet'!$B:$B,KvZsz!$A126,'Terv-segédlet'!G:G) -> 0 | Z126: =SUMIF('Terv-segédlet'!$B:$B,KvZsz!$A126,'Terv-segédlet'!H:H) -> 0 | AA126: =SUMIF('Terv-segédlet'!$B:$B,KvZsz!$A126,'Terv-segédlet'!I:I) -> 0 | AB126: =SUMIF('Terv-segédlet'!$B:$B,KvZsz!$A126,'Terv-segédlet'!J:J) -> 0 | AC126: =SUMIF('Terv-segédlet'!$B:$B,KvZsz!$A126,'Terv-segédlet'!K:K) -> 0 | AL126: kiadás
A127: k125 | B127: * | C127: 125 | E127: -Hatósági igazgatási, szolgáltatási díjak, illetékek | G127: Tagdíjak | U127: =SUMIF(kvátf.!E:E,KvZsz!A127,kvátf.!D:D) -> 0 | V127: =SUM(W127:AC127) -> 0 | W127: =SUMIF('Terv-segédlet'!$B:$B,KvZsz!$A127,'Terv-segédlet'!E:E) -> 0 | X127: =SUMIF('Terv-segédlet'!$B:$B,KvZsz!$A127,'Terv-segédlet'!F:F) -> 0 | Y127: =SUMIF('Terv-segédlet'!$B:$B,KvZsz!$A127,'Terv-segédlet'!G:G) -> 0 | Z127: =SUMIF('Terv-segédlet'!$B:$B,KvZsz!$A127,'Terv-segédlet'!H:H) -> 0 | AA127: =SUMIF('Terv-segédlet'!$B:$B,KvZsz!$A127,'Terv-segédlet'!I:I) -> 0 | AB127: =SUMIF('Terv-segédlet'!$B:$B,KvZsz!$A127,'Terv-segédlet'!J:J) -> 0 | AC127: =SUMIF('Terv-segédlet'!$B:$B,KvZsz!$A127,'Terv-segédlet'!K:K) -> 0 | AD127: =SUM(AE127:AK127) -> 0 | AE127: =SUMIF(V!$A:$A,$A127,V!$L:$L)+SUMIF(bank!$A:$A,AE$1&$A127,bank!$N:$N) -> 0 | AF127: =SUMIF(Gy!$A:$A,$A127,Gy!$L:$L)+SUMIF(bank!$A:$A,AF$1&$A127,bank!$N:$N) -> 0 | AG127: =SUMIF(K!$A:$A,$A127,K!$L:$L)+SUMIF(bank!$A:$A,AG$1&$A127,bank!$N:$N) -> 0 | AH127: =SUMIF(Mk!$A:$A,$A127,Mk!$L:$L)+SUMIF(bank!$A:$A,AH$1&$A127,bank!$N:$N) -> 0 | AI127: =SUMIF(M!$A:$A,$A127,M!$L:$L)+SUMIF(bank!$A:$A,AI$1&$A127,bank!$N:$N) -> 0 | AJ127: =SUMIF(P!$A:$A,$A127,P!$L:$L)+SUMIF(bank!$A:$A,AJ$1&$A127,bank!$N:$N) -> 0 | AK127: =SUMIF(Zs!$A:$A,$A127,Zs!$L:$L)+SUMIF(bank!$A:$A,AK$1&$A127,bank!$N:$N) -> 0 | AL127: kiadás | AN127: közjegyzői díj, illetékek, műszaki engedélyek hatósági díja, stb.
A128: k126 | B128: * | C128: 126 | E128: -Pénzügyi, befektetési szolgáltatás díja (bankktg) | G128: Távfűtés | U128: =SUMIF(kvátf.!E:E,KvZsz!A128,kvátf.!D:D) -> 215920 | V128: 65000 | W128: =SUMIF('Terv-segédlet'!$B:$B,KvZsz!$A128,'Terv-segédlet'!E:E) -> 50000 | X128: =SUMIF('Terv-segédlet'!$B:$B,KvZsz!$A128,'Terv-segédlet'!F:F) -> 1000 | Y128: =SUMIF('Terv-segédlet'!$B:$B,KvZsz!$A128,'Terv-segédlet'!G:G) -> 1000 | Z128: =SUMIF('Terv-segédlet'!$B:$B,KvZsz!$A128,'Terv-segédlet'!H:H) -> 1000 | AA128: =SUMIF('Terv-segédlet'!$B:$B,KvZsz!$A128,'Terv-segédlet'!I:I) -> 10000 | AB128: =SUMIF('Terv-segédlet'!$B:$B,KvZsz!$A128,'Terv-segédlet'!J:J) -> 1000 | AC128: =SUMIF('Terv-segédlet'!$B:$B,KvZsz!$A128,'Terv-segédlet'!K:K) -> 1000 | AD128: 21173 | AE128: =SUMIF(V!$A:$A,$A128,V!$L:$L)+SUMIF(bank!$A:$A,AE$1&$A128,bank!$N:$N) -> 11848 | AF128: =SUMIF(Gy!$A:$A,$A128,Gy!$L:$L)+SUMIF(bank!$A:$A,AF$1&$A128,bank!$N:$N) -> 226 | AG128: =SUMIF(K!$A:$A,$A128,K!$L:$L)+SUMIF(bank!$A:$A,AG$1&$A128,bank!$N:$N) -> 456 | AH128: =SUMIF(Mk!$A:$A,$A128,Mk!$L:$L)+SUMIF(bank!$A:$A,AH$1&$A128,bank!$N:$N) -> 7734 | AI128: =SUMIF(M!$A:$A,$A128,M!$L:$L)+SUMIF(bank!$A:$A,AI$1&$A128,bank!$N:$N) -> 709 | AJ128: =SUMIF(P!$A:$A,$A128,P!$L:$L)+SUMIF(bank!$A:$A,AJ$1&$A128,bank!$N:$N) -> 100 | AK128: =SUMIF(Zs!$A:$A,$A128,Zs!$L:$L)+SUMIF(bank!$A:$A,AK$1&$A128,bank!$N:$N) -> 100 | AL128: kiadás | AM128: 0.3257384615 | AN128: bankjutalék, bankköltség, banki kezelési díjak
A129: k127 | C129: 127 | E129: -Biztosítási díjak (128..130) | G129: Egészségügyi, foglalkozás egészségügyi szolgáltatás | W129: =SUMIF('Terv-segédlet'!$B:$B,KvZsz!$A129,'Terv-segédlet'!E:E) -> 0 | X129: =SUMIF('Terv-segédlet'!$B:$B,KvZsz!$A129,'Terv-segédlet'!F:F) -> 0 | Y129: =SUMIF('Terv-segédlet'!$B:$B,KvZsz!$A129,'Terv-segédlet'!G:G) -> 0 | Z129: =SUMIF('Terv-segédlet'!$B:$B,KvZsz!$A129,'Terv-segédlet'!H:H) -> 0 | AA129: =SUMIF('Terv-segédlet'!$B:$B,KvZsz!$A129,'Terv-segédlet'!I:I) -> 0 | AB129: =SUMIF('Terv-segédlet'!$B:$B,KvZsz!$A129,'Terv-segédlet'!J:J) -> 0 | AC129: =SUMIF('Terv-segédlet'!$B:$B,KvZsz!$A129,'Terv-segédlet'!K:K) -> 0 | AL129: kiadás
A130: k128 | B130: * | C130: 128 | E130: Ingatlan | G130: Orvosi, egészségügyi szolgáltatás | U130: =SUMIF(kvátf.!E:E,KvZsz!A130,kvátf.!D:D) -> 203320 | V130: =SUM(W130:AC130) -> 203310 | W130: =SUMIF('Terv-segédlet'!$B:$B,KvZsz!$A130,'Terv-segédlet'!E:E) -> 121420 | X130: =SUMIF('Terv-segédlet'!$B:$B,KvZsz!$A130,'Terv-segédlet'!F:F) -> 21260 | Y130: =SUMIF('Terv-segédlet'!$B:$B,KvZsz!$A130,'Terv-segédlet'!G:G) -> 15690 | Z130: =SUMIF('Terv-segédlet'!$B:$B,KvZsz!$A130,'Terv-segédlet'!H:H) -> 18570 | AA130: =SUMIF('Terv-segédlet'!$B:$B,KvZsz!$A130,'Terv-segédlet'!I:I) -> 26370 | AB130: =SUMIF('Terv-segédlet'!$B:$B,KvZsz!$A130,'Terv-segédlet'!J:J) -> 0 | AC130: =SUMIF('Terv-segédlet'!$B:$B,KvZsz!$A130,'Terv-segédlet'!K:K) -> 0 | AD130: =SUM(AE130:AK130) -> 204280 | AE130: =SUMIF(V!$A:$A,$A130,V!$L:$L)+SUMIF(bank!$A:$A,AE$1&$A130,bank!$N:$N) -> 121430 | AF130: =SUMIF(Gy!$A:$A,$A130,Gy!$L:$L)+SUMIF(bank!$A:$A,AF$1&$A130,bank!$N:$N) -> 21620 | AG130: =SUMIF(K!$A:$A,$A130,K!$L:$L)+SUMIF(bank!$A:$A,AG$1&$A130,bank!$N:$N) -> 16290 | AH130: =SUMIF(Mk!$A:$A,$A130,Mk!$L:$L)+SUMIF(bank!$A:$A,AH$1&$A130,bank!$N:$N) -> 18570 | AI130: =SUMIF(M!$A:$A,$A130,M!$L:$L)+SUMIF(bank!$A:$A,AI$1&$A130,bank!$N:$N) -> 26370 | AJ130: =SUMIF(P!$A:$A,$A130,P!$L:$L)+SUMIF(bank!$A:$A,AJ$1&$A130,bank!$N:$N) -> 0 | AK130: =SUMIF(Zs!$A:$A,$A130,Zs!$L:$L)+SUMIF(bank!$A:$A,AK$1&$A130,bank!$N:$N) -> 0 | AL130: kiadás | AM130: 1.004771039 | AN130: vagyonbiztosítás
A131: k129 | B131: * | C131: 129 | E131: Gépjárművek | G131: Egyéb igénybe vett szolgáltatás | U131: =SUMIF(kvátf.!E:E,KvZsz!A131,kvátf.!D:D) -> 66695 | V131: 67000 | W131: =SUMIF('Terv-segédlet'!$B:$B,KvZsz!$A131,'Terv-segédlet'!E:E) -> 67000 | X131: =SUMIF('Terv-segédlet'!$B:$B,KvZsz!$A131,'Terv-segédlet'!F:F) -> 0 | Y131: =SUMIF('Terv-segédlet'!$B:$B,KvZsz!$A131,'Terv-segédlet'!G:G) -> 0 | Z131: =SUMIF('Terv-segédlet'!$B:$B,KvZsz!$A131,'Terv-segédlet'!H:H) -> 0 | AA131: =SUMIF('Terv-segédlet'!$B:$B,KvZsz!$A131,'Terv-segédlet'!I:I) -> 0 | AB131: =SUMIF('Terv-segédlet'!$B:$B,KvZsz!$A131,'Terv-segédlet'!J:J) -> 0 | AC131: =SUMIF('Terv-segédlet'!$B:$B,KvZsz!$A131,'Terv-segédlet'!K:K) -> 0 | AD131: 93786 | AE131: =SUMIF(V!$A:$A,$A131,V!$L:$L)+SUMIF(bank!$A:$A,AE$1&$A131,bank!$N:$N) -> 93786 | AF131: =SUMIF(Gy!$A:$A,$A131,Gy!$L:$L)+SUMIF(bank!$A:$A,AF$1&$A131,bank!$N:$N) -> 0 | AG131: =SUMIF(K!$A:$A,$A131,K!$L:$L)+SUMIF(bank!$A:$A,AG$1&$A131,bank!$N:$N) -> 0 | AH131: =SUMIF(Mk!$A:$A,$A131,Mk!$L:$L)+SUMIF(bank!$A:$A,AH$1&$A131,bank!$N:$N) -> 0 | AI131: =SUMIF(M!$A:$A,$A131,M!$L:$L)+SUMIF(bank!$A:$A,AI$1&$A131,bank!$N:$N) -> 0 | AJ131: =SUMIF(P!$A:$A,$A131,P!$L:$L)+SUMIF(bank!$A:$A,AJ$1&$A131,bank!$N:$N) -> 0 | AK131: =SUMIF(Zs!$A:$A,$A131,Zs!$L:$L)+SUMIF(bank!$A:$A,AK$1&$A131,bank!$N:$N) -> 0 | AL131: kiadás | AM131: 1.399791045 | AN131: CASCO, kötelező biztosítás
A132: k130 | B132: * | C132: 130 | E132: Egyéb | F132: Egyéb szolgáltatások költsége (104..108) | U132: =SUMIF(kvátf.!E:E,KvZsz!A132,kvátf.!D:D) -> 0 | V132: 0 | W132: =SUMIF('Terv-segédlet'!$B:$B,KvZsz!$A132,'Terv-segédlet'!E:E) -> 0 | X132: =SUMIF('Terv-segédlet'!$B:$B,KvZsz!$A132,'Terv-segédlet'!F:F) -> 0 | Y132: =SUMIF('Terv-segédlet'!$B:$B,KvZsz!$A132,'Terv-segédlet'!G:G) -> 0 | Z132: =SUMIF('Terv-segédlet'!$B:$B,KvZsz!$A132,'Terv-segédlet'!H:H) -> 0 | AA132: =SUMIF('Terv-segédlet'!$B:$B,KvZsz!$A132,'Terv-segédlet'!I:I) -> 0 | AB132: =SUMIF('Terv-segédlet'!$B:$B,KvZsz!$A132,'Terv-segédlet'!J:J) -> 0 | AC132: =SUMIF('Terv-segédlet'!$B:$B,KvZsz!$A132,'Terv-segédlet'!K:K) -> 0 | AD132: 0 | AE132: =SUMIF(V!$A:$A,$A132,V!$L:$L)+SUMIF(bank!$A:$A,AE$1&$A132,bank!$N:$N) -> 0 | AF132: =SUMIF(Gy!$A:$A,$A132,Gy!$L:$L)+SUMIF(bank!$A:$A,AF$1&$A132,bank!$N:$N) -> 0 | AG132: =SUMIF(K!$A:$A,$A132,K!$L:$L)+SUMIF(bank!$A:$A,AG$1&$A132,bank!$N:$N) -> 0 | AH132: =SUMIF(Mk!$A:$A,$A132,Mk!$L:$L)+SUMIF(bank!$A:$A,AH$1&$A132,bank!$N:$N) -> 0 | AI132: =SUMIF(M!$A:$A,$A132,M!$L:$L)+SUMIF(bank!$A:$A,AI$1&$A132,bank!$N:$N) -> 0 | AJ132: =SUMIF(P!$A:$A,$A132,P!$L:$L)+SUMIF(bank!$A:$A,AJ$1&$A132,bank!$N:$N) -> 0 | AK132: =SUMIF(Zs!$A:$A,$A132,Zs!$L:$L)+SUMIF(bank!$A:$A,AK$1&$A132,bank!$N:$N) -> 0 | AL132: kiadás | AN132: utasbiztosítás, felelősségbiztosítás
A133: k131 | B133: * | C133: 131 | E133: -Költségként elszámolható adók, járulékok | G133: Hatósági igazgatási, szolgáltatási díjak, illetékek | U133: =SUMIF(kvátf.!E:E,KvZsz!A133,kvátf.!D:D) -> 0 | V133: 0 | W133: =SUMIF('Terv-segédlet'!$B:$B,KvZsz!$A133,'Terv-segédlet'!E:E) -> 0 | X133: =SUMIF('Terv-segédlet'!$B:$B,KvZsz!$A133,'Terv-segédlet'!F:F) -> 0 | Y133: =SUMIF('Terv-segédlet'!$B:$B,KvZsz!$A133,'Terv-segédlet'!G:G) -> 0 | Z133: =SUMIF('Terv-segédlet'!$B:$B,KvZsz!$A133,'Terv-segédlet'!H:H) -> 0 | AA133: =SUMIF('Terv-segédlet'!$B:$B,KvZsz!$A133,'Terv-segédlet'!I:I) -> 0 | AB133: =SUMIF('Terv-segédlet'!$B:$B,KvZsz!$A133,'Terv-segédlet'!J:J) -> 0 | AC133: =SUMIF('Terv-segédlet'!$B:$B,KvZsz!$A133,'Terv-segédlet'!K:K) -> 0 | AD133: 0 | AE133: =SUMIF(V!$A:$A,$A133,V!$L:$L)+SUMIF(bank!$A:$A,AE$1&$A133,bank!$N:$N) -> 0 | AF133: =SUMIF(Gy!$A:$A,$A133,Gy!$L:$L)+SUMIF(bank!$A:$A,AF$1&$A133,bank!$N:$N) -> 0 | AG133: =SUMIF(K!$A:$A,$A133,K!$L:$L)+SUMIF(bank!$A:$A,AG$1&$A133,bank!$N:$N) -> 0 | AH133: =SUMIF(Mk!$A:$A,$A133,Mk!$L:$L)+SUMIF(bank!$A:$A,AH$1&$A133,bank!$N:$N) -> 0 | AI133: =SUMIF(M!$A:$A,$A133,M!$L:$L)+SUMIF(bank!$A:$A,AI$1&$A133,bank!$N:$N) -> 0 | AJ133: =SUMIF(P!$A:$A,$A133,P!$L:$L)+SUMIF(bank!$A:$A,AJ$1&$A133,bank!$N:$N) -> 0 | AK133: =SUMIF(Zs!$A:$A,$A133,Zs!$L:$L)+SUMIF(bank!$A:$A,AK$1&$A133,bank!$N:$N) -> 0 | AL133: kiadás | AN133: pl. baleseti adó, cégautóadó
A134: k132 | B134: * | C134: 132 | E134: -Különféle egyéb szolgáltatások költsége | G134: Pénzügyi, befektetési szolgáltatási díjak | U134: =SUMIF(kvátf.!E:E,KvZsz!A134,kvátf.!D:D) -> 0 | V134: 0 | W134: =SUMIF('Terv-segédlet'!$B:$B,KvZsz!$A134,'Terv-segédlet'!E:E) -> 0 | X134: =SUMIF('Terv-segédlet'!$B:$B,KvZsz!$A134,'Terv-segédlet'!F:F) -> 0 | Y134: =SUMIF('Terv-segédlet'!$B:$B,KvZsz!$A134,'Terv-segédlet'!G:G) -> 0 | Z134: =SUMIF('Terv-segédlet'!$B:$B,KvZsz!$A134,'Terv-segédlet'!H:H) -> 0 | AA134: =SUMIF('Terv-segédlet'!$B:$B,KvZsz!$A134,'Terv-segédlet'!I:I) -> 0 | AB134: =SUMIF('Terv-segédlet'!$B:$B,KvZsz!$A134,'Terv-segédlet'!J:J) -> 0 | AC134: =SUMIF('Terv-segédlet'!$B:$B,KvZsz!$A134,'Terv-segédlet'!K:K) -> 0 | AD134: 0 | AE134: =SUMIF(V!$A:$A,$A134,V!$L:$L)+SUMIF(bank!$A:$A,AE$1&$A134,bank!$N:$N) -> 0 | AF134: =SUMIF(Gy!$A:$A,$A134,Gy!$L:$L)+SUMIF(bank!$A:$A,AF$1&$A134,bank!$N:$N) -> 0 | AG134: =SUMIF(K!$A:$A,$A134,K!$L:$L)+SUMIF(bank!$A:$A,AG$1&$A134,bank!$N:$N) -> 0 | AH134: =SUMIF(Mk!$A:$A,$A134,Mk!$L:$L)+SUMIF(bank!$A:$A,AH$1&$A134,bank!$N:$N) -> 0 | AI134: =SUMIF(M!$A:$A,$A134,M!$L:$L)+SUMIF(bank!$A:$A,AI$1&$A134,bank!$N:$N) -> 0 | AJ134: =SUMIF(P!$A:$A,$A134,P!$L:$L)+SUMIF(bank!$A:$A,AJ$1&$A134,bank!$N:$N) -> 0 | AK134: =SUMIF(Zs!$A:$A,$A134,Zs!$L:$L)+SUMIF(bank!$A:$A,AK$1&$A134,bank!$N:$N) -> 0 | AL134: kiadás | AN134: nem jellemző kiadás, a 125-131 sorokban fel nem sorolt, igénybe vett hatósági szolgáltatások díja
A135: k133 | B135: * | C135: 133 | E135: d) Eladott áruk beszerzési értéke | G135: Biztosítási díjak | U135: =SUMIF(kvátf.!E:E,KvZsz!A135,kvátf.!D:D) -> 0 | V135: 0 | W135: =SUMIF('Terv-segédlet'!$B:$B,KvZsz!$A135,'Terv-segédlet'!E:E) -> 0 | X135: =SUMIF('Terv-segédlet'!$B:$B,KvZsz!$A135,'Terv-segédlet'!F:F) -> 0 | Y135: =SUMIF('Terv-segédlet'!$B:$B,KvZsz!$A135,'Terv-segédlet'!G:G) -> 0 | Z135: =SUMIF('Terv-segédlet'!$B:$B,KvZsz!$A135,'Terv-segédlet'!H:H) -> 0 | AA135: =SUMIF('Terv-segédlet'!$B:$B,KvZsz!$A135,'Terv-segédlet'!I:I) -> 0 | AB135: =SUMIF('Terv-segédlet'!$B:$B,KvZsz!$A135,'Terv-segédlet'!J:J) -> 0 | AC135: =SUMIF('Terv-segédlet'!$B:$B,KvZsz!$A135,'Terv-segédlet'!K:K) -> 0 | AD135: 0 | AE135: =SUMIF(V!$A:$A,$A135,V!$L:$L)+SUMIF(bank!$A:$A,AE$1&$A135,bank!$N:$N) -> 0 | AF135: =SUMIF(Gy!$A:$A,$A135,Gy!$L:$L)+SUMIF(bank!$A:$A,AF$1&$A135,bank!$N:$N) -> 0 | AG135: =SUMIF(K!$A:$A,$A135,K!$L:$L)+SUMIF(bank!$A:$A,AG$1&$A135,bank!$N:$N) -> 0 | AH135: =SUMIF(Mk!$A:$A,$A135,Mk!$L:$L)+SUMIF(bank!$A:$A,AH$1&$A135,bank!$N:$N) -> 0 | AI135: =SUMIF(M!$A:$A,$A135,M!$L:$L)+SUMIF(bank!$A:$A,AI$1&$A135,bank!$N:$N) -> 0 | AJ135: =SUMIF(P!$A:$A,$A135,P!$L:$L)+SUMIF(bank!$A:$A,AJ$1&$A135,bank!$N:$N) -> 0 | AK135: =SUMIF(Zs!$A:$A,$A135,Zs!$L:$L)+SUMIF(bank!$A:$A,AK$1&$A135,bank!$N:$N) -> 0 | AL135: kiadás | AM135: =IF(AND(OR(V135<>0,AD135<>0),V135<>0),ABS(AD135/V135),"") ->  | AN135: eladásra vásárolt áruk értéke - nem összesítő sor!
A136: k134 | B136: * | C136: =+C135+1 -> 134 | E136: ebből Iratterjesztés költsége | U136: =SUMIF(kvátf.!E:E,KvZsz!A136,kvátf.!D:D) -> 0 | V136: 0 | W136: =SUMIF('Terv-segédlet'!$B:$B,KvZsz!$A136,'Terv-segédlet'!E:E) -> 0 | X136: =SUMIF('Terv-segédlet'!$B:$B,KvZsz!$A136,'Terv-segédlet'!F:F) -> 0 | Y136: =SUMIF('Terv-segédlet'!$B:$B,KvZsz!$A136,'Terv-segédlet'!G:G) -> 0 | Z136: =SUMIF('Terv-segédlet'!$B:$B,KvZsz!$A136,'Terv-segédlet'!H:H) -> 0 | AA136: =SUMIF('Terv-segédlet'!$B:$B,KvZsz!$A136,'Terv-segédlet'!I:I) -> 0 | AB136: =SUMIF('Terv-segédlet'!$B:$B,KvZsz!$A136,'Terv-segédlet'!J:J) -> 0 | AC136: =SUMIF('Terv-segédlet'!$B:$B,KvZsz!$A136,'Terv-segédlet'!K:K) -> 0 | AD136: 71254 | AE136: =SUMIF(V!$A:$A,$A136,V!$L:$L)+SUMIF(bank!$A:$A,AE$1&$A136,bank!$N:$N) -> 71254 | AF136: =SUMIF(Gy!$A:$A,$A136,Gy!$L:$L)+SUMIF(bank!$A:$A,AF$1&$A136,bank!$N:$N) -> 0 | AG136: =SUMIF(K!$A:$A,$A136,K!$L:$L)+SUMIF(bank!$A:$A,AG$1&$A136,bank!$N:$N) -> 0 | AH136: =SUMIF(Mk!$A:$A,$A136,Mk!$L:$L)+SUMIF(bank!$A:$A,AH$1&$A136,bank!$N:$N) -> 0 | AI136: =SUMIF(M!$A:$A,$A136,M!$L:$L)+SUMIF(bank!$A:$A,AI$1&$A136,bank!$N:$N) -> 0 | AJ136: =SUMIF(P!$A:$A,$A136,P!$L:$L)+SUMIF(bank!$A:$A,AJ$1&$A136,bank!$N:$N) -> 0 | AK136: =SUMIF(Zs!$A:$A,$A136,Zs!$L:$L)+SUMIF(bank!$A:$A,AK$1&$A136,bank!$N:$N) -> 0 | AL136: kiadás | AN136: a 133 sor értékéből az eladásra vásárolt iratterjesztési cikkek értéke
A137: k135 | B137: * | C137: 135 | E137: e) Eladott közvetített szogláltatások értéke | G137: Költségként elszámolható adók, járulékok, termékdíjak | U137: =SUMIF(kvátf.!E:E,KvZsz!A137,kvátf.!D:D) -> 0 | V137: 0 | W137: =SUMIF('Terv-segédlet'!$B:$B,KvZsz!$A137,'Terv-segédlet'!E:E) -> 0 | X137: =SUMIF('Terv-segédlet'!$B:$B,KvZsz!$A137,'Terv-segédlet'!F:F) -> 0 | Y137: =SUMIF('Terv-segédlet'!$B:$B,KvZsz!$A137,'Terv-segédlet'!G:G) -> 0 | Z137: =SUMIF('Terv-segédlet'!$B:$B,KvZsz!$A137,'Terv-segédlet'!H:H) -> 0 | AA137: =SUMIF('Terv-segédlet'!$B:$B,KvZsz!$A137,'Terv-segédlet'!I:I) -> 0 | AB137: =SUMIF('Terv-segédlet'!$B:$B,KvZsz!$A137,'Terv-segédlet'!J:J) -> 0 | AC137: =SUMIF('Terv-segédlet'!$B:$B,KvZsz!$A137,'Terv-segédlet'!K:K) -> 0 | AD137: 0 | AE137: =SUMIF(V!$A:$A,$A137,V!$L:$L)+SUMIF(bank!$A:$A,AE$1&$A137,bank!$N:$N) -> 0 | AF137: =SUMIF(Gy!$A:$A,$A137,Gy!$L:$L)+SUMIF(bank!$A:$A,AF$1&$A137,bank!$N:$N) -> 0 | AG137: =SUMIF(K!$A:$A,$A137,K!$L:$L)+SUMIF(bank!$A:$A,AG$1&$A137,bank!$N:$N) -> 0 | AH137: =SUMIF(Mk!$A:$A,$A137,Mk!$L:$L)+SUMIF(bank!$A:$A,AH$1&$A137,bank!$N:$N) -> 0 | AI137: =SUMIF(M!$A:$A,$A137,M!$L:$L)+SUMIF(bank!$A:$A,AI$1&$A137,bank!$N:$N) -> 0 | AJ137: =SUMIF(P!$A:$A,$A137,P!$L:$L)+SUMIF(bank!$A:$A,AJ$1&$A137,bank!$N:$N) -> 0 | AK137: =SUMIF(Zs!$A:$A,$A137,Zs!$L:$L)+SUMIF(bank!$A:$A,AK$1&$A137,bank!$N:$N) -> 0 | AL137: kiadás | AN137: továbbszámlázott szolgáltatások értéke (pl.a rezsiszámla értékéből továbbszámlázott rész, továbbszámlázort telefonköltség)
A138: k136 | C138: 136 | E138: 9. Személyi jellegű ráfordítások (137+143+160) | W138: =SUMIF('Terv-segédlet'!$B:$B,KvZsz!$A138,'Terv-segédlet'!E:E) -> 0 | X138: =SUMIF('Terv-segédlet'!$B:$B,KvZsz!$A138,'Terv-segédlet'!F:F) -> 0 | Y138: =SUMIF('Terv-segédlet'!$B:$B,KvZsz!$A138,'Terv-segédlet'!G:G) -> 0 | Z138: =SUMIF('Terv-segédlet'!$B:$B,KvZsz!$A138,'Terv-segédlet'!H:H) -> 0 | AA138: =SUMIF('Terv-segédlet'!$B:$B,KvZsz!$A138,'Terv-segédlet'!I:I) -> 0 | AB138: =SUMIF('Terv-segédlet'!$B:$B,KvZsz!$A138,'Terv-segédlet'!J:J) -> 0 | AC138: =SUMIF('Terv-segédlet'!$B:$B,KvZsz!$A138,'Terv-segédlet'!K:K) -> 0 | AL138: kiadás | AN138: 54..56+82%
A139: k137 | C139: 137 | E139: a) Bérköltség (138..142) | W139: =SUMIF('Terv-segédlet'!$B:$B,KvZsz!$A139,'Terv-segédlet'!E:E) -> 0 | X139: =SUMIF('Terv-segédlet'!$B:$B,KvZsz!$A139,'Terv-segédlet'!F:F) -> 0 | Y139: =SUMIF('Terv-segédlet'!$B:$B,KvZsz!$A139,'Terv-segédlet'!G:G) -> 0 | Z139: =SUMIF('Terv-segédlet'!$B:$B,KvZsz!$A139,'Terv-segédlet'!H:H) -> 0 | AA139: =SUMIF('Terv-segédlet'!$B:$B,KvZsz!$A139,'Terv-segédlet'!I:I) -> 0 | AB139: =SUMIF('Terv-segédlet'!$B:$B,KvZsz!$A139,'Terv-segédlet'!J:J) -> 0 | AC139: =SUMIF('Terv-segédlet'!$B:$B,KvZsz!$A139,'Terv-segédlet'!K:K) -> 0 | AL139: kiadás
A140: k138 | B140: * | C140: 138 | E140: - Lelkészek illetménye egyházi szolgálatért | U140: =SUMIF(kvátf.!E:E,KvZsz!A140,kvátf.!D:D) -> 1277000 | V140: =SUM(W140:AC140) -> 1574676 | W140: =SUMIF('Terv-segédlet'!$B:$B,KvZsz!$A140,'Terv-segédlet'!E:E) -> 1574676 | X140: =SUMIF('Terv-segédlet'!$B:$B,KvZsz!$A140,'Terv-segédlet'!F:F) -> 0 | Y140: =SUMIF('Terv-segédlet'!$B:$B,KvZsz!$A140,'Terv-segédlet'!G:G) -> 0 | Z140: =SUMIF('Terv-segédlet'!$B:$B,KvZsz!$A140,'Terv-segédlet'!H:H) -> 0 | AA140: =SUMIF('Terv-segédlet'!$B:$B,KvZsz!$A140,'Terv-segédlet'!I:I) -> 0 | AB140: =SUMIF('Terv-segédlet'!$B:$B,KvZsz!$A140,'Terv-segédlet'!J:J) -> 0 | AC140: =SUMIF('Terv-segédlet'!$B:$B,KvZsz!$A140,'Terv-segédlet'!K:K) -> 0 | AD140: =SUM(AE140:AK140) -> 1588013 | AE140: =SUMIF(V!$A:$A,$A140,V!$L:$L)+SUMIF(bank!$A:$A,AE$1&$A140,bank!$N:$N) -> 1588013 | AF140: =SUMIF(Gy!$A:$A,$A140,Gy!$L:$L)+SUMIF(bank!$A:$A,AF$1&$A140,bank!$N:$N) -> 0 | AG140: =SUMIF(K!$A:$A,$A140,K!$L:$L)+SUMIF(bank!$A:$A,AG$1&$A140,bank!$N:$N) -> 0 | AH140: =SUMIF(Mk!$A:$A,$A140,Mk!$L:$L)+SUMIF(bank!$A:$A,AH$1&$A140,bank!$N:$N) -> 0 | AI140: =SUMIF(M!$A:$A,$A140,M!$L:$L)+SUMIF(bank!$A:$A,AI$1&$A140,bank!$N:$N) -> 0 | AJ140: =SUMIF(P!$A:$A,$A140,P!$L:$L)+SUMIF(bank!$A:$A,AJ$1&$A140,bank!$N:$N) -> 0 | AK140: =SUMIF(Zs!$A:$A,$A140,Zs!$L:$L)+SUMIF(bank!$A:$A,AK$1&$A140,bank!$N:$N) -> 0 | AL140: kiadás | AM140: 1.008469679 | AN140: lelkészi illetmény
A141: k139 | B141: * | C141: 139 | E141: - Lelkészi egyéb juttatások | U141: =SUMIF(kvátf.!E:E,KvZsz!A141,kvátf.!D:D) -> 0 | V141: 0 | W141: =SUMIF('Terv-segédlet'!$B:$B,KvZsz!$A141,'Terv-segédlet'!E:E) -> 0 | X141: =SUMIF('Terv-segédlet'!$B:$B,KvZsz!$A141,'Terv-segédlet'!F:F) -> 0 | Y141: =SUMIF('Terv-segédlet'!$B:$B,KvZsz!$A141,'Terv-segédlet'!G:G) -> 0 | Z141: =SUMIF('Terv-segédlet'!$B:$B,KvZsz!$A141,'Terv-segédlet'!H:H) -> 0 | AA141: =SUMIF('Terv-segédlet'!$B:$B,KvZsz!$A141,'Terv-segédlet'!I:I) -> 0 | AB141: =SUMIF('Terv-segédlet'!$B:$B,KvZsz!$A141,'Terv-segédlet'!J:J) -> 0 | AC141: =SUMIF('Terv-segédlet'!$B:$B,KvZsz!$A141,'Terv-segédlet'!K:K) -> 0 | AD141: 0 | AE141: =SUMIF(V!$A:$A,$A141,V!$L:$L)+SUMIF(bank!$A:$A,AE$1&$A141,bank!$N:$N) -> 0 | AF141: =SUMIF(Gy!$A:$A,$A141,Gy!$L:$L)+SUMIF(bank!$A:$A,AF$1&$A141,bank!$N:$N) -> 0 | AG141: =SUMIF(K!$A:$A,$A141,K!$L:$L)+SUMIF(bank!$A:$A,AG$1&$A141,bank!$N:$N) -> 0 | AH141: =SUMIF(Mk!$A:$A,$A141,Mk!$L:$L)+SUMIF(bank!$A:$A,AH$1&$A141,bank!$N:$N) -> 0 | AI141: =SUMIF(M!$A:$A,$A141,M!$L:$L)+SUMIF(bank!$A:$A,AI$1&$A141,bank!$N:$N) -> 0 | AJ141: =SUMIF(P!$A:$A,$A141,P!$L:$L)+SUMIF(bank!$A:$A,AJ$1&$A141,bank!$N:$N) -> 0 | AK141: =SUMIF(Zs!$A:$A,$A141,Zs!$L:$L)+SUMIF(bank!$A:$A,AK$1&$A141,bank!$N:$N) -> 0 | AL141: kiadás | AN141: lelkésznek pályázathoz kapcsolódó közreműködői díj, stóla
A142: k140 | B142: * | C142: 140 | E142: - Nem lelkészi alkalmazottak illetménye | U142: =SUMIF(kvátf.!E:E,KvZsz!A142,kvátf.!D:D) -> 0 | V142: 0 | W142: =SUMIF('Terv-segédlet'!$B:$B,KvZsz!$A142,'Terv-segédlet'!E:E) -> 0 | X142: =SUMIF('Terv-segédlet'!$B:$B,KvZsz!$A142,'Terv-segédlet'!F:F) -> 0 | Y142: =SUMIF('Terv-segédlet'!$B:$B,KvZsz!$A142,'Terv-segédlet'!G:G) -> 0 | Z142: =SUMIF('Terv-segédlet'!$B:$B,KvZsz!$A142,'Terv-segédlet'!H:H) -> 0 | AA142: =SUMIF('Terv-segédlet'!$B:$B,KvZsz!$A142,'Terv-segédlet'!I:I) -> 0 | AB142: =SUMIF('Terv-segédlet'!$B:$B,KvZsz!$A142,'Terv-segédlet'!J:J) -> 0 | AC142: =SUMIF('Terv-segédlet'!$B:$B,KvZsz!$A142,'Terv-segédlet'!K:K) -> 0 | AD142: 0 | AE142: =SUMIF(V!$A:$A,$A142,V!$L:$L)+SUMIF(bank!$A:$A,AE$1&$A142,bank!$N:$N) -> 0 | AF142: =SUMIF(Gy!$A:$A,$A142,Gy!$L:$L)+SUMIF(bank!$A:$A,AF$1&$A142,bank!$N:$N) -> 0 | AG142: =SUMIF(K!$A:$A,$A142,K!$L:$L)+SUMIF(bank!$A:$A,AG$1&$A142,bank!$N:$N) -> 0 | AH142: =SUMIF(Mk!$A:$A,$A142,Mk!$L:$L)+SUMIF(bank!$A:$A,AH$1&$A142,bank!$N:$N) -> 0 | AI142: =SUMIF(M!$A:$A,$A142,M!$L:$L)+SUMIF(bank!$A:$A,AI$1&$A142,bank!$N:$N) -> 0 | AJ142: =SUMIF(P!$A:$A,$A142,P!$L:$L)+SUMIF(bank!$A:$A,AJ$1&$A142,bank!$N:$N) -> 0 | AK142: =SUMIF(Zs!$A:$A,$A142,Zs!$L:$L)+SUMIF(bank!$A:$A,AK$1&$A142,bank!$N:$N) -> 0 | AL142: kiadás | AN142: nem lelkészi alkalmazottak bruttó illetménye
A143: k141 | B143: * | C143: 141 | E143: - Megbízási díjak | U143: =SUMIF(kvátf.!E:E,KvZsz!A143,kvátf.!D:D) -> 0 | V143: 0 | W143: =SUMIF('Terv-segédlet'!$B:$B,KvZsz!$A143,'Terv-segédlet'!E:E) -> 0 | X143: =SUMIF('Terv-segédlet'!$B:$B,KvZsz!$A143,'Terv-segédlet'!F:F) -> 0 | Y143: =SUMIF('Terv-segédlet'!$B:$B,KvZsz!$A143,'Terv-segédlet'!G:G) -> 0 | Z143: =SUMIF('Terv-segédlet'!$B:$B,KvZsz!$A143,'Terv-segédlet'!H:H) -> 0 | AA143: =SUMIF('Terv-segédlet'!$B:$B,KvZsz!$A143,'Terv-segédlet'!I:I) -> 0 | AB143: =SUMIF('Terv-segédlet'!$B:$B,KvZsz!$A143,'Terv-segédlet'!J:J) -> 0 | AC143: =SUMIF('Terv-segédlet'!$B:$B,KvZsz!$A143,'Terv-segédlet'!K:K) -> 0 | AD143: 0 | AE143: =SUMIF(V!$A:$A,$A143,V!$L:$L)+SUMIF(bank!$A:$A,AE$1&$A143,bank!$N:$N) -> 0 | AF143: =SUMIF(Gy!$A:$A,$A143,Gy!$L:$L)+SUMIF(bank!$A:$A,AF$1&$A143,bank!$N:$N) -> 0 | AG143: =SUMIF(K!$A:$A,$A143,K!$L:$L)+SUMIF(bank!$A:$A,AG$1&$A143,bank!$N:$N) -> 0 | AH143: =SUMIF(Mk!$A:$A,$A143,Mk!$L:$L)+SUMIF(bank!$A:$A,AH$1&$A143,bank!$N:$N) -> 0 | AI143: =SUMIF(M!$A:$A,$A143,M!$L:$L)+SUMIF(bank!$A:$A,AI$1&$A143,bank!$N:$N) -> 0 | AJ143: =SUMIF(P!$A:$A,$A143,P!$L:$L)+SUMIF(bank!$A:$A,AJ$1&$A143,bank!$N:$N) -> 0 | AK143: =SUMIF(Zs!$A:$A,$A143,Zs!$L:$L)+SUMIF(bank!$A:$A,AK$1&$A143,bank!$N:$N) -> 0 | AL143: kiadás | AN143: megbízási szerződés alapján magánszemélynek fizetett bruttó megbízási díj
A144: k142 | B144: * | C144: 142 | E144: - Egyéb munkavégzéshez kapcsolódó juttatások | U144: =SUMIF(kvátf.!E:E,KvZsz!A144,kvátf.!D:D) -> 0 | V144: 325500 | W144: =SUMIF('Terv-segédlet'!$B:$B,KvZsz!$A144,'Terv-segédlet'!E:E) -> 140000 | X144: =SUMIF('Terv-segédlet'!$B:$B,KvZsz!$A144,'Terv-segédlet'!F:F) -> 15000 | Y144: =SUMIF('Terv-segédlet'!$B:$B,KvZsz!$A144,'Terv-segédlet'!G:G) -> 25000 | Z144: =SUMIF('Terv-segédlet'!$B:$B,KvZsz!$A144,'Terv-segédlet'!H:H) -> 25000 | AA144: =SUMIF('Terv-segédlet'!$B:$B,KvZsz!$A144,'Terv-segédlet'!I:I) -> 109000 | AB144: =SUMIF('Terv-segédlet'!$B:$B,KvZsz!$A144,'Terv-segédlet'!J:J) -> 0 | AC144: =SUMIF('Terv-segédlet'!$B:$B,KvZsz!$A144,'Terv-segédlet'!K:K) -> 11500 | AD144: 293100 | AE144: =SUMIF(V!$A:$A,$A144,V!$L:$L)+SUMIF(bank!$A:$A,AE$1&$A144,bank!$N:$N) -> 182600 | AF144: =SUMIF(Gy!$A:$A,$A144,Gy!$L:$L)+SUMIF(bank!$A:$A,AF$1&$A144,bank!$N:$N) -> 12000 | AG144: =SUMIF(K!$A:$A,$A144,K!$L:$L)+SUMIF(bank!$A:$A,AG$1&$A144,bank!$N:$N) -> 22000 | AH144: =SUMIF(Mk!$A:$A,$A144,Mk!$L:$L)+SUMIF(bank!$A:$A,AH$1&$A144,bank!$N:$N) -> 20000 | AI144: =SUMIF(M!$A:$A,$A144,M!$L:$L)+SUMIF(bank!$A:$A,AI$1&$A144,bank!$N:$N) -> 45000 | AJ144: =SUMIF(P!$A:$A,$A144,P!$L:$L)+SUMIF(bank!$A:$A,AJ$1&$A144,bank!$N:$N) -> 0 | AK144: =SUMIF(Zs!$A:$A,$A144,Zs!$L:$L)+SUMIF(bank!$A:$A,AK$1&$A144,bank!$N:$N) -> 11500 | AL144: kiadás | AM144: 0.9004608295 | AN144: közmunkaprogram keretében kifizetett bér, egyházi szolgálatért fizetett bruttó illetmény (kántor, harangozó, stb.)
A145: k143 | C145: 143 | E145: b) Személyi jellegű egyéb kifizetések (144..145+148..150+155..159) | W145: =SUMIF('Terv-segédlet'!$B:$B,KvZsz!$A145,'Terv-segédlet'!E:E) -> 0 | X145: =SUMIF('Terv-segédlet'!$B:$B,KvZsz!$A145,'Terv-segédlet'!F:F) -> 0 | Y145: =SUMIF('Terv-segédlet'!$B:$B,KvZsz!$A145,'Terv-segédlet'!G:G) -> 0 | Z145: =SUMIF('Terv-segédlet'!$B:$B,KvZsz!$A145,'Terv-segédlet'!H:H) -> 0 | AA145: =SUMIF('Terv-segédlet'!$B:$B,KvZsz!$A145,'Terv-segédlet'!I:I) -> 0 | AB145: =SUMIF('Terv-segédlet'!$B:$B,KvZsz!$A145,'Terv-segédlet'!J:J) -> 0 | AC145: =SUMIF('Terv-segédlet'!$B:$B,KvZsz!$A145,'Terv-segédlet'!K:K) -> 0 | AL145: kiadás
A146: k144 | B146: * | C146: 144 | E146: - Napidíj, utiköltség térítés | U146: =SUMIF(kvátf.!E:E,KvZsz!A146,kvátf.!D:D) -> 0 | V146: =SUM(W146:AC146) -> 0 | W146: =SUMIF('Terv-segédlet'!$B:$B,KvZsz!$A146,'Terv-segédlet'!E:E) -> 0 | X146: =SUMIF('Terv-segédlet'!$B:$B,KvZsz!$A146,'Terv-segédlet'!F:F) -> 0 | Y146: =SUMIF('Terv-segédlet'!$B:$B,KvZsz!$A146,'Terv-segédlet'!G:G) -> 0 | Z146: =SUMIF('Terv-segédlet'!$B:$B,KvZsz!$A146,'Terv-segédlet'!H:H) -> 0 | AA146: =SUMIF('Terv-segédlet'!$B:$B,KvZsz!$A146,'Terv-segédlet'!I:I) -> 0 | AB146: =SUMIF('Terv-segédlet'!$B:$B,KvZsz!$A146,'Terv-segédlet'!J:J) -> 0 | AC146: =SUMIF('Terv-segédlet'!$B:$B,KvZsz!$A146,'Terv-segédlet'!K:K) -> 0 | AD146: =SUM(AE146:AK146) -> 0 | AE146: =SUMIF(V!$A:$A,$A146,V!$L:$L)+SUMIF(bank!$A:$A,AE$1&$A146,bank!$N:$N) -> 0 | AF146: =SUMIF(Gy!$A:$A,$A146,Gy!$L:$L)+SUMIF(bank!$A:$A,AF$1&$A146,bank!$N:$N) -> 0 | AG146: =SUMIF(K!$A:$A,$A146,K!$L:$L)+SUMIF(bank!$A:$A,AG$1&$A146,bank!$N:$N) -> 0 | AH146: =SUMIF(Mk!$A:$A,$A146,Mk!$L:$L)+SUMIF(bank!$A:$A,AH$1&$A146,bank!$N:$N) -> 0 | AI146: =SUMIF(M!$A:$A,$A146,M!$L:$L)+SUMIF(bank!$A:$A,AI$1&$A146,bank!$N:$N) -> 0 | AJ146: =SUMIF(P!$A:$A,$A146,P!$L:$L)+SUMIF(bank!$A:$A,AJ$1&$A146,bank!$N:$N) -> 0 | AK146: =SUMIF(Zs!$A:$A,$A146,Zs!$L:$L)+SUMIF(bank!$A:$A,AK$1&$A146,bank!$N:$N) -> 0 | AL146: kiadás | AN146: kiküldetéshez kapcsolódóan fizetett napidíj
A147: k145 | C147: 145 | E147: - Béren kívüli juttatások (étkezési hozj,közlekedési bérlet, stb.) (146..147) | W147: =SUMIF('Terv-segédlet'!$B:$B,KvZsz!$A147,'Terv-segédlet'!E:E) -> 0 | X147: =SUMIF('Terv-segédlet'!$B:$B,KvZsz!$A147,'Terv-segédlet'!F:F) -> 0 | Y147: =SUMIF('Terv-segédlet'!$B:$B,KvZsz!$A147,'Terv-segédlet'!G:G) -> 0 | Z147: =SUMIF('Terv-segédlet'!$B:$B,KvZsz!$A147,'Terv-segédlet'!H:H) -> 0 | AA147: =SUMIF('Terv-segédlet'!$B:$B,KvZsz!$A147,'Terv-segédlet'!I:I) -> 0 | AB147: =SUMIF('Terv-segédlet'!$B:$B,KvZsz!$A147,'Terv-segédlet'!J:J) -> 0 | AC147: =SUMIF('Terv-segédlet'!$B:$B,KvZsz!$A147,'Terv-segédlet'!K:K) -> 0 | AL147: kiadás
A148: k146 | B148: * | C148: 146 | E148: Lelkészeknek | U148: =SUMIF(kvátf.!E:E,KvZsz!A148,kvátf.!D:D) -> 0 | V148: =SUM(W148:AC148) -> 0 | W148: =SUMIF('Terv-segédlet'!$B:$B,KvZsz!$A148,'Terv-segédlet'!E:E) -> 0 | X148: =SUMIF('Terv-segédlet'!$B:$B,KvZsz!$A148,'Terv-segédlet'!F:F) -> 0 | Y148: =SUMIF('Terv-segédlet'!$B:$B,KvZsz!$A148,'Terv-segédlet'!G:G) -> 0 | Z148: =SUMIF('Terv-segédlet'!$B:$B,KvZsz!$A148,'Terv-segédlet'!H:H) -> 0 | AA148: =SUMIF('Terv-segédlet'!$B:$B,KvZsz!$A148,'Terv-segédlet'!I:I) -> 0 | AB148: =SUMIF('Terv-segédlet'!$B:$B,KvZsz!$A148,'Terv-segédlet'!J:J) -> 0 | AC148: =SUMIF('Terv-segédlet'!$B:$B,KvZsz!$A148,'Terv-segédlet'!K:K) -> 0 | AD148: =SUM(AE148:AK148) -> 0 | AE148: =SUMIF(V!$A:$A,$A148,V!$L:$L)+SUMIF(bank!$A:$A,AE$1&$A148,bank!$N:$N) -> 0 | AF148: =SUMIF(Gy!$A:$A,$A148,Gy!$L:$L)+SUMIF(bank!$A:$A,AF$1&$A148,bank!$N:$N) -> 0 | AG148: =SUMIF(K!$A:$A,$A148,K!$L:$L)+SUMIF(bank!$A:$A,AG$1&$A148,bank!$N:$N) -> 0 | AH148: =SUMIF(Mk!$A:$A,$A148,Mk!$L:$L)+SUMIF(bank!$A:$A,AH$1&$A148,bank!$N:$N) -> 0 | AI148: =SUMIF(M!$A:$A,$A148,M!$L:$L)+SUMIF(bank!$A:$A,AI$1&$A148,bank!$N:$N) -> 0 | AJ148: =SUMIF(P!$A:$A,$A148,P!$L:$L)+SUMIF(bank!$A:$A,AJ$1&$A148,bank!$N:$N) -> 0 | AK148: =SUMIF(Zs!$A:$A,$A148,Zs!$L:$L)+SUMIF(bank!$A:$A,AK$1&$A148,bank!$N:$N) -> 0 | AL148: kiadás | AN148: lelkésznek - SZJA törvény szerinti juttatások (helyi bérlet, Erzsébet-utalvány, SZÉP-kártya, iskolakezdési támogatás, stb.)
A149: k147 | B149: * | C149: 147 | E149: Nem lelkész alkalmazottaknak | U149: =SUMIF(kvátf.!E:E,KvZsz!A149,kvátf.!D:D) -> 0 | V149: 0 | W149: =SUMIF('Terv-segédlet'!$B:$B,KvZsz!$A149,'Terv-segédlet'!E:E) -> 0 | X149: =SUMIF('Terv-segédlet'!$B:$B,KvZsz!$A149,'Terv-segédlet'!F:F) -> 0 | Y149: =SUMIF('Terv-segédlet'!$B:$B,KvZsz!$A149,'Terv-segédlet'!G:G) -> 0 | Z149: =SUMIF('Terv-segédlet'!$B:$B,KvZsz!$A149,'Terv-segédlet'!H:H) -> 0 | AA149: =SUMIF('Terv-segédlet'!$B:$B,KvZsz!$A149,'Terv-segédlet'!I:I) -> 0 | AB149: =SUMIF('Terv-segédlet'!$B:$B,KvZsz!$A149,'Terv-segédlet'!J:J) -> 0 | AC149: =SUMIF('Terv-segédlet'!$B:$B,KvZsz!$A149,'Terv-segédlet'!K:K) -> 0 | AD149: 0 | AE149: =SUMIF(V!$A:$A,$A149,V!$L:$L)+SUMIF(bank!$A:$A,AE$1&$A149,bank!$N:$N) -> 0 | AF149: =SUMIF(Gy!$A:$A,$A149,Gy!$L:$L)+SUMIF(bank!$A:$A,AF$1&$A149,bank!$N:$N) -> 0 | AG149: =SUMIF(K!$A:$A,$A149,K!$L:$L)+SUMIF(bank!$A:$A,AG$1&$A149,bank!$N:$N) -> 0 | AH149: =SUMIF(Mk!$A:$A,$A149,Mk!$L:$L)+SUMIF(bank!$A:$A,AH$1&$A149,bank!$N:$N) -> 0 | AI149: =SUMIF(M!$A:$A,$A149,M!$L:$L)+SUMIF(bank!$A:$A,AI$1&$A149,bank!$N:$N) -> 0 | AJ149: =SUMIF(P!$A:$A,$A149,P!$L:$L)+SUMIF(bank!$A:$A,AJ$1&$A149,bank!$N:$N) -> 0 | AK149: =SUMIF(Zs!$A:$A,$A149,Zs!$L:$L)+SUMIF(bank!$A:$A,AK$1&$A149,bank!$N:$N) -> 0 | AL149: kiadás | AN149: nem lelkészi alkalmazottnak - SZJA törvény szerinti juttatások (helyi bérlet, Erzsébet-utalvány, SZÉP-kártya, iskolakezdési támogatás, stb.)
A150: k148 | B150: * | C150: 148 | E150: - Egyéb jóléti és kulturális költségek | U150: =SUMIF(kvátf.!E:E,KvZsz!A150,kvátf.!D:D) -> 0 | V150: 0 | W150: =SUMIF('Terv-segédlet'!$B:$B,KvZsz!$A150,'Terv-segédlet'!E:E) -> 0 | X150: =SUMIF('Terv-segédlet'!$B:$B,KvZsz!$A150,'Terv-segédlet'!F:F) -> 0 | Y150: =SUMIF('Terv-segédlet'!$B:$B,KvZsz!$A150,'Terv-segédlet'!G:G) -> 0 | Z150: =SUMIF('Terv-segédlet'!$B:$B,KvZsz!$A150,'Terv-segédlet'!H:H) -> 0 | AA150: =SUMIF('Terv-segédlet'!$B:$B,KvZsz!$A150,'Terv-segédlet'!I:I) -> 0 | AB150: =SUMIF('Terv-segédlet'!$B:$B,KvZsz!$A150,'Terv-segédlet'!J:J) -> 0 | AC150: =SUMIF('Terv-segédlet'!$B:$B,KvZsz!$A150,'Terv-segédlet'!K:K) -> 0 | AD150: 0 | AE150: =SUMIF(V!$A:$A,$A150,V!$L:$L)+SUMIF(bank!$A:$A,AE$1&$A150,bank!$N:$N) -> 0 | AF150: =SUMIF(Gy!$A:$A,$A150,Gy!$L:$L)+SUMIF(bank!$A:$A,AF$1&$A150,bank!$N:$N) -> 0 | AG150: =SUMIF(K!$A:$A,$A150,K!$L:$L)+SUMIF(bank!$A:$A,AG$1&$A150,bank!$N:$N) -> 0 | AH150: =SUMIF(Mk!$A:$A,$A150,Mk!$L:$L)+SUMIF(bank!$A:$A,AH$1&$A150,bank!$N:$N) -> 0 | AI150: =SUMIF(M!$A:$A,$A150,M!$L:$L)+SUMIF(bank!$A:$A,AI$1&$A150,bank!$N:$N) -> 0 | AJ150: =SUMIF(P!$A:$A,$A150,P!$L:$L)+SUMIF(bank!$A:$A,AJ$1&$A150,bank!$N:$N) -> 0 | AK150: =SUMIF(Zs!$A:$A,$A150,Zs!$L:$L)+SUMIF(bank!$A:$A,AK$1&$A150,bank!$N:$N) -> 0 | AL150: kiadás | AN150: nem jellemző
A151: k149 | B151: * | C151: 149 | E151: - Munkáltatót terhelő személyi jövedelemadó | U151: =SUMIF(kvátf.!E:E,KvZsz!A151,kvátf.!D:D) -> 0 | V151: 0 | W151: =SUMIF('Terv-segédlet'!$B:$B,KvZsz!$A151,'Terv-segédlet'!E:E) -> 0 | X151: =SUMIF('Terv-segédlet'!$B:$B,KvZsz!$A151,'Terv-segédlet'!F:F) -> 0 | Y151: =SUMIF('Terv-segédlet'!$B:$B,KvZsz!$A151,'Terv-segédlet'!G:G) -> 0 | Z151: =SUMIF('Terv-segédlet'!$B:$B,KvZsz!$A151,'Terv-segédlet'!H:H) -> 0 | AA151: =SUMIF('Terv-segédlet'!$B:$B,KvZsz!$A151,'Terv-segédlet'!I:I) -> 0 | AB151: =SUMIF('Terv-segédlet'!$B:$B,KvZsz!$A151,'Terv-segédlet'!J:J) -> 0 | AC151: =SUMIF('Terv-segédlet'!$B:$B,KvZsz!$A151,'Terv-segédlet'!K:K) -> 0 | AD151: 0 | AE151: =SUMIF(V!$A:$A,$A151,V!$L:$L)+SUMIF(bank!$A:$A,AE$1&$A151,bank!$N:$N) -> 0 | AF151: =SUMIF(Gy!$A:$A,$A151,Gy!$L:$L)+SUMIF(bank!$A:$A,AF$1&$A151,bank!$N:$N) -> 0 | AG151: =SUMIF(K!$A:$A,$A151,K!$L:$L)+SUMIF(bank!$A:$A,AG$1&$A151,bank!$N:$N) -> 0 | AH151: =SUMIF(Mk!$A:$A,$A151,Mk!$L:$L)+SUMIF(bank!$A:$A,AH$1&$A151,bank!$N:$N) -> 0 | AI151: =SUMIF(M!$A:$A,$A151,M!$L:$L)+SUMIF(bank!$A:$A,AI$1&$A151,bank!$N:$N) -> 0 | AJ151: =SUMIF(P!$A:$A,$A151,P!$L:$L)+SUMIF(bank!$A:$A,AJ$1&$A151,bank!$N:$N) -> 0 | AK151: =SUMIF(Zs!$A:$A,$A151,Zs!$L:$L)+SUMIF(bank!$A:$A,AK$1&$A151,bank!$N:$N) -> 0 | AL151: kiadás | AN151: béren kívüli és egyes meghatározott juttatások után a kifizetőt terhelő szja
A152: k150 | C152: 150 | E152: - Reprezentáció, üzleti ajándék (151..154) | W152: =SUMIF('Terv-segédlet'!$B:$B,KvZsz!$A152,'Terv-segédlet'!E:E) -> 0 | X152: =SUMIF('Terv-segédlet'!$B:$B,KvZsz!$A152,'Terv-segédlet'!F:F) -> 0 | Y152: =SUMIF('Terv-segédlet'!$B:$B,KvZsz!$A152,'Terv-segédlet'!G:G) -> 0 | Z152: =SUMIF('Terv-segédlet'!$B:$B,KvZsz!$A152,'Terv-segédlet'!H:H) -> 0 | AA152: =SUMIF('Terv-segédlet'!$B:$B,KvZsz!$A152,'Terv-segédlet'!I:I) -> 0 | AB152: =SUMIF('Terv-segédlet'!$B:$B,KvZsz!$A152,'Terv-segédlet'!J:J) -> 0 | AC152: =SUMIF('Terv-segédlet'!$B:$B,KvZsz!$A152,'Terv-segédlet'!K:K) -> 0 | AL152: kiadás | AN152: Együttesen a K74. sorban szereplő bevétel 10%-ig adómentes!!!
A153: k151 | B153: * | C153: 151 | E153: Hitéleti tevékenységhez kapcsolódó | U153: =SUMIF(kvátf.!E:E,KvZsz!A153,kvátf.!D:D) -> 0 | V153: =SUM(W153:AC153) -> 40000 | W153: =SUMIF('Terv-segédlet'!$B:$B,KvZsz!$A153,'Terv-segédlet'!E:E) -> 40000 | X153: =SUMIF('Terv-segédlet'!$B:$B,KvZsz!$A153,'Terv-segédlet'!F:F) -> 0 | Y153: =SUMIF('Terv-segédlet'!$B:$B,KvZsz!$A153,'Terv-segédlet'!G:G) -> 0 | Z153: =SUMIF('Terv-segédlet'!$B:$B,KvZsz!$A153,'Terv-segédlet'!H:H) -> 0 | AA153: =SUMIF('Terv-segédlet'!$B:$B,KvZsz!$A153,'Terv-segédlet'!I:I) -> 0 | AB153: =SUMIF('Terv-segédlet'!$B:$B,KvZsz!$A153,'Terv-segédlet'!J:J) -> 0 | AC153: =SUMIF('Terv-segédlet'!$B:$B,KvZsz!$A153,'Terv-segédlet'!K:K) -> 0 | AD153: =SUM(AE153:AK153) -> 41978 | AE153: =SUMIF(V!$A:$A,$A153,V!$L:$L)+SUMIF(bank!$A:$A,AE$1&$A153,bank!$N:$N) -> 39978 | AF153: =SUMIF(Gy!$A:$A,$A153,Gy!$L:$L)+SUMIF(bank!$A:$A,AF$1&$A153,bank!$N:$N) -> 0 | AG153: =SUMIF(K!$A:$A,$A153,K!$L:$L)+SUMIF(bank!$A:$A,AG$1&$A153,bank!$N:$N) -> 0 | AH153: =SUMIF(Mk!$A:$A,$A153,Mk!$L:$L)+SUMIF(bank!$A:$A,AH$1&$A153,bank!$N:$N) -> 0 | AI153: =SUMIF(M!$A:$A,$A153,M!$L:$L)+SUMIF(bank!$A:$A,AI$1&$A153,bank!$N:$N) -> 0 | AJ153: =SUMIF(P!$A:$A,$A153,P!$L:$L)+SUMIF(bank!$A:$A,AJ$1&$A153,bank!$N:$N) -> 0 | AK153: =SUMIF(Zs!$A:$A,$A153,Zs!$L:$L)+SUMIF(bank!$A:$A,AK$1&$A153,bank!$N:$N) -> 2000 | AL153: kiadás | AM153: 1.04945 | AN153: hitéleti rendezvény keretében vagy egyházi ünnepen nyújtott vendéglátás (ide sorolhatók az úrvacsorai kellékek)
A154: k152 | B154: * | C154: 152 | E154: Csekély értű ajándék | U154: =SUMIF(kvátf.!E:E,KvZsz!A154,kvátf.!D:D) -> 0 | V154: 0 | W154: =SUMIF('Terv-segédlet'!$B:$B,KvZsz!$A154,'Terv-segédlet'!E:E) -> 0 | X154: =SUMIF('Terv-segédlet'!$B:$B,KvZsz!$A154,'Terv-segédlet'!F:F) -> 0 | Y154: =SUMIF('Terv-segédlet'!$B:$B,KvZsz!$A154,'Terv-segédlet'!G:G) -> 0 | Z154: =SUMIF('Terv-segédlet'!$B:$B,KvZsz!$A154,'Terv-segédlet'!H:H) -> 0 | AA154: =SUMIF('Terv-segédlet'!$B:$B,KvZsz!$A154,'Terv-segédlet'!I:I) -> 0 | AB154: =SUMIF('Terv-segédlet'!$B:$B,KvZsz!$A154,'Terv-segédlet'!J:J) -> 0 | AC154: =SUMIF('Terv-segédlet'!$B:$B,KvZsz!$A154,'Terv-segédlet'!K:K) -> 0 | AD154: 0 | AE154: =SUMIF(V!$A:$A,$A154,V!$L:$L)+SUMIF(bank!$A:$A,AE$1&$A154,bank!$N:$N) -> 0 | AF154: =SUMIF(Gy!$A:$A,$A154,Gy!$L:$L)+SUMIF(bank!$A:$A,AF$1&$A154,bank!$N:$N) -> 0 | AG154: =SUMIF(K!$A:$A,$A154,K!$L:$L)+SUMIF(bank!$A:$A,AG$1&$A154,bank!$N:$N) -> 0 | AH154: =SUMIF(Mk!$A:$A,$A154,Mk!$L:$L)+SUMIF(bank!$A:$A,AH$1&$A154,bank!$N:$N) -> 0 | AI154: =SUMIF(M!$A:$A,$A154,M!$L:$L)+SUMIF(bank!$A:$A,AI$1&$A154,bank!$N:$N) -> 0 | AJ154: =SUMIF(P!$A:$A,$A154,P!$L:$L)+SUMIF(bank!$A:$A,AJ$1&$A154,bank!$N:$N) -> 0 | AK154: =SUMIF(Zs!$A:$A,$A154,Zs!$L:$L)+SUMIF(bank!$A:$A,AK$1&$A154,bank!$N:$N) -> 0 | AL154: kiadás | AN154: hitéleti rendezvény keretében vagy egyházi ünnepen adott adómentes ajándék (név szerinti lista szükséges!) - személyenként 5.000 Ft-ot meg nem haladó értékben
A155: k153 | B155: * | C155: 153 | E155: Konferencia, rendezvény | U155: =SUMIF(kvátf.!E:E,KvZsz!A155,kvátf.!D:D) -> 33036 | V155: 0 | W155: =SUMIF('Terv-segédlet'!$B:$B,KvZsz!$A155,'Terv-segédlet'!E:E) -> 0 | X155: =SUMIF('Terv-segédlet'!$B:$B,KvZsz!$A155,'Terv-segédlet'!F:F) -> 0 | Y155: =SUMIF('Terv-segédlet'!$B:$B,KvZsz!$A155,'Terv-segédlet'!G:G) -> 0 | Z155: =SUMIF('Terv-segédlet'!$B:$B,KvZsz!$A155,'Terv-segédlet'!H:H) -> 0 | AA155: =SUMIF('Terv-segédlet'!$B:$B,KvZsz!$A155,'Terv-segédlet'!I:I) -> 0 | AB155: =SUMIF('Terv-segédlet'!$B:$B,KvZsz!$A155,'Terv-segédlet'!J:J) -> 0 | AC155: =SUMIF('Terv-segédlet'!$B:$B,KvZsz!$A155,'Terv-segédlet'!K:K) -> 0 | AD155: 0 | AE155: =SUMIF(V!$A:$A,$A155,V!$L:$L)+SUMIF(bank!$A:$A,AE$1&$A155,bank!$N:$N) -> 0 | AF155: =SUMIF(Gy!$A:$A,$A155,Gy!$L:$L)+SUMIF(bank!$A:$A,AF$1&$A155,bank!$N:$N) -> 0 | AG155: =SUMIF(K!$A:$A,$A155,K!$L:$L)+SUMIF(bank!$A:$A,AG$1&$A155,bank!$N:$N) -> 0 | AH155: =SUMIF(Mk!$A:$A,$A155,Mk!$L:$L)+SUMIF(bank!$A:$A,AH$1&$A155,bank!$N:$N) -> 0 | AI155: =SUMIF(M!$A:$A,$A155,M!$L:$L)+SUMIF(bank!$A:$A,AI$1&$A155,bank!$N:$N) -> 0 | AJ155: =SUMIF(P!$A:$A,$A155,P!$L:$L)+SUMIF(bank!$A:$A,AJ$1&$A155,bank!$N:$N) -> 0 | AK155: =SUMIF(Zs!$A:$A,$A155,Zs!$L:$L)+SUMIF(bank!$A:$A,AK$1&$A155,bank!$N:$N) -> 0 | AL155: kiadás | AN155: gyülekezet által szervezett egyházi konferencia keretében nyújtott vendéglátás
A156: k154 | B156: * | C156: 154 | E156: Adóköteles reprezentáció | U156: =SUMIF(kvátf.!E:E,KvZsz!A156,kvátf.!D:D) -> 0 | V156: 0 | W156: =SUMIF('Terv-segédlet'!$B:$B,KvZsz!$A156,'Terv-segédlet'!E:E) -> 0 | X156: =SUMIF('Terv-segédlet'!$B:$B,KvZsz!$A156,'Terv-segédlet'!F:F) -> 0 | Y156: =SUMIF('Terv-segédlet'!$B:$B,KvZsz!$A156,'Terv-segédlet'!G:G) -> 0 | Z156: =SUMIF('Terv-segédlet'!$B:$B,KvZsz!$A156,'Terv-segédlet'!H:H) -> 0 | AA156: =SUMIF('Terv-segédlet'!$B:$B,KvZsz!$A156,'Terv-segédlet'!I:I) -> 0 | AB156: =SUMIF('Terv-segédlet'!$B:$B,KvZsz!$A156,'Terv-segédlet'!J:J) -> 0 | AC156: =SUMIF('Terv-segédlet'!$B:$B,KvZsz!$A156,'Terv-segédlet'!K:K) -> 0 | AD156: 0 | AE156: =SUMIF(V!$A:$A,$A156,V!$L:$L)+SUMIF(bank!$A:$A,AE$1&$A156,bank!$N:$N) -> 0 | AF156: =SUMIF(Gy!$A:$A,$A156,Gy!$L:$L)+SUMIF(bank!$A:$A,AF$1&$A156,bank!$N:$N) -> 0 | AG156: =SUMIF(K!$A:$A,$A156,K!$L:$L)+SUMIF(bank!$A:$A,AG$1&$A156,bank!$N:$N) -> 0 | AH156: =SUMIF(Mk!$A:$A,$A156,Mk!$L:$L)+SUMIF(bank!$A:$A,AH$1&$A156,bank!$N:$N) -> 0 | AI156: =SUMIF(M!$A:$A,$A156,M!$L:$L)+SUMIF(bank!$A:$A,AI$1&$A156,bank!$N:$N) -> 0 | AJ156: =SUMIF(P!$A:$A,$A156,P!$L:$L)+SUMIF(bank!$A:$A,AJ$1&$A156,bank!$N:$N) -> 0 | AK156: =SUMIF(Zs!$A:$A,$A156,Zs!$L:$L)+SUMIF(bank!$A:$A,AK$1&$A156,bank!$N:$N) -> 0 | AL156: kiadás | AN156: A K74. sorban szereplő bevétel 10%-át, vagy az adómentes határt meghaladó ajándék értéke, amely után az egyházközséget adókötelezettség terheli
A157: k155 | B157: * | C157: 155 | E157: -Albérleti hozzájárulás, lakásépítési támogatás | U157: =SUMIF(kvátf.!E:E,KvZsz!A157,kvátf.!D:D) -> 0 | V157: 0 | W157: =SUMIF('Terv-segédlet'!$B:$B,KvZsz!$A157,'Terv-segédlet'!E:E) -> 0 | X157: =SUMIF('Terv-segédlet'!$B:$B,KvZsz!$A157,'Terv-segédlet'!F:F) -> 0 | Y157: =SUMIF('Terv-segédlet'!$B:$B,KvZsz!$A157,'Terv-segédlet'!G:G) -> 0 | Z157: =SUMIF('Terv-segédlet'!$B:$B,KvZsz!$A157,'Terv-segédlet'!H:H) -> 0 | AA157: =SUMIF('Terv-segédlet'!$B:$B,KvZsz!$A157,'Terv-segédlet'!I:I) -> 0 | AB157: =SUMIF('Terv-segédlet'!$B:$B,KvZsz!$A157,'Terv-segédlet'!J:J) -> 0 | AC157: =SUMIF('Terv-segédlet'!$B:$B,KvZsz!$A157,'Terv-segédlet'!K:K) -> 0 | AD157: 0 | AE157: =SUMIF(V!$A:$A,$A157,V!$L:$L)+SUMIF(bank!$A:$A,AE$1&$A157,bank!$N:$N) -> 0 | AF157: =SUMIF(Gy!$A:$A,$A157,Gy!$L:$L)+SUMIF(bank!$A:$A,AF$1&$A157,bank!$N:$N) -> 0 | AG157: =SUMIF(K!$A:$A,$A157,K!$L:$L)+SUMIF(bank!$A:$A,AG$1&$A157,bank!$N:$N) -> 0 | AH157: =SUMIF(Mk!$A:$A,$A157,Mk!$L:$L)+SUMIF(bank!$A:$A,AH$1&$A157,bank!$N:$N) -> 0 | AI157: =SUMIF(M!$A:$A,$A157,M!$L:$L)+SUMIF(bank!$A:$A,AI$1&$A157,bank!$N:$N) -> 0 | AJ157: =SUMIF(P!$A:$A,$A157,P!$L:$L)+SUMIF(bank!$A:$A,AJ$1&$A157,bank!$N:$N) -> 0 | AK157: =SUMIF(Zs!$A:$A,$A157,Zs!$L:$L)+SUMIF(bank!$A:$A,AK$1&$A157,bank!$N:$N) -> 0 | AL157: kiadás | AN157: pénzben nyújtott albérleti költségtérítés, lakásépítési támogatás - ADÓKÖTELES!!!
A158: k156 | B158: * | C158: 156 | E158: -Közlekedési költségtérítés, munkába járás | U158: =SUMIF(kvátf.!E:E,KvZsz!A158,kvátf.!D:D) -> 0 | V158: 0 | W158: =SUMIF('Terv-segédlet'!$B:$B,KvZsz!$A158,'Terv-segédlet'!E:E) -> 0 | X158: =SUMIF('Terv-segédlet'!$B:$B,KvZsz!$A158,'Terv-segédlet'!F:F) -> 0 | Y158: =SUMIF('Terv-segédlet'!$B:$B,KvZsz!$A158,'Terv-segédlet'!G:G) -> 0 | Z158: =SUMIF('Terv-segédlet'!$B:$B,KvZsz!$A158,'Terv-segédlet'!H:H) -> 0 | AA158: =SUMIF('Terv-segédlet'!$B:$B,KvZsz!$A158,'Terv-segédlet'!I:I) -> 0 | AB158: =SUMIF('Terv-segédlet'!$B:$B,KvZsz!$A158,'Terv-segédlet'!J:J) -> 0 | AC158: =SUMIF('Terv-segédlet'!$B:$B,KvZsz!$A158,'Terv-segédlet'!K:K) -> 0 | AD158: 0 | AE158: =SUMIF(V!$A:$A,$A158,V!$L:$L)+SUMIF(bank!$A:$A,AE$1&$A158,bank!$N:$N) -> 0 | AF158: =SUMIF(Gy!$A:$A,$A158,Gy!$L:$L)+SUMIF(bank!$A:$A,AF$1&$A158,bank!$N:$N) -> 0 | AG158: =SUMIF(K!$A:$A,$A158,K!$L:$L)+SUMIF(bank!$A:$A,AG$1&$A158,bank!$N:$N) -> 0 | AH158: =SUMIF(Mk!$A:$A,$A158,Mk!$L:$L)+SUMIF(bank!$A:$A,AH$1&$A158,bank!$N:$N) -> 0 | AI158: =SUMIF(M!$A:$A,$A158,M!$L:$L)+SUMIF(bank!$A:$A,AI$1&$A158,bank!$N:$N) -> 0 | AJ158: =SUMIF(P!$A:$A,$A158,P!$L:$L)+SUMIF(bank!$A:$A,AJ$1&$A158,bank!$N:$N) -> 0 | AK158: =SUMIF(Zs!$A:$A,$A158,Zs!$L:$L)+SUMIF(bank!$A:$A,AK$1&$A158,bank!$N:$N) -> 0 | AL158: kiadás | AN158: lelkésznek, nem lelkészi alkalmazottnak a lakóhelyéről a munkahelyre történő, munkába járáshoz kapcsolódó utazás költsége (távolsági bérlet 86%, saját gépkocsival történő munkábajárás esetén 9 Ft/km)
A159: k157 | B159: * | C159: 157 | E159: -Választott tisztségviselők díja | U159: =SUMIF(kvátf.!E:E,KvZsz!A159,kvátf.!D:D) -> 0 | V159: 0 | W159: =SUMIF('Terv-segédlet'!$B:$B,KvZsz!$A159,'Terv-segédlet'!E:E) -> 0 | X159: =SUMIF('Terv-segédlet'!$B:$B,KvZsz!$A159,'Terv-segédlet'!F:F) -> 0 | Y159: =SUMIF('Terv-segédlet'!$B:$B,KvZsz!$A159,'Terv-segédlet'!G:G) -> 0 | Z159: =SUMIF('Terv-segédlet'!$B:$B,KvZsz!$A159,'Terv-segédlet'!H:H) -> 0 | AA159: =SUMIF('Terv-segédlet'!$B:$B,KvZsz!$A159,'Terv-segédlet'!I:I) -> 0 | AB159: =SUMIF('Terv-segédlet'!$B:$B,KvZsz!$A159,'Terv-segédlet'!J:J) -> 0 | AC159: =SUMIF('Terv-segédlet'!$B:$B,KvZsz!$A159,'Terv-segédlet'!K:K) -> 0 | AD159: 0 | AE159: =SUMIF(V!$A:$A,$A159,V!$L:$L)+SUMIF(bank!$A:$A,AE$1&$A159,bank!$N:$N) -> 0 | AF159: =SUMIF(Gy!$A:$A,$A159,Gy!$L:$L)+SUMIF(bank!$A:$A,AF$1&$A159,bank!$N:$N) -> 0 | AG159: =SUMIF(K!$A:$A,$A159,K!$L:$L)+SUMIF(bank!$A:$A,AG$1&$A159,bank!$N:$N) -> 0 | AH159: =SUMIF(Mk!$A:$A,$A159,Mk!$L:$L)+SUMIF(bank!$A:$A,AH$1&$A159,bank!$N:$N) -> 0 | AI159: =SUMIF(M!$A:$A,$A159,M!$L:$L)+SUMIF(bank!$A:$A,AI$1&$A159,bank!$N:$N) -> 0 | AJ159: =SUMIF(P!$A:$A,$A159,P!$L:$L)+SUMIF(bank!$A:$A,AJ$1&$A159,bank!$N:$N) -> 0 | AK159: =SUMIF(Zs!$A:$A,$A159,Zs!$L:$L)+SUMIF(bank!$A:$A,AK$1&$A159,bank!$N:$N) -> 0 | AL159: kiadás | AN159: tiszteletdíj (pl. felügyelő, gondnok, stb.)
A160: k158 | B160: * | C160: 158 | E160: -Segélyek, szociális támogatások | U160: =SUMIF(kvátf.!E:E,KvZsz!A160,kvátf.!D:D) -> 371000 | V160: 0 | W160: =SUMIF('Terv-segédlet'!$B:$B,KvZsz!$A160,'Terv-segédlet'!E:E) -> 0 | X160: =SUMIF('Terv-segédlet'!$B:$B,KvZsz!$A160,'Terv-segédlet'!F:F) -> 0 | Y160: =SUMIF('Terv-segédlet'!$B:$B,KvZsz!$A160,'Terv-segédlet'!G:G) -> 0 | Z160: =SUMIF('Terv-segédlet'!$B:$B,KvZsz!$A160,'Terv-segédlet'!H:H) -> 0 | AA160: =SUMIF('Terv-segédlet'!$B:$B,KvZsz!$A160,'Terv-segédlet'!I:I) -> 0 | AB160: =SUMIF('Terv-segédlet'!$B:$B,KvZsz!$A160,'Terv-segédlet'!J:J) -> 0 | AC160: =SUMIF('Terv-segédlet'!$B:$B,KvZsz!$A160,'Terv-segédlet'!K:K) -> 0 | AD160: 0 | AE160: =SUMIF(V!$A:$A,$A160,V!$L:$L)+SUMIF(bank!$A:$A,AE$1&$A160,bank!$N:$N) -> 0 | AF160: =SUMIF(Gy!$A:$A,$A160,Gy!$L:$L)+SUMIF(bank!$A:$A,AF$1&$A160,bank!$N:$N) -> 0 | AG160: =SUMIF(K!$A:$A,$A160,K!$L:$L)+SUMIF(bank!$A:$A,AG$1&$A160,bank!$N:$N) -> 0 | AH160: =SUMIF(Mk!$A:$A,$A160,Mk!$L:$L)+SUMIF(bank!$A:$A,AH$1&$A160,bank!$N:$N) -> 0 | AI160: =SUMIF(M!$A:$A,$A160,M!$L:$L)+SUMIF(bank!$A:$A,AI$1&$A160,bank!$N:$N) -> 0 | AJ160: =SUMIF(P!$A:$A,$A160,P!$L:$L)+SUMIF(bank!$A:$A,AJ$1&$A160,bank!$N:$N) -> 0 | AK160: =SUMIF(Zs!$A:$A,$A160,Zs!$L:$L)+SUMIF(bank!$A:$A,AK$1&$A160,bank!$N:$N) -> 0 | AL160: kiadás | AN160: magánszemélyeknek fizetett segély - SZABÁLYOZÁSI KÖTELEZETTSÉG VAN!!
A161: k159 | B161: * | C161: 159 | E161: -Egyéb személyi jellegű kifizetések | U161: =SUMIF(kvátf.!E:E,KvZsz!A161,kvátf.!D:D) -> 0 | V161: 0 | W161: =SUMIF('Terv-segédlet'!$B:$B,KvZsz!$A161,'Terv-segédlet'!E:E) -> 0 | X161: =SUMIF('Terv-segédlet'!$B:$B,KvZsz!$A161,'Terv-segédlet'!F:F) -> 0 | Y161: =SUMIF('Terv-segédlet'!$B:$B,KvZsz!$A161,'Terv-segédlet'!G:G) -> 0 | Z161: =SUMIF('Terv-segédlet'!$B:$B,KvZsz!$A161,'Terv-segédlet'!H:H) -> 0 | AA161: =SUMIF('Terv-segédlet'!$B:$B,KvZsz!$A161,'Terv-segédlet'!I:I) -> 0 | AB161: =SUMIF('Terv-segédlet'!$B:$B,KvZsz!$A161,'Terv-segédlet'!J:J) -> 0 | AC161: =SUMIF('Terv-segédlet'!$B:$B,KvZsz!$A161,'Terv-segédlet'!K:K) -> 0 | AD161: 0 | AE161: =SUMIF(V!$A:$A,$A161,V!$L:$L)+SUMIF(bank!$A:$A,AE$1&$A161,bank!$N:$N) -> 0 | AF161: =SUMIF(Gy!$A:$A,$A161,Gy!$L:$L)+SUMIF(bank!$A:$A,AF$1&$A161,bank!$N:$N) -> 0 | AG161: =SUMIF(K!$A:$A,$A161,K!$L:$L)+SUMIF(bank!$A:$A,AG$1&$A161,bank!$N:$N) -> 0 | AH161: =SUMIF(Mk!$A:$A,$A161,Mk!$L:$L)+SUMIF(bank!$A:$A,AH$1&$A161,bank!$N:$N) -> 0 | AI161: =SUMIF(M!$A:$A,$A161,M!$L:$L)+SUMIF(bank!$A:$A,AI$1&$A161,bank!$N:$N) -> 0 | AJ161: =SUMIF(P!$A:$A,$A161,P!$L:$L)+SUMIF(bank!$A:$A,AJ$1&$A161,bank!$N:$N) -> 0 | AK161: =SUMIF(Zs!$A:$A,$A161,Zs!$L:$L)+SUMIF(bank!$A:$A,AK$1&$A161,bank!$N:$N) -> 0 | AL161: kiadás | AN161: szerzői jogdíjak, egészségpénztárba fizetett, átvállalt összegek
A162: k160 | C162: 160 | E162: c) Bérjárulékok (161..165) | W162: =SUMIF('Terv-segédlet'!$B:$B,KvZsz!$A162,'Terv-segédlet'!E:E) -> 0 | X162: =SUMIF('Terv-segédlet'!$B:$B,KvZsz!$A162,'Terv-segédlet'!F:F) -> 0 | Y162: =SUMIF('Terv-segédlet'!$B:$B,KvZsz!$A162,'Terv-segédlet'!G:G) -> 0 | Z162: =SUMIF('Terv-segédlet'!$B:$B,KvZsz!$A162,'Terv-segédlet'!H:H) -> 0 | AA162: =SUMIF('Terv-segédlet'!$B:$B,KvZsz!$A162,'Terv-segédlet'!I:I) -> 0 | AB162: =SUMIF('Terv-segédlet'!$B:$B,KvZsz!$A162,'Terv-segédlet'!J:J) -> 0 | AC162: =SUMIF('Terv-segédlet'!$B:$B,KvZsz!$A162,'Terv-segédlet'!K:K) -> 0 | AL162: kiadás
A163: k161 | B163: * | C163: 161 | E163: -Szociális hozzájárulási adó | U163: =SUMIF(kvátf.!E:E,KvZsz!A163,kvátf.!D:D) -> 0 | V163: =SUM(W163:AC163) -> 0 | W163: =SUMIF('Terv-segédlet'!$B:$B,KvZsz!$A163,'Terv-segédlet'!E:E) -> 0 | X163: =SUMIF('Terv-segédlet'!$B:$B,KvZsz!$A163,'Terv-segédlet'!F:F) -> 0 | Y163: =SUMIF('Terv-segédlet'!$B:$B,KvZsz!$A163,'Terv-segédlet'!G:G) -> 0 | Z163: =SUMIF('Terv-segédlet'!$B:$B,KvZsz!$A163,'Terv-segédlet'!H:H) -> 0 | AA163: =SUMIF('Terv-segédlet'!$B:$B,KvZsz!$A163,'Terv-segédlet'!I:I) -> 0 | AB163: =SUMIF('Terv-segédlet'!$B:$B,KvZsz!$A163,'Terv-segédlet'!J:J) -> 0 | AC163: =SUMIF('Terv-segédlet'!$B:$B,KvZsz!$A163,'Terv-segédlet'!K:K) -> 0 | AD163: =SUM(AE163:AK163) -> 0 | AE163: =SUMIF(V!$A:$A,$A163,V!$L:$L)+SUMIF(bank!$A:$A,AE$1&$A163,bank!$N:$N) -> 0 | AF163: =SUMIF(Gy!$A:$A,$A163,Gy!$L:$L)+SUMIF(bank!$A:$A,AF$1&$A163,bank!$N:$N) -> 0 | AG163: =SUMIF(K!$A:$A,$A163,K!$L:$L)+SUMIF(bank!$A:$A,AG$1&$A163,bank!$N:$N) -> 0 | AH163: =SUMIF(Mk!$A:$A,$A163,Mk!$L:$L)+SUMIF(bank!$A:$A,AH$1&$A163,bank!$N:$N) -> 0 | AI163: =SUMIF(M!$A:$A,$A163,M!$L:$L)+SUMIF(bank!$A:$A,AI$1&$A163,bank!$N:$N) -> 0 | AJ163: =SUMIF(P!$A:$A,$A163,P!$L:$L)+SUMIF(bank!$A:$A,AJ$1&$A163,bank!$N:$N) -> 0 | AK163: =SUMIF(Zs!$A:$A,$A163,Zs!$L:$L)+SUMIF(bank!$A:$A,AK$1&$A163,bank!$N:$N) -> 0 | AL163: kiadás | AN163: 08 bevallásban bevallott, megfizetett összeg
A164: k162 | B164: * | C164: 162 | E164: -Egészségügyi hozzájulás | U164: =SUMIF(kvátf.!E:E,KvZsz!A164,kvátf.!D:D) -> 0 | V164: 0 | W164: =SUMIF('Terv-segédlet'!$B:$B,KvZsz!$A164,'Terv-segédlet'!E:E) -> 0 | X164: =SUMIF('Terv-segédlet'!$B:$B,KvZsz!$A164,'Terv-segédlet'!F:F) -> 0 | Y164: =SUMIF('Terv-segédlet'!$B:$B,KvZsz!$A164,'Terv-segédlet'!G:G) -> 0 | Z164: =SUMIF('Terv-segédlet'!$B:$B,KvZsz!$A164,'Terv-segédlet'!H:H) -> 0 | AA164: =SUMIF('Terv-segédlet'!$B:$B,KvZsz!$A164,'Terv-segédlet'!I:I) -> 0 | AB164: =SUMIF('Terv-segédlet'!$B:$B,KvZsz!$A164,'Terv-segédlet'!J:J) -> 0 | AC164: =SUMIF('Terv-segédlet'!$B:$B,KvZsz!$A164,'Terv-segédlet'!K:K) -> 0 | AD164: 0 | AE164: =SUMIF(V!$A:$A,$A164,V!$L:$L)+SUMIF(bank!$A:$A,AE$1&$A164,bank!$N:$N) -> 0 | AF164: =SUMIF(Gy!$A:$A,$A164,Gy!$L:$L)+SUMIF(bank!$A:$A,AF$1&$A164,bank!$N:$N) -> 0 | AG164: =SUMIF(K!$A:$A,$A164,K!$L:$L)+SUMIF(bank!$A:$A,AG$1&$A164,bank!$N:$N) -> 0 | AH164: =SUMIF(Mk!$A:$A,$A164,Mk!$L:$L)+SUMIF(bank!$A:$A,AH$1&$A164,bank!$N:$N) -> 0 | AI164: =SUMIF(M!$A:$A,$A164,M!$L:$L)+SUMIF(bank!$A:$A,AI$1&$A164,bank!$N:$N) -> 0 | AJ164: =SUMIF(P!$A:$A,$A164,P!$L:$L)+SUMIF(bank!$A:$A,AJ$1&$A164,bank!$N:$N) -> 0 | AK164: =SUMIF(Zs!$A:$A,$A164,Zs!$L:$L)+SUMIF(bank!$A:$A,AK$1&$A164,bank!$N:$N) -> 0 | AL164: kiadás | AN164: 08 bevallásban bevallott, megfizetett, pl. béren kívüli juttatás után a kifizetőt terhelő összeg
A165: k163 | B165: * | C165: 163 | E165: -Rehabilitációs hozzájulás | U165: =SUMIF(kvátf.!E:E,KvZsz!A165,kvátf.!D:D) -> 0 | V165: 0 | W165: =SUMIF('Terv-segédlet'!$B:$B,KvZsz!$A165,'Terv-segédlet'!E:E) -> 0 | X165: =SUMIF('Terv-segédlet'!$B:$B,KvZsz!$A165,'Terv-segédlet'!F:F) -> 0 | Y165: =SUMIF('Terv-segédlet'!$B:$B,KvZsz!$A165,'Terv-segédlet'!G:G) -> 0 | Z165: =SUMIF('Terv-segédlet'!$B:$B,KvZsz!$A165,'Terv-segédlet'!H:H) -> 0 | AA165: =SUMIF('Terv-segédlet'!$B:$B,KvZsz!$A165,'Terv-segédlet'!I:I) -> 0 | AB165: =SUMIF('Terv-segédlet'!$B:$B,KvZsz!$A165,'Terv-segédlet'!J:J) -> 0 | AC165: =SUMIF('Terv-segédlet'!$B:$B,KvZsz!$A165,'Terv-segédlet'!K:K) -> 0 | AD165: 0 | AE165: =SUMIF(V!$A:$A,$A165,V!$L:$L)+SUMIF(bank!$A:$A,AE$1&$A165,bank!$N:$N) -> 0 | AF165: =SUMIF(Gy!$A:$A,$A165,Gy!$L:$L)+SUMIF(bank!$A:$A,AF$1&$A165,bank!$N:$N) -> 0 | AG165: =SUMIF(K!$A:$A,$A165,K!$L:$L)+SUMIF(bank!$A:$A,AG$1&$A165,bank!$N:$N) -> 0 | AH165: =SUMIF(Mk!$A:$A,$A165,Mk!$L:$L)+SUMIF(bank!$A:$A,AH$1&$A165,bank!$N:$N) -> 0 | AI165: =SUMIF(M!$A:$A,$A165,M!$L:$L)+SUMIF(bank!$A:$A,AI$1&$A165,bank!$N:$N) -> 0 | AJ165: =SUMIF(P!$A:$A,$A165,P!$L:$L)+SUMIF(bank!$A:$A,AJ$1&$A165,bank!$N:$N) -> 0 | AK165: =SUMIF(Zs!$A:$A,$A165,Zs!$L:$L)+SUMIF(bank!$A:$A,AK$1&$A165,bank!$N:$N) -> 0 | AL165: kiadás | AN165: 25 főt meghaladó alkalmazotti létszám esetén fizetendő adó
A166: k164 | B166: * | C166: 164 | E166: -Fenntartói nyugdíjjárulék (Zelenka Pál SzA) | U166: =SUMIF(kvátf.!E:E,KvZsz!A166,kvátf.!D:D) -> 191576 | V166: 229900 | W166: =SUMIF('Terv-segédlet'!$B:$B,KvZsz!$A166,'Terv-segédlet'!E:E) -> 229900 | X166: =SUMIF('Terv-segédlet'!$B:$B,KvZsz!$A166,'Terv-segédlet'!F:F) -> 0 | Y166: =SUMIF('Terv-segédlet'!$B:$B,KvZsz!$A166,'Terv-segédlet'!G:G) -> 0 | Z166: =SUMIF('Terv-segédlet'!$B:$B,KvZsz!$A166,'Terv-segédlet'!H:H) -> 0 | AA166: =SUMIF('Terv-segédlet'!$B:$B,KvZsz!$A166,'Terv-segédlet'!I:I) -> 0 | AB166: =SUMIF('Terv-segédlet'!$B:$B,KvZsz!$A166,'Terv-segédlet'!J:J) -> 0 | AC166: =SUMIF('Terv-segédlet'!$B:$B,KvZsz!$A166,'Terv-segédlet'!K:K) -> 0 | AD166: 228154 | AE166: =SUMIF(V!$A:$A,$A166,V!$L:$L)+SUMIF(bank!$A:$A,AE$1&$A166,bank!$N:$N) -> 228154 | AF166: =SUMIF(Gy!$A:$A,$A166,Gy!$L:$L)+SUMIF(bank!$A:$A,AF$1&$A166,bank!$N:$N) -> 0 | AG166: =SUMIF(K!$A:$A,$A166,K!$L:$L)+SUMIF(bank!$A:$A,AG$1&$A166,bank!$N:$N) -> 0 | AH166: =SUMIF(Mk!$A:$A,$A166,Mk!$L:$L)+SUMIF(bank!$A:$A,AH$1&$A166,bank!$N:$N) -> 0 | AI166: =SUMIF(M!$A:$A,$A166,M!$L:$L)+SUMIF(bank!$A:$A,AI$1&$A166,bank!$N:$N) -> 0 | AJ166: =SUMIF(P!$A:$A,$A166,P!$L:$L)+SUMIF(bank!$A:$A,AJ$1&$A166,bank!$N:$N) -> 0 | AK166: =SUMIF(Zs!$A:$A,$A166,Zs!$L:$L)+SUMIF(bank!$A:$A,AK$1&$A166,bank!$N:$N) -> 0 | AL166: kiadás | AM166: 0.9924053936 | AN166: Zelenka P. alapba megfizetett fenntartói járulék (gyülekezetet terhelő) összege
A167: =CONCATENATE("k",C167) -> k165 | B167: * | C167: 165 | E167: -Egyéb bérjárulék | U167: =SUMIF(kvátf.!E:E,KvZsz!A167,kvátf.!D:D) -> 0 | V167: 0 | W167: =SUMIF('Terv-segédlet'!$B:$B,KvZsz!$A167,'Terv-segédlet'!E:E) -> 0 | X167: =SUMIF('Terv-segédlet'!$B:$B,KvZsz!$A167,'Terv-segédlet'!F:F) -> 0 | Y167: =SUMIF('Terv-segédlet'!$B:$B,KvZsz!$A167,'Terv-segédlet'!G:G) -> 0 | Z167: =SUMIF('Terv-segédlet'!$B:$B,KvZsz!$A167,'Terv-segédlet'!H:H) -> 0 | AA167: =SUMIF('Terv-segédlet'!$B:$B,KvZsz!$A167,'Terv-segédlet'!I:I) -> 0 | AB167: =SUMIF('Terv-segédlet'!$B:$B,KvZsz!$A167,'Terv-segédlet'!J:J) -> 0 | AC167: =SUMIF('Terv-segédlet'!$B:$B,KvZsz!$A167,'Terv-segédlet'!K:K) -> 0 | AD167: 0 | AE167: =SUMIF(V!$A:$A,$A167,V!$L:$L)+SUMIF(bank!$A:$A,AE$1&$A167,bank!$N:$N) -> 0 | AF167: =SUMIF(Gy!$A:$A,$A167,Gy!$L:$L)+SUMIF(bank!$A:$A,AF$1&$A167,bank!$N:$N) -> 0 | AG167: =SUMIF(K!$A:$A,$A167,K!$L:$L)+SUMIF(bank!$A:$A,AG$1&$A167,bank!$N:$N) -> 0 | AH167: =SUMIF(Mk!$A:$A,$A167,Mk!$L:$L)+SUMIF(bank!$A:$A,AH$1&$A167,bank!$N:$N) -> 0 | AI167: =SUMIF(M!$A:$A,$A167,M!$L:$L)+SUMIF(bank!$A:$A,AI$1&$A167,bank!$N:$N) -> 0 | AJ167: =SUMIF(P!$A:$A,$A167,P!$L:$L)+SUMIF(bank!$A:$A,AJ$1&$A167,bank!$N:$N) -> 0 | AK167: =SUMIF(Zs!$A:$A,$A167,Zs!$L:$L)+SUMIF(bank!$A:$A,AK$1&$A167,bank!$N:$N) -> 0 | AL167: kiadás | AN167: MEP járulék, stb.
A168: k166 | C168: 166 | E168: 10. Egyéb ráfordítások (167+172) | W168: =SUMIF('Terv-segédlet'!$B:$B,KvZsz!$A168,'Terv-segédlet'!E:E) -> 0 | X168: =SUMIF('Terv-segédlet'!$B:$B,KvZsz!$A168,'Terv-segédlet'!F:F) -> 0 | Y168: =SUMIF('Terv-segédlet'!$B:$B,KvZsz!$A168,'Terv-segédlet'!G:G) -> 0 | Z168: =SUMIF('Terv-segédlet'!$B:$B,KvZsz!$A168,'Terv-segédlet'!H:H) -> 0 | AA168: =SUMIF('Terv-segédlet'!$B:$B,KvZsz!$A168,'Terv-segédlet'!I:I) -> 0 | AB168: =SUMIF('Terv-segédlet'!$B:$B,KvZsz!$A168,'Terv-segédlet'!J:J) -> 0 | AC168: =SUMIF('Terv-segédlet'!$B:$B,KvZsz!$A168,'Terv-segédlet'!K:K) -> 0 | AL168: kiadás
A169: k167 | C169: 167 | E169: i) Különféle egyéb ráfordítások (168..171) | W169: =SUMIF('Terv-segédlet'!$B:$B,KvZsz!$A169,'Terv-segédlet'!E:E) -> 0 | X169: =SUMIF('Terv-segédlet'!$B:$B,KvZsz!$A169,'Terv-segédlet'!F:F) -> 0 | Y169: =SUMIF('Terv-segédlet'!$B:$B,KvZsz!$A169,'Terv-segédlet'!G:G) -> 0 | Z169: =SUMIF('Terv-segédlet'!$B:$B,KvZsz!$A169,'Terv-segédlet'!H:H) -> 0 | AA169: =SUMIF('Terv-segédlet'!$B:$B,KvZsz!$A169,'Terv-segédlet'!I:I) -> 0 | AB169: =SUMIF('Terv-segédlet'!$B:$B,KvZsz!$A169,'Terv-segédlet'!J:J) -> 0 | AC169: =SUMIF('Terv-segédlet'!$B:$B,KvZsz!$A169,'Terv-segédlet'!K:K) -> 0 | AL169: kiadás
A170: k168 | B170: * | C170: 168 | E170: Adók, illetékek, hozzájárulások | U170: =SUMIF(kvátf.!E:E,KvZsz!A170,kvátf.!D:D) -> 0 | V170: =SUM(W170:AC170) -> 0 | W170: =SUMIF('Terv-segédlet'!$B:$B,KvZsz!$A170,'Terv-segédlet'!E:E) -> 0 | X170: =SUMIF('Terv-segédlet'!$B:$B,KvZsz!$A170,'Terv-segédlet'!F:F) -> 0 | Y170: =SUMIF('Terv-segédlet'!$B:$B,KvZsz!$A170,'Terv-segédlet'!G:G) -> 0 | Z170: =SUMIF('Terv-segédlet'!$B:$B,KvZsz!$A170,'Terv-segédlet'!H:H) -> 0 | AA170: =SUMIF('Terv-segédlet'!$B:$B,KvZsz!$A170,'Terv-segédlet'!I:I) -> 0 | AB170: =SUMIF('Terv-segédlet'!$B:$B,KvZsz!$A170,'Terv-segédlet'!J:J) -> 0 | AC170: =SUMIF('Terv-segédlet'!$B:$B,KvZsz!$A170,'Terv-segédlet'!K:K) -> 0 | AD170: =SUM(AE170:AK170) -> 0 | AE170: =SUMIF(V!$A:$A,$A170,V!$L:$L)+SUMIF(bank!$A:$A,AE$1&$A170,bank!$N:$N) -> 0 | AF170: =SUMIF(Gy!$A:$A,$A170,Gy!$L:$L)+SUMIF(bank!$A:$A,AF$1&$A170,bank!$N:$N) -> 0 | AG170: =SUMIF(K!$A:$A,$A170,K!$L:$L)+SUMIF(bank!$A:$A,AG$1&$A170,bank!$N:$N) -> 0 | AH170: =SUMIF(Mk!$A:$A,$A170,Mk!$L:$L)+SUMIF(bank!$A:$A,AH$1&$A170,bank!$N:$N) -> 0 | AI170: =SUMIF(M!$A:$A,$A170,M!$L:$L)+SUMIF(bank!$A:$A,AI$1&$A170,bank!$N:$N) -> 0 | AJ170: =SUMIF(P!$A:$A,$A170,P!$L:$L)+SUMIF(bank!$A:$A,AJ$1&$A170,bank!$N:$N) -> 0 | AK170: =SUMIF(Zs!$A:$A,$A170,Zs!$L:$L)+SUMIF(bank!$A:$A,AK$1&$A170,bank!$N:$N) -> 0 | AL170: kiadás | AN170: pl. helyi adók
A171: k169 | B171: * | C171: 169 | E171: Káreseménnyel kapcsolatos fizetések, fizetendő összege, káresemények ráfordítása | U171: =SUMIF(kvátf.!E:E,KvZsz!A171,kvátf.!D:D) -> 0 | V171: 0 | W171: =SUMIF('Terv-segédlet'!$B:$B,KvZsz!$A171,'Terv-segédlet'!E:E) -> 0 | X171: =SUMIF('Terv-segédlet'!$B:$B,KvZsz!$A171,'Terv-segédlet'!F:F) -> 0 | Y171: =SUMIF('Terv-segédlet'!$B:$B,KvZsz!$A171,'Terv-segédlet'!G:G) -> 0 | Z171: =SUMIF('Terv-segédlet'!$B:$B,KvZsz!$A171,'Terv-segédlet'!H:H) -> 0 | AA171: =SUMIF('Terv-segédlet'!$B:$B,KvZsz!$A171,'Terv-segédlet'!I:I) -> 0 | AB171: =SUMIF('Terv-segédlet'!$B:$B,KvZsz!$A171,'Terv-segédlet'!J:J) -> 0 | AC171: =SUMIF('Terv-segédlet'!$B:$B,KvZsz!$A171,'Terv-segédlet'!K:K) -> 0 | AD171: 0 | AE171: =SUMIF(V!$A:$A,$A171,V!$L:$L)+SUMIF(bank!$A:$A,AE$1&$A171,bank!$N:$N) -> 0 | AF171: =SUMIF(Gy!$A:$A,$A171,Gy!$L:$L)+SUMIF(bank!$A:$A,AF$1&$A171,bank!$N:$N) -> 0 | AG171: =SUMIF(K!$A:$A,$A171,K!$L:$L)+SUMIF(bank!$A:$A,AG$1&$A171,bank!$N:$N) -> 0 | AH171: =SUMIF(Mk!$A:$A,$A171,Mk!$L:$L)+SUMIF(bank!$A:$A,AH$1&$A171,bank!$N:$N) -> 0 | AI171: =SUMIF(M!$A:$A,$A171,M!$L:$L)+SUMIF(bank!$A:$A,AI$1&$A171,bank!$N:$N) -> 0 | AJ171: =SUMIF(P!$A:$A,$A171,P!$L:$L)+SUMIF(bank!$A:$A,AJ$1&$A171,bank!$N:$N) -> 0 | AK171: =SUMIF(Zs!$A:$A,$A171,Zs!$L:$L)+SUMIF(bank!$A:$A,AK$1&$A171,bank!$N:$N) -> 0 | AL171: kiadás | AN171: fizetett kártérítési kötelezettség
A172: k170 | B172: * | C172: 170 | E172: Bírságok, kötbérek, késedelmi kamatok, kártérítések | U172: =SUMIF(kvátf.!E:E,KvZsz!A172,kvátf.!D:D) -> 0 | V172: 0 | W172: =SUMIF('Terv-segédlet'!$B:$B,KvZsz!$A172,'Terv-segédlet'!E:E) -> 0 | X172: =SUMIF('Terv-segédlet'!$B:$B,KvZsz!$A172,'Terv-segédlet'!F:F) -> 0 | Y172: =SUMIF('Terv-segédlet'!$B:$B,KvZsz!$A172,'Terv-segédlet'!G:G) -> 0 | Z172: =SUMIF('Terv-segédlet'!$B:$B,KvZsz!$A172,'Terv-segédlet'!H:H) -> 0 | AA172: =SUMIF('Terv-segédlet'!$B:$B,KvZsz!$A172,'Terv-segédlet'!I:I) -> 0 | AB172: =SUMIF('Terv-segédlet'!$B:$B,KvZsz!$A172,'Terv-segédlet'!J:J) -> 0 | AC172: =SUMIF('Terv-segédlet'!$B:$B,KvZsz!$A172,'Terv-segédlet'!K:K) -> 0 | AD172: 0 | AE172: =SUMIF(V!$A:$A,$A172,V!$L:$L)+SUMIF(bank!$A:$A,AE$1&$A172,bank!$N:$N) -> 0 | AF172: =SUMIF(Gy!$A:$A,$A172,Gy!$L:$L)+SUMIF(bank!$A:$A,AF$1&$A172,bank!$N:$N) -> 0 | AG172: =SUMIF(K!$A:$A,$A172,K!$L:$L)+SUMIF(bank!$A:$A,AG$1&$A172,bank!$N:$N) -> 0 | AH172: =SUMIF(Mk!$A:$A,$A172,Mk!$L:$L)+SUMIF(bank!$A:$A,AH$1&$A172,bank!$N:$N) -> 0 | AI172: =SUMIF(M!$A:$A,$A172,M!$L:$L)+SUMIF(bank!$A:$A,AI$1&$A172,bank!$N:$N) -> 0 | AJ172: =SUMIF(P!$A:$A,$A172,P!$L:$L)+SUMIF(bank!$A:$A,AJ$1&$A172,bank!$N:$N) -> 0 | AK172: =SUMIF(Zs!$A:$A,$A172,Zs!$L:$L)+SUMIF(bank!$A:$A,AK$1&$A172,bank!$N:$N) -> 0 | AL172: kiadás | AN172: késedelmi kamat, bírság, kötbér, stb.
A173: k171 | B173: * | C173: 171 | E173: Más különféle egyéb ráfordítások | U173: =SUMIF(kvátf.!E:E,KvZsz!A173,kvátf.!D:D) -> -6 | V173: 0 | W173: =SUMIF('Terv-segédlet'!$B:$B,KvZsz!$A173,'Terv-segédlet'!E:E) -> 0 | X173: =SUMIF('Terv-segédlet'!$B:$B,KvZsz!$A173,'Terv-segédlet'!F:F) -> 0 | Y173: =SUMIF('Terv-segédlet'!$B:$B,KvZsz!$A173,'Terv-segédlet'!G:G) -> 0 | Z173: =SUMIF('Terv-segédlet'!$B:$B,KvZsz!$A173,'Terv-segédlet'!H:H) -> 0 | AA173: =SUMIF('Terv-segédlet'!$B:$B,KvZsz!$A173,'Terv-segédlet'!I:I) -> 0 | AB173: =SUMIF('Terv-segédlet'!$B:$B,KvZsz!$A173,'Terv-segédlet'!J:J) -> 0 | AC173: =SUMIF('Terv-segédlet'!$B:$B,KvZsz!$A173,'Terv-segédlet'!K:K) -> 0 | AD173: -9 | AE173: =SUMIF(V!$A:$A,$A173,V!$L:$L)+SUMIF(bank!$A:$A,AE$1&$A173,bank!$N:$N) -> -4 | AF173: =SUMIF(Gy!$A:$A,$A173,Gy!$L:$L)+SUMIF(bank!$A:$A,AF$1&$A173,bank!$N:$N) -> 0 | AG173: =SUMIF(K!$A:$A,$A173,K!$L:$L)+SUMIF(bank!$A:$A,AG$1&$A173,bank!$N:$N) -> -12 | AH173: =SUMIF(Mk!$A:$A,$A173,Mk!$L:$L)+SUMIF(bank!$A:$A,AH$1&$A173,bank!$N:$N) -> 7 | AI173: =SUMIF(M!$A:$A,$A173,M!$L:$L)+SUMIF(bank!$A:$A,AI$1&$A173,bank!$N:$N) -> 4 | AJ173: =SUMIF(P!$A:$A,$A173,P!$L:$L)+SUMIF(bank!$A:$A,AJ$1&$A173,bank!$N:$N) -> -3 | AK173: =SUMIF(Zs!$A:$A,$A173,Zs!$L:$L)+SUMIF(bank!$A:$A,AK$1&$A173,bank!$N:$N) -> -1 | AL173: kiadás | AN173: pl. kerekítés
A174: k172 | C174: 172 | E174: ii) Adott, átadott támogatások (173+179+184) | W174: =SUMIF('Terv-segédlet'!$B:$B,KvZsz!$A174,'Terv-segédlet'!E:E) -> 0 | X174: =SUMIF('Terv-segédlet'!$B:$B,KvZsz!$A174,'Terv-segédlet'!F:F) -> 0 | Y174: =SUMIF('Terv-segédlet'!$B:$B,KvZsz!$A174,'Terv-segédlet'!G:G) -> 0 | Z174: =SUMIF('Terv-segédlet'!$B:$B,KvZsz!$A174,'Terv-segédlet'!H:H) -> 0 | AA174: =SUMIF('Terv-segédlet'!$B:$B,KvZsz!$A174,'Terv-segédlet'!I:I) -> 0 | AB174: =SUMIF('Terv-segédlet'!$B:$B,KvZsz!$A174,'Terv-segédlet'!J:J) -> 0 | AC174: =SUMIF('Terv-segédlet'!$B:$B,KvZsz!$A174,'Terv-segédlet'!K:K) -> 0 | AL174: kiadás
A175: k173 | C175: 173 | E175: a ) Egyházi támogatás (174+178) | W175: =SUMIF('Terv-segédlet'!$B:$B,KvZsz!$A175,'Terv-segédlet'!E:E) -> 0 | X175: =SUMIF('Terv-segédlet'!$B:$B,KvZsz!$A175,'Terv-segédlet'!F:F) -> 0 | Y175: =SUMIF('Terv-segédlet'!$B:$B,KvZsz!$A175,'Terv-segédlet'!G:G) -> 0 | Z175: =SUMIF('Terv-segédlet'!$B:$B,KvZsz!$A175,'Terv-segédlet'!H:H) -> 0 | AA175: =SUMIF('Terv-segédlet'!$B:$B,KvZsz!$A175,'Terv-segédlet'!I:I) -> 0 | AB175: =SUMIF('Terv-segédlet'!$B:$B,KvZsz!$A175,'Terv-segédlet'!J:J) -> 0 | AC175: =SUMIF('Terv-segédlet'!$B:$B,KvZsz!$A175,'Terv-segédlet'!K:K) -> 0 | AL175: kiadás
A176: k174 | C176: 174 | E176: aa) Belföldi egyházi jogi személynek (175..177) | W176: =SUMIF('Terv-segédlet'!$B:$B,KvZsz!$A176,'Terv-segédlet'!E:E) -> 0 | X176: =SUMIF('Terv-segédlet'!$B:$B,KvZsz!$A176,'Terv-segédlet'!F:F) -> 0 | Y176: =SUMIF('Terv-segédlet'!$B:$B,KvZsz!$A176,'Terv-segédlet'!G:G) -> 0 | Z176: =SUMIF('Terv-segédlet'!$B:$B,KvZsz!$A176,'Terv-segédlet'!H:H) -> 0 | AA176: =SUMIF('Terv-segédlet'!$B:$B,KvZsz!$A176,'Terv-segédlet'!I:I) -> 0 | AB176: =SUMIF('Terv-segédlet'!$B:$B,KvZsz!$A176,'Terv-segédlet'!J:J) -> 0 | AC176: =SUMIF('Terv-segédlet'!$B:$B,KvZsz!$A176,'Terv-segédlet'!K:K) -> 0 | AL176: kiadás
A177: k175 | B177: * | C177: 175 | E177: -Egyházmegyei járulék | U177: =SUMIF(kvátf.!E:E,KvZsz!A177,kvátf.!D:D) -> 120000 | V177: =SUM(W177:AC177) -> 126000 | W177: =SUMIF('Terv-segédlet'!$B:$B,KvZsz!$A177,'Terv-segédlet'!E:E) -> 126000 | X177: =SUMIF('Terv-segédlet'!$B:$B,KvZsz!$A177,'Terv-segédlet'!F:F) -> 0 | Y177: =SUMIF('Terv-segédlet'!$B:$B,KvZsz!$A177,'Terv-segédlet'!G:G) -> 0 | Z177: =SUMIF('Terv-segédlet'!$B:$B,KvZsz!$A177,'Terv-segédlet'!H:H) -> 0 | AA177: =SUMIF('Terv-segédlet'!$B:$B,KvZsz!$A177,'Terv-segédlet'!I:I) -> 0 | AB177: =SUMIF('Terv-segédlet'!$B:$B,KvZsz!$A177,'Terv-segédlet'!J:J) -> 0 | AC177: =SUMIF('Terv-segédlet'!$B:$B,KvZsz!$A177,'Terv-segédlet'!K:K) -> 0 | AD177: =SUM(AE177:AK177) -> 126000 | AE177: =SUMIF(V!$A:$A,$A177,V!$L:$L)+SUMIF(bank!$A:$A,AE$1&$A177,bank!$N:$N) -> 126000 | AF177: =SUMIF(Gy!$A:$A,$A177,Gy!$L:$L)+SUMIF(bank!$A:$A,AF$1&$A177,bank!$N:$N) -> 0 | AG177: =SUMIF(K!$A:$A,$A177,K!$L:$L)+SUMIF(bank!$A:$A,AG$1&$A177,bank!$N:$N) -> 0 | AH177: =SUMIF(Mk!$A:$A,$A177,Mk!$L:$L)+SUMIF(bank!$A:$A,AH$1&$A177,bank!$N:$N) -> 0 | AI177: =SUMIF(M!$A:$A,$A177,M!$L:$L)+SUMIF(bank!$A:$A,AI$1&$A177,bank!$N:$N) -> 0 | AJ177: =SUMIF(P!$A:$A,$A177,P!$L:$L)+SUMIF(bank!$A:$A,AJ$1&$A177,bank!$N:$N) -> 0 | AK177: =SUMIF(Zs!$A:$A,$A177,Zs!$L:$L)+SUMIF(bank!$A:$A,AK$1&$A177,bank!$N:$N) -> 0 | AL177: kiadás | AM177: 1 | AN177: egyházmegyének befizetett egházfenntartói járulék
A178: k176 | B178: * | C178: 176 | E178: -Saját fenntartású intézménynek adott támogatás | U178: =SUMIF(kvátf.!E:E,KvZsz!A178,kvátf.!D:D) -> 0 | V178: 0 | W178: =SUMIF('Terv-segédlet'!$B:$B,KvZsz!$A178,'Terv-segédlet'!E:E) -> 0 | X178: =SUMIF('Terv-segédlet'!$B:$B,KvZsz!$A178,'Terv-segédlet'!F:F) -> 0 | Y178: =SUMIF('Terv-segédlet'!$B:$B,KvZsz!$A178,'Terv-segédlet'!G:G) -> 0 | Z178: =SUMIF('Terv-segédlet'!$B:$B,KvZsz!$A178,'Terv-segédlet'!H:H) -> 0 | AA178: =SUMIF('Terv-segédlet'!$B:$B,KvZsz!$A178,'Terv-segédlet'!I:I) -> 0 | AB178: =SUMIF('Terv-segédlet'!$B:$B,KvZsz!$A178,'Terv-segédlet'!J:J) -> 0 | AC178: =SUMIF('Terv-segédlet'!$B:$B,KvZsz!$A178,'Terv-segédlet'!K:K) -> 0 | AD178: 0 | AE178: =SUMIF(V!$A:$A,$A178,V!$L:$L)+SUMIF(bank!$A:$A,AE$1&$A178,bank!$N:$N) -> 0 | AF178: =SUMIF(Gy!$A:$A,$A178,Gy!$L:$L)+SUMIF(bank!$A:$A,AF$1&$A178,bank!$N:$N) -> 0 | AG178: =SUMIF(K!$A:$A,$A178,K!$L:$L)+SUMIF(bank!$A:$A,AG$1&$A178,bank!$N:$N) -> 0 | AH178: =SUMIF(Mk!$A:$A,$A178,Mk!$L:$L)+SUMIF(bank!$A:$A,AH$1&$A178,bank!$N:$N) -> 0 | AI178: =SUMIF(M!$A:$A,$A178,M!$L:$L)+SUMIF(bank!$A:$A,AI$1&$A178,bank!$N:$N) -> 0 | AJ178: =SUMIF(P!$A:$A,$A178,P!$L:$L)+SUMIF(bank!$A:$A,AJ$1&$A178,bank!$N:$N) -> 0 | AK178: =SUMIF(Zs!$A:$A,$A178,Zs!$L:$L)+SUMIF(bank!$A:$A,AK$1&$A178,bank!$N:$N) -> 0 | AL178: kiadás | AN178: saját fenntartású intézménynek támogatás címén átadott saját bevétel
A179: k177 | B179: * | C179: 177 | E179: -Más egyházi jogi személynek adott támogatás | U179: =SUMIF(kvátf.!E:E,KvZsz!A179,kvátf.!D:D) -> 14000 | V179: 12000 | W179: =SUMIF('Terv-segédlet'!$B:$B,KvZsz!$A179,'Terv-segédlet'!E:E) -> 12000 | X179: =SUMIF('Terv-segédlet'!$B:$B,KvZsz!$A179,'Terv-segédlet'!F:F) -> 0 | Y179: =SUMIF('Terv-segédlet'!$B:$B,KvZsz!$A179,'Terv-segédlet'!G:G) -> 0 | Z179: =SUMIF('Terv-segédlet'!$B:$B,KvZsz!$A179,'Terv-segédlet'!H:H) -> 0 | AA179: =SUMIF('Terv-segédlet'!$B:$B,KvZsz!$A179,'Terv-segédlet'!I:I) -> 0 | AB179: =SUMIF('Terv-segédlet'!$B:$B,KvZsz!$A179,'Terv-segédlet'!J:J) -> 0 | AC179: =SUMIF('Terv-segédlet'!$B:$B,KvZsz!$A179,'Terv-segédlet'!K:K) -> 0 | AD179: 39340 | AE179: =SUMIF(V!$A:$A,$A179,V!$L:$L)+SUMIF(bank!$A:$A,AE$1&$A179,bank!$N:$N) -> 39340 | AF179: =SUMIF(Gy!$A:$A,$A179,Gy!$L:$L)+SUMIF(bank!$A:$A,AF$1&$A179,bank!$N:$N) -> 0 | AG179: =SUMIF(K!$A:$A,$A179,K!$L:$L)+SUMIF(bank!$A:$A,AG$1&$A179,bank!$N:$N) -> 0 | AH179: =SUMIF(Mk!$A:$A,$A179,Mk!$L:$L)+SUMIF(bank!$A:$A,AH$1&$A179,bank!$N:$N) -> 0 | AI179: =SUMIF(M!$A:$A,$A179,M!$L:$L)+SUMIF(bank!$A:$A,AI$1&$A179,bank!$N:$N) -> 0 | AJ179: =SUMIF(P!$A:$A,$A179,P!$L:$L)+SUMIF(bank!$A:$A,AJ$1&$A179,bank!$N:$N) -> 0 | AK179: =SUMIF(Zs!$A:$A,$A179,Zs!$L:$L)+SUMIF(bank!$A:$A,AK$1&$A179,bank!$N:$N) -> 0 | AL179: kiadás | AM179: 3.278333333 | AN179: más egyházmegyének, egyházközségnek, egyházi intézménynek, országos egyháznak adott támogatás
A180: k178 | B180: * | C180: 178 | E180: ab) Külföldi egyháznak | U180: =SUMIF(kvátf.!E:E,KvZsz!A180,kvátf.!D:D) -> 0 | V180: 0 | W180: =SUMIF('Terv-segédlet'!$B:$B,KvZsz!$A180,'Terv-segédlet'!E:E) -> 0 | X180: =SUMIF('Terv-segédlet'!$B:$B,KvZsz!$A180,'Terv-segédlet'!F:F) -> 0 | Y180: =SUMIF('Terv-segédlet'!$B:$B,KvZsz!$A180,'Terv-segédlet'!G:G) -> 0 | Z180: =SUMIF('Terv-segédlet'!$B:$B,KvZsz!$A180,'Terv-segédlet'!H:H) -> 0 | AA180: =SUMIF('Terv-segédlet'!$B:$B,KvZsz!$A180,'Terv-segédlet'!I:I) -> 0 | AB180: =SUMIF('Terv-segédlet'!$B:$B,KvZsz!$A180,'Terv-segédlet'!J:J) -> 0 | AC180: =SUMIF('Terv-segédlet'!$B:$B,KvZsz!$A180,'Terv-segédlet'!K:K) -> 0 | AD180: 0 | AE180: =SUMIF(V!$A:$A,$A180,V!$L:$L)+SUMIF(bank!$A:$A,AE$1&$A180,bank!$N:$N) -> 0 | AF180: =SUMIF(Gy!$A:$A,$A180,Gy!$L:$L)+SUMIF(bank!$A:$A,AF$1&$A180,bank!$N:$N) -> 0 | AG180: =SUMIF(K!$A:$A,$A180,K!$L:$L)+SUMIF(bank!$A:$A,AG$1&$A180,bank!$N:$N) -> 0 | AH180: =SUMIF(Mk!$A:$A,$A180,Mk!$L:$L)+SUMIF(bank!$A:$A,AH$1&$A180,bank!$N:$N) -> 0 | AI180: =SUMIF(M!$A:$A,$A180,M!$L:$L)+SUMIF(bank!$A:$A,AI$1&$A180,bank!$N:$N) -> 0 | AJ180: =SUMIF(P!$A:$A,$A180,P!$L:$L)+SUMIF(bank!$A:$A,AJ$1&$A180,bank!$N:$N) -> 0 | AK180: =SUMIF(Zs!$A:$A,$A180,Zs!$L:$L)+SUMIF(bank!$A:$A,AK$1&$A180,bank!$N:$N) -> 0 | AL180: kiadás | AN180: külföldi testvérgyülekezetnek, GAW, LVSZ, stb. adott támogatás
A181: k179 | C181: 179 | E181: b) Központi költségvetés (180..183) | W181: =SUMIF('Terv-segédlet'!$B:$B,KvZsz!$A181,'Terv-segédlet'!E:E) -> 0 | X181: =SUMIF('Terv-segédlet'!$B:$B,KvZsz!$A181,'Terv-segédlet'!F:F) -> 0 | Y181: =SUMIF('Terv-segédlet'!$B:$B,KvZsz!$A181,'Terv-segédlet'!G:G) -> 0 | Z181: =SUMIF('Terv-segédlet'!$B:$B,KvZsz!$A181,'Terv-segédlet'!H:H) -> 0 | AA181: =SUMIF('Terv-segédlet'!$B:$B,KvZsz!$A181,'Terv-segédlet'!I:I) -> 0 | AB181: =SUMIF('Terv-segédlet'!$B:$B,KvZsz!$A181,'Terv-segédlet'!J:J) -> 0 | AC181: =SUMIF('Terv-segédlet'!$B:$B,KvZsz!$A181,'Terv-segédlet'!K:K) -> 0 | AL181: kiadás
A182: k180 | B182: * | C182: 180 | E182: -Köznevelési támogatás átadása | U182: =SUMIF(kvátf.!E:E,KvZsz!A182,kvátf.!D:D) -> 0 | V182: =SUM(W182:AC182) -> 0 | W182: =SUMIF('Terv-segédlet'!$B:$B,KvZsz!$A182,'Terv-segédlet'!E:E) -> 0 | X182: =SUMIF('Terv-segédlet'!$B:$B,KvZsz!$A182,'Terv-segédlet'!F:F) -> 0 | Y182: =SUMIF('Terv-segédlet'!$B:$B,KvZsz!$A182,'Terv-segédlet'!G:G) -> 0 | Z182: =SUMIF('Terv-segédlet'!$B:$B,KvZsz!$A182,'Terv-segédlet'!H:H) -> 0 | AA182: =SUMIF('Terv-segédlet'!$B:$B,KvZsz!$A182,'Terv-segédlet'!I:I) -> 0 | AB182: =SUMIF('Terv-segédlet'!$B:$B,KvZsz!$A182,'Terv-segédlet'!J:J) -> 0 | AC182: =SUMIF('Terv-segédlet'!$B:$B,KvZsz!$A182,'Terv-segédlet'!K:K) -> 0 | AD182: =SUM(AE182:AK182) -> 0 | AE182: =SUMIF(V!$A:$A,$A182,V!$L:$L)+SUMIF(bank!$A:$A,AE$1&$A182,bank!$N:$N) -> 0 | AF182: =SUMIF(Gy!$A:$A,$A182,Gy!$L:$L)+SUMIF(bank!$A:$A,AF$1&$A182,bank!$N:$N) -> 0 | AG182: =SUMIF(K!$A:$A,$A182,K!$L:$L)+SUMIF(bank!$A:$A,AG$1&$A182,bank!$N:$N) -> 0 | AH182: =SUMIF(Mk!$A:$A,$A182,Mk!$L:$L)+SUMIF(bank!$A:$A,AH$1&$A182,bank!$N:$N) -> 0 | AI182: =SUMIF(M!$A:$A,$A182,M!$L:$L)+SUMIF(bank!$A:$A,AI$1&$A182,bank!$N:$N) -> 0 | AJ182: =SUMIF(P!$A:$A,$A182,P!$L:$L)+SUMIF(bank!$A:$A,AJ$1&$A182,bank!$N:$N) -> 0 | AK182: =SUMIF(Zs!$A:$A,$A182,Zs!$L:$L)+SUMIF(bank!$A:$A,AK$1&$A182,bank!$N:$N) -> 0 | AL182: kiadás | AN182: saját fenntartású köznevelési intézménynek továbbadott állami támogatás
A183: k181 | B183: * | C183: 181 | E183: -Szociális támogatás átadása | U183: =SUMIF(kvátf.!E:E,KvZsz!A183,kvátf.!D:D) -> 0 | V183: 0 | W183: =SUMIF('Terv-segédlet'!$B:$B,KvZsz!$A183,'Terv-segédlet'!E:E) -> 0 | X183: =SUMIF('Terv-segédlet'!$B:$B,KvZsz!$A183,'Terv-segédlet'!F:F) -> 0 | Y183: =SUMIF('Terv-segédlet'!$B:$B,KvZsz!$A183,'Terv-segédlet'!G:G) -> 0 | Z183: =SUMIF('Terv-segédlet'!$B:$B,KvZsz!$A183,'Terv-segédlet'!H:H) -> 0 | AA183: =SUMIF('Terv-segédlet'!$B:$B,KvZsz!$A183,'Terv-segédlet'!I:I) -> 0 | AB183: =SUMIF('Terv-segédlet'!$B:$B,KvZsz!$A183,'Terv-segédlet'!J:J) -> 0 | AC183: =SUMIF('Terv-segédlet'!$B:$B,KvZsz!$A183,'Terv-segédlet'!K:K) -> 0 | AD183: 0 | AE183: =SUMIF(V!$A:$A,$A183,V!$L:$L)+SUMIF(bank!$A:$A,AE$1&$A183,bank!$N:$N) -> 0 | AF183: =SUMIF(Gy!$A:$A,$A183,Gy!$L:$L)+SUMIF(bank!$A:$A,AF$1&$A183,bank!$N:$N) -> 0 | AG183: =SUMIF(K!$A:$A,$A183,K!$L:$L)+SUMIF(bank!$A:$A,AG$1&$A183,bank!$N:$N) -> 0 | AH183: =SUMIF(Mk!$A:$A,$A183,Mk!$L:$L)+SUMIF(bank!$A:$A,AH$1&$A183,bank!$N:$N) -> 0 | AI183: =SUMIF(M!$A:$A,$A183,M!$L:$L)+SUMIF(bank!$A:$A,AI$1&$A183,bank!$N:$N) -> 0 | AJ183: =SUMIF(P!$A:$A,$A183,P!$L:$L)+SUMIF(bank!$A:$A,AJ$1&$A183,bank!$N:$N) -> 0 | AK183: =SUMIF(Zs!$A:$A,$A183,Zs!$L:$L)+SUMIF(bank!$A:$A,AK$1&$A183,bank!$N:$N) -> 0 | AL183: kiadás | AN183: saját fenntartású szociális intézménynek továbbadott állami támogatás
A184: k182 | B184: * | C184: 182 | E184: -Hitoktatási, munkaügyi költségvetési támogatás átadása | U184: =SUMIF(kvátf.!E:E,KvZsz!A184,kvátf.!D:D) -> 0 | V184: 0 | W184: =SUMIF('Terv-segédlet'!$B:$B,KvZsz!$A184,'Terv-segédlet'!E:E) -> 0 | X184: =SUMIF('Terv-segédlet'!$B:$B,KvZsz!$A184,'Terv-segédlet'!F:F) -> 0 | Y184: =SUMIF('Terv-segédlet'!$B:$B,KvZsz!$A184,'Terv-segédlet'!G:G) -> 0 | Z184: =SUMIF('Terv-segédlet'!$B:$B,KvZsz!$A184,'Terv-segédlet'!H:H) -> 0 | AA184: =SUMIF('Terv-segédlet'!$B:$B,KvZsz!$A184,'Terv-segédlet'!I:I) -> 0 | AB184: =SUMIF('Terv-segédlet'!$B:$B,KvZsz!$A184,'Terv-segédlet'!J:J) -> 0 | AC184: =SUMIF('Terv-segédlet'!$B:$B,KvZsz!$A184,'Terv-segédlet'!K:K) -> 0 | AD184: 0 | AE184: =SUMIF(V!$A:$A,$A184,V!$L:$L)+SUMIF(bank!$A:$A,AE$1&$A184,bank!$N:$N) -> 0 | AF184: =SUMIF(Gy!$A:$A,$A184,Gy!$L:$L)+SUMIF(bank!$A:$A,AF$1&$A184,bank!$N:$N) -> 0 | AG184: =SUMIF(K!$A:$A,$A184,K!$L:$L)+SUMIF(bank!$A:$A,AG$1&$A184,bank!$N:$N) -> 0 | AH184: =SUMIF(Mk!$A:$A,$A184,Mk!$L:$L)+SUMIF(bank!$A:$A,AH$1&$A184,bank!$N:$N) -> 0 | AI184: =SUMIF(M!$A:$A,$A184,M!$L:$L)+SUMIF(bank!$A:$A,AI$1&$A184,bank!$N:$N) -> 0 | AJ184: =SUMIF(P!$A:$A,$A184,P!$L:$L)+SUMIF(bank!$A:$A,AJ$1&$A184,bank!$N:$N) -> 0 | AK184: =SUMIF(Zs!$A:$A,$A184,Zs!$L:$L)+SUMIF(bank!$A:$A,AK$1&$A184,bank!$N:$N) -> 0 | AL184: kiadás | AN184: támogatásként továbbadott hitoktatási támogatás, munkaügyi támogatás
A185: k183 | B185: * | C185: 183 | E185: -Egyéb központi költségvetési támogatás átadása | U185: =SUMIF(kvátf.!E:E,KvZsz!A185,kvátf.!D:D) -> 0 | V185: 0 | W185: =SUMIF('Terv-segédlet'!$B:$B,KvZsz!$A185,'Terv-segédlet'!E:E) -> 0 | X185: =SUMIF('Terv-segédlet'!$B:$B,KvZsz!$A185,'Terv-segédlet'!F:F) -> 0 | Y185: =SUMIF('Terv-segédlet'!$B:$B,KvZsz!$A185,'Terv-segédlet'!G:G) -> 0 | Z185: =SUMIF('Terv-segédlet'!$B:$B,KvZsz!$A185,'Terv-segédlet'!H:H) -> 0 | AA185: =SUMIF('Terv-segédlet'!$B:$B,KvZsz!$A185,'Terv-segédlet'!I:I) -> 0 | AB185: =SUMIF('Terv-segédlet'!$B:$B,KvZsz!$A185,'Terv-segédlet'!J:J) -> 0 | AC185: =SUMIF('Terv-segédlet'!$B:$B,KvZsz!$A185,'Terv-segédlet'!K:K) -> 0 | AD185: 0 | AE185: =SUMIF(V!$A:$A,$A185,V!$L:$L)+SUMIF(bank!$A:$A,AE$1&$A185,bank!$N:$N) -> 0 | AF185: =SUMIF(Gy!$A:$A,$A185,Gy!$L:$L)+SUMIF(bank!$A:$A,AF$1&$A185,bank!$N:$N) -> 0 | AG185: =SUMIF(K!$A:$A,$A185,K!$L:$L)+SUMIF(bank!$A:$A,AG$1&$A185,bank!$N:$N) -> 0 | AH185: =SUMIF(Mk!$A:$A,$A185,Mk!$L:$L)+SUMIF(bank!$A:$A,AH$1&$A185,bank!$N:$N) -> 0 | AI185: =SUMIF(M!$A:$A,$A185,M!$L:$L)+SUMIF(bank!$A:$A,AI$1&$A185,bank!$N:$N) -> 0 | AJ185: =SUMIF(P!$A:$A,$A185,P!$L:$L)+SUMIF(bank!$A:$A,AJ$1&$A185,bank!$N:$N) -> 0 | AK185: =SUMIF(Zs!$A:$A,$A185,Zs!$L:$L)+SUMIF(bank!$A:$A,AK$1&$A185,bank!$N:$N) -> 0 | AL185: kiadás | AN185: támogatásként továbbadott egyéb állami támogatás
A186: k184 | C186: 184 | E186: c) Egyéb támogatások (185+188) | W186: =SUMIF('Terv-segédlet'!$B:$B,KvZsz!$A186,'Terv-segédlet'!E:E) -> 0 | X186: =SUMIF('Terv-segédlet'!$B:$B,KvZsz!$A186,'Terv-segédlet'!F:F) -> 0 | Y186: =SUMIF('Terv-segédlet'!$B:$B,KvZsz!$A186,'Terv-segédlet'!G:G) -> 0 | Z186: =SUMIF('Terv-segédlet'!$B:$B,KvZsz!$A186,'Terv-segédlet'!H:H) -> 0 | AA186: =SUMIF('Terv-segédlet'!$B:$B,KvZsz!$A186,'Terv-segédlet'!I:I) -> 0 | AB186: =SUMIF('Terv-segédlet'!$B:$B,KvZsz!$A186,'Terv-segédlet'!J:J) -> 0 | AC186: =SUMIF('Terv-segédlet'!$B:$B,KvZsz!$A186,'Terv-segédlet'!K:K) -> 0 | AL186: kiadás
A187: k185 | C187: 185 | E187: ca) Gazdálkodó szerveknek (186..187) | W187: =SUMIF('Terv-segédlet'!$B:$B,KvZsz!$A187,'Terv-segédlet'!E:E) -> 0 | X187: =SUMIF('Terv-segédlet'!$B:$B,KvZsz!$A187,'Terv-segédlet'!F:F) -> 0 | Y187: =SUMIF('Terv-segédlet'!$B:$B,KvZsz!$A187,'Terv-segédlet'!G:G) -> 0 | Z187: =SUMIF('Terv-segédlet'!$B:$B,KvZsz!$A187,'Terv-segédlet'!H:H) -> 0 | AA187: =SUMIF('Terv-segédlet'!$B:$B,KvZsz!$A187,'Terv-segédlet'!I:I) -> 0 | AB187: =SUMIF('Terv-segédlet'!$B:$B,KvZsz!$A187,'Terv-segédlet'!J:J) -> 0 | AC187: =SUMIF('Terv-segédlet'!$B:$B,KvZsz!$A187,'Terv-segédlet'!K:K) -> 0 | AL187: kiadás
A188: k186 | B188: * | C188: 186 | E188: -Saját alapítványnak | U188: =SUMIF(kvátf.!E:E,KvZsz!A188,kvátf.!D:D) -> 0 | V188: =SUM(W188:AC188) -> 0 | W188: =SUMIF('Terv-segédlet'!$B:$B,KvZsz!$A188,'Terv-segédlet'!E:E) -> 0 | X188: =SUMIF('Terv-segédlet'!$B:$B,KvZsz!$A188,'Terv-segédlet'!F:F) -> 0 | Y188: =SUMIF('Terv-segédlet'!$B:$B,KvZsz!$A188,'Terv-segédlet'!G:G) -> 0 | Z188: =SUMIF('Terv-segédlet'!$B:$B,KvZsz!$A188,'Terv-segédlet'!H:H) -> 0 | AA188: =SUMIF('Terv-segédlet'!$B:$B,KvZsz!$A188,'Terv-segédlet'!I:I) -> 0 | AB188: =SUMIF('Terv-segédlet'!$B:$B,KvZsz!$A188,'Terv-segédlet'!J:J) -> 0 | AC188: =SUMIF('Terv-segédlet'!$B:$B,KvZsz!$A188,'Terv-segédlet'!K:K) -> 0 | AD188: =SUM(AE188:AK188) -> 2824056 | AE188: =SUMIF(V!$A:$A,$A188,V!$L:$L)+SUMIF(bank!$A:$A,AE$1&$A188,bank!$N:$N) -> 0 | AF188: =SUMIF(Gy!$A:$A,$A188,Gy!$L:$L)+SUMIF(bank!$A:$A,AF$1&$A188,bank!$N:$N) -> 0 | AG188: =SUMIF(K!$A:$A,$A188,K!$L:$L)+SUMIF(bank!$A:$A,AG$1&$A188,bank!$N:$N) -> 0 | AH188: =SUMIF(Mk!$A:$A,$A188,Mk!$L:$L)+SUMIF(bank!$A:$A,AH$1&$A188,bank!$N:$N) -> 2824056 | AI188: =SUMIF(M!$A:$A,$A188,M!$L:$L)+SUMIF(bank!$A:$A,AI$1&$A188,bank!$N:$N) -> 0 | AJ188: =SUMIF(P!$A:$A,$A188,P!$L:$L)+SUMIF(bank!$A:$A,AJ$1&$A188,bank!$N:$N) -> 0 | AK188: =SUMIF(Zs!$A:$A,$A188,Zs!$L:$L)+SUMIF(bank!$A:$A,AK$1&$A188,bank!$N:$N) -> 0 | AL188: kiadás | AN188: egyházközség által létrehozott saját alapítványnak adott támogatás
A189: k187 | B189: * | C189: 187 | E189: -Egyéb | F189: Értékesített, átruházott (engedményezett) követelések könyv szerinti értéke | U189: =SUMIF(kvátf.!E:E,KvZsz!A189,kvátf.!D:D) -> 0 | V189: 0 | W189: =SUMIF('Terv-segédlet'!$B:$B,KvZsz!$A189,'Terv-segédlet'!E:E) -> 0 | X189: =SUMIF('Terv-segédlet'!$B:$B,KvZsz!$A189,'Terv-segédlet'!F:F) -> 0 | Y189: =SUMIF('Terv-segédlet'!$B:$B,KvZsz!$A189,'Terv-segédlet'!G:G) -> 0 | Z189: =SUMIF('Terv-segédlet'!$B:$B,KvZsz!$A189,'Terv-segédlet'!H:H) -> 0 | AA189: =SUMIF('Terv-segédlet'!$B:$B,KvZsz!$A189,'Terv-segédlet'!I:I) -> 0 | AB189: =SUMIF('Terv-segédlet'!$B:$B,KvZsz!$A189,'Terv-segédlet'!J:J) -> 0 | AC189: =SUMIF('Terv-segédlet'!$B:$B,KvZsz!$A189,'Terv-segédlet'!K:K) -> 0 | AD189: 0 | AE189: =SUMIF(V!$A:$A,$A189,V!$L:$L)+SUMIF(bank!$A:$A,AE$1&$A189,bank!$N:$N) -> 0 | AF189: =SUMIF(Gy!$A:$A,$A189,Gy!$L:$L)+SUMIF(bank!$A:$A,AF$1&$A189,bank!$N:$N) -> 0 | AG189: =SUMIF(K!$A:$A,$A189,K!$L:$L)+SUMIF(bank!$A:$A,AG$1&$A189,bank!$N:$N) -> 0 | AH189: =SUMIF(Mk!$A:$A,$A189,Mk!$L:$L)+SUMIF(bank!$A:$A,AH$1&$A189,bank!$N:$N) -> 0 | AI189: =SUMIF(M!$A:$A,$A189,M!$L:$L)+SUMIF(bank!$A:$A,AI$1&$A189,bank!$N:$N) -> 0 | AJ189: =SUMIF(P!$A:$A,$A189,P!$L:$L)+SUMIF(bank!$A:$A,AJ$1&$A189,bank!$N:$N) -> 0 | AK189: =SUMIF(Zs!$A:$A,$A189,Zs!$L:$L)+SUMIF(bank!$A:$A,AK$1&$A189,bank!$N:$N) -> 0 | AL189: kiadás | AN189: vállalkozásoknak, egyéb alapítványoknak, társadalmi szervezeteknek adott támogatás
A190: k188 | B190: * | C190: 188 | E190: cb) Továbbítandó egyéb támogatások, bevételek átadása | F190: Közoktatási normatív támogatás visszatérítése | U190: =SUMIF(kvátf.!E:E,KvZsz!A190,kvátf.!D:D) -> 301210 | V190: 338000 | W190: =SUMIF('Terv-segédlet'!$B:$B,KvZsz!$A190,'Terv-segédlet'!E:E) -> 80000 | X190: =SUMIF('Terv-segédlet'!$B:$B,KvZsz!$A190,'Terv-segédlet'!F:F) -> 5000 | Y190: =SUMIF('Terv-segédlet'!$B:$B,KvZsz!$A190,'Terv-segédlet'!G:G) -> 60000 | Z190: =SUMIF('Terv-segédlet'!$B:$B,KvZsz!$A190,'Terv-segédlet'!H:H) -> 60000 | AA190: =SUMIF('Terv-segédlet'!$B:$B,KvZsz!$A190,'Terv-segédlet'!I:I) -> 120000 | AB190: =SUMIF('Terv-segédlet'!$B:$B,KvZsz!$A190,'Terv-segédlet'!J:J) -> 5000 | AC190: =SUMIF('Terv-segédlet'!$B:$B,KvZsz!$A190,'Terv-segédlet'!K:K) -> 8000 | AD190: 288490 | AE190: =SUMIF(V!$A:$A,$A190,V!$L:$L)+SUMIF(bank!$A:$A,AE$1&$A190,bank!$N:$N) -> 102760 | AF190: =SUMIF(Gy!$A:$A,$A190,Gy!$L:$L)+SUMIF(bank!$A:$A,AF$1&$A190,bank!$N:$N) -> 3550 | AG190: =SUMIF(K!$A:$A,$A190,K!$L:$L)+SUMIF(bank!$A:$A,AG$1&$A190,bank!$N:$N) -> 32900 | AH190: =SUMIF(Mk!$A:$A,$A190,Mk!$L:$L)+SUMIF(bank!$A:$A,AH$1&$A190,bank!$N:$N) -> 21770 | AI190: =SUMIF(M!$A:$A,$A190,M!$L:$L)+SUMIF(bank!$A:$A,AI$1&$A190,bank!$N:$N) -> 116390 | AJ190: =SUMIF(P!$A:$A,$A190,P!$L:$L)+SUMIF(bank!$A:$A,AJ$1&$A190,bank!$N:$N) -> 7720 | AK190: =SUMIF(Zs!$A:$A,$A190,Zs!$L:$L)+SUMIF(bank!$A:$A,AK$1&$A190,bank!$N:$N) -> 3400 | AL190: kiadás | AM190: 0.8535207101 | AN190: kötelező offertórium, Gusztáv Adolf segély, szupplikáció, továbbítandó egyéb adományok
A191: k189 | C191: 189 | E191: 11. Pénzügyi műveletek ráfordítása (190..192) | W191: =SUMIF('Terv-segédlet'!$B:$B,KvZsz!$A191,'Terv-segédlet'!E:E) -> 0 | X191: =SUMIF('Terv-segédlet'!$B:$B,KvZsz!$A191,'Terv-segédlet'!F:F) -> 0 | Y191: =SUMIF('Terv-segédlet'!$B:$B,KvZsz!$A191,'Terv-segédlet'!G:G) -> 0 | Z191: =SUMIF('Terv-segédlet'!$B:$B,KvZsz!$A191,'Terv-segédlet'!H:H) -> 0 | AA191: =SUMIF('Terv-segédlet'!$B:$B,KvZsz!$A191,'Terv-segédlet'!I:I) -> 0 | AB191: =SUMIF('Terv-segédlet'!$B:$B,KvZsz!$A191,'Terv-segédlet'!J:J) -> 0 | AC191: =SUMIF('Terv-segédlet'!$B:$B,KvZsz!$A191,'Terv-segédlet'!K:K) -> 0 | AL191: kiadás
A192: k190 | B192: * | C192: 190 | F192: Befektetett pénzügyi eszközök árfolyamveszteségek | U192: =SUMIF(kvátf.!E:E,KvZsz!A192,kvátf.!D:D) -> 0 | V192: =SUM(W192:AC192) -> 0 | W192: =SUMIF('Terv-segédlet'!$B:$B,KvZsz!$A192,'Terv-segédlet'!E:E) -> 0 | X192: =SUMIF('Terv-segédlet'!$B:$B,KvZsz!$A192,'Terv-segédlet'!F:F) -> 0 | Y192: =SUMIF('Terv-segédlet'!$B:$B,KvZsz!$A192,'Terv-segédlet'!G:G) -> 0 | Z192: =SUMIF('Terv-segédlet'!$B:$B,KvZsz!$A192,'Terv-segédlet'!H:H) -> 0 | AA192: =SUMIF('Terv-segédlet'!$B:$B,KvZsz!$A192,'Terv-segédlet'!I:I) -> 0 | AB192: =SUMIF('Terv-segédlet'!$B:$B,KvZsz!$A192,'Terv-segédlet'!J:J) -> 0 | AC192: =SUMIF('Terv-segédlet'!$B:$B,KvZsz!$A192,'Terv-segédlet'!K:K) -> 0 | AD192: =SUM(AE192:AK192) -> 0 | AE192: =SUMIF(V!$A:$A,$A192,V!$L:$L)+SUMIF(bank!$A:$A,AE$1&$A192,bank!$N:$N) -> 0 | AF192: =SUMIF(Gy!$A:$A,$A192,Gy!$L:$L)+SUMIF(bank!$A:$A,AF$1&$A192,bank!$N:$N) -> 0 | AG192: =SUMIF(K!$A:$A,$A192,K!$L:$L)+SUMIF(bank!$A:$A,AG$1&$A192,bank!$N:$N) -> 0 | AH192: =SUMIF(Mk!$A:$A,$A192,Mk!$L:$L)+SUMIF(bank!$A:$A,AH$1&$A192,bank!$N:$N) -> 0 | AI192: =SUMIF(M!$A:$A,$A192,M!$L:$L)+SUMIF(bank!$A:$A,AI$1&$A192,bank!$N:$N) -> 0 | AJ192: =SUMIF(P!$A:$A,$A192,P!$L:$L)+SUMIF(bank!$A:$A,AJ$1&$A192,bank!$N:$N) -> 0 | AK192: =SUMIF(Zs!$A:$A,$A192,Zs!$L:$L)+SUMIF(bank!$A:$A,AK$1&$A192,bank!$N:$N) -> 0 | AL192: kiadás | AN192: éven túl befektetett pénzügyi eszközök árfolyamvesztesége
A193: k191 | B193: * | C193: 191 | F193: Fizetendő kamatok és kamatjellegű ráfordítások | U193: =SUMIF(kvátf.!E:E,KvZsz!A193,kvátf.!D:D) -> 0 | V193: 0 | W193: =SUMIF('Terv-segédlet'!$B:$B,KvZsz!$A193,'Terv-segédlet'!E:E) -> 0 | X193: =SUMIF('Terv-segédlet'!$B:$B,KvZsz!$A193,'Terv-segédlet'!F:F) -> 0 | Y193: =SUMIF('Terv-segédlet'!$B:$B,KvZsz!$A193,'Terv-segédlet'!G:G) -> 0 | Z193: =SUMIF('Terv-segédlet'!$B:$B,KvZsz!$A193,'Terv-segédlet'!H:H) -> 0 | AA193: =SUMIF('Terv-segédlet'!$B:$B,KvZsz!$A193,'Terv-segédlet'!I:I) -> 0 | AB193: =SUMIF('Terv-segédlet'!$B:$B,KvZsz!$A193,'Terv-segédlet'!J:J) -> 0 | AC193: =SUMIF('Terv-segédlet'!$B:$B,KvZsz!$A193,'Terv-segédlet'!K:K) -> 0 | AD193: 0 | AE193: =SUMIF(V!$A:$A,$A193,V!$L:$L)+SUMIF(bank!$A:$A,AE$1&$A193,bank!$N:$N) -> 0 | AF193: =SUMIF(Gy!$A:$A,$A193,Gy!$L:$L)+SUMIF(bank!$A:$A,AF$1&$A193,bank!$N:$N) -> 0 | AG193: =SUMIF(K!$A:$A,$A193,K!$L:$L)+SUMIF(bank!$A:$A,AG$1&$A193,bank!$N:$N) -> 0 | AH193: =SUMIF(Mk!$A:$A,$A193,Mk!$L:$L)+SUMIF(bank!$A:$A,AH$1&$A193,bank!$N:$N) -> 0 | AI193: =SUMIF(M!$A:$A,$A193,M!$L:$L)+SUMIF(bank!$A:$A,AI$1&$A193,bank!$N:$N) -> 0 | AJ193: =SUMIF(P!$A:$A,$A193,P!$L:$L)+SUMIF(bank!$A:$A,AJ$1&$A193,bank!$N:$N) -> 0 | AK193: =SUMIF(Zs!$A:$A,$A193,Zs!$L:$L)+SUMIF(bank!$A:$A,AK$1&$A193,bank!$N:$N) -> 0 | AL193: kiadás | AN193: hitel, kölcsön, egyéb idegen forrás után fizetett kamatok
A194: k192 | B194: * | C194: 192 | F194: Pénzügyi műveletek egyéb ráfordítása | U194: =SUMIF(kvátf.!E:E,KvZsz!A194,kvátf.!D:D) -> 0 | V194: 0 | W194: =SUMIF('Terv-segédlet'!$B:$B,KvZsz!$A194,'Terv-segédlet'!E:E) -> 0 | X194: =SUMIF('Terv-segédlet'!$B:$B,KvZsz!$A194,'Terv-segédlet'!F:F) -> 0 | Y194: =SUMIF('Terv-segédlet'!$B:$B,KvZsz!$A194,'Terv-segédlet'!G:G) -> 0 | Z194: =SUMIF('Terv-segédlet'!$B:$B,KvZsz!$A194,'Terv-segédlet'!H:H) -> 0 | AA194: =SUMIF('Terv-segédlet'!$B:$B,KvZsz!$A194,'Terv-segédlet'!I:I) -> 0 | AB194: =SUMIF('Terv-segédlet'!$B:$B,KvZsz!$A194,'Terv-segédlet'!J:J) -> 0 | AC194: =SUMIF('Terv-segédlet'!$B:$B,KvZsz!$A194,'Terv-segédlet'!K:K) -> 0 | AD194: 0 | AE194: =SUMIF(V!$A:$A,$A194,V!$L:$L)+SUMIF(bank!$A:$A,AE$1&$A194,bank!$N:$N) -> 0 | AF194: =SUMIF(Gy!$A:$A,$A194,Gy!$L:$L)+SUMIF(bank!$A:$A,AF$1&$A194,bank!$N:$N) -> 0 | AG194: =SUMIF(K!$A:$A,$A194,K!$L:$L)+SUMIF(bank!$A:$A,AG$1&$A194,bank!$N:$N) -> 0 | AH194: =SUMIF(Mk!$A:$A,$A194,Mk!$L:$L)+SUMIF(bank!$A:$A,AH$1&$A194,bank!$N:$N) -> 0 | AI194: =SUMIF(M!$A:$A,$A194,M!$L:$L)+SUMIF(bank!$A:$A,AI$1&$A194,bank!$N:$N) -> 0 | AJ194: =SUMIF(P!$A:$A,$A194,P!$L:$L)+SUMIF(bank!$A:$A,AJ$1&$A194,bank!$N:$N) -> 0 | AK194: =SUMIF(Zs!$A:$A,$A194,Zs!$L:$L)+SUMIF(bank!$A:$A,AK$1&$A194,bank!$N:$N) -> 0 | AL194: kiadás | AN194: árfolyamdifferencia
A195: k193 | B195: * | C195: 193 | E195: 12. Rendkívüli ráfordítások | U195: =SUMIF(kvátf.!E:E,KvZsz!A195,kvátf.!D:D) -> 0 | V195: 0 | W195: =SUMIF('Terv-segédlet'!$B:$B,KvZsz!$A195,'Terv-segédlet'!E:E) -> 0 | X195: =SUMIF('Terv-segédlet'!$B:$B,KvZsz!$A195,'Terv-segédlet'!F:F) -> 0 | Y195: =SUMIF('Terv-segédlet'!$B:$B,KvZsz!$A195,'Terv-segédlet'!G:G) -> 0 | Z195: =SUMIF('Terv-segédlet'!$B:$B,KvZsz!$A195,'Terv-segédlet'!H:H) -> 0 | AA195: =SUMIF('Terv-segédlet'!$B:$B,KvZsz!$A195,'Terv-segédlet'!I:I) -> 0 | AB195: =SUMIF('Terv-segédlet'!$B:$B,KvZsz!$A195,'Terv-segédlet'!J:J) -> 0 | AC195: =SUMIF('Terv-segédlet'!$B:$B,KvZsz!$A195,'Terv-segédlet'!K:K) -> 0 | AD195: 0 | AE195: =SUMIF(V!$A:$A,$A195,V!$L:$L)+SUMIF(bank!$A:$A,AE$1&$A195,bank!$N:$N) -> 0 | AF195: =SUMIF(Gy!$A:$A,$A195,Gy!$L:$L)+SUMIF(bank!$A:$A,AF$1&$A195,bank!$N:$N) -> 0 | AG195: =SUMIF(K!$A:$A,$A195,K!$L:$L)+SUMIF(bank!$A:$A,AG$1&$A195,bank!$N:$N) -> 0 | AH195: =SUMIF(Mk!$A:$A,$A195,Mk!$L:$L)+SUMIF(bank!$A:$A,AH$1&$A195,bank!$N:$N) -> 0 | AI195: =SUMIF(M!$A:$A,$A195,M!$L:$L)+SUMIF(bank!$A:$A,AI$1&$A195,bank!$N:$N) -> 0 | AJ195: =SUMIF(P!$A:$A,$A195,P!$L:$L)+SUMIF(bank!$A:$A,AJ$1&$A195,bank!$N:$N) -> 0 | AK195: =SUMIF(Zs!$A:$A,$A195,Zs!$L:$L)+SUMIF(bank!$A:$A,AK$1&$A195,bank!$N:$N) -> 0 | AL195: kiadás | AN195: nem jellemző
A196: k194 | C196: 194 | E196: IV. Ráfordítást jelentő eszközváltozások (195..197) | W196: =SUMIF('Terv-segédlet'!$B:$B,KvZsz!$A196,'Terv-segédlet'!E:E) -> 0 | X196: =SUMIF('Terv-segédlet'!$B:$B,KvZsz!$A196,'Terv-segédlet'!F:F) -> 0 | Y196: =SUMIF('Terv-segédlet'!$B:$B,KvZsz!$A196,'Terv-segédlet'!G:G) -> 0 | Z196: =SUMIF('Terv-segédlet'!$B:$B,KvZsz!$A196,'Terv-segédlet'!H:H) -> 0 | AA196: =SUMIF('Terv-segédlet'!$B:$B,KvZsz!$A196,'Terv-segédlet'!I:I) -> 0 | AB196: =SUMIF('Terv-segédlet'!$B:$B,KvZsz!$A196,'Terv-segédlet'!J:J) -> 0 | AC196: =SUMIF('Terv-segédlet'!$B:$B,KvZsz!$A196,'Terv-segédlet'!K:K) -> 0 | AL196: kiadás
A197: k195 | B197: * | C197: 195 | E197: Nem pénzben kiegyenlített, nem beruházási célú beszerzések | U197: =SUMIF(kvátf.!E:E,KvZsz!A197,kvátf.!D:D) -> 0 | V197: =SUM(W197:AC197) -> 0 | W197: =SUMIF('Terv-segédlet'!$B:$B,KvZsz!$A197,'Terv-segédlet'!E:E) -> 0 | X197: =SUMIF('Terv-segédlet'!$B:$B,KvZsz!$A197,'Terv-segédlet'!F:F) -> 0 | Y197: =SUMIF('Terv-segédlet'!$B:$B,KvZsz!$A197,'Terv-segédlet'!G:G) -> 0 | Z197: =SUMIF('Terv-segédlet'!$B:$B,KvZsz!$A197,'Terv-segédlet'!H:H) -> 0 | AA197: =SUMIF('Terv-segédlet'!$B:$B,KvZsz!$A197,'Terv-segédlet'!I:I) -> 0 | AB197: =SUMIF('Terv-segédlet'!$B:$B,KvZsz!$A197,'Terv-segédlet'!J:J) -> 0 | AC197: =SUMIF('Terv-segédlet'!$B:$B,KvZsz!$A197,'Terv-segédlet'!K:K) -> 0 | AD197: =SUM(AE197:AK197) -> 0 | AE197: =SUMIF(V!$A:$A,$A197,V!$L:$L)+SUMIF(bank!$A:$A,AE$1&$A197,bank!$N:$N) -> 0 | AF197: =SUMIF(Gy!$A:$A,$A197,Gy!$L:$L)+SUMIF(bank!$A:$A,AF$1&$A197,bank!$N:$N) -> 0 | AG197: =SUMIF(K!$A:$A,$A197,K!$L:$L)+SUMIF(bank!$A:$A,AG$1&$A197,bank!$N:$N) -> 0 | AH197: =SUMIF(Mk!$A:$A,$A197,Mk!$L:$L)+SUMIF(bank!$A:$A,AH$1&$A197,bank!$N:$N) -> 0 | AI197: =SUMIF(M!$A:$A,$A197,M!$L:$L)+SUMIF(bank!$A:$A,AI$1&$A197,bank!$N:$N) -> 0 | AJ197: =SUMIF(P!$A:$A,$A197,P!$L:$L)+SUMIF(bank!$A:$A,AJ$1&$A197,bank!$N:$N) -> 0 | AK197: =SUMIF(Zs!$A:$A,$A197,Zs!$L:$L)+SUMIF(bank!$A:$A,AK$1&$A197,bank!$N:$N) -> 0 | AL197: kiadás | AN197: eszközcsere
A198: k196 | B198: * | C198: 196 | E198: Természetben adott juttatások | U198: =SUMIF(kvátf.!E:E,KvZsz!A198,kvátf.!D:D) -> 0 | V198: 0 | W198: =SUMIF('Terv-segédlet'!$B:$B,KvZsz!$A198,'Terv-segédlet'!E:E) -> 0 | X198: =SUMIF('Terv-segédlet'!$B:$B,KvZsz!$A198,'Terv-segédlet'!F:F) -> 0 | Y198: =SUMIF('Terv-segédlet'!$B:$B,KvZsz!$A198,'Terv-segédlet'!G:G) -> 0 | Z198: =SUMIF('Terv-segédlet'!$B:$B,KvZsz!$A198,'Terv-segédlet'!H:H) -> 0 | AA198: =SUMIF('Terv-segédlet'!$B:$B,KvZsz!$A198,'Terv-segédlet'!I:I) -> 0 | AB198: =SUMIF('Terv-segédlet'!$B:$B,KvZsz!$A198,'Terv-segédlet'!J:J) -> 0 | AC198: =SUMIF('Terv-segédlet'!$B:$B,KvZsz!$A198,'Terv-segédlet'!K:K) -> 0 | AD198: 0 | AE198: =SUMIF(V!$A:$A,$A198,V!$L:$L)+SUMIF(bank!$A:$A,AE$1&$A198,bank!$N:$N) -> 0 | AF198: =SUMIF(Gy!$A:$A,$A198,Gy!$L:$L)+SUMIF(bank!$A:$A,AF$1&$A198,bank!$N:$N) -> 0 | AG198: =SUMIF(K!$A:$A,$A198,K!$L:$L)+SUMIF(bank!$A:$A,AG$1&$A198,bank!$N:$N) -> 0 | AH198: =SUMIF(Mk!$A:$A,$A198,Mk!$L:$L)+SUMIF(bank!$A:$A,AH$1&$A198,bank!$N:$N) -> 0 | AI198: =SUMIF(M!$A:$A,$A198,M!$L:$L)+SUMIF(bank!$A:$A,AI$1&$A198,bank!$N:$N) -> 0 | AJ198: =SUMIF(P!$A:$A,$A198,P!$L:$L)+SUMIF(bank!$A:$A,AJ$1&$A198,bank!$N:$N) -> 0 | AK198: =SUMIF(Zs!$A:$A,$A198,Zs!$L:$L)+SUMIF(bank!$A:$A,AK$1&$A198,bank!$N:$N) -> 0 | AL198: kiadás | AN198: pl. saját termelésű készletből adott ajándék
A199: k197 | B199: * | C199: 197 | E199: Nem pénzben kiegyenlített ráfordítások | U199: =SUMIF(kvátf.!E:E,KvZsz!A199,kvátf.!D:D) -> 0 | V199: 6300 | W199: =SUMIF('Terv-segédlet'!$B:$B,KvZsz!$A199,'Terv-segédlet'!E:E) -> 6300 | X199: =SUMIF('Terv-segédlet'!$B:$B,KvZsz!$A199,'Terv-segédlet'!F:F) -> 0 | Y199: =SUMIF('Terv-segédlet'!$B:$B,KvZsz!$A199,'Terv-segédlet'!G:G) -> 0 | Z199: =SUMIF('Terv-segédlet'!$B:$B,KvZsz!$A199,'Terv-segédlet'!H:H) -> 0 | AA199: =SUMIF('Terv-segédlet'!$B:$B,KvZsz!$A199,'Terv-segédlet'!I:I) -> 0 | AB199: =SUMIF('Terv-segédlet'!$B:$B,KvZsz!$A199,'Terv-segédlet'!J:J) -> 0 | AC199: =SUMIF('Terv-segédlet'!$B:$B,KvZsz!$A199,'Terv-segédlet'!K:K) -> 0 | AD199: 0 | AE199: =SUMIF(V!$A:$A,$A199,V!$L:$L)+SUMIF(bank!$A:$A,AE$1&$A199,bank!$N:$N) -> 0 | AF199: =SUMIF(Gy!$A:$A,$A199,Gy!$L:$L)+SUMIF(bank!$A:$A,AF$1&$A199,bank!$N:$N) -> 0 | AG199: =SUMIF(K!$A:$A,$A199,K!$L:$L)+SUMIF(bank!$A:$A,AG$1&$A199,bank!$N:$N) -> 0 | AH199: =SUMIF(Mk!$A:$A,$A199,Mk!$L:$L)+SUMIF(bank!$A:$A,AH$1&$A199,bank!$N:$N) -> 0 | AI199: =SUMIF(M!$A:$A,$A199,M!$L:$L)+SUMIF(bank!$A:$A,AI$1&$A199,bank!$N:$N) -> 0 | AJ199: =SUMIF(P!$A:$A,$A199,P!$L:$L)+SUMIF(bank!$A:$A,AJ$1&$A199,bank!$N:$N) -> 0 | AK199: =SUMIF(Zs!$A:$A,$A199,Zs!$L:$L)+SUMIF(bank!$A:$A,AK$1&$A199,bank!$N:$N) -> 0 | AL199: kiadás | AM199: =IF(AND(OR(V199<>0,AD199<>0),V199<>0),ABS(AD199/V199),"") -> 0 | AN199: kompenzálással, beszámítással rendezett kiadások, eladott eszközök könyv szerinti értéke
A200: k198 | B200: * | C200: =+C199+1 -> 198 | E200: ebből fenntartói nyugdíjjárulék - támogatással fedezett | U200: =SUMIF(kvátf.!E:E,KvZsz!A200,kvátf.!D:D) -> 0 | V200: 6300 | W200: =SUMIF('Terv-segédlet'!$B:$B,KvZsz!$A200,'Terv-segédlet'!E:E) -> 6300 | X200: =SUMIF('Terv-segédlet'!$B:$B,KvZsz!$A200,'Terv-segédlet'!F:F) -> 0 | Y200: =SUMIF('Terv-segédlet'!$B:$B,KvZsz!$A200,'Terv-segédlet'!G:G) -> 0 | Z200: =SUMIF('Terv-segédlet'!$B:$B,KvZsz!$A200,'Terv-segédlet'!H:H) -> 0 | AA200: =SUMIF('Terv-segédlet'!$B:$B,KvZsz!$A200,'Terv-segédlet'!I:I) -> 0 | AB200: =SUMIF('Terv-segédlet'!$B:$B,KvZsz!$A200,'Terv-segédlet'!J:J) -> 0 | AC200: =SUMIF('Terv-segédlet'!$B:$B,KvZsz!$A200,'Terv-segédlet'!K:K) -> 0 | AD200: 0 | AE200: =SUMIF(V!$A:$A,$A200,V!$L:$L)+SUMIF(bank!$A:$A,AE$1&$A200,bank!$N:$N) -> 0 | AF200: =SUMIF(Gy!$A:$A,$A200,Gy!$L:$L)+SUMIF(bank!$A:$A,AF$1&$A200,bank!$N:$N) -> 0 | AG200: =SUMIF(K!$A:$A,$A200,K!$L:$L)+SUMIF(bank!$A:$A,AG$1&$A200,bank!$N:$N) -> 0 | AH200: =SUMIF(Mk!$A:$A,$A200,Mk!$L:$L)+SUMIF(bank!$A:$A,AH$1&$A200,bank!$N:$N) -> 0 | AI200: =SUMIF(M!$A:$A,$A200,M!$L:$L)+SUMIF(bank!$A:$A,AI$1&$A200,bank!$N:$N) -> 0 | AJ200: =SUMIF(P!$A:$A,$A200,P!$L:$L)+SUMIF(bank!$A:$A,AJ$1&$A200,bank!$N:$N) -> 0 | AK200: =SUMIF(Zs!$A:$A,$A200,Zs!$L:$L)+SUMIF(bank!$A:$A,AK$1&$A200,bank!$N:$N) -> 0 | AL200: kiadás | AM200: 0 | AN200: támogatásból fedezett, be nem fizetett fenntartók járulék
... 102 more rows

Sheet V
F1: Készpénz: | G1: =mérleg1!D10 -> 209597 | H1: VADOSFA | K1: pénztár
E3: sor-szám | F3: dátum | G3: biz.sorszám | H3: megnevezés | I3: egyéb megjegyzés | J3: további megjegyzések | K3: bevétel | L3: kiadás
A4: k048 | B4: V | C4: k048 | D4: -EGYHÁZFENNTARTÓI JÁRULÉK / magánszemélyek által ezen a címen teljesítet befizetés | E4: 1 | F4: 2015-01-02 | G4: BJ954301 | H4: Egyházfenntartás | I4: 2014 | K4: 24000 | T4: 4
A5: k097 | B5: V | C5: k097 | D5: LELKÉSZI SZOLGÁLATI GÉPJÁRMŰVILLAMOS ENERGIA SZOLGÁLTATÁS DÍJA / lelkész által használt egyházközségi tulajdonú, vagy egyházközség által üzembentartott gépkocsi üzemanyagköltsége, a gyülekezet nevére szóló számla alapján | E5: 2 | F5: 2015-01-02 | G5: PA3902001 | H5: Benzin | L5: 13580 | T5: 5
A6: k120 | B6: V | C6: k120 | D6: -POSTA, TELEFON ÉS EGYÉB TELEKOMMUNIKÁCIÓS KÖLTSÉGEKUTAZÁSI ÉS KIKÜLDETÉSI KÖLTSÉGEK / posta, telefon, internet | E6: 3 | F6: 2015-01-05 | G6: PA3902002 | H6: Levélfeladás | L6: 390 | T6: 6
A7: k089 | B7: V | C7: k089 | D7: - IRODASZEREK, NYOMTATVÁNYOK KÖLTSÉGE / fénymásoló papír, toll, pénztárkönyv, számlatömb, kiküldetési rendelvény, stb. | E7: 4 | F7: 2015-01-09 | G7: PA3902003 | H7: Iratrendező | L7: 1100 | T7: 7
A8: k129 | B8: V | C8: k129 | D8: GÉPJÁRMŰVEKEGYÉB IGÉNYBE VETT SZOLGÁLTATÁS / CASCO, kötelező biztosítás | E8: 5 | F8: 2015-01-19 | G8: PA3902004 | H8: GKFB | L8: 15990 | T8: 8
A9: k097 | B9: V | C9: k097 | D9: LELKÉSZI SZOLGÁLATI GÉPJÁRMŰVILLAMOS ENERGIA SZOLGÁLTATÁS DÍJA / lelkész által használt egyházközségi tulajdonú, vagy egyházközség által üzembentartott gépkocsi üzemanyagköltsége, a gyülekezet nevére szóló számla alapján | E9: 6 | F9: 2015-01-23 | G9: PA3902005 | H9: Benzin | L9: 16708 | T9: 9
A10: k171 | B10: V | C10: k171 | D10: MÁS KÜLÖNFÉLE EGYÉB RÁFORDÍTÁSOK / pl. kerekítés | E10: 7 | F10: 2015-01-23 | G10: PA3902005 | H10: Kerekítés | L10: 2 | T10: 10
A11: k097 | B11: V | C11: k097 | D11: LELKÉSZI SZOLGÁLATI GÉPJÁRMŰVILLAMOS ENERGIA SZOLGÁLTATÁS DÍJA / lelkész által használt egyházközségi tulajdonú, vagy egyházközség által üzembentartott gépkocsi üzemanyagköltsége, a gyülekezet nevére szóló számla alapján | E11: 8 | F11: 2015-02-20 | G11: PA3902006 | H11: Benzin | L11: 15598 | T11: 11
A12: k171 | B12: V | C12: k171 | D12: MÁS KÜLÖNFÉLE EGYÉB RÁFORDÍTÁSOK / pl. kerekítés | E12: 9 | F12: 2015-02-20 | G12: PA3902006 | H12: Kerekítés | L12: 2 | T12: 12
B13: V | C13: x | D13: / | E13: 10 | F13: 2015-03-04 | G13: BJ954302 | H13: Rontott | T13: 13
A14: k007 | B14: V | C14: k007 | D14: IRATTERJESZTÉS ÁRBEVÉTELEIRATTERJESZTÉS ÁRBEVÉTELEIRATTERJESZTÉS ÁRBEVÉTELE / Vásárolt könyvek, folyóiratok, stb. értékesítésének bevétele | E14: 11 | F14: 2015-03-04 | G14: BJ954303 | H14: Énekeskönyv | K14: 1950 | T14: 14
A15: k097 | B15: V | C15: k097 | D15: LELKÉSZI SZOLGÁLATI GÉPJÁRMŰVILLAMOS ENERGIA SZOLGÁLTATÁS DÍJA / lelkész által használt egyházközségi tulajdonú, vagy egyházközség által üzembentartott gépkocsi üzemanyagköltsége, a gyülekezet nevére szóló számla alapján | E15: 12 | F15: 2015-03-24 | G15: PA3902007 | H15: Benzin | L15: 20500 | T15: 15
A16: k091 | B16: V | C16: k091 | D16: LELKÉSZLAKÁS / lelkészlakás - karbantartási munkához vásárolt anyag (szolgáltatás nélkül) (festék, csaptelep, stb.) | E16: 13 | F16: 2015-03-24 | G16: PA3902008 | H16: Csaptelep | L16: 12900 | T16: 16
A17: k007 | B17: V | C17: k007 | D17: IRATTERJESZTÉS ÁRBEVÉTELEIRATTERJESZTÉS ÁRBEVÉTELEIRATTERJESZTÉS ÁRBEVÉTELE / Vásárolt könyvek, folyóiratok, stb. értékesítésének bevétele | E17: 14 | F17: 2015-03-26 | G17: BJ954304 | H17: Iratterjesztés | K17: 4000 | T17: 17
A18: k114 | B18: V | C18: k114 | D18: GÉPJÁRMŰVEKSZAKMAI ANYAGOK KÖLTSÉGE / gépjárművek - festés, szerelés, stb. karbantartási szolgáltatás (a benne lévő anyagköltséggel együtt) | E18: 15 | F18: 2015-03-30 | G18: PA3902009 | H18: Gumiszerelés | L18: 5000 | T18: 18
A19: k101 | B19: V | C19: k101 | D19: -EGYÉB ANYAGOK KÖLTSÉGEEGY ÉVEN BELÜL ELHASZNÁLÓDÓ ESZKÖZÖK, SZERSZÁMOK, MŰSZEREK KÖLTSÉGE / 78-99 sorokban fel nem sorolt, vásárolt anyagok (pl. oltárdíszítéshez virág, gyertya, festékkazetta nyomtatóba, stb.) | E19: 16 | F19: 2015-03-31 | G19: PA3902010 | H19: Tintapatron | L19: 7000 | T19: 19
A20: k050 | B20: V | C20: k050 | D20: -PERSELYPÉNZ-PERSELYPÉNZ-PERSELYPÉNZ / egyházközségi rendezvényeken szervezett persely bevétele | E20: 17 | F20: 2015-04-01 | G20: BJ954305 | H20: Perselypénz | K20: 2950 | T20: 20
A21: k053 | B21: V | C21: k053 | D21: DC) TOVÁBBÍTANDÓ EGYÉB TÁMOGATÁSOKDC) TOVÁBBÍTANDÓ EGYÉB TÁMOGATÁSOK, BEVÉTELEKDC) TOVÁBBÍTANDÓ EGYÉB TÁMOGATÁSOK, BEVÉTELEK / kötelező offertórium, Gusztáv Adolf segély, szupplikáció, továbbítandó egyéb adományok | E21: 18 | F21: 2015-04-03 | G21: BJ954306 | H21: Perselypénz | K21: 72660 | N21: 72660!!! | T21: 21
A22: k049 | B22: V | C22: k049 | D22: -ADOMÁNY-ADOMÁNY-ADOMÁNY / magánszemélyektől általános felhasználásra kapott adomány | E22: 19 | F22: 2015-04-12 | G22: BJ954307 | H22: Adomány | K22: 8000 | T22: 22
A23: k007 | B23: V | C23: k007 | D23: IRATTERJESZTÉS ÁRBEVÉTELEIRATTERJESZTÉS ÁRBEVÉTELEIRATTERJESZTÉS ÁRBEVÉTELE / Vásárolt könyvek, folyóiratok, stb. értékesítésének bevétele | E23: 20 | F23: 2015-04-13 | G23: BJ954308 | H23: Iratterjesztés | K23: 5000 | T23: 23
A24: k080 | B24: V | C24: k080 | D24: LELKÉSZLAKÁSGÁZENERGIA SZOLGÁLTATÁS DÍJA / lelkészlakás áramdíja | E24: 21 | F24: 2015-04-13 | G24: PA3902011 | H24: Villanyszámla | L24: 1885 | T24: 24
A25: k097 | B25: V | C25: k097 | D25: LELKÉSZI SZOLGÁLATI GÉPJÁRMŰVILLAMOS ENERGIA SZOLGÁLTATÁS DÍJA / lelkész által használt egyházközségi tulajdonú, vagy egyházközség által üzembentartott gépkocsi üzemanyagköltsége, a gyülekezet nevére szóló számla alapján | E25: 22 | F25: 2015-04-13 | G25: PA3902012 | H25: Benzin | L25: 16412 | T25: 25
A26: k171 | B26: V | C26: k171 | D26: MÁS KÜLÖNFÉLE EGYÉB RÁFORDÍTÁSOK / pl. kerekítés | E26: 23 | F26: 2015-04-13 | G26: PA3902012 | H26: Kerekítés | L26: -2 | T26: 26
A27: k053 | B27: V | C27: k053 | D27: DC) TOVÁBBÍTANDÓ EGYÉB TÁMOGATÁSOKDC) TOVÁBBÍTANDÓ EGYÉB TÁMOGATÁSOK, BEVÉTELEKDC) TOVÁBBÍTANDÓ EGYÉB TÁMOGATÁSOK, BEVÉTELEK / kötelező offertórium, Gusztáv Adolf segély, szupplikáció, továbbítandó egyéb adományok | E27: 24 | F27: 2015-04-19 | G27: BJ954309 | H27: Ifjúsági offertórium | K27: 2400 | T27: 27
A28: k080 | B28: V | C28: k080 | D28: LELKÉSZLAKÁSGÁZENERGIA SZOLGÁLTATÁS DÍJA / lelkészlakás áramdíja | E28: 25 | F28: 2015-04-20 | G28: PA3902013 | H28: Villanyszámla | L28: 1885 | T28: 28
A29: k142 | B29: V | C29: k142 | D29: - EGYÉB MUNKAVÉGZÉSHEZ KAPCSOLÓDÓ JUTTATÁSOK / közmunkaprogram keretében kifizetett bér, egyházi szolgálatért fizetett bruttó illetmény (kántor, harangozó, stb.) | E29: 26 | F29: 2015-04-30 | G29: PA3902014 | H29: Takarítás | L29: 16000 | T29: 29
A30: k097 | B30: V | C30: k097 | D30: LELKÉSZI SZOLGÁLATI GÉPJÁRMŰVILLAMOS ENERGIA SZOLGÁLTATÁS DÍJA / lelkész által használt egyházközségi tulajdonú, vagy egyházközség által üzembentartott gépkocsi üzemanyagköltsége, a gyülekezet nevére szóló számla alapján | E30: 27 | F30: 2015-05-02 | G30: PA3902015 | H30: Benzin | L30: 19452 | T30: 30
A31: k171 | B31: V | C31: k171 | D31: MÁS KÜLÖNFÉLE EGYÉB RÁFORDÍTÁSOK / pl. kerekítés | E31: 28 | F31: 2015-05-02 | G31: PA3902015 | H31: Kerekítés | L31: -2 | T31: 31
A32: k114 | B32: V | C32: k114 | D32: GÉPJÁRMŰVEKSZAKMAI ANYAGOK KÖLTSÉGE / gépjárművek - festés, szerelés, stb. karbantartási szolgáltatás (a benne lévő anyagköltséggel együtt) | E32: 29 | F32: 2015-05-13 | G32: PA3902016 | H32: Autójavítás | L32: 9000 | T32: 32
A33: k007 | B33: V | C33: k007 | D33: IRATTERJESZTÉS ÁRBEVÉTELEIRATTERJESZTÉS ÁRBEVÉTELEIRATTERJESZTÉS ÁRBEVÉTELE / Vásárolt könyvek, folyóiratok, stb. értékesítésének bevétele | E33: 30 | F33: 2015-05-17 | G33: BJ954310 | H33: Iratterjesztés | K33: 5000 | T33: 33
A34: k053 | B34: V | C34: k053 | D34: DC) TOVÁBBÍTANDÓ EGYÉB TÁMOGATÁSOKDC) TOVÁBBÍTANDÓ EGYÉB TÁMOGATÁSOK, BEVÉTELEKDC) TOVÁBBÍTANDÓ EGYÉB TÁMOGATÁSOK, BEVÉTELEK / kötelező offertórium, Gusztáv Adolf segély, szupplikáció, továbbítandó egyéb adományok | E34: 31 | F34: 2015-05-17 | G34: BJ954311 | H34: Missziói offertórium | K34: 2700 | T34: 34
A35: k097 | B35: V | C35: k097 | D35: LELKÉSZI SZOLGÁLATI GÉPJÁRMŰVILLAMOS ENERGIA SZOLGÁLTATÁS DÍJA / lelkész által használt egyházközségi tulajdonú, vagy egyházközség által üzembentartott gépkocsi üzemanyagköltsége, a gyülekezet nevére szóló számla alapján | E35: 32 | F35: 2015-05-23 | G35: PA3902017 | H35: Benzin | L35: 20001 | T35: 35
A36: k171 | B36: V | C36: k171 | D36: MÁS KÜLÖNFÉLE EGYÉB RÁFORDÍTÁSOK / pl. kerekítés | E36: 33 | F36: 2015-05-23 | G36: PA3902017 | H36: Kerekítés | L36: -1 | T36: 36
A37: k142 | B37: V | C37: k142 | D37: - EGYÉB MUNKAVÉGZÉSHEZ KAPCSOLÓDÓ JUTTATÁSOK / közmunkaprogram keretében kifizetett bér, egyházi szolgálatért fizetett bruttó illetmény (kántor, harangozó, stb.) | E37: 34 | F37: 2015-05-30 | G37: PA3902018 | H37: Takarítás | L37: 20000 | T37: 37
A38: k048 | B38: V | C38: k048 | D38: -EGYHÁZFENNTARTÓI JÁRULÉK / magánszemélyek által ezen a címen teljesítet befizetés | E38: 35 | F38: 2015-06-20 | G38: BJ954312 | H38: Egyházfenntartás | K38: 78000 | T38: 38
A39: k142 | B39: V | C39: k142 | D39: - EGYÉB MUNKAVÉGZÉSHEZ KAPCSOLÓDÓ JUTTATÁSOK / közmunkaprogram keretében kifizetett bér, egyházi szolgálatért fizetett bruttó illetmény (kántor, harangozó, stb.) | E39: 36 | F39: 2015-06-25 | G39: PA3902019 | H39: Takarítás | L39: 8000 | T39: 39
A40: k120 | B40: V | C40: k120 | D40: -POSTA, TELEFON ÉS EGYÉB TELEKOMMUNIKÁCIÓS KÖLTSÉGEKUTAZÁSI ÉS KIKÜLDETÉSI KÖLTSÉGEK / posta, telefon, internet | E40: 37 | F40: 2015-06-26 | G40: PA3902020 | H40: Magyar Posta - levélfeladás | L40: 915 | T40: 40
A41: k097 | B41: V | C41: k097 | D41: LELKÉSZI SZOLGÁLATI GÉPJÁRMŰVILLAMOS ENERGIA SZOLGÁLTATÁS DÍJA / lelkész által használt egyházközségi tulajdonú, vagy egyházközség által üzembentartott gépkocsi üzemanyagköltsége, a gyülekezet nevére szóló számla alapján | E41: 38 | F41: 2015-06-27 | G41: PA3902021 | H41: Benzin | L41: 20002 | T41: 41
A42: k171 | B42: V | C42: k171 | D42: MÁS KÜLÖNFÉLE EGYÉB RÁFORDÍTÁSOK / pl. kerekítés | E42: 39 | F42: 2015-06-27 | G42: PA3902021 | H42: Kerekítés | L42: -2 | T42: 42
A43: k101 | B43: V | C43: k101 | D43: -EGYÉB ANYAGOK KÖLTSÉGEEGY ÉVEN BELÜL ELHASZNÁLÓDÓ ESZKÖZÖK, SZERSZÁMOK, MŰSZEREK KÖLTSÉGE / 78-99 sorokban fel nem sorolt, vásárolt anyagok (pl. oltárdíszítéshez virág, gyertya, festékkazetta nyomtatóba, stb.) | E43: 40 | F43: 2015-07-08 | G43: PA3902022 | H43: Koszorú | L43: 5600 | T43: 43
A44: k097 | B44: V | C44: k097 | D44: LELKÉSZI SZOLGÁLATI GÉPJÁRMŰVILLAMOS ENERGIA SZOLGÁLTATÁS DÍJA / lelkész által használt egyházközségi tulajdonú, vagy egyházközség által üzembentartott gépkocsi üzemanyagköltsége, a gyülekezet nevére szóló számla alapján | E44: 41 | F44: 2015-07-14 | G44: PA3902023 | H44: Benzin | L44: 20002 | T44: 44
A45: k171 | B45: V | C45: k171 | D45: MÁS KÜLÖNFÉLE EGYÉB RÁFORDÍTÁSOK / pl. kerekítés | E45: 42 | F45: 2015-07-14 | G45: PA3902023 | H45: Kerekítés | L45: -2 | T45: 45
A46: k114 | B46: V | C46: k114 | D46: GÉPJÁRMŰVEKSZAKMAI ANYAGOK KÖLTSÉGE / gépjárművek - festés, szerelés, stb. karbantartási szolgáltatás (a benne lévő anyagköltséggel együtt) | E46: 43 | F46: 2015-08-03 | G46: PA3902024 | H46: Klímatisztítás - gk. | L46: 2200 | T46: 46
A47: k097 | B47: V | C47: k097 | D47: LELKÉSZI SZOLGÁLATI GÉPJÁRMŰVILLAMOS ENERGIA SZOLGÁLTATÁS DÍJA / lelkész által használt egyházközségi tulajdonú, vagy egyházközség által üzembentartott gépkocsi üzemanyagköltsége, a gyülekezet nevére szóló számla alapján | E47: 44 | F47: 2015-08-07 | G47: PA3902025 | H47: Benzin | L47: 20002 | T47: 47
A48: k171 | B48: V | C48: k171 | D48: MÁS KÜLÖNFÉLE EGYÉB RÁFORDÍTÁSOK / pl. kerekítés | E48: 45 | F48: 2015-08-07 | G48: PA3902025 | H48: Kerekítés | L48: -2 | T48: 48
A49: k129 | B49: V | C49: k129 | D49: GÉPJÁRMŰVEKEGYÉB IGÉNYBE VETT SZOLGÁLTATÁS / CASCO, kötelező biztosítás | E49: 46 | F49: 2015-08-18 | G49: PA3902101 | H49: GKFB | L49: 15990 | T49: 49
A50: k101 | B50: V | C50: k101 | D50: -EGYÉB ANYAGOK KÖLTSÉGEEGY ÉVEN BELÜL ELHASZNÁLÓDÓ ESZKÖZÖK, SZERSZÁMOK, MŰSZEREK KÖLTSÉGE / 78-99 sorokban fel nem sorolt, vásárolt anyagok (pl. oltárdíszítéshez virág, gyertya, festékkazetta nyomtatóba, stb.) | E50: 47 | F50: 2015-08-19 | G50: PA3902102 | H50: Virág | L50: 2100 | T50: 50
A51: k101 | B51: V | C51: k101 | D51: -EGYÉB ANYAGOK KÖLTSÉGEEGY ÉVEN BELÜL ELHASZNÁLÓDÓ ESZKÖZÖK, SZERSZÁMOK, MŰSZEREK KÖLTSÉGE / 78-99 sorokban fel nem sorolt, vásárolt anyagok (pl. oltárdíszítéshez virág, gyertya, festékkazetta nyomtatóba, stb.) | E51: 48 | F51: 2015-08-24 | G51: PA3902103 | H51: Konfirmációi káté | L51: 10000 | T51: 51
A52: k101 | B52: V | C52: k101 | D52: -EGYÉB ANYAGOK KÖLTSÉGEEGY ÉVEN BELÜL ELHASZNÁLÓDÓ ESZKÖZÖK, SZERSZÁMOK, MŰSZEREK KÖLTSÉGE / 78-99 sorokban fel nem sorolt, vásárolt anyagok (pl. oltárdíszítéshez virág, gyertya, festékkazetta nyomtatóba, stb.) | E52: 49 | F52: 2015-08-28 | G52: PA3902104 | H52: Tintapatron | L52: 6800 | T52: 52
A53: k050 | B53: V | C53: k050 | D53: -PERSELYPÉNZ-PERSELYPÉNZ-PERSELYPÉNZ / egyházközségi rendezvényeken szervezett persely bevétele | E53: 50 | F53: 2015-09-06 | G53: BJ954313 | H53: Perselypénz | K53: 76650 | T53: 53
A54: k053 | B54: V | C54: k053 | D54: DC) TOVÁBBÍTANDÓ EGYÉB TÁMOGATÁSOKDC) TOVÁBBÍTANDÓ EGYÉB TÁMOGATÁSOK, BEVÉTELEKDC) TOVÁBBÍTANDÓ EGYÉB TÁMOGATÁSOK, BEVÉTELEK / kötelező offertórium, Gusztáv Adolf segély, szupplikáció, továbbítandó egyéb adományok | E54: 51 | F54: 2015-09-06 | G54: BJ954314 | H54: Iskolai offertórium | K54: 5000 | T54: 54
A55: k094 | B55: V | C55: k094 | D55: GÉPJÁRMŰVEK / gépjármű - karbantartási munkához vásárolt anyag (szolgáltatás nélkül) (olaj, izzó, stb.) | E55: 52 | F55: 2015-09-17 | G55: PA3902105 | H55: Elemcsere - gk. indítókulcs | L55: 1300 | T55: 55
A56: k094 | B56: V | C56: k094 | D56: GÉPJÁRMŰVEK / gépjármű - karbantartási munkához vásárolt anyag (szolgáltatás nélkül) (olaj, izzó, stb.) | E56: 53 | F56: 2015-09-17 | G56: PA3902106 | H56: Ablaktörlő - gk. | L56: 5550 | T56: 56
A57: k094 | B57: V | C57: k094 | D57: GÉPJÁRMŰVEK / gépjármű - karbantartási munkához vásárolt anyag (szolgáltatás nélkül) (olaj, izzó, stb.) | E57: 54 | F57: 2015-09-17 | G57: PA3902107 | H57: Ablaktörlő - gk. | L57: 1985 | T57: 57
A58: p012 | B58: V | C58: p012 | D58: - EGYÉB ÁTFUTÓ TÉTEL (BANK PÉNZTÁR KÖZÖTTI PÉNZMOZGÁS) / készpénzfelvétel, kp. befizetése bankszámlára, lekötés elkülönített számlára | E58: 55 | F58: 2015-09-17 | G58: BJ954315 | H58: Artikuláris nap | I58: részvételi díj (továbbítandó) | K58: 19000 | T58: 58
A59: k123 | B59: V | C59: k123 | D59: -EGYÉB IGÉNYBE VETT SZOLGÁLTATÁSKÖNYV, FOLYÓIRAT, EGYÉB INFORMÁCIÓHORDOZÓ KÖLTSÉGE / 102-119 sorokban ki nem emelt szolgáltatások (pl. vásárolt élelmezés - nem reprezentációs célú, tagdíjak, parkolási díj, autópályadíj, fénymásolás, mosatás, gépkocsi mosás, szemétszállítás, stb.) | E59: 56 | F59: 2015-09-19 | G59: PA3902108 | H59: Autópálya matrica | I59: 2 db | L59: 5950 | T59: 59
A60: k097 | B60: V | C60: k097 | D60: LELKÉSZI SZOLGÁLATI GÉPJÁRMŰVILLAMOS ENERGIA SZOLGÁLTATÁS DÍJA / lelkész által használt egyházközségi tulajdonú, vagy egyházközség által üzembentartott gépkocsi üzemanyagköltsége, a gyülekezet nevére szóló számla alapján | E60: 57 | F60: 2015-09-19 | G60: PA3902109 | H60: Benzin | L60: 20470 | T60: 60
A61: k171 | B61: V | C61: k171 | D61: MÁS KÜLÖNFÉLE EGYÉB RÁFORDÍTÁSOK / pl. kerekítés | E61: 58 | F61: 2015-09-19 | G61: PA3902109 | H61: Kerekítés | L61: 1 | T61: 61
A62: k142 | B62: V | C62: k142 | D62: - EGYÉB MUNKAVÉGZÉSHEZ KAPCSOLÓDÓ JUTTATÁSOK / közmunkaprogram keretében kifizetett bér, egyházi szolgálatért fizetett bruttó illetmény (kántor, harangozó, stb.) | E62: 59 | F62: 2015-09-22 | G62: PA3902110 | H62: Takarítás | I62: 10 alkalom | L62: 40000 | T62: 62
A63: k050 | B63: V | C63: k050 | D63: -PERSELYPÉNZ-PERSELYPÉNZ-PERSELYPÉNZ / egyházközségi rendezvényeken szervezett persely bevétele | E63: 60 | F63: 2015-09-24 | G63: BJ954316 | H63: Perselypénz | K63: 5300 | T63: 63
A64: k097 | B64: V | C64: k097 | D64: LELKÉSZI SZOLGÁLATI GÉPJÁRMŰVILLAMOS ENERGIA SZOLGÁLTATÁS DÍJA / lelkész által használt egyházközségi tulajdonú, vagy egyházközség által üzembentartott gépkocsi üzemanyagköltsége, a gyülekezet nevére szóló számla alapján | E64: 61 | F64: 2015-09-27 | G64: PA902111 | H64: Benzin | L64: 15803 | T64: 64
A65: k171 | B65: V | C65: k171 | D65: MÁS KÜLÖNFÉLE EGYÉB RÁFORDÍTÁSOK / pl. kerekítés | E65: 62 | F65: 2015-09-27 | G65: PA902111 | H65: Kerekítés | L65: 2 | T65: 65
A66: k101 | B66: V | C66: k101 | D66: -EGYÉB ANYAGOK KÖLTSÉGEEGY ÉVEN BELÜL ELHASZNÁLÓDÓ ESZKÖZÖK, SZERSZÁMOK, MŰSZEREK KÖLTSÉGE / 78-99 sorokban fel nem sorolt, vásárolt anyagok (pl. oltárdíszítéshez virág, gyertya, festékkazetta nyomtatóba, stb.) | E66: 63 | F66: 2015-10-16 | G66: PA902112 | H66: Virág | L66: 2200 | T66: 66
A67: k114 | B67: V | C67: k114 | D67: GÉPJÁRMŰVEKSZAKMAI ANYAGOK KÖLTSÉGE / gépjárművek - festés, szerelés, stb. karbantartási szolgáltatás (a benne lévő anyagköltséggel együtt) | E67: 64 | F67: 2015-10-26 | G67: PA902113 | H67: Gumiszerelés | L67: 7800 | T67: 67
A68: k101 | B68: V | C68: k101 | D68: -EGYÉB ANYAGOK KÖLTSÉGEEGY ÉVEN BELÜL ELHASZNÁLÓDÓ ESZKÖZÖK, SZERSZÁMOK, MŰSZEREK KÖLTSÉGE / 78-99 sorokban fel nem sorolt, vásárolt anyagok (pl. oltárdíszítéshez virág, gyertya, festékkazetta nyomtatóba, stb.) | E68: 65 | F68: 2015-10-29 | G68: PA902114 | H68: Virág | L68: 640 | T68: 68
A69: k134 | B69: V | C69: k134 | D69: EBBŐL IRATTERJESZTÉS KÖLTSÉGE / a 133 sor értékéből az eladásra vásárolt iratterjesztési cikkek értéke | E69: 66 | F69: 2015-10-29 | G69: PA902115 | H69: Válasz c. könyv 15 db | L69: 15000 | T69: 69
A70: k142 | B70: V | C70: k142 | D70: - EGYÉB MUNKAVÉGZÉSHEZ KAPCSOLÓDÓ JUTTATÁSOK / közmunkaprogram keretében kifizetett bér, egyházi szolgálatért fizetett bruttó illetmény (kántor, harangozó, stb.) | E70: 67 | F70: 2015-10-30 | G70: PA902116 | H70: Takarítás | L70: 12000 | T70: 70
A71: k097 | B71: V | C71: k097 | D71: LELKÉSZI SZOLGÁLATI GÉPJÁRMŰVILLAMOS ENERGIA SZOLGÁLTATÁS DÍJA / lelkész által használt egyházközségi tulajdonú, vagy egyházközség által üzembentartott gépkocsi üzemanyagköltsége, a gyülekezet nevére szóló számla alapján | E71: 68 | F71: 2015-10-30 | G71: PA902117 | H71: Benzin | L71: 17501 | T71: 71
A72: k171 | B72: V | C72: k171 | D72: MÁS KÜLÖNFÉLE EGYÉB RÁFORDÍTÁSOK / pl. kerekítés | E72: 69 | F72: 2015-10-30 | G72: PA902117 | H72: Kerekítés | L72: -1 | T72: 72
A73: k007 | B73: V | C73: k007 | D73: IRATTERJESZTÉS ÁRBEVÉTELEIRATTERJESZTÉS ÁRBEVÉTELEIRATTERJESZTÉS ÁRBEVÉTELE / Vásárolt könyvek, folyóiratok, stb. értékesítésének bevétele | E73: 70 | F73: 2015-10-30 | G73: BJ954317 | H73: Biblia | K73: 1800 | T73: 73
A74: k097 | B74: V | C74: k097 | D74: LELKÉSZI SZOLGÁLATI GÉPJÁRMŰVILLAMOS ENERGIA SZOLGÁLTATÁS DÍJA / lelkész által használt egyházközségi tulajdonú, vagy egyházközség által üzembentartott gépkocsi üzemanyagköltsége, a gyülekezet nevére szóló számla alapján | E74: 71 | F74: 2015-11-21 | G74: PA3902118 | H74: Benzin | L74: 17500 | T74: 74
A75: k114 | B75: V | C75: k114 | D75: GÉPJÁRMŰVEKSZAKMAI ANYAGOK KÖLTSÉGE / gépjárművek - festés, szerelés, stb. karbantartási szolgáltatás (a benne lévő anyagköltséggel együtt) | E75: 72 | F75: 2015-11-23 | G75: PA3902119 | H75: Gumijavítás | L75: 1500 | T75: 75
A76: k142 | B76: V | C76: k142 | D76: - EGYÉB MUNKAVÉGZÉSHEZ KAPCSOLÓDÓ JUTTATÁSOK / közmunkaprogram keretében kifizetett bér, egyházi szolgálatért fizetett bruttó illetmény (kántor, harangozó, stb.) | E76: 73 | F76: 2015-11-30 | G76: PA3902120 | H76: Takarítás | I76: 2 alkalom | L76: 8000 | T76: 76
A77: k101 | B77: V | C77: k101 | D77: -EGYÉB ANYAGOK KÖLTSÉGEEGY ÉVEN BELÜL ELHASZNÁLÓDÓ ESZKÖZÖK, SZERSZÁMOK, MŰSZEREK KÖLTSÉGE / 78-99 sorokban fel nem sorolt, vásárolt anyagok (pl. oltárdíszítéshez virág, gyertya, festékkazetta nyomtatóba, stb.) | E77: 74 | F77: 2015-11-30 | G77: PA3902121 | H77: Virág | L77: 2240 | T77: 77
A78: k048 | B78: V | C78: k048 | D78: -EGYHÁZFENNTARTÓI JÁRULÉK / magánszemélyek által ezen a címen teljesítet befizetés | E78: 75 | F78: 2015-11-30 | G78: BJ954318 | H78: Egyházfenntartás | K78: 183000 | T78: 78
A79: k120 | B79: V | C79: k120 | D79: -POSTA, TELEFON ÉS EGYÉB TELEKOMMUNIKÁCIÓS KÖLTSÉGEKUTAZÁSI ÉS KIKÜLDETÉSI KÖLTSÉGEK / posta, telefon, internet | E79: 76 | F79: 2015-12-17 | G79: PA3902122 | H79: Levélfeladás | L79: 115 | T79: 79
A80: k097 | B80: V | C80: k097 | D80: LELKÉSZI SZOLGÁLATI GÉPJÁRMŰVILLAMOS ENERGIA SZOLGÁLTATÁS DÍJA / lelkész által használt egyházközségi tulajdonú, vagy egyházközség által üzembentartott gépkocsi üzemanyagköltsége, a gyülekezet nevére szóló számla alapján | E80: 77 | F80: 2015-12-19 | G80: PA3902123 | H80: Benzin | L80: 14001 | T80: 80
A81: k171 | B81: V | C81: k171 | D81: MÁS KÜLÖNFÉLE EGYÉB RÁFORDÍTÁSOK / pl. kerekítés | E81: 78 | F81: 2015-12-19 | G81: PA3902123 | H81: Kerekítés | L81: -1 | T81: 81
A82: k142 | B82: V | C82: k142 | D82: - EGYÉB MUNKAVÉGZÉSHEZ KAPCSOLÓDÓ JUTTATÁSOK / közmunkaprogram keretében kifizetett bér, egyházi szolgálatért fizetett bruttó illetmény (kántor, harangozó, stb.) | E82: 79 | F82: 2015-12-22 | G82: PA3902124 | H82: Takarítás | L82: 12000 | T82: 82
A83: k048 | B83: V | C83: k048 | D83: -EGYHÁZFENNTARTÓI JÁRULÉK / magánszemélyek által ezen a címen teljesítet befizetés | E83: 80 | F83: 2015-12-22 | G83: BJ954319 | H83: Egyházfenntartás | K83: 12000 | T83: 83
A84: k007 | B84: V | C84: k007 | D84: IRATTERJESZTÉS ÁRBEVÉTELEIRATTERJESZTÉS ÁRBEVÉTELEIRATTERJESZTÉS ÁRBEVÉTELE / Vásárolt könyvek, folyóiratok, stb. értékesítésének bevétele | E84: 81 | F84: 2015-12-27 | G84: BJ954320 | H84: Naptár, útmutató | K84: =90880-43200 -> 47680 | T84: 84
A85: p012 | B85: V | C85: p012 | D85: - EGYÉB ÁTFUTÓ TÉTEL (BANK PÉNZTÁR KÖZÖTTI PÉNZMOZGÁS) / készpénzfelvétel, kp. befizetése bankszámlára, lekötés elkülönített számlára | E85: 82 | F85: 2015-12-27 | H85: DH előfizetés - továbbításra | K85: 43200 | T85: 85
A86: k050 | B86: V | C86: k050 | D86: -PERSELYPÉNZ-PERSELYPÉNZ-PERSELYPÉNZ / egyházközségi rendezvényeken szervezett persely bevétele | E86: 83 | F86: 2015-12-29 | G86: BJ954321 | H86: Perselypénz | K86: 68870 | T86: 86
A87: p024 | B87: V | C87: p024 | D87: - EGYÉB ÁTFUTÓ TÉTEL (BANK PÉNZTÁR KÖZÖTTI PÉNZMOZGÁS) / készpénzbefizetés, kp. felvétele bankszámláról, lekötés elkülönített számlára | E87: 84 | F87: 2015-12-29 | G87: PA3902125 | H87: Pénzügyi átvezetés | L87: 200000 | T87: 87
A88: k097 | B88: V | C88: k097 | D88: LELKÉSZI SZOLGÁLATI GÉPJÁRMŰVILLAMOS ENERGIA SZOLGÁLTATÁS DÍJA / lelkész által használt egyházközségi tulajdonú, vagy egyházközség által üzembentartott gépkocsi üzemanyagköltsége, a gyülekezet nevére szóló számla alapján | E88: 85 | F88: 2015-12-30 | G88: PA3902776 | H88: Benzin | L88: 14503 | T88: 88
A89: k171 | B89: V | C89: k171 | D89: MÁS KÜLÖNFÉLE EGYÉB RÁFORDÍTÁSOK / pl. kerekítés | E89: 86 | F89: 2015-12-30 | G89: PA3902776 | H89: Kerekítés | L89: 2 | T89: 89
A90: p007 | B90: V | C90: p007 | D90: - EGYHÁZKÖZSÉG MÁS RÉSZÉTŐL (TÁRS, LEÁNY) / azonos adószám alatt nyilvántartott anya- vagy leánygyülekezetektől, társgyülekezetektől átvett pénz | E90: 87 | F90: 2015-12-31 | G90: BJ954321 | H90: Egyházfenntartás | K90: 64000 | T90: 90
A91: k080 | B91: V | C91: k080 | D91: LELKÉSZLAKÁSGÁZENERGIA SZOLGÁLTATÁS DÍJA / lelkészlakás áramdíja | E91: 88 | F91: 2015-12-31 | G91: PA3902777 | H91: Villanyszámla | I91: parókia | L91: 1875 | T91: 91
A92: k101 | B92: V | C92: k101 | D92: -EGYÉB ANYAGOK KÖLTSÉGEEGY ÉVEN BELÜL ELHASZNÁLÓDÓ ESZKÖZÖK, SZERSZÁMOK, MŰSZEREK KÖLTSÉGE / 78-99 sorokban fel nem sorolt, vásárolt anyagok (pl. oltárdíszítéshez virág, gyertya, festékkazetta nyomtatóba, stb.) | E92: 89 | F92: 2015-12-31 | G92: PA3902778 | H92: Virág | L92: 1850 | T92: 92

Sheet Gy
F1: Készpénz: | G1: =mérleg1!E10 -> 44592 | H1: Gyóró | K1: pénztár
E3: sor-szám | F3: dátum | G3: biz.sorszám | H3: megnevezés | I3: egyéb megjegyzés | J3: további megjegyzések | K3: bevétel | L3: kiadás
A4: k050 | B4: Gy | C4: k050 | D4: -PERSELYPÉNZ-PERSELYPÉNZ-PERSELYPÉNZ / egyházközségi rendezvényeken szervezett persely bevétele | E4: 1 | F4: 2015-01-01 | G4: BG455988 | H4: Perselypénz | K4: 1000 | T4: 4
A5: k004 | B5: Gy | C5: k004 | D5: INGATLAN BÉRBEADÁS ÁRBEVÉTELE / részleges ingatlan bérbeadás (lakás, egyéb ingatlan, földterület, stb.) (nem vállalkozási tevékenység) | E5: 2 | F5: 2015-01-20 | G5: BG455989 | H5: Lakbérek | I5: WLIEA1507018 | K5: 15000 | T5: 5
A6: k050 | B6: Gy | C6: k050 | D6: -PERSELYPÉNZ-PERSELYPÉNZ-PERSELYPÉNZ / egyházközségi rendezvényeken szervezett persely bevétele | E6: 3 | F6: 2015-01-25 | G6: BG455990 | H6: Perselypénz | K6: 900 | T6: 6
A7: k004 | B7: Gy | C7: k004 | D7: INGATLAN BÉRBEADÁS ÁRBEVÉTELE / részleges ingatlan bérbeadás (lakás, egyéb ingatlan, földterület, stb.) (nem vállalkozási tevékenység) | E7: 4 | F7: 2015-02-15 | G7: BG455991 | H7: Lakbérek | I7: WLIEA1507019 | K7: 15000 | T7: 7
A8: k053 | B8: Gy | C8: k053 | D8: DC) TOVÁBBÍTANDÓ EGYÉB TÁMOGATÁSOKDC) TOVÁBBÍTANDÓ EGYÉB TÁMOGATÁSOK, BEVÉTELEKDC) TOVÁBBÍTANDÓ EGYÉB TÁMOGATÁSOK, BEVÉTELEK / kötelező offertórium, Gusztáv Adolf segély, szupplikáció, továbbítandó egyéb adományok | E8: 5 | F8: 2015-02-22 | G8: BG455992 | H8: Köt. off. - ehm.-i | K8: 2500 | T8: 8
